Workbook

Sheet 配置医師ー①～④
A1: =RIGHT(CELL("filename",A1),LEN(CELL("filename",A1))-FIND("]",CELL("filename",A1))) -> 配置医師ー①～④ | E1: 問６(1) 配置医師の勤務形態 | J1: 問６(1)SQ(1)-1③ 施設での１か月における平均勤務時間合計（７月１か月間の実績） | W1: 問６(1)SQ(1)-1③ 施設での１か月における平均勤務時間合計（７月１か月間の実績） | AJ1: 問６(2) 配置医師の役割（複数回答）
J2: 契約上責任を持つ時間（施設単位） | W2: 実際に施設で勤務する時間（施設単位） | AJ2: ①実際に担っているもの
E3: 全体 | F3: 常勤医師あり | G3: 非常勤２名以上 | H3: 非常勤１名 | I3: エラー・無回答 | J3: 全体 | K3: ４時間未満 | L3: ４～６時間未満 | M3: ６～８時間未満 | N3: ８～10時間未満 | O3: 10～15時間未満 | P3: 15～20時間未満 | Q3: 20～30時間未満 | R3: 30～50時間未満 | S3: 50～100時間未満 | T3: 100時間以上 | U3: エラー・無回答 | V3: 契約上 責任を 持つ時間 （平均 時間/月) | W3: 全体 | X3: ４時間未満 | Y3: ４～６時間未満 | Z3: ６～８時間未満 | AA3: ８～10時間未満 | AB3: 10～15時間未満 | AC3: 15～20時間未満 | AD3: 20～30時間未満 | AE3: 30～50時間未満 | AF3: 50～100時間未満 | AG3: 100時間以上 | AH3: エラー・無回答 | AI3: 実際に 施設で 勤務する 時間 （平均 時間/月) | AJ3: 全体 | AK3: 日常の健康管理のための診察・診療 | AL3: 検査結果や介護・生活上での留意点の職員への説明 | AM3: 予防接種の実施 | AN3: 病状や状態の変化等への備えに関する指示書の作成 | AO3: リハビリテーションや介護予防等の指示書の作成 | AP3: 施設の求めに応じた急変対応（往診、休日夜間対応等） | AQ3: ターミナルケア・看取りに対する入所者や家族へのメンタルサポート | AR3: 外部医療機関との連携 | AS3: 入所者の日常的な生活や介護の状況を常に把握 | AT3: 施設の運営状況・職員の能力等の理解 | AU3: 感染症対策に関する相談対応・指導 | AV3: 無回答
A4: 全 体 | E4: =E100 -> 1089 | F4: 41 | G4: =G100 -> 319 | H4: 671 | I4: 58 | J4: 1019 | K4: 36 | L4: 94 | M4: 40 | N4: 161 | O4: 126 | P4: 127 | Q4: 65 | R4: 57 | S4: 20 | T4: 88 | U4: 205 | V4: 32.88339476 | W4: =W100 -> 1019 | X4: 55 | Y4: 140 | Z4: 72 | AA4: 201 | AB4: 170 | AC4: 129 | AD4: 84 | AE4: 54 | AF4: 24 | AG4: 22 | AH4: 68 | AI4: =AI100 -> 17.14969856 | AJ4: 1089 | AK4: 1019 | AL4: 826 | AM4: 954 | AN4: 633 | AO4: 164 | AP4: 733 | AQ4: 673 | AR4: 817 | AS4: 432 | AT4: 241 | AU4: 787 | AV4: 62
E5: =IF(SUM(F5:I5)>100,"－",SUM(F5:I5)) -> 100 | F5: =F4/$E4*100 -> 3.764921947 | G5: =G4/$E4*100 -> 29.29292929 | H5: =H4/$E4*100 -> 61.61616162 | I5: =I4/$E4*100 -> 5.325987144 | J5: =IF(SUM(K5:U5)>100,"－",SUM(K5:U5)) -> 100 | K5: =K4/$J4*100 -> 3.532875368 | L5: =L4/$J4*100 -> 9.224730128 | M5: =M4/$J4*100 -> 3.925417076 | N5: =N4/$J4*100 -> 15.79980373 | O5: =O4/$J4*100 -> 12.36506379 | P5: 12.46319921 | Q5: 6.378802748 | R5: 5.593719333 | S5: 1.962708538 | T5: 8.635917566 | U5: 20.11776251 | W5: =IF(SUM(X5:AH5)>100,"－",SUM(X5:AH5)) -> 100 | X5: =X4/$W4*100 -> 5.397448479 | Y5: 13.73895976 | Z5: 7.065750736 | AA5: 19.7252208 | AB5: 16.68302257 | AC5: 12.65947007 | AD5: 8.243375859 | AE5: 5.299313052 | AF5: 2.355250245 | AG5: 2.158979392 | AH5: 6.673209028 | AJ5: =IF(SUM(AK5:AV5)>100,"－",SUM(AK5:AV5)) -> － | AK5: =AK4/$AJ4*100 -> 93.57208448 | AL5: =AL4/$AJ4*100 -> 75.84940312 | AM5: =AM4/$AJ4*100 -> 87.60330579 | AN5: =AN4/$AJ4*100 -> 58.12672176 | AO5: =AO4/$AJ4*100 -> 15.05968779 | AP5: =AP4/$AJ4*100 -> 67.30945822 | AQ5: 61.79981635 | AR5: 75.02295684 | AS5: 39.66942149 | AT5: 22.13039486 | AU5: 72.2681359 | AV5: 5.693296602
A6: 都市圏 | B6: 首都圏 | E6: =E102 -> 172 | F6: =IF($E6=0,0,F102/$E6*100) -> 5.23255814 | G6: 41.86046512 | H6: 50.58139535 | I6: 2.325581395 | J6: =J102 -> 164 | K6: =IF($J6=0,0,K102/$J6*100) -> 1.219512195 | L6: 5.487804878 | M6: 6.707317073 | N6: 15.85365854 | O6: 16.46341463 | P6: 12.19512195 | Q6: 9.146341463 | R6: 6.707317073 | S6: 1.829268293 | T6: 9.756097561 | U6: 14.63414634 | V6: =V102 -> 31.36035714 | W6: 164 | X6: =IF($W6=0,0,X102/$W6*100) -> 1.829268293 | Y6: 9.756097561 | Z6: 7.926829268 | AA6: 20.73170732 | AB6: 19.51219512 | AC6: 12.80487805 | AD6: 10.97560976 | AE6: 4.87804878 | AF6: 1.829268293 | AG6: 4.268292683 | AH6: 5.487804878 | AI6: =AI102 -> 20.39548387 | AJ6: 172 | AK6: =IF($AJ6=0,0,AK102/$AJ6*100) -> 94.76744186 | AL6: 72.6744186 | AM6: 88.37209302 | AN6: 60.46511628 | AO6: 23.8372093 | AP6: 61.04651163 | AQ6: 65.11627907 | AR6: 70.93023256 | AS6: 35.46511628 | AT6: 25.58139535 | AU6: 75.58139535 | AV6: 4.069767442
B7: 中京圏 | E7: 91 | F7: 4.395604396 | G7: 31.86813187 | H7: 58.24175824 | I7: 5.494505495 | J7: 86 | K7: =IF($J7=0,0,K103/$J7*100) -> 6.976744186 | L7: 11.62790698 | M7: 5.813953488 | N7: 16.27906977 | O7: 10.46511628 | P7: 11.62790698 | Q7: 8.139534884 | R7: 5.813953488 | S7: 0 | T7: 8.139534884 | U7: 15.11627907 | V7: 33.34246575 | W7: 86 | X7: =IF($W7=0,0,X103/$W7*100) -> 8.139534884 | Y7: 20.93023256 | Z7: 5.813953488 | AA7: 15.11627907 | AB7: 18.60465116 | AC7: 11.62790698 | AD7: 10.46511628 | AE7: 5.813953488 | AF7: 0 | AG7: 1.162790698 | AH7: 2.325581395 | AI7: 13.17059524 | AJ7: 91 | AK7: =IF($AJ7=0,0,AK103/$AJ7*100) -> 94.50549451 | AL7: 76.92307692 | AM7: 84.61538462 | AN7: 56.04395604 | AO7: 9.89010989 | AP7: 67.03296703 | AQ7: 59.34065934 | AR7: 75.82417582 | AS7: 41.75824176 | AT7: 24.17582418 | AU7: 75.82417582 | AV7: 5.494505495
B8: 近畿圏 | E8: 126 | F8: 5.555555556 | G8: 40.47619048 | H8: 48.41269841 | I8: 5.555555556 | J8: 117 | K8: =IF($J8=0,0,K104/$J8*100) -> 1.709401709 | L8: 6.837606838 | M8: 1.709401709 | N8: 12.82051282 | O8: 5.982905983 | P8: 11.96581197 | Q8: 12.82051282 | R8: 12.82051282 | S8: 6.837606838 | T8: 6.837606838 | U8: 19.65811966 | V8: 39.42446809 | W8: 117 | X8: =IF($W8=0,0,X104/$W8*100) -> 1.709401709 | Y8: 9.401709402 | Z8: 5.128205128 | AA8: 14.52991453 | AB8: 8.547008547 | AC8: 14.52991453 | AD8: 14.52991453 | AE8: 14.52991453 | AF8: 8.547008547 | AG8: 3.418803419 | AH8: 5.128205128 | AI8: 26.27747748 | AJ8: 126 | AK8: =IF($AJ8=0,0,AK104/$AJ8*100) -> 94.44444444 | AL8: 77.77777778 | AM8: 88.88888889 | AN8: 64.28571429 | AO8: 21.42857143 | AP8: 61.11111111 | AQ8: 69.04761905 | AR8: 76.98412698 | AS8: 42.85714286 | AT8: 19.04761905 | AU8: 71.42857143 | AV8: 4.761904762
B9: その他 | E9: 697 | F9: 3.012912482 | G9: 23.81635581 | H9: 67.14490674 | I9: 6.025824964 | J9: 649 | K9: =IF($J9=0,0,K105/$J9*100) -> 4.006163328 | L9: 10.32357473 | M9: 3.389830508 | N9: 16.17873652 | O9: 12.6348228 | P9: 12.78890601 | Q9: 4.314329738 | R9: 4.006163328 | S9: 1.386748844 | T9: 8.782742681 | U9: 22.18798151 | V9: 32.11234323 | W9: 649 | X9: =IF($W9=0,0,X105/$W9*100) -> 6.625577812 | Y9: 14.63790447 | Z9: 7.395993837 | AA9: 20.95531587 | AB9: 17.10323575 | AC9: 12.32665639 | AD9: 6.163328197 | AE9: 3.697996918 | AF9: 1.694915254 | AG9: 1.540832049 | AH9: 7.858243451 | AI9: 15.19554069 | AJ9: 697 | AK9: =IF($AJ9=0,0,AK105/$AJ9*100) -> 92.96987088 | AL9: 76.18364419 | AM9: 87.517934 | AN9: 56.52797704 | AO9: 12.33859397 | AP9: 69.87087518 | AQ9: 59.82783357 | AR9: 75.46628407 | AS9: 39.74175036 | AT9: 21.52080344 | AU9: 71.01865136 | AV9: 6.31276901
B10: 無回答 | E10: 3 | F10: 0 | G10: 33.33333333 | H10: 66.66666667 | I10: 0 | J10: 3 | K10: =IF($J10=0,0,K106/$J10*100) -> 0 | L10: 0 | M10: 0 | N10: 33.33333333 | O10: 33.33333333 | P10: 0 | Q10: 0 | R10: 0 | S10: 0 | T10: 0 | U10: 33.33333333 | V10: 10 | W10: 3 | X10: =IF($W10=0,0,X106/$W10*100) -> 0 | Y10: 0 | Z10: 0 | AA10: 33.33333333 | AB10: 33.33333333 | AC10: 33.33333333 | AD10: 0 | AE10: 0 | AF10: 0 | AG10: 0 | AH10: 0 | AI10: 12.66666667 | AJ10: 3 | AK10: =IF($AJ10=0,0,AK106/$AJ10*100) -> 100 | AL10: 66.66666667 | AM10: 100 | AN10: 100 | AO10: 33.33333333 | AP10: 100 | AQ10: 100 | AR10: 100 | AS10: 66.66666667 | AT10: 33.33333333 | AU10: 100 | AV10: 0
A11: 都市規模 | B11: 指定都市・特別区 | E11: 192 | F11: 8.854166667 | G11: 30.72916667 | H11: 56.25 | I11: 4.166666667 | J11: 184 | K11: =IF($J11=0,0,K107/$J11*100) -> 1.086956522 | L11: 4.891304348 | M11: 4.347826087 | N11: 15.2173913 | O11: 10.86956522 | P11: 11.41304348 | Q11: 8.695652174 | R11: 8.695652174 | S11: 2.717391304 | T11: 10.32608696 | U11: 21.73913043 | V11: 37.01458333 | W11: 184 | X11: =IF($W11=0,0,X107/$W11*100) -> 2.717391304 | Y11: 8.152173913 | Z11: 7.608695652 | AA11: 15.76086957 | AB11: 19.02173913 | AC11: 14.13043478 | AD11: 11.41304348 | AE11: 7.065217391 | AF11: 1.630434783 | AG11: 4.891304348 | AH11: 7.608695652 | AI11: 22.86147059 | AJ11: 192 | AK11: =IF($AJ11=0,0,AK107/$AJ11*100) -> 95.3125 | AL11: 77.08333333 | AM11: 89.58333333 | AN11: 60.9375 | AO11: 17.70833333 | AP11: 60.41666667 | AQ11: 64.58333333 | AR11: 75.52083333 | AS11: 37.5 | AT11: 18.22916667 | AU11: 77.08333333 | AV11: 4.166666667
B12: 中核市 | E12: 188 | F12: 2.659574468 | G12: 32.9787234 | H12: 61.17021277 | I12: 3.191489362 | J12: 181 | K12: =IF($J12=0,0,K108/$J12*100) -> 3.314917127 | L12: 9.944751381 | M12: 4.419889503 | N12: 13.8121547 | O12: 11.60220994 | P12: 12.70718232 | Q12: 6.629834254 | R12: 4.972375691 | S12: 1.104972376 | T12: 9.944751381 | U12: 21.54696133 | V12: 38.03098592 | W12: 181 | X12: =IF($W12=0,0,X108/$W12*100) -> 4.972375691 | Y12: 13.8121547 | Z12: 6.629834254 | AA12: 17.12707182 | AB12: 17.12707182 | AC12: 13.25966851 | AD12: 9.392265193 | AE12: 6.077348066 | AF12: 2.762430939 | AG12: 1.657458564 | AH12: 7.182320442 | AI12: 16.05059524 | AJ12: 188 | AK12: =IF($AJ12=0,0,AK108/$AJ12*100) -> 96.27659574 | AL12: 79.25531915 | AM12: 88.29787234 | AN12: 61.17021277 | AO12: 18.61702128 | AP12: 69.14893617 | AQ12: 60.63829787 | AR12: 77.12765957 | AS12: 41.4893617 | AT12: 19.68085106 | AU12: 73.40425532 | AV12: 3.723404255
B13: その他の市 | E13: 514 | F13: 2.918287938 | G13: 29.76653696 | H13: 60.31128405 | I13: 7.003891051 | J13: 471 | K13: =IF($J13=0,0,K109/$J13*100) -> 4.246284501 | L13: 9.766454352 | M13: 3.609341826 | N13: 16.77282378 | O13: 13.16348195 | P13: 13.37579618 | Q13: 5.732484076 | R13: 4.883227176 | S13: 1.910828025 | T13: 8.067940552 | U13: 18.47133758 | V13: 31.11662326 | W13: 471 | X13: =IF($W13=0,0,X109/$W13*100) -> 5.732484076 | Y13: 14.01273885 | Z13: 7.855626327 | AA13: 21.44373673 | AB13: 15.71125265 | AC13: 12.7388535 | AD13: 7.855626327 | AE13: 4.246284501 | AF13: 2.335456476 | AG13: 1.6985138 | AH13: 6.369426752 | AI13: 16.34372638 | AJ13: 514 | AK13: =IF($AJ13=0,0,AK109/$AJ13*100) -> 91.63424125 | AL13: 74.51361868 | AM13: 86.96498054 | AN13: 56.80933852 | AO13: 14.39688716 | AP13: 70.42801556 | AQ13: 63.03501946 | AR13: 74.70817121 | AS13: 38.91050584 | AT13: 25.29182879 | AU13: 70.81712062 | AV13: 7.19844358
B14: 町村 | E14: 192 | F14: 2.083333333 | G14: 22.91666667 | H14: 70.83333333 | I14: 4.166666667 | J14: 180 | K14: =IF($J14=0,0,K110/$J14*100) -> 4.444444444 | L14: 11.66666667 | M14: 3.888888889 | N14: 15.55555556 | O14: 12.22222222 | P14: 11.11111111 | Q14: 5.555555556 | R14: 5 | S14: 2.222222222 | T14: 7.222222222 | U14: 21.11111111 | V14: 28.64647887 | W14: 180 | X14: =IF($W14=0,0,X110/$W14*100) -> 7.777777778 | Y14: 18.88888889 | Z14: 5 | AA14: 21.66666667 | AB14: 16.11111111 | AC14: 10 | AD14: 5 | AE14: 5.555555556 | AF14: 2.777777778 | AG14: 1.111111111 | AH14: 6.111111111 | AI14: 14.67946746 | AJ14: 192 | AK14: =IF($AJ14=0,0,AK110/$AJ14*100) -> 94.27083333 | AL14: 75 | AM14: 86.45833333 | AN14: 55.20833333 | AO14: 10.41666667 | AP14: 63.54166667 | AQ14: 56.25 | AR14: 72.91666667 | AS14: 41.66666667 | AT14: 19.79166667 | AU14: 69.79166667 | AV14: 5.208333333
B15: 無回答 | E15: 3 | F15: 0 | G15: 33.33333333 | H15: 66.66666667 | I15: 0 | J15: 3 | K15: =IF($J15=0,0,K111/$J15*100) -> 0 | L15: 0 | M15: 0 | N15: 33.33333333 | O15: 33.33333333 | P15: 0 | Q15: 0 | R15: 0 | S15: 0 | T15: 0 | U15: 33.33333333 | V15: 10 | W15: 3 | X15: =IF($W15=0,0,X111/$W15*100) -> 0 | Y15: 0 | Z15: 0 | AA15: 33.33333333 | AB15: 33.33333333 | AC15: 33.33333333 | AD15: 0 | AE15: 0 | AF15: 0 | AG15: 0 | AH15: 0 | AI15: 12.66666667 | AJ15: 3 | AK15: =IF($AJ15=0,0,AK111/$AJ15*100) -> 100 | AL15: 66.66666667 | AM15: 100 | AN15: 100 | AO15: 33.33333333 | AP15: 100 | AQ15: 100 | AR15: 100 | AS15: 66.66666667 | AT15: 33.33333333 | AU15: 100 | AV15: 0
A16: 地域区分 | B16: １級地 | E16: 27 | F16: 11.11111111 | G16: 44.44444444 | H16: 40.74074074 | I16: 3.703703704 | J16: 26 | K16: =IF($J16=0,0,K112/$J16*100) -> 0 | L16: 0 | M16: 7.692307692 | N16: 19.23076923 | O16: 15.38461538 | P16: 3.846153846 | Q16: 23.07692308 | R16: 7.692307692 | S16: 0 | T16: 19.23076923 | U16: 3.846153846 | V16: 43.32 | W16: 26 | X16: =IF($W16=0,0,X112/$W16*100) -> 0 | Y16: 3.846153846 | Z16: 7.692307692 | AA16: 19.23076923 | AB16: 26.92307692 | AC16: 3.846153846 | AD16: 26.92307692 | AE16: 0 | AF16: 0 | AG16: 11.53846154 | AH16: 0 | AI16: 28.80769231 | AJ16: 27 | AK16: =IF($AJ16=0,0,AK112/$AJ16*100) -> 92.59259259 | AL16: 77.77777778 | AM16: 92.59259259 | AN16: 59.25925926 | AO16: 25.92592593 | AP16: 51.85185185 | AQ16: 66.66666667 | AR16: 70.37037037 | AS16: 29.62962963 | AT16: 25.92592593 | AU16: 81.48148148 | AV16: 7.407407407
B17: ２級地 | E17: 27 | F17: 7.407407407 | G17: 48.14814815 | H17: 40.74074074 | I17: 3.703703704 | J17: 26 | K17: =IF($J17=0,0,K113/$J17*100) -> 0 | L17: 0 | M17: 7.692307692 | N17: 11.53846154 | O17: 7.692307692 | P17: 7.692307692 | Q17: 11.53846154 | R17: 15.38461538 | S17: 7.692307692 | T17: 7.692307692 | U17: 23.07692308 | V17: 39.18 | W17: 26 | X17: =IF($W17=0,0,X113/$W17*100) -> 0 | Y17: 3.846153846 | Z17: 3.846153846 | AA17: 15.38461538 | AB17: 7.692307692 | AC17: 11.53846154 | AD17: 15.38461538 | AE17: 19.23076923 | AF17: 3.846153846 | AG17: 3.846153846 | AH17: 15.38461538 | AI17: 28.27045455 | AJ17: 27 | AK17: =IF($AJ17=0,0,AK113/$AJ17*100) -> 96.2962963 | AL17: 74.07407407 | AM17: 85.18518519 | AN17: 66.66666667 | AO17: 14.81481481 | AP17: 62.96296296 | AQ17: 77.77777778 | AR17: 77.77777778 | AS17: 48.14814815 | AT17: 25.92592593 | AU17: 81.48148148 | AV17: 3.703703704
B18: ３級地 | E18: 46 | F18: 6.52173913 | G18: 39.13043478 | H18: 50 | I18: 4.347826087 | J18: 44 | K18: =IF($J18=0,0,K114/$J18*100) -> 2.272727273 | L18: 4.545454545 | M18: 2.272727273 | N18: 18.18181818 | O18: 9.090909091 | P18: 20.45454545 | Q18: 11.36363636 | R18: 9.090909091 | S18: 2.272727273 | T18: 11.36363636 | U18: 9.090909091 | V18: 32.0625 | W18: 44 | X18: =IF($W18=0,0,X114/$W18*100) -> 6.818181818 | Y18: 11.36363636 | Z18: 4.545454545 | AA18: 22.72727273 | AB18: 13.63636364 | AC18: 13.63636364 | AD18: 11.36363636 | AE18: 9.090909091 | AF18: 2.272727273 | AG18: 2.272727273 | AH18: 2.272727273 | AI18: 17.44186047 | AJ18: 46 | AK18: =IF($AJ18=0,0,AK114/$AJ18*100) -> 95.65217391 | AL18: 82.60869565 | AM18: 91.30434783 | AN18: 56.52173913 | AO18: 26.08695652 | AP18: 73.91304348 | AQ18: 67.39130435 | AR18: 67.39130435 | AS18: 39.13043478 | AT18: 21.73913043 | AU18: 69.56521739 | AV18: 4.347826087
B19: ４級地 | E19: 32 | F19: 12.5 | G19: 43.75 | H19: 37.5 | I19: 6.25 | J19: 30 | K19: =IF($J19=0,0,K115/$J19*100) -> 0 | L19: 3.333333333 | M19: 0 | N19: 13.33333333 | O19: 6.666666667 | P19: 20 | Q19: 3.333333333 | R19: 13.33333333 | S19: 6.666666667 | T19: 10 | U19: 23.33333333 | V19: 36.95652174 | W19: 30 | X19: =IF($W19=0,0,X115/$W19*100) -> 0 | Y19: 0 | Z19: 10 | AA19: 16.66666667 | AB19: 16.66666667 | AC19: 30 | AD19: 6.666666667 | AE19: 3.333333333 | AF19: 6.666666667 | AG19: 6.666666667 | AH19: 3.333333333 | AI19: 24.36206897 | AJ19: 32 | AK19: =IF($AJ19=0,0,AK115/$AJ19*100) -> 96.875 | AL19: 65.625 | AM19: 87.5 | AN19: 59.375 | AO19: 21.875 | AP19: 46.875 | AQ19: 68.75 | AR19: 56.25 | AS19: 21.875 | AT19: 9.375 | AU19: 78.125 | AV19: 3.125
B20: ５級地 | E20: 85 | F20: 3.529411765 | G20: 38.82352941 | H20: 54.11764706 | I20: 3.529411765 | J20: 79 | K20: =IF($J20=0,0,K116/$J20*100) -> 2.53164557 | L20: 10.12658228 | M20: 6.329113924 | N20: 15.18987342 | O20: 7.594936709 | P20: 13.92405063 | Q20: 7.594936709 | R20: 8.860759494 | S20: 3.797468354 | T20: 5.063291139 | U20: 18.98734177 | V20: 26.9140625 | W20: 79 | X20: =IF($W20=0,0,X116/$W20*100) -> 3.797468354 | Y20: 11.39240506 | Z20: 6.329113924 | AA20: 13.92405063 | AB20: 12.65822785 | AC20: 18.98734177 | AD20: 8.860759494 | AE20: 10.12658228 | AF20: 3.797468354 | AG20: 2.53164557 | AH20: 7.594936709 | AI20: 21.27260274 | AJ20: 85 | AK20: =IF($AJ20=0,0,AK116/$AJ20*100) -> 91.76470588 | AL20: 72.94117647 | AM20: 88.23529412 | AN20: 54.11764706 | AO20: 18.82352941 | AP20: 52.94117647 | AQ20: 58.82352941 | AR20: 77.64705882 | AS20: 38.82352941 | AT20: 11.76470588 | AU20: 67.05882353 | AV20: 4.705882353
B21: ６級地 | E21: 121 | F21: 4.958677686 | G21: 33.88429752 | H21: 58.67768595 | I21: 2.479338843 | J21: 117 | K21: =IF($J21=0,0,K117/$J21*100) -> 3.418803419 | L21: 7.692307692 | M21: 2.564102564 | N21: 10.25641026 | O21: 17.09401709 | P21: 11.96581197 | Q21: 6.837606838 | R21: 3.418803419 | S21: 3.418803419 | T21: 8.547008547 | U21: 24.78632479 | V21: 39.24772727 | W21: 117 | X21: =IF($W21=0,0,X117/$W21*100) -> 3.418803419 | Y21: 13.67521368 | Z21: 5.128205128 | AA21: 14.52991453 | AB21: 19.65811966 | AC21: 10.25641026 | AD21: 11.11111111 | AE21: 4.273504274 | AF21: 5.128205128 | AG21: 3.418803419 | AH21: 9.401709402 | AI21: 21.46037736 | AJ21: 121 | AK21: =IF($AJ21=0,0,AK117/$AJ21*100) -> 96.69421488 | AL21: 76.03305785 | AM21: 87.60330579 | AN21: 60.33057851 | AO21: 18.18181818 | AP21: 66.11570248 | AQ21: 61.15702479 | AR21: 74.38016529 | AS21: 42.14876033 | AT21: 24.79338843 | AU21: 73.55371901 | AV21: 3.305785124
B22: ７級地 | E22: 183 | F22: 3.278688525 | G22: 25.68306011 | H22: 63.93442623 | I22: 7.103825137 | J22: 169 | K22: =IF($J22=0,0,K118/$J22*100) -> 2.366863905 | L22: 10.0591716 | M22: 5.325443787 | N22: 18.93491124 | O22: 8.284023669 | P22: 8.875739645 | Q22: 4.733727811 | R22: 7.100591716 | S22: 1.775147929 | T22: 8.875739645 | U22: 23.66863905 | V22: 40.29457364 | W22: 169 | X22: =IF($W22=0,0,X118/$W22*100) -> 5.917159763 | Y22: 13.60946746 | Z22: 8.284023669 | AA22: 22.4852071 | AB22: 14.79289941 | AC22: 10.65088757 | AD22: 6.50887574 | AE22: 6.50887574 | AF22: 2.958579882 | AG22: 1.183431953 | AH22: 7.100591716 | AI22: 16.03566879 | AJ22: 183 | AK22: =IF($AJ22=0,0,AK118/$AJ22*100) -> 93.44262295 | AL22: 74.86338798 | AM22: 86.33879781 | AN22: 60.10928962 | AO22: 14.20765027 | AP22: 70.49180328 | AQ22: 59.01639344 | AR22: 75.95628415 | AS22: 42.62295082 | AT22: 22.95081967 | AU22: 73.7704918 | AV22: 6.557377049
B23: その他 | E23: 565 | F23: 2.477876106 | G23: 24.77876106 | H23: 66.90265487 | I23: 5.840707965 | J23: 525 | K23: =IF($J23=0,0,K119/$J23*100) -> 4.761904762 | L23: 10.85714286 | M23: 3.428571429 | N23: 16 | O23: 13.9047619 | P23: 13.14285714 | Q23: 5.333333333 | R23: 3.80952381 | S23: 0.9523809524 | T23: 8.380952381 | U23: 19.42857143 | V23: 29.25220646 | W23: 525 | X23: =IF($W23=0,0,X119/$W23*100) -> 6.666666667 | Y23: 16.19047619 | Z23: 7.428571429 | AA23: 20.95238095 | AB23: 17.33333333 | AC23: 12.19047619 | AD23: 6.666666667 | AE23: 3.80952381 | AF23: 1.142857143 | AG23: 1.333333333 | AH23: 6.285714286 | AI23: 14.42807588 | AJ23: 565 | AK23: =IF($AJ23=0,0,AK119/$AJ23*100) -> 92.74336283 | AL23: 76.63716814 | AM23: 87.43362832 | AN23: 56.99115044 | AO23: 12.21238938 | AP23: 70.08849558 | AQ23: 61.23893805 | AR23: 76.10619469 | AS23: 39.2920354 | AT23: 23.18584071 | AU23: 71.15044248 | AV23: 6.371681416
B24: 無回答 | E24: 3 | F24: 0 | G24: 33.33333333 | H24: 66.66666667 | I24: 0 | J24: 3 | K24: =IF($J24=0,0,K120/$J24*100) -> 0 | L24: 0 | M24: 0 | N24: 33.33333333 | O24: 33.33333333 | P24: 0 | Q24: 0 | R24: 0 | S24: 0 | T24: 0 | U24: 33.33333333 | V24: 10 | W24: 3 | X24: =IF($W24=0,0,X120/$W24*100) -> 0 | Y24: 0 | Z24: 0 | AA24: 33.33333333 | AB24: 33.33333333 | AC24: 33.33333333 | AD24: 0 | AE24: 0 | AF24: 0 | AG24: 0 | AH24: 0 | AI24: 12.66666667 | AJ24: 3 | AK24: =IF($AJ24=0,0,AK120/$AJ24*100) -> 100 | AL24: 66.66666667 | AM24: 100 | AN24: 100 | AO24: 33.33333333 | AP24: 100 | AQ24: 100 | AR24: 100 | AS24: 66.66666667 | AT24: 33.33333333 | AU24: 100 | AV24: 0
A25: 問１(1) | B25: 介護老人福 | C25: 介護福祉施設 | E25: 477 | F25: 4.192872117 | G25: 38.99371069 | H25: 51.57232704 | I25: 5.241090147 | J25: 446 | K25: =IF($J25=0,0,K121/$J25*100) -> 2.466367713 | L25: 4.708520179 | M25: 4.035874439 | N25: 12.78026906 | O25: 13.67713004 | P25: 15.47085202 | Q25: 9.417040359 | R25: 6.053811659 | S25: 3.139013453 | T25: 8.071748879 | U25: 20.1793722 | V25: 33.10079588 | W25: 446 | X25: =IF($W25=0,0,X121/$W25*100) -> 3.811659193 | Y25: 8.744394619 | Z25: 7.174887892 | AA25: 17.93721973 | AB25: 19.05829596 | AC25: 15.02242152 | AD25: 10.76233184 | AE25: 5.381165919 | AF25: 3.139013453 | AG25: 2.69058296 | AH25: 6.278026906 | AI25: 18.99058214 | AJ25: 477 | AK25: =IF($AJ25=0,0,AK121/$AJ25*100) -> 93.92033543 | AL25: 75.47169811 | AM25: 88.46960168 | AN25: 55.13626834 | AO25: 15.30398323 | AP25: 68.13417191 | AQ25: 61.00628931 | AR25: 75.0524109 | AS25: 38.36477987 | AT25: 22.43186583 | AU25: 75.89098532 | AV25: 5.450733753
A26: 施設の種類 | B26: 祉施設 | C26: 小規模介護福祉施設 | E26: 13 | F26: 0 | G26: 23.07692308 | H26: 61.53846154 | I26: 15.38461538 | J26: 11 | K26: =IF($J26=0,0,K122/$J26*100) -> 0 | L26: 27.27272727 | M26: 0 | N26: 18.18181818 | O26: 27.27272727 | P26: 9.090909091 | Q26: 0 | R26: 9.090909091 | S26: 0 | T26: 0 | U26: 9.090909091 | V26: =V122 -> 11.74 | W26: 11 | X26: =IF($W26=0,0,X122/$W26*100) -> 0 | Y26: 27.27272727 | Z26: 0 | AA26: 18.18181818 | AB26: 36.36363636 | AC26: 9.090909091 | AD26: 0 | AE26: 9.090909091 | AF26: 0 | AG26: 0 | AH26: 0 | AI26: =AI122 -> 11.44545455 | AJ26: 13 | AK26: =IF($AJ26=0,0,AK122/$AJ26*100) -> 84.61538462 | AL26: 46.15384615 | AM26: 84.61538462 | AN26: 46.15384615 | AO26: 23.07692308 | AP26: 76.92307692 | AQ26: 61.53846154 | AR26: 69.23076923 | AS26: 30.76923077 | AT26: 7.692307692 | AU26: 61.53846154 | AV26: 15.38461538
A27: （複数回答） | C27: ﾕﾆｯﾄ型介護福祉施設 | E27: 350 | F27: 5.428571429 | G27: 30.57142857 | H27: 60 | I27: 4 | J27: 333 | K27: =IF($J27=0,0,K123/$J27*100) -> 1.501501502 | L27: 8.408408408 | M27: 5.105105105 | N27: 17.41741742 | O27: 12.91291291 | P27: 12.31231231 | Q27: 5.105105105 | R27: 6.306306306 | S27: 2.102102102 | T27: 9.009009009 | U27: 19.81981982 | V27: 36.66404494 | W27: 333 | X27: =IF($W27=0,0,X123/$W27*100) -> 2.702702703 | Y27: 10.51051051 | Z27: 7.807807808 | AA27: 20.12012012 | AB27: 15.91591592 | AC27: 13.51351351 | AD27: 9.309309309 | AE27: 6.306306306 | AF27: 2.702702703 | AG27: 3.003003003 | AH27: 8.108108108 | AI27: 20.93294118 | AJ27: 350 | AK27: =IF($AJ27=0,0,AK123/$AJ27*100) -> 95.42857143 | AL27: 80.28571429 | AM27: 88.85714286 | AN27: 62 | AO27: 16.57142857 | AP27: 68 | AQ27: 65.71428571 | AR27: 76 | AS27: 38 | AT27: 23.14285714 | AU27: 71.42857143 | AV27: 4.285714286
C28: ﾕﾆｯﾄ型小規模介護福祉施設 | E28: 15 | F28: 0 | G28: 13.33333333 | H28: 80 | I28: 6.666666667 | J28: 14 | K28: =IF($J28=0,0,K124/$J28*100) -> 0 | L28: 7.142857143 | M28: 7.142857143 | N28: 14.28571429 | O28: 28.57142857 | P28: 7.142857143 | Q28: 0 | R28: 7.142857143 | S28: 0 | T28: 7.142857143 | U28: 21.42857143 | V28: 26.62727273 | W28: 14 | X28: =IF($W28=0,0,X124/$W28*100) -> 14.28571429 | Y28: 7.142857143 | Z28: 0 | AA28: 28.57142857 | AB28: 28.57142857 | AC28: 14.28571429 | AD28: 0 | AE28: 7.142857143 | AF28: 0 | AG28: 0 | AH28: 0 | AI28: 11.70714286 | AJ28: 15 | AK28: =IF($AJ28=0,0,AK124/$AJ28*100) -> 100 | AL28: 86.66666667 | AM28: 100 | AN28: 73.33333333 | AO28: 6.666666667 | AP28: 80 | AQ28: 60 | AR28: 80 | AS28: 40 | AT28: 20 | AU28: 73.33333333 | AV28: 0
B29: 地域密着型 | C29: 地域密着型介護福祉施設 | E29: 22 | F29: 0 | G29: 9.090909091 | H29: 86.36363636 | I29: 4.545454545 | J29: 21 | K29: =IF($J29=0,0,K125/$J29*100) -> 0 | L29: 4.761904762 | M29: 9.523809524 | N29: 23.80952381 | O29: 19.04761905 | P29: 14.28571429 | Q29: 0 | R29: 14.28571429 | S29: 0 | T29: 0 | U29: 14.28571429 | V29: 14.83333333 | W29: 21 | X29: =IF($W29=0,0,X125/$W29*100) -> 4.761904762 | Y29: 9.523809524 | Z29: 14.28571429 | AA29: 33.33333333 | AB29: 9.523809524 | AC29: 9.523809524 | AD29: 4.761904762 | AE29: 9.523809524 | AF29: 0 | AG29: 0 | AH29: 4.761904762 | AI29: 11.975 | AJ29: 22 | AK29: =IF($AJ29=0,0,AK125/$AJ29*100) -> 95.45454545 | AL29: 77.27272727 | AM29: 81.81818182 | AN29: 68.18181818 | AO29: 13.63636364 | AP29: 72.72727273 | AQ29: 59.09090909 | AR29: 68.18181818 | AS29: 45.45454545 | AT29: 27.27272727 | AU29: 68.18181818 | AV29: 4.545454545
B30: 介護老人福 | C30: ｻﾃﾗｲﾄ型介護福祉施設 | E30: 2 | F30: 0 | G30: 50 | H30: 50 | I30: 0 | J30: 2 | K30: =IF($J30=0,0,K126/$J30*100) -> 0 | L30: 0 | M30: 0 | N30: 50 | O30: 0 | P30: 0 | Q30: 0 | R30: 50 | S30: 0 | T30: 0 | U30: 0 | V30: 25 | W30: 2 | X30: =IF($W30=0,0,X126/$W30*100) -> 0 | Y30: 50 | Z30: 0 | AA30: 0 | AB30: 0 | AC30: 0 | AD30: 0 | AE30: 50 | AF30: 0 | AG30: 0 | AH30: 0 | AI30: 23 | AJ30: 2 | AK30: =IF($AJ30=0,0,AK126/$AJ30*100) -> 100 | AL30: 100 | AM30: 100 | AN30: 50 | AO30: 0 | AP30: 0 | AQ30: 50 | AR30: 50 | AS30: 50 | AT30: 0 | AU30: 100 | AV30: 0
B31: 祉施設 | C31: ﾕﾆｯﾄ型地域密着型介護福祉施設 | E31: 234 | F31: 1.709401709 | G31: 14.1025641 | H31: 77.77777778 | I31: 6.41025641 | J31: 216 | K31: =IF($J31=0,0,K127/$J31*100) -> 7.87037037 | L31: 14.81481481 | M31: 2.314814815 | N31: 16.2037037 | O31: 9.722222222 | P31: 7.87037037 | Q31: 4.62962963 | R31: 2.777777778 | S31: 0.462962963 | T31: 9.722222222 | U31: 23.61111111 | V31: 30.38787879 | W31: 216 | X31: =IF($W31=0,0,X127/$W31*100) -> 8.796296296 | Y31: 24.07407407 | Z31: 6.481481481 | AA31: 19.90740741 | AB31: 14.35185185 | AC31: 8.333333333 | AD31: 5.555555556 | AE31: 2.777777778 | AF31: 1.388888889 | AG31: 0.9259259259 | AH31: 7.407407407 | AI31: 11.3295 | AJ31: 234 | AK31: =IF($AJ31=0,0,AK127/$AJ31*100) -> 91.45299145 | AL31: 73.93162393 | AM31: 84.61538462 | AN31: 54.27350427 | AO31: 13.24786325 | AP31: 66.66666667 | AQ31: 57.26495726 | AR31: 73.5042735 | AS31: 44.01709402 | AT31: 19.23076923 | AU31: 68.37606838 | AV31: 7.692307692
C32: ﾕﾆｯﾄ型ｻﾃﾗｲﾄ型地域密着型介護福祉施設 | E32: 62 | F32: 3.225806452 | G32: 14.51612903 | H32: 77.41935484 | I32: 4.838709677 | J32: 58 | K32: =IF($J32=0,0,K128/$J32*100) -> 5.172413793 | L32: 22.4137931 | M32: 5.172413793 | N32: 17.24137931 | O32: 8.620689655 | P32: 8.620689655 | Q32: 3.448275862 | R32: 1.724137931 | S32: 0 | T32: 8.620689655 | U32: 18.96551724 | V32: 24.67021277 | W32: 58 | X32: =IF($W32=0,0,X128/$W32*100) -> 13.79310345 | Y32: 31.03448276 | Z32: 3.448275862 | AA32: 24.13793103 | AB32: 8.620689655 | AC32: 6.896551724 | AD32: 5.172413793 | AE32: 1.724137931 | AF32: 0 | AG32: 0 | AH32: 5.172413793 | AI32: 7.954545455 | AJ32: 62 | AK32: =IF($AJ32=0,0,AK128/$AJ32*100) -> 91.93548387 | AL32: 74.19354839 | AM32: 88.70967742 | AN32: 64.51612903 | AO32: 9.677419355 | AP32: 67.74193548 | AQ32: 69.35483871 | AR32: 80.64516129 | AS32: 35.48387097 | AT32: 20.96774194 | AU32: 72.58064516 | AV32: 4.838709677
A33: 問１(2) | B33: 病院 | C33: 併設または隣接あり | E33: 59 | F33: =IF($E33=0,0,F129/$E33*100) -> 10.16949153 | G33: 30.50847458 | H33: 50.84745763 | I33: 8.474576271 | J33: 54 | K33: =IF($J33=0,0,K129/$J33*100) -> 3.703703704 | L33: 18.51851852 | M33: 1.851851852 | N33: 7.407407407 | O33: 12.96296296 | P33: 5.555555556 | Q33: 9.259259259 | R33: 7.407407407 | S33: 3.703703704 | T33: 12.96296296 | U33: 16.66666667 | V33: =V129 -> 39.08746617 | W33: 54 | X33: =IF($W33=0,0,X129/$W33*100) -> 3.703703704 | Y33: 22.22222222 | Z33: 5.555555556 | AA33: 9.259259259 | AB33: 20.37037037 | AC33: 7.407407407 | AD33: 7.407407407 | AE33: 7.407407407 | AF33: 3.703703704 | AG33: 5.555555556 | AH33: 7.407407407 | AI33: =AI129 -> 25.129 | AJ33: 59 | AK33: =IF($AJ33=0,0,AK129/$AJ33*100) -> 88.13559322 | AL33: 72.88135593 | AM33: 79.66101695 | AN33: 55.93220339 | AO33: 15.25423729 | AP33: 50.84745763 | AQ33: 50.84745763 | AR33: 72.88135593 | AS33: 40.6779661 | AT33: 22.03389831 | AU33: 67.79661017 | AV33: 10.16949153
A34: 併設・隣接の状況 | C34: なし | E34: 829 | F34: =IF($E34=0,0,F130/$E34*100) -> 2.291917973 | G34: 30.2774427 | H34: 62.12303981 | I34: 5.307599517 | J34: 777 | K34: =IF($J34=0,0,K130/$J34*100) -> 3.603603604 | L34: 9.009009009 | M34: 3.98970399 | N34: 17.5032175 | O34: 12.61261261 | P34: 12.74131274 | Q34: 5.92020592 | R34: 4.761904762 | S34: 1.673101673 | T34: 7.722007722 | U34: 20.46332046 | V34: =V130 -> 30.62788565 | W34: 777 | X34: =IF($W34=0,0,X130/$W34*100) -> 5.791505792 | Y34: 13.38481338 | Z34: 7.335907336 | AA34: 21.75032175 | AB34: 16.6023166 | AC34: 12.74131274 | AD34: 7.850707851 | AE34: 4.890604891 | AF34: 1.801801802 | AG34: 1.287001287 | AH34: 6.563706564 | AI34: =AI130 -> 14.93300735 | AJ34: 829 | AK34: =IF($AJ34=0,0,AK130/$AJ34*100) -> 93.48612786 | AL34: 76.35705669 | AM34: 87.57539204 | AN34: 58.26296743 | AO34: 13.75150784 | AP34: 67.91314837 | AQ34: 61.39927624 | AR34: 75.75392039 | AS34: 39.20386007 | AT34: 20.5066345 | AU34: 72.01447527 | AV34: 5.910735826
C35: 無回答 | E35: 201 | F35: =IF($E35=0,0,F131/$E35*100) -> 7.960199005 | G35: 24.87562189 | H35: 62.68656716 | I35: 4.47761194 | J35: 188 | K35: =IF($J35=0,0,K131/$J35*100) -> 3.191489362 | L35: 7.446808511 | M35: 4.255319149 | N35: 11.17021277 | O35: 11.17021277 | P35: 13.29787234 | Q35: 7.446808511 | R35: 8.510638298 | S35: 2.659574468 | T35: 11.17021277 | U35: 19.68085106 | V35: =V131 -> 40.27880795 | W35: 188 | X35: =IF($W35=0,0,X131/$W35*100) -> 4.255319149 | Y35: 12.76595745 | Z35: 6.382978723 | AA35: 14.36170213 | AB35: 15.95744681 | AC35: 13.82978723 | AD35: 10.10638298 | AE35: 6.382978723 | AF35: 4.255319149 | AG35: 4.787234043 | AH35: 6.914893617 | AI35: =AI131 -> 24.066 | AJ35: 201 | AK35: =IF($AJ35=0,0,AK131/$AJ35*100) -> 95.52238806 | AL35: 74.62686567 | AM35: 90.04975124 | AN35: 58.20895522 | AO35: 20.39800995 | AP35: 69.65174129 | AQ35: 66.66666667 | AR35: 72.63681592 | AS35: 41.29353234 | AT35: 28.85572139 | AU35: 74.62686567 | AV35: 3.482587065
B36: 診療所 | C36: 併設または隣接あり | E36: 10 | F36: =IF($E36=0,0,F132/$E36*100) -> 10 | G36: 20 | H36: 70 | I36: 0 | J36: 10 | K36: =IF($J36=0,0,K132/$J36*100) -> 0 | L36: 20 | M36: 0 | N36: 10 | O36: 20 | P36: 10 | Q36: 0 | R36: 10 | S36: 10 | T36: 10 | U36: 10 | V36: =V132 -> 34.77777778 | W36: 10 | X36: =IF($W36=0,0,X132/$W36*100) -> 0 | Y36: 20 | Z36: 0 | AA36: 10 | AB36: 30 | AC36: 10 | AD36: 0 | AE36: 10 | AF36: 20 | AG36: 0 | AH36: 0 | AI36: =AI132 -> 29.6 | AJ36: 10 | AK36: =IF($AJ36=0,0,AK132/$AJ36*100) -> 100 | AL36: 90 | AM36: 100 | AN36: 90 | AO36: 20 | AP36: 80 | AQ36: 70 | AR36: 80 | AS36: 50 | AT36: 10 | AU36: 90 | AV36: 0
B37: （有床） | C37: なし | E37: 842 | F37: =IF($E37=0,0,F133/$E37*100) -> 2.375296912 | G37: 30.40380048 | H37: 61.75771971 | I37: 5.463182898 | J37: 788 | K37: =IF($J37=0,0,K133/$J37*100) -> 3.172588832 | L37: 9.010152284 | M37: 3.934010152 | N37: 17.76649746 | O37: 12.81725888 | P37: 12.43654822 | Q37: 6.218274112 | R37: 5.076142132 | S37: 1.776649746 | T37: 7.741116751 | U37: 20.05076142 | V37: =V133 -> 30.66671958 | W37: 788 | X37: =IF($W37=0,0,X133/$W37*100) -> 5.456852792 | Y37: 13.5786802 | Z37: 7.487309645 | AA37: 21.57360406 | AB37: 16.87817259 | AC37: 12.43654822 | AD37: 7.994923858 | AE37: 5.076142132 | AF37: 1.776649746 | AG37: 1.395939086 | AH37: 6.345177665 | AI37: =AI133 -> 15.28640018 | AJ37: 842 | AK37: =IF($AJ37=0,0,AK133/$AJ37*100) -> 93.2304038 | AL37: 76.24703088 | AM37: 87.41092637 | AN37: 57.60095012 | AO37: 14.25178147 | AP37: 67.33966746 | AQ37: 61.04513064 | AR37: 75.65320665 | AS37: 39.3111639 | AT37: 20.3087886 | AU37: 72.20902613 | AV37: 6.175771971
C38: 無回答 | E38: 237 | F38: =IF($E38=0,0,F134/$E38*100) -> 8.438818565 | G38: 25.73839662 | H38: 60.75949367 | I38: 5.063291139 | J38: 221 | K38: =IF($J38=0,0,K134/$J38*100) -> 4.977375566 | L38: 9.502262443 | M38: 4.07239819 | N38: 9.049773756 | O38: 10.40723982 | P38: 12.66968326 | Q38: 7.239819005 | R38: 7.239819005 | S38: 2.262443439 | T38: 11.76470588 | U38: 20.81447964 | V38: =V134 -> 40.766 | W38: 221 | X38: =IF($W38=0,0,X134/$W38*100) -> 5.429864253 | Y38: 14.02714932 | Z38: 5.882352941 | AA38: 13.57466063 | AB38: 15.38461538 | AC38: 13.57466063 | AD38: 9.502262443 | AE38: 5.882352941 | AF38: 3.619909502 | AG38: 4.977375566 | AH38: 8.14479638 | AI38: =AI134 -> 23.31034483 | AJ38: 237 | AK38: =IF($AJ38=0,0,AK134/$AJ38*100) -> 94.51476793 | AL38: 73.83966245 | AM38: 87.76371308 | AN38: 58.64978903 | AO38: 17.72151899 | AP38: 66.66666667 | AQ38: 64.1350211 | AR38: 72.57383966 | AS38: 40.50632911 | AT38: 29.11392405 | AU38: 71.72995781 | AV38: 4.219409283
B39: 診療所 | C39: 併設または隣接あり | E39: 314 | F39: =IF($E39=0,0,F135/$E39*100) -> 5.732484076 | G39: 28.98089172 | H39: 61.14649682 | I39: 4.140127389 | J39: 299 | K39: =IF($J39=0,0,K135/$J39*100) -> 3.010033445 | L39: 7.023411371 | M39: 3.678929766 | N39: 15.05016722 | O39: 13.71237458 | P39: 14.71571906 | Q39: 7.023411371 | R39: 6.688963211 | S39: 3.010033445 | T39: 8.695652174 | U39: 17.39130435 | V39: =V135 -> 34.72960284 | W39: 299 | X39: =IF($W39=0,0,X135/$W39*100) -> 4.347826087 | Y39: 11.37123746 | Z39: 6.35451505 | AA39: 18.72909699 | AB39: 16.05351171 | AC39: 15.05016722 | AD39: 8.695652174 | AE39: 6.35451505 | AF39: 3.678929766 | AG39: 3.678929766 | AH39: 5.685618729 | AI39: =AI135 -> 20.92102837 | AJ39: 314 | AK39: =IF($AJ39=0,0,AK135/$AJ39*100) -> 95.22292994 | AL39: 77.07006369 | AM39: 90.44585987 | AN39: 54.77707006 | AO39: 18.15286624 | AP39: 67.8343949 | AQ39: 65.2866242 | AR39: 76.75159236 | AS39: 41.71974522 | AT39: 24.84076433 | AU39: 75.79617834 | AV39: 4.140127389
B40: （無床） | C40: なし | E40: 677 | F40: =IF($E40=0,0,F136/$E40*100) -> 2.215657312 | G40: 30.5760709 | H40: 61.59527326 | I40: 5.612998523 | J40: 631 | K40: =IF($J40=0,0,K136/$J40*100) -> 3.486529319 | L40: 9.667194929 | M40: 4.12044374 | N40: 16.79873217 | O40: 11.56893819 | P40: 11.7274168 | Q40: 6.18066561 | R40: 5.388272583 | S40: 1.426307448 | T40: 8.24088748 | U40: 21.39461173 | V40: =V136 -> 31.73293011 | W40: 631 | X40: =IF($W40=0,0,X136/$W40*100) -> 5.705229794 | Y40: 14.10459588 | Z40: 7.765451664 | AA40: 21.07765452 | AB40: 16.32329635 | AC40: 11.56893819 | AD40: 8.399366086 | AE40: 5.071315372 | AF40: 1.426307448 | AG40: 1.426307448 | AH40: 7.131537242 | AI40: =AI136 -> 15.270876 | AJ40: 677 | AK40: =IF($AJ40=0,0,AK136/$AJ40*100) -> 92.9098966 | AL40: 75.3323486 | AM40: 87.14918759 | AN40: 58.34564254 | AO40: 14.18020679 | AP40: 67.79911374 | AQ40: 60.56129985 | AR40: 74.59379616 | AS40: 39.29098966 | AT40: 20.38404727 | AU40: 71.93500739 | AV40: 6.35155096
C41: 無回答 | E41: =E137 -> 98 | F41: =IF($E41=0,0,F137/$E41*100) -> 8.163265306 | G41: 21.42857143 | H41: 63.26530612 | I41: 7.142857143 | J41: =J137 -> 89 | K41: =IF($J41=0,0,K137/$J41*100) -> 5.617977528 | L41: 13.48314607 | M41: 3.370786517 | N41: 11.23595506 | O41: 13.48314607 | P41: 10.11235955 | Q41: 5.617977528 | R41: 3.370786517 | S41: 2.247191011 | T41: 11.23595506 | U41: 20.2247191 | V41: =V137 -> 34.85140845 | W41: =W137 -> 89 | X41: =IF($W41=0,0,X137/$W41*100) -> 6.741573034 | Y41: 19.1011236 | Z41: 4.494382022 | AA41: 13.48314607 | AB41: 21.34831461 | AC41: 12.35955056 | AD41: 5.617977528 | AE41: 3.370786517 | AF41: 4.494382022 | AG41: 2.247191011 | AH41: 6.741573034 | AI41: =AI137 -> 17.60120482 | AJ41: =AJ137 -> 98 | AK41: =IF($AJ41=0,0,AK137/$AJ41*100) -> 92.85714286 | AL41: 75.51020408 | AM41: 81.63265306 | AN41: 67.34693878 | AO41: 11.2244898 | AP41: 62.24489796 | AQ41: 59.18367347 | AR41: 72.44897959 | AS41: 35.71428571 | AT41: 25.51020408 | AU41: 63.26530612 | AV41: 6.12244898
A42: 設立年月日 | B42: 1999年以前 | E42: 352 | F42: 3.409090909 | G42: 40.90909091 | H42: 49.43181818 | I42: 6.25 | J42: 325 | K42: =IF($J42=0,0,K138/$J42*100) -> 2.153846154 | L42: 4.615384615 | M42: 4 | N42: 12.92307692 | O42: 16 | P42: 16.30769231 | Q42: 9.846153846 | R42: 6.769230769 | S42: 4 | T42: 8 | U42: 15.38461538 | V42: =V138 -> 33.84084848 | W42: =W138 -> 325 | X42: =IF($W42=0,0,X138/$W42*100) -> 3.076923077 | Y42: 8 | Z42: 8 | AA42: 16.92307692 | AB42: 21.53846154 | AC42: 15.38461538 | AD42: 11.07692308 | AE42: 5.846153846 | AF42: 4 | AG42: 1.538461538 | AH42: 4.615384615 | AI42: =AI138 -> 18.30978495 | AJ42: =AJ138 -> 352 | AK42: =IF($AJ42=0,0,AK138/$AJ42*100) -> 93.46590909 | AL42: 73.29545455 | AM42: 87.5 | AN42: 54.82954545 | AO42: 16.76136364 | AP42: 66.76136364 | AQ42: 61.07954545 | AR42: 73.86363636 | AS42: 38.92045455 | AT42: 22.72727273 | AU42: 75 | AV42: 6.534090909
B43: 2000～2002年 | E43: 85 | F43: 3.529411765 | G43: 31.76470588 | H43: 58.82352941 | I43: 5.882352941 | J43: 79 | K43: =IF($J43=0,0,K139/$J43*100) -> 3.797468354 | L43: 7.594936709 | M43: 3.797468354 | N43: 15.18987342 | O43: 10.12658228 | P43: 12.65822785 | Q43: 3.797468354 | R43: 3.797468354 | S43: 2.53164557 | T43: 5.063291139 | U43: 31.64556962 | V43: =V139 -> 22.70185185 | W43: 79 | X43: =IF($W43=0,0,X139/$W43*100) -> 8.860759494 | Y43: 12.65822785 | Z43: 2.53164557 | AA43: 21.51898734 | AB43: 16.4556962 | AC43: 15.18987342 | AD43: 6.329113924 | AE43: 5.063291139 | AF43: 2.53164557 | AG43: 2.53164557 | AH43: 6.329113924 | AI43: =AI139 -> 16.09567568 | AJ43: 85 | AK43: =IF($AJ43=0,0,AK139/$AJ43*100) -> 91.76470588 | AL43: 74.11764706 | AM43: 88.23529412 | AN43: 60 | AO43: 15.29411765 | AP43: 70.58823529 | AQ43: 62.35294118 | AR43: 76.47058824 | AS43: 30.58823529 | AT43: 21.17647059 | AU43: 71.76470588 | AV43: 7.058823529
B44: 2003～2005年 | E44: 86 | F44: 4.651162791 | G44: 32.55813953 | H44: 58.13953488 | I44: 4.651162791 | J44: 81 | K44: =IF($J44=0,0,K140/$J44*100) -> 4.938271605 | L44: 6.172839506 | M44: 3.703703704 | N44: 16.04938272 | O44: 9.87654321 | P44: 11.11111111 | Q44: 9.87654321 | R44: 12.34567901 | S44: 1.234567901 | T44: 7.407407407 | U44: 17.28395062 | V44: 30.20447761 | W44: 81 | X44: =IF($W44=0,0,X140/$W44*100) -> 4.938271605 | Y44: 8.641975309 | Z44: 7.407407407 | AA44: 17.28395062 | AB44: 13.58024691 | AC44: 12.34567901 | AD44: 11.11111111 | AE44: 12.34567901 | AF44: 2.469135802 | AG44: 1.234567901 | AH44: 8.641975309 | AI44: 18.78378378 | AJ44: 86 | AK44: =IF($AJ44=0,0,AK140/$AJ44*100) -> 93.02325581 | AL44: 76.74418605 | AM44: 89.53488372 | AN44: 67.44186047 | AO44: 15.11627907 | AP44: 63.95348837 | AQ44: 65.11627907 | AR44: 74.41860465 | AS44: 40.69767442 | AT44: 22.09302326 | AU44: 79.06976744 | AV44: 5.813953488
B45: 2006～2008年 | E45: 91 | F45: 6.593406593 | G45: 27.47252747 | H45: 61.53846154 | I45: 4.395604396 | J45: 87 | K45: =IF($J45=0,0,K141/$J45*100) -> 2.298850575 | L45: 8.045977011 | M45: 2.298850575 | N45: 19.54022989 | O45: 9.195402299 | P45: 10.34482759 | Q45: 3.448275862 | R45: 2.298850575 | S45: 0 | T45: 11.49425287 | U45: 31.03448276 | V45: 54.43833333 | W45: 87 | X45: =IF($W45=0,0,X141/$W45*100) -> 4.597701149 | Y45: 13.79310345 | Z45: 5.747126437 | AA45: 20.68965517 | AB45: 13.79310345 | AC45: 9.195402299 | AD45: 9.195402299 | AE45: 4.597701149 | AF45: 0 | AG45: 4.597701149 | AH45: 13.79310345 | AI45: 25.884 | AJ45: 91 | AK45: =IF($AJ45=0,0,AK141/$AJ45*100) -> 95.6043956 | AL45: 75.82417582 | AM45: 84.61538462 | AN45: 62.63736264 | AO45: 13.18681319 | AP45: 68.13186813 | AQ45: 69.23076923 | AR45: 71.42857143 | AS45: 36.26373626 | AT45: 21.97802198 | AU45: 70.32967033 | AV45: 3.296703297
B46: 2009～2011年 | E46: 113 | F46: 1.769911504 | G46: 9.734513274 | H46: 82.30088496 | I46: 6.194690265 | J46: 104 | K46: =IF($J46=0,0,K142/$J46*100) -> 3.846153846 | L46: 15.38461538 | M46: 4.807692308 | N46: 22.11538462 | O46: 8.653846154 | P46: 9.615384615 | Q46: 4.807692308 | R46: 1.923076923 | S46: 2.884615385 | T46: 8.653846154 | U46: 17.30769231 | V46: 27.77325581 | W46: 104 | X46: =IF($W46=0,0,X142/$W46*100) -> 6.730769231 | Y46: 19.23076923 | Z46: 8.653846154 | AA46: 25 | AB46: 13.46153846 | AC46: 9.615384615 | AD46: 5.769230769 | AE46: 0.9615384615 | AF46: 3.846153846 | AG46: 0.9615384615 | AH46: 5.769230769 | AI46: 12.87755102 | AJ46: 113 | AK46: =IF($AJ46=0,0,AK142/$AJ46*100) -> 92.03539823 | AL46: 71.68141593 | AM46: 87.61061947 | AN46: 58.40707965 | AO46: 14.15929204 | AP46: 63.71681416 | AQ46: 64.60176991 | AR46: 75.22123894 | AS46: 40.7079646 | AT46: 28.31858407 | AU46: 68.14159292 | AV46: 7.079646018
B47: 2012～2014年 | E47: 188 | F47: 4.255319149 | G47: 24.46808511 | H47: 66.4893617 | I47: 4.787234043 | J47: 178 | K47: =IF($J47=0,0,K143/$J47*100) -> 6.741573034 | L47: 12.35955056 | M47: 3.370786517 | N47: 13.48314607 | O47: 12.35955056 | P47: 12.92134831 | Q47: 4.494382022 | R47: 4.494382022 | S47: 0.5617977528 | T47: 8.988764045 | U47: 20.2247191 | V47: 29.68309859 | W47: 178 | X47: =IF($W47=0,0,X143/$W47*100) -> 7.865168539 | Y47: 22.47191011 | Z47: 6.741573034 | AA47: 18.53932584 | AB47: 15.73033708 | AC47: 10.6741573 | AD47: 7.303370787 | AE47: 2.808988764 | AF47: 1.123595506 | AG47: 2.247191011 | AH47: 4.494382022 | AI47: 14.53852941 | AJ47: 188 | AK47: =IF($AJ47=0,0,AK143/$AJ47*100) -> 93.08510638 | AL47: 78.72340426 | AM47: 89.36170213 | AN47: 56.91489362 | AO47: 10.63829787 | AP47: 71.80851064 | AQ47: 58.5106383 | AR47: 76.59574468 | AS47: 42.55319149 | AT47: 20.74468085 | AU47: 67.55319149 | AV47: 5.85106383
B48: 2015～2017年 | E48: 116 | F48: 3.448275862 | G48: 25 | H48: 68.96551724 | I48: 2.586206897 | J48: 111 | K48: =IF($J48=0,0,K144/$J48*100) -> 1.801801802 | L48: 13.51351351 | M48: 3.603603604 | N48: 18.01801802 | O48: 11.71171171 | P48: 9.009009009 | Q48: 1.801801802 | R48: 4.504504505 | S48: 0 | T48: 11.71171171 | U48: 24.32432432 | V48: 38.09464286 | W48: 111 | X48: =IF($W48=0,0,X144/$W48*100) -> 4.504504505 | Y48: 15.31531532 | Z48: 5.405405405 | AA48: 25.22522523 | AB48: 12.61261261 | AC48: 12.61261261 | AD48: 2.702702703 | AE48: 7.207207207 | AF48: 0.9009009009 | AG48: 2.702702703 | AH48: 10.81081081 | AI48: 15.66616162 | AJ48: 116 | AK48: =IF($AJ48=0,0,AK144/$AJ48*100) -> 95.68965517 | AL48: 81.03448276 | AM48: 85.34482759 | AN48: 58.62068966 | AO48: 19.82758621 | AP48: 63.79310345 | AQ48: 59.48275862 | AR48: 76.72413793 | AS48: 44.82758621 | AT48: 17.24137931 | AU48: 69.82758621 | AV48: 2.586206897
B49: 2018～2019年 | E49: 55 | F49: 3.636363636 | G49: 14.54545455 | H49: 74.54545455 | I49: 7.272727273 | J49: 51 | K49: =IF($J49=0,0,K145/$J49*100) -> 3.921568627 | L49: 15.68627451 | M49: 7.843137255 | N49: 17.64705882 | O49: 9.803921569 | P49: 5.882352941 | Q49: 7.843137255 | R49: 9.803921569 | S49: 0 | T49: 7.843137255 | U49: 13.7254902 | V49: 25.48863636 | W49: 51 | X49: =IF($W49=0,0,X145/$W49*100) -> 7.843137255 | Y49: 15.68627451 | Z49: 11.76470588 | AA49: 17.64705882 | AB49: 13.7254902 | AC49: 9.803921569 | AD49: 7.843137255 | AE49: 5.882352941 | AF49: 0 | AG49: 3.921568627 | AH49: 5.882352941 | AI49: 16.42604167 | AJ49: 55 | AK49: =IF($AJ49=0,0,AK145/$AJ49*100) -> 94.54545455 | AL49: 81.81818182 | AM49: 87.27272727 | AN49: 54.54545455 | AO49: 12.72727273 | AP49: 67.27272727 | AQ49: 56.36363636 | AR49: 76.36363636 | AS49: 38.18181818 | AT49: 21.81818182 | AU49: 76.36363636 | AV49: 5.454545455
B50: 無回答 | E50: 3 | F50: 0 | G50: 33.33333333 | H50: 66.66666667 | I50: 0 | J50: 3 | K50: =IF($J50=0,0,K146/$J50*100) -> 0 | L50: 0 | M50: 0 | N50: 33.33333333 | O50: 33.33333333 | P50: 0 | Q50: 0 | R50: 0 | S50: 0 | T50: 0 | U50: 33.33333333 | V50: 10 | W50: 3 | X50: =IF($W50=0,0,X146/$W50*100) -> 0 | Y50: 0 | Z50: 0 | AA50: 33.33333333 | AB50: 33.33333333 | AC50: 33.33333333 | AD50: 0 | AE50: 0 | AF50: 0 | AG50: 0 | AH50: 0 | AI50: 12.66666667 | AJ50: 3 | AK50: =IF($AJ50=0,0,AK146/$AJ50*100) -> 100 | AL50: 66.66666667 | AM50: 100 | AN50: 100 | AO50: 33.33333333 | AP50: 100 | AQ50: 100 | AR50: 100 | AS50: 66.66666667 | AT50: 33.33333333 | AU50: 100 | AV50: 0
A51: 問３(4) | B51: 3.5未満 | E51: 42 | F51: 2.380952381 | G51: 23.80952381 | H51: 71.42857143 | I51: 2.380952381 | J51: 41 | K51: =IF($J51=0,0,K147/$J51*100) -> 2.43902439 | L51: 17.07317073 | M51: 7.317073171 | N51: 12.19512195 | O51: 19.51219512 | P51: 14.63414634 | Q51: 4.87804878 | R51: 7.317073171 | S51: 0 | T51: 0 | U51: 14.63414634 | V51: 13.01428571 | W51: 41 | X51: =IF($W51=0,0,X147/$W51*100) -> 7.317073171 | Y51: 14.63414634 | Z51: 7.317073171 | AA51: 14.63414634 | AB51: 24.3902439 | AC51: 12.19512195 | AD51: 4.87804878 | AE51: 7.317073171 | AF51: 0 | AG51: 0 | AH51: 7.317073171 | AI51: 12.75 | AJ51: 42 | AK51: =IF($AJ51=0,0,AK147/$AJ51*100) -> 95.23809524 | AL51: 85.71428571 | AM51: 88.0952381 | AN51: 59.52380952 | AO51: 9.523809524 | AP51: 66.66666667 | AQ51: 57.14285714 | AR51: 88.0952381 | AS51: 35.71428571 | AT51: 9.523809524 | AU51: 73.80952381 | AV51: 2.380952381
A52: 施設の平均要介護 | B52: 3.5～4.0未満 | E52: 437 | F52: 4.118993135 | G52: 29.9771167 | H52: 60.18306636 | I52: 5.720823799 | J52: 406 | K52: =IF($J52=0,0,K148/$J52*100) -> 2.955665025 | L52: 8.128078818 | M52: 4.187192118 | N52: 16.00985222 | O52: 12.31527094 | P52: 11.8226601 | Q52: 8.128078818 | R52: 7.389162562 | S52: 1.724137931 | T52: 8.374384236 | U52: 18.96551724 | V52: 31.82031408 | W52: 406 | X52: =IF($W52=0,0,X148/$W52*100) -> 4.187192118 | Y52: 12.56157635 | Z52: 7.389162562 | AA52: 19.45812808 | AB52: 16.25615764 | AC52: 12.56157635 | AD52: 9.852216749 | AE52: 6.896551724 | AF52: 1.724137931 | AG52: 2.463054187 | AH52: 6.650246305 | AI52: 17.63605101 | AJ52: 437 | AK52: =IF($AJ52=0,0,AK148/$AJ52*100) -> 92.44851259 | AL52: 76.201373 | AM52: 86.49885584 | AN52: 53.3180778 | AO52: 14.64530892 | AP52: 66.13272311 | AQ52: 58.81006865 | AR52: 74.37070938 | AS52: 40.04576659 | AT52: 19.67963387 | AU52: 71.39588101 | AV52: 6.864988558
A53: 度 | B53: 4.0～4.5未満 | E53: 492 | F53: 3.861788618 | G53: 29.67479675 | H53: 61.58536585 | I53: 4.87804878 | J53: 464 | K53: =IF($J53=0,0,K149/$J53*100) -> 4.74137931 | L53: 9.482758621 | M53: 3.017241379 | N53: 15.94827586 | O53: 12.71551724 | P53: 12.5 | Q53: 4.956896552 | R53: 4.094827586 | S53: 2.586206897 | T53: 9.913793103 | U53: 20.04310345 | V53: 35.82264151 | W53: 464 | X53: =IF($W53=0,0,X149/$W53*100) -> 6.034482759 | Y53: 15.0862069 | Z53: 6.034482759 | AA53: 20.47413793 | AB53: 16.59482759 | AC53: 12.93103448 | AD53: 7.327586207 | AE53: 3.663793103 | AF53: 3.232758621 | AG53: 2.586206897 | AH53: 6.034482759 | AI53: 18.04025229 | AJ53: 492 | AK53: =IF($AJ53=0,0,AK149/$AJ53*100) -> 94.30894309 | AL53: 75.20325203 | AM53: 88.61788618 | AN53: 61.38211382 | AO53: 17.07317073 | AP53: 68.90243902 | AQ53: 65.85365854 | AR53: 75.6097561 | AS53: 42.27642276 | AT53: 25.20325203 | AU53: 71.95121951 | AV53: 5.081300813
B54: 4.5以上 | E54: 20 | F54: 0 | G54: 35 | H54: 65 | I54: 0 | J54: 20 | K54: =IF($J54=0,0,K150/$J54*100) -> 0 | L54: 10 | M54: 10 | N54: 5 | O54: 5 | P54: 25 | Q54: 10 | R54: 5 | S54: 5 | T54: 10 | U54: 15 | V54: 34.52941176 | W54: 20 | X54: =IF($W54=0,0,X150/$W54*100) -> 5 | Y54: 5 | Z54: 15 | AA54: 20 | AB54: 10 | AC54: 25 | AD54: 10 | AE54: 0 | AF54: 5 | AG54: 0 | AH54: 5 | AI54: 15.92105263 | AJ54: 20 | AK54: =IF($AJ54=0,0,AK150/$AJ54*100) -> 100 | AL54: 85 | AM54: 100 | AN54: 75 | AO54: 10 | AP54: 65 | AQ54: 75 | AR54: 80 | AS54: 30 | AT54: 15 | AU54: 80 | AV54: 0
B55: エラー・無回答 | E55: 98 | F55: 3.06122449 | G55: 25.51020408 | H55: 63.26530612 | I55: 8.163265306 | J55: 88 | K55: =IF($J55=0,0,K151/$J55*100) -> 1.136363636 | L55: 9.090909091 | M55: 4.545454545 | N55: 18.18181818 | O55: 9.090909091 | P55: 11.36363636 | Q55: 5.681818182 | R55: 4.545454545 | S55: 0 | T55: 6.818181818 | U55: 29.54545455 | V55: 31.7016129 | W55: 88 | X55: =IF($W55=0,0,X151/$W55*100) -> 6.818181818 | Y55: 13.63636364 | Z55: 9.090909091 | AA55: 19.31818182 | AB55: 17.04545455 | AC55: 9.090909091 | AD55: 6.818181818 | AE55: 6.818181818 | AF55: 1.136363636 | AG55: 0 | AH55: 10.22727273 | AI55: 12.31329114 | AJ55: 98 | AK55: =IF($AJ55=0,0,AK151/$AJ55*100) -> 92.85714286 | AL55: 71.42857143 | AM55: 84.69387755 | AN55: 59.18367347 | AO55: 10.20408163 | AP55: 65.30612245 | AQ55: 54.08163265 | AR55: 68.36734694 | AS55: 28.57142857 | AT55: 24.48979592 | AU55: 75.51020408 | AV55: 6.12244898
A56: 問３(4) | B56: 30％未満 | E56: 444 | F56: 3.153153153 | G56: 27.92792793 | H56: 62.83783784 | I56: 6.081081081 | J56: 410 | K56: =IF($J56=0,0,K152/$J56*100) -> 2.195121951 | L56: 9.756097561 | M56: 4.146341463 | N56: 16.09756098 | O56: 13.90243902 | P56: 12.43902439 | Q56: 7.804878049 | R56: 6.829268293 | S56: 1.219512195 | T56: 6.585365854 | U56: 19.02439024 | V56: 27.5746988 | W56: 410 | X56: =IF($W56=0,0,X152/$W56*100) -> 4.634146341 | Y56: 13.41463415 | Z56: 6.341463415 | AA56: 19.75609756 | AB56: 18.29268293 | AC56: 11.95121951 | AD56: 9.024390244 | AE56: 5.853658537 | AF56: 1.463414634 | AG56: 1.463414634 | AH56: 7.804878049 | AI56: 15.32058201 | AJ56: 444 | AK56: =IF($AJ56=0,0,AK152/$AJ56*100) -> 92.56756757 | AL56: 78.6036036 | AM56: 85.13513514 | AN56: 56.08108108 | AO56: 14.63963964 | AP56: 64.41441441 | AQ56: 58.33333333 | AR56: 74.0990991 | AS56: 38.73873874 | AT56: 19.36936937 | AU56: 70.04504505 | AV56: 6.756756757
A57: 要介護度５の割合 | B57: 30～60％未満 | E57: 525 | F57: 4.380952381 | G57: 31.42857143 | H57: 60.19047619 | I57: 4 | J57: 500 | K57: =IF($J57=0,0,K153/$J57*100) -> 5.2 | L57: 8.4 | M57: 3.6 | N57: 15.4 | O57: 11.2 | P57: 12.8 | Q57: 5.8 | R57: 4.8 | S57: 2.8 | T57: 10.2 | U57: 19.8 | V57: 36.49322527 | W57: 500 | X57: =IF($W57=0,0,X153/$W57*100) -> 5.6 | Y57: 14.4 | Z57: 7 | AA57: 19.6 | AB57: 15 | AC57: 13.8 | AD57: 8.4 | AE57: 4.8 | AF57: 3.2 | AG57: 3 | AH57: 5.2 | AI57: 19.22137834 | AJ57: 525 | AK57: =IF($AJ57=0,0,AK153/$AJ57*100) -> 94.66666667 | AL57: 74.28571429 | AM57: 89.9047619 | AN57: 58.66666667 | AO57: 16.19047619 | AP57: 71.04761905 | AQ57: 65.9047619 | AR57: 77.71428571 | AS57: 42.85714286 | AT57: 23.80952381 | AU57: 73.33333333 | AV57: 4.571428571
B58: 60％以上 | E58: 20 | F58: 0 | G58: 25 | H58: 70 | I58: 5 | J58: 19 | K58: =IF($J58=0,0,K154/$J58*100) -> 0 | L58: 10.52631579 | M58: 5.263157895 | N58: 10.52631579 | O58: 10.52631579 | P58: 15.78947368 | Q58: 5.263157895 | R58: 5.263157895 | S58: 5.263157895 | T58: 10.52631579 | U58: 21.05263158 | V58: 36.13333333 | W58: 19 | X58: =IF($W58=0,0,X154/$W58*100) -> 5.263157895 | Y58: 10.52631579 | Z58: 10.52631579 | AA58: 26.31578947 | AB58: 15.78947368 | AC58: 15.78947368 | AD58: 5.263157895 | AE58: 0 | AF58: 5.263157895 | AG58: 0 | AH58: 5.263157895 | AI58: 14.55555556 | AJ58: 20 | AK58: =IF($AJ58=0,0,AK154/$AJ58*100) -> 95 | AL58: 80 | AM58: 95 | AN58: 70 | AO58: 10 | AP58: 60 | AQ58: 60 | AR58: 75 | AS58: 20 | AT58: 20 | AU58: 75 | AV58: 5
B59: エラー・無回答 | E59: 100 | F59: 4 | G59: 25 | H59: 62 | I59: 9 | J59: 90 | K59: =IF($J59=0,0,K155/$J59*100) -> 1.111111111 | L59: 11.11111111 | M59: 4.444444444 | N59: 17.77777778 | O59: 12.22222222 | P59: 10 | Q59: 3.333333333 | R59: 4.444444444 | S59: 0 | T59: 8.888888889 | U59: 26.66666667 | V59: 36.91666667 | W59: 90 | X59: =IF($W59=0,0,X155/$W59*100) -> 7.777777778 | Y59: 12.22222222 | Z59: 10 | AA59: 18.88888889 | AB59: 18.88888889 | AC59: 8.888888889 | AD59: 4.444444444 | AE59: 6.666666667 | AF59: 1.111111111 | AG59: 1.111111111 | AH59: 10 | AI59: 14.13888889 | AJ59: 100 | AK59: =IF($AJ59=0,0,AK155/$AJ59*100) -> 92 | AL59: 71 | AM59: 85 | AN59: 62 | AO59: 12 | AP59: 62 | AQ59: 56 | AR59: 65 | AS59: 31 | AT59: 26 | AU59: 76 | AV59: 7
A60: 問４(1)⑨⑩ | B60: 医療処置を要する入所者 | D60: 15％以下 | E60: 322 | F60: 2.795031056 | G60: 28.88198758 | H60: 63.35403727 | I60: 4.968944099 | J60: 305 | K60: =IF($J60=0,0,K156/$J60*100) -> 3.278688525 | L60: 11.14754098 | M60: 3.606557377 | N60: 17.37704918 | O60: 11.47540984 | P60: 9.836065574 | Q60: 8.196721311 | R60: 6.229508197 | S60: 0.9836065574 | T60: 8.524590164 | U60: 19.3442623 | V60: 31.79288618 | W60: 305 | X60: =IF($W60=0,0,X156/$W60*100) -> 5.573770492 | Y60: 17.04918033 | Z60: 6.229508197 | AA60: 19.3442623 | AB60: 18.03278689 | AC60: 9.180327869 | AD60: 9.508196721 | AE60: 5.245901639 | AF60: 1.31147541 | AG60: 1.967213115 | AH60: 6.557377049 | AI60: 15.29421053 | AJ60: 322 | AK60: =IF($AJ60=0,0,AK156/$AJ60*100) -> 94.72049689 | AL60: 73.91304348 | AM60: 89.13043478 | AN60: 59.9378882 | AO60: 14.59627329 | AP60: 66.14906832 | AQ60: 61.80124224 | AR60: 74.53416149 | AS60: 39.44099379 | AT60: 18.94409938 | AU60: 76.70807453 | AV60: 4.968944099
A61: 医療処置を要する | B61: （重複を除く実人数） | D61: 15％を超える | E61: 229 | F61: =IF($E61=0,0,F157/$E61*100) -> 4.80349345 | G61: 25.32751092 | H61: 65.06550218 | I61: 4.80349345 | J61: 216 | K61: =IF($J61=0,0,K157/$J61*100) -> 5.555555556 | L61: 11.11111111 | M61: 4.166666667 | N61: 12.03703704 | O61: 12.5 | P61: 11.11111111 | Q61: 7.87037037 | R61: 4.166666667 | S61: 1.851851852 | T61: 9.259259259 | U61: 20.37037037 | V61: 32.85426357 | W61: 216 | X61: =IF($W61=0,0,X157/$W61*100) -> 6.944444444 | Y61: 13.42592593 | Z61: 7.407407407 | AA61: 19.44444444 | AB61: 15.74074074 | AC61: 12.5 | AD61: 8.796296296 | AE61: 5.092592593 | AF61: 2.314814815 | AG61: 2.314814815 | AH61: 6.018518519 | AI61: 18.41361248 | AJ61: 229 | AK61: =IF($AJ61=0,0,AK157/$AJ61*100) -> 94.3231441 | AL61: 79.03930131 | AM61: 90.3930131 | AN61: 58.07860262 | AO61: 13.10043668 | AP61: 67.2489083 | AQ61: 65.93886463 | AR61: 76.8558952 | AS61: 37.55458515 | AT61: 20.96069869 | AU61: 71.61572052 | AV61: 5.676855895
A62: 入所者の割合 | D62: エラー・無回答 | E62: 538 | F62: 3.903345725 | G62: 31.2267658 | H62: 59.10780669 | I62: 5.762081784 | J62: 498 | K62: =IF($J62=0,0,K158/$J62*100) -> 2.81124498 | L62: 7.228915663 | M62: 4.016064257 | N62: 16.46586345 | O62: 12.85140562 | P62: 14.65863454 | Q62: 4.618473896 | R62: 5.823293173 | S62: 2.610441767 | T62: 8.43373494 | U62: 20.48192771 | V62: 33.57348485 | W62: 498 | X62: =IF($W62=0,0,X158/$W62*100) -> 4.618473896 | Y62: 11.84738956 | Z62: 7.429718876 | AA62: 20.08032129 | AB62: 16.26506024 | AC62: 14.85943775 | AD62: 7.228915663 | AE62: 5.421686747 | AF62: 3.012048193 | AG62: 2.208835341 | AH62: 7.02811245 | AI62: 17.73768898 | AJ62: 538 | AK62: =IF($AJ62=0,0,AK158/$AJ62*100) -> 92.56505576 | AL62: 75.65055762 | AM62: 85.50185874 | AN62: 57.06319703 | AO62: 16.17100372 | AP62: 68.02973978 | AQ62: 60.03717472 | AR62: 74.53531599 | AS62: 40.7063197 | AT62: 24.53531599 | AU62: 69.88847584 | AV62: 6.133828996
B63: 「胃ろう・腸ろうの管理」「経鼻経管栄養の管理」 | D63: ８％以下 | E63: 638 | F63: 2.664576803 | G63: 30.56426332 | H63: 61.28526646 | I63: 5.485893417 | J63: 595 | K63: =IF($J63=0,0,K159/$J63*100) -> 3.025210084 | L63: 9.579831933 | M63: 4.369747899 | N63: 17.14285714 | O63: 11.76470588 | P63: 10.92436975 | Q63: 6.890756303 | R63: 6.386554622 | S63: 1.680672269 | T63: 8.403361345 | U63: 19.83193277 | V63: =V159 -> 33.16118099 | W63: 595 | X63: =IF($W63=0,0,X159/$W63*100) -> 5.378151261 | Y63: 15.6302521 | Z63: 6.554621849 | AA63: 20 | AB63: 16.97478992 | AC63: 10.58823529 | AD63: 8.739495798 | AE63: 5.378151261 | AF63: 2.352941176 | AG63: 1.344537815 | AH63: 7.058823529 | AI63: =AI159 -> 15.02944545 | AJ63: 638 | AK63: =IF($AJ63=0,0,AK159/$AJ63*100) -> 93.57366771 | AL63: 74.92163009 | AM63: 87.14733542 | AN63: 58.77742947 | AO63: 15.67398119 | AP63: 65.04702194 | AQ63: 61.75548589 | AR63: 75.39184953 | AS63: 39.81191223 | AT63: 21.78683386 | AU63: 72.57053292 | AV63: 5.799373041
B64: 「たんの吸引」のいずれかを要する入所者 | D64: ８％を超える | E64: 362 | F64: 5.524861878 | G64: 26.51933702 | H64: 64.08839779 | I64: 3.867403315 | J64: 345 | K64: =IF($J64=0,0,K160/$J64*100) -> 4.057971014 | L64: 8.695652174 | M64: 3.768115942 | N64: 13.91304348 | O64: 12.46376812 | P64: 14.7826087 | Q64: 6.666666667 | R64: 4.057971014 | S64: 2.898550725 | T64: 9.565217391 | U64: 19.13043478 | V64: 32.99964158 | W64: 345 | X64: =IF($W64=0,0,X160/$W64*100) -> 5.217391304 | Y64: 11.88405797 | Z64: 7.826086957 | AA64: 19.13043478 | AB64: 15.94202899 | AC64: 15.36231884 | AD64: 7.826086957 | AE64: 4.927536232 | AF64: 2.898550725 | AG64: 3.47826087 | AH64: 5.507246377 | AI64: 20.45453988 | AJ64: 362 | AK64: =IF($AJ64=0,0,AK160/$AJ64*100) -> 94.75138122 | AL64: 77.62430939 | AM64: 88.95027624 | AN64: 57.18232044 | AO64: 15.19337017 | AP64: 72.6519337 | AQ64: 64.91712707 | AR64: 76.24309392 | AS64: 40.60773481 | AT64: 22.09944751 | AU64: 73.48066298 | AV64: 4.419889503
B65: （重複を除く実人数） | D65: エラー・無回答 | E65: 89 | F65: 4.494382022 | G65: 31.46067416 | H65: 53.93258427 | I65: 10.11235955 | J65: 79 | K65: =IF($J65=0,0,K161/$J65*100) -> 5.063291139 | L65: 8.860759494 | M65: 1.265822785 | N65: 13.92405063 | O65: 16.4556962 | P65: 13.92405063 | Q65: 1.265822785 | R65: 6.329113924 | S65: 0 | T65: 6.329113924 | U65: 26.58227848 | V65: 30.03965517 | W65: 79 | X65: =IF($W65=0,0,X161/$W65*100) -> 6.329113924 | Y65: 7.594936709 | Z65: 7.594936709 | AA65: 20.25316456 | AB65: 17.72151899 | AC65: 16.4556962 | AD65: 6.329113924 | AE65: 6.329113924 | AF65: 0 | AG65: 2.53164557 | AH65: 8.860759494 | AI65: 18.47083333 | AJ65: 89 | AK65: =IF($AJ65=0,0,AK161/$AJ65*100) -> 88.76404494 | AL65: 75.28089888 | AM65: 85.39325843 | AN65: 57.30337079 | AO65: 10.11235955 | AP65: 61.79775281 | AQ65: 49.43820225 | AR65: 67.41573034 | AS65: 34.83146067 | AT65: 24.71910112 | AU65: 65.16853933 | AV65: 10.11235955
A66: 問２(3) | B66: 20％未満 | E66: =E162 -> 83 | F66: 2.409638554 | G66: 32.53012048 | H66: 59.03614458 | I66: 6.024096386 | J66: =J162 -> 78 | K66: =IF($J66=0,0,K162/$J66*100) -> 3.846153846 | L66: 15.38461538 | M66: 3.846153846 | N66: 14.1025641 | O66: 17.94871795 | P66: 7.692307692 | Q66: 6.41025641 | R66: 3.846153846 | S66: 1.282051282 | T66: 10.25641026 | U66: 15.38461538 | V66: 31.43863636 | W66: 78 | X66: =IF($W66=0,0,X162/$W66*100) -> 5.128205128 | Y66: 21.79487179 | Z66: 6.41025641 | AA66: 14.1025641 | AB66: 21.79487179 | AC66: 11.53846154 | AD66: 6.41025641 | AE66: 5.128205128 | AF66: 1.282051282 | AG66: 2.564102564 | AH66: 3.846153846 | AI66: 15.73266667 | AJ66: 83 | AK66: =IF($AJ66=0,0,AK162/$AJ66*100) -> 89.15662651 | AL66: 67.46987952 | AM66: 85.54216867 | AN66: 48.19277108 | AO66: 13.25301205 | AP66: 66.26506024 | AQ66: 51.80722892 | AR66: 75.90361446 | AS66: 34.93975904 | AT66: 19.27710843 | AU66: 68.6746988 | AV66: 6.024096386
A67: 看護職員の常勤割 | B67: 20～40％未満 | E67: 153 | F67: 1.307189542 | G67: 39.21568627 | H67: 54.90196078 | I67: 4.575163399 | J67: 142 | K67: =IF($J67=0,0,K163/$J67*100) -> 0.7042253521 | L67: 7.042253521 | M67: 4.929577465 | N67: 19.01408451 | O67: 15.49295775 | P67: 16.1971831 | Q67: 9.85915493 | R67: 3.521126761 | S67: 2.112676056 | T67: 4.225352113 | U67: 16.90140845 | V67: 24.9720339 | W67: 142 | X67: =IF($W67=0,0,X163/$W67*100) -> 5.633802817 | Y67: 8.450704225 | Z67: 8.450704225 | AA67: 22.53521127 | AB67: 17.6056338 | AC67: 16.1971831 | AD67: 11.26760563 | AE67: 4.225352113 | AF67: 1.408450704 | AG67: 0 | AH67: 4.225352113 | AI67: 13.29801471 | AJ67: 153 | AK67: =IF($AJ67=0,0,AK163/$AJ67*100) -> 94.11764706 | AL67: 77.12418301 | AM67: 88.23529412 | AN67: 58.16993464 | AO67: 14.37908497 | AP67: 69.93464052 | AQ67: 62.09150327 | AR67: 78.43137255 | AS67: 41.17647059 | AT67: 20.26143791 | AU67: 75.81699346 | AV67: 5.882352941
A68: 合 | B68: 40～60％未満 | E68: 190 | F68: 2.105263158 | G68: 24.21052632 | H68: 68.94736842 | I68: 4.736842105 | J68: 179 | K68: =IF($J68=0,0,K164/$J68*100) -> 2.793296089 | L68: 11.73184358 | M68: 3.351955307 | N68: 15.08379888 | O68: 13.40782123 | P68: 7.82122905 | Q68: 4.469273743 | R68: 8.938547486 | S68: 1.117318436 | T68: 9.497206704 | U68: 21.7877095 | V68: 34.73095238 | W68: 179 | X68: =IF($W68=0,0,X164/$W68*100) -> 2.234636872 | Y68: 17.87709497 | Z68: 6.145251397 | AA68: 22.90502793 | AB68: 16.20111732 | AC68: 8.938547486 | AD68: 8.379888268 | AE68: 7.262569832 | AF68: 2.234636872 | AG68: 1.117318436 | AH68: 6.703910615 | AI68: 16.08343313 | AJ68: 190 | AK68: =IF($AJ68=0,0,AK164/$AJ68*100) -> 94.21052632 | AL68: 78.42105263 | AM68: 86.84210526 | AN68: 58.42105263 | AO68: 12.63157895 | AP68: 67.89473684 | AQ68: 60.52631579 | AR68: 74.21052632 | AS68: 41.05263158 | AT68: 20.52631579 | AU68: 70 | AV68: 5.789473684
B69: 60～80％未満 | E69: 165 | F69: 4.848484848 | G69: 34.54545455 | H69: 56.96969697 | I69: 3.636363636 | J69: 158 | K69: =IF($J69=0,0,K165/$J69*100) -> 4.430379747 | L69: 4.430379747 | M69: 5.063291139 | N69: 17.72151899 | O69: 13.92405063 | P69: 10.75949367 | Q69: 7.594936709 | R69: 4.430379747 | S69: 5.063291139 | T69: 7.594936709 | U69: 18.98734177 | V69: 33.74296875 | W69: 158 | X69: =IF($W69=0,0,X165/$W69*100) -> 6.962025316 | Y69: 8.227848101 | Z69: 8.860759494 | AA69: 24.05063291 | AB69: 16.4556962 | AC69: 10.75949367 | AD69: 9.493670886 | AE69: 3.164556962 | AF69: 5.063291139 | AG69: 3.164556962 | AH69: 3.797468354 | AI69: 21.87763158 | AJ69: 165 | AK69: =IF($AJ69=0,0,AK165/$AJ69*100) -> 96.36363636 | AL69: 78.18181818 | AM69: 90.90909091 | AN69: 57.57575758 | AO69: 13.33333333 | AP69: 70.90909091 | AQ69: 69.6969697 | AR69: 77.57575758 | AS69: 33.33333333 | AT69: 21.21212121 | AU69: 71.51515152 | AV69: 3.03030303
B70: 80～100％未満 | E70: 73 | F70: 2.739726027 | G70: 28.76712329 | H70: 65.75342466 | I70: 2.739726027 | J70: 70 | K70: =IF($J70=0,0,K166/$J70*100) -> 5.714285714 | L70: 8.571428571 | M70: 5.714285714 | N70: 14.28571429 | O70: 15.71428571 | P70: 12.85714286 | Q70: 2.857142857 | R70: 7.142857143 | S70: 1.428571429 | T70: 7.142857143 | U70: 18.57142857 | V70: 26.64912281 | W70: 70 | X70: =IF($W70=0,0,X166/$W70*100) -> 4.285714286 | Y70: 17.14285714 | Z70: 7.142857143 | AA70: 24.28571429 | AB70: 17.14285714 | AC70: 12.85714286 | AD70: 2.857142857 | AE70: 4.285714286 | AF70: 2.857142857 | AG70: 2.857142857 | AH70: 4.285714286 | AI70: 15.15597015 | AJ70: 73 | AK70: =IF($AJ70=0,0,AK166/$AJ70*100) -> 95.89041096 | AL70: 72.60273973 | AM70: 89.04109589 | AN70: 49.31506849 | AO70: 20.54794521 | AP70: 63.01369863 | AQ70: 57.53424658 | AR70: 80.82191781 | AS70: 36.98630137 | AT70: 21.91780822 | AU70: 71.23287671 | AV70: 4.109589041
B71: 100％ | E71: 87 | F71: 5.747126437 | G71: 17.24137931 | H71: 68.96551724 | I71: 8.045977011 | J71: 80 | K71: =IF($J71=0,0,K167/$J71*100) -> 5 | L71: 11.25 | M71: 3.75 | N71: 18.75 | O71: 10 | P71: 13.75 | Q71: 3.75 | R71: 3.75 | S71: 1.25 | T71: 11.25 | U71: 17.5 | V71: 32.87121212 | W71: 80 | X71: =IF($W71=0,0,X167/$W71*100) -> 6.25 | Y71: 18.75 | Z71: 3.75 | AA71: 17.5 | AB71: 15 | AC71: 13.75 | AD71: 3.75 | AE71: 7.5 | AF71: 2.5 | AG71: 2.5 | AH71: 8.75 | AI71: 18.00273973 | AJ71: 87 | AK71: =IF($AJ71=0,0,AK167/$AJ71*100) -> 89.65517241 | AL71: 71.26436782 | AM71: 85.05747126 | AN71: 58.62068966 | AO71: 11.49425287 | AP71: 62.06896552 | AQ71: 49.42528736 | AR71: 73.56321839 | AS71: 40.22988506 | AT71: 14.94252874 | AU71: 70.11494253 | AV71: 9.195402299
B72: エラー・無回答 | E72: =E168 -> 338 | F72: 5.325443787 | G72: 27.5147929 | H72: 60.65088757 | I72: 6.50887574 | J72: =J168 -> 312 | K72: =IF($J72=0,0,K168/$J72*100) -> 3.846153846 | L72: 9.294871795 | M72: 2.884615385 | N72: 13.78205128 | O72: 8.012820513 | P72: 15.06410256 | Q72: 6.730769231 | R72: 5.769230769 | S72: 1.282051282 | T72: 9.935897436 | U72: 23.3974359 | V72: 37.13598326 | W72: 312 | X72: =IF($W72=0,0,X168/$W72*100) -> 6.41025641 | Y72: 12.5 | Z72: 7.051282051 | AA72: 15.38461538 | AB72: 15.70512821 | AC72: 14.1025641 | AD72: 8.974358974 | AE72: 5.448717949 | AF72: 1.602564103 | AG72: 2.884615385 | AH72: 9.935897436 | AI72: 17.72206406 | AJ72: 338 | AK72: =IF($AJ72=0,0,AK168/$AJ72*100) -> 93.19526627 | AL72: 76.62721893 | AM72: 86.98224852 | AN72: 62.4260355 | AO72: 17.75147929 | AP72: 66.56804734 | AQ72: 65.0887574 | AR72: 71.59763314 | AS72: 42.89940828 | AT72: 26.92307692 | AU72: 73.96449704 | AV72: 6.213017751
A73: 問２(6) | B73: ８時間未満 | E73: 6 | F73: 0 | G73: 33.33333333 | H73: 66.66666667 | I73: 0 | J73: 6 | K73: =IF($J73=0,0,K169/$J73*100) -> 0 | L73: 0 | M73: 0 | N73: 33.33333333 | O73: 33.33333333 | P73: 0 | Q73: 0 | R73: 16.66666667 | S73: 0 | T73: 16.66666667 | U73: 0 | V73: 43.58333333 | W73: 6 | X73: =IF($W73=0,0,X169/$W73*100) -> 0 | Y73: 0 | Z73: 0 | AA73: 50 | AB73: 33.33333333 | AC73: 0 | AD73: 0 | AE73: 16.66666667 | AF73: 0 | AG73: 0 | AH73: 0 | AI73: 14.25 | AJ73: 6 | AK73: =IF($AJ73=0,0,AK169/$AJ73*100) -> 83.33333333 | AL73: 100 | AM73: 100 | AN73: 50 | AO73: 16.66666667 | AP73: 83.33333333 | AQ73: 50 | AR73: 100 | AS73: 33.33333333 | AT73: 0 | AU73: 83.33333333 | AV73: 0
A74: 看護職員が必ず勤 | B74: ８～９時間未満 | E74: 96 | F74: 9.375 | G74: 34.375 | H74: 50 | I74: 6.25 | J74: 89 | K74: =IF($J74=0,0,K170/$J74*100) -> 0 | L74: 8.988764045 | M74: 1.123595506 | N74: 14.60674157 | O74: 14.60674157 | P74: 11.23595506 | Q74: 6.741573034 | R74: 3.370786517 | S74: 2.247191011 | T74: 12.35955056 | U74: 24.71910112 | V74: 41.54626866 | W74: 89 | X74: =IF($W74=0,0,X170/$W74*100) -> 1.123595506 | Y74: 10.11235955 | Z74: 3.370786517 | AA74: 16.85393258 | AB74: 23.59550562 | AC74: 11.23595506 | AD74: 8.988764045 | AE74: 5.617977528 | AF74: 5.617977528 | AG74: 5.617977528 | AH74: 7.865168539 | AI74: 25.56097561 | AJ74: 96 | AK74: =IF($AJ74=0,0,AK170/$AJ74*100) -> 92.70833333 | AL74: 77.08333333 | AM74: 80.20833333 | AN74: 64.58333333 | AO74: 13.54166667 | AP74: 51.04166667 | AQ74: 55.20833333 | AR74: 70.83333333 | AS74: 42.70833333 | AT74: 22.91666667 | AU74: 69.79166667 | AV74: 7.291666667
A75: 務している時間 | B75: ９～10時間未満 | E75: 545 | F75: 2.568807339 | G75: 24.03669725 | H75: 67.52293578 | I75: 5.871559633 | J75: 511 | K75: =IF($J75=0,0,K171/$J75*100) -> 4.500978474 | L75: 10.95890411 | M75: 4.69667319 | N75: 17.02544031 | O75: 11.74168297 | P75: 10.95890411 | Q75: 6.066536204 | R75: 5.088062622 | S75: 2.348336595 | T75: 8.219178082 | U75: 18.39530333 | V75: 32.72645883 | W75: 511 | X75: =IF($W75=0,0,X171/$W75*100) -> 7.045009785 | Y75: 16.8297456 | Z75: 7.240704501 | AA75: 21.33072407 | AB75: 15.06849315 | AC75: 11.35029354 | AD75: 8.023483366 | AE75: 4.892367906 | AF75: 1.956947162 | AG75: 0.9784735812 | AH75: 5.283757339 | AI75: 14.92703168 | AJ75: 545 | AK75: =IF($AJ75=0,0,AK171/$AJ75*100) -> 93.02752294 | AL75: 74.12844037 | AM75: 88.25688073 | AN75: 57.43119266 | AO75: 15.59633028 | AP75: 67.88990826 | AQ75: 59.81651376 | AR75: 73.21100917 | AS75: 38.53211009 | AT75: 20.73394495 | AU75: 70.82568807 | AV75: 6.422018349
A76: （時間数） | B76: 10～12時間未満 | E76: 349 | F76: 3.724928367 | G76: 35.53008596 | H76: 56.73352436 | I76: 4.011461318 | J76: 329 | K76: =IF($J76=0,0,K172/$J76*100) -> 3.039513678 | L76: 7.294832827 | M76: 3.647416413 | N76: 15.80547112 | O76: 12.46200608 | P76: 14.58966565 | Q76: 6.686930091 | R76: 6.686930091 | S76: 1.215805471 | T76: 7.902735562 | U76: 20.66869301 | V76: 30.4545977 | W76: 329 | X76: =IF($W76=0,0,X172/$W76*100) -> 4.559270517 | Y76: 11.55015198 | Z76: 7.598784195 | AA76: 19.14893617 | AB76: 15.50151976 | AC76: 14.89361702 | AD76: 8.20668693 | AE76: 6.079027356 | AF76: 1.823708207 | AG76: 2.431610942 | AH76: 8.20668693 | AI76: 17.31218543 | AJ76: 349 | AK76: =IF($AJ76=0,0,AK172/$AJ76*100) -> 95.12893983 | AL76: 77.36389685 | AM76: 90.83094556 | AN76: 58.16618911 | AO76: 16.04584527 | AP76: 70.77363897 | AQ76: 66.76217765 | AR76: 79.36962751 | AS76: 41.54727794 | AT76: 24.35530086 | AU76: 74.49856734 | AV76: 4.297994269
B77: 12～24時間未満 | E77: 55 | F77: 3.636363636 | G77: 27.27272727 | H77: 65.45454545 | I77: 3.636363636 | J77: 53 | K77: =IF($J77=0,0,K173/$J77*100) -> 1.886792453 | L77: 9.433962264 | M77: 5.660377358 | N77: 11.32075472 | O77: 9.433962264 | P77: 16.98113208 | Q77: 7.547169811 | R77: 3.773584906 | S77: 3.773584906 | T77: 9.433962264 | U77: 20.75471698 | V77: 33.75 | W77: 53 | X77: =IF($W77=0,0,X173/$W77*100) -> 3.773584906 | Y77: 11.32075472 | Z77: 11.32075472 | AA77: 15.09433962 | AB77: 18.86792453 | AC77: 13.20754717 | AD77: 13.20754717 | AE77: 1.886792453 | AF77: 5.660377358 | AG77: 1.886792453 | AH77: 3.773584906 | AI77: 18.39215686 | AJ77: 55 | AK77: =IF($AJ77=0,0,AK173/$AJ77*100) -> 92.72727273 | AL77: 78.18181818 | AM77: 83.63636364 | AN77: 54.54545455 | AO77: 12.72727273 | AP77: 67.27272727 | AQ77: 67.27272727 | AR77: 74.54545455 | AS77: 41.81818182 | AT77: 21.81818182 | AU77: 80 | AV77: 3.636363636
B78: 24時間 | E78: 8 | F78: 37.5 | G78: 37.5 | H78: 25 | I78: 0 | J78: 8 | K78: =IF($J78=0,0,K174/$J78*100) -> 0 | L78: 0 | M78: 0 | N78: 0 | O78: 37.5 | P78: 0 | Q78: 0 | R78: 0 | S78: 0 | T78: 37.5 | U78: 25 | V78: 75.15 | W78: 8 | X78: =IF($W78=0,0,X174/$W78*100) -> 0 | Y78: 0 | Z78: 0 | AA78: 0 | AB78: 50 | AC78: 0 | AD78: 0 | AE78: 0 | AF78: 0 | AG78: 37.5 | AH78: 12.5 | AI78: 64.98571429 | AJ78: 8 | AK78: =IF($AJ78=0,0,AK174/$AJ78*100) -> 100 | AL78: 87.5 | AM78: 87.5 | AN78: 62.5 | AO78: 0 | AP78: 62.5 | AQ78: 62.5 | AR78: 75 | AS78: 25 | AT78: 25 | AU78: 100 | AV78: 0
B79: エラー・無回答 | E79: 30 | F79: 0 | G79: 36.66666667 | H79: 50 | I79: 13.33333333 | J79: 23 | K79: =IF($J79=0,0,K175/$J79*100) -> 8.695652174 | L79: 4.347826087 | M79: 0 | N79: 4.347826087 | O79: 8.695652174 | P79: 17.39130435 | Q79: 8.695652174 | R79: 13.04347826 | S79: 0 | T79: 0 | U79: 34.7826087 | V79: 17.2 | W79: 23 | X79: =IF($W79=0,0,X175/$W79*100) -> 4.347826087 | Y79: 4.347826087 | Z79: 4.347826087 | AA79: 13.04347826 | AB79: 21.73913043 | AC79: 21.73913043 | AD79: 4.347826087 | AE79: 8.695652174 | AF79: 0 | AG79: 0 | AH79: 17.39130435 | AI79: 14.84210526 | AJ79: 30 | AK79: =IF($AJ79=0,0,AK175/$AJ79*100) -> 90 | AL79: 73.33333333 | AM79: 66.66666667 | AN79: 56.66666667 | AO79: 6.666666667 | AP79: 66.66666667 | AQ79: 53.33333333 | AR79: 66.66666667 | AS79: 30 | AT79: 23.33333333 | AU79: 56.66666667 | AV79: 10
A80: 問２(7) | B80: 看護師＋ | C80: ０人 | E80: 977 | F80: 3.582395087 | G80: 29.06857728 | H80: 62.12896622 | I80: 5.220061412 | J80: 916 | K80: =IF($J80=0,0,K176/$J80*100) -> 3.602620087 | L80: 9.170305677 | M80: 3.930131004 | N80: 15.72052402 | O80: 12.44541485 | P80: 12.33624454 | Q80: 6.331877729 | R80: 5.895196507 | S80: 2.183406114 | T80: 7.969432314 | U80: 20.41484716 | V80: 32.43783722 | W80: 916 | X80: =IF($W80=0,0,X176/$W80*100) -> 5.676855895 | Y80: 13.97379913 | Z80: 6.877729258 | AA80: 19.3231441 | AB80: 16.59388646 | AC80: 12.77292576 | AD80: 8.187772926 | AE80: 5.56768559 | AF80: 2.620087336 | AG80: 1.746724891 | AH80: 6.659388646 | AI80: 16.99937232 | AJ80: 977 | AK80: =IF($AJ80=0,0,AK176/$AJ80*100) -> 93.55168884 | AL80: 75.53735926 | AM80: 88.12691914 | AN80: 57.83009212 | AO80: 14.84135107 | AP80: 67.34902764 | AQ80: 61.92425793 | AR80: 75.63971341 | AS80: 39.20163767 | AT80: 22.00614125 | AU80: 72.4667349 | AV80: 5.629477994
A81: 夜間の看護職員数 | B81: 准看護師 | C81: １人 | E81: 21 | F81: =IF($E81=0,0,F177/$E81*100) -> 9.523809524 | G81: 42.85714286 | H81: 47.61904762 | I81: 0 | J81: 21 | K81: =IF($J81=0,0,K177/$J81*100) -> 0 | L81: 0 | M81: 0 | N81: 9.523809524 | O81: 14.28571429 | P81: 23.80952381 | Q81: 9.523809524 | R81: 4.761904762 | S81: 0 | T81: 9.523809524 | U81: 28.57142857 | V81: 34.66666667 | W81: 21 | X81: =IF($W81=0,0,X177/$W81*100) -> 0 | Y81: 0 | Z81: 0 | AA81: 19.04761905 | AB81: 23.80952381 | AC81: 19.04761905 | AD81: 14.28571429 | AE81: 0 | AF81: 0 | AG81: 14.28571429 | AH81: 9.523809524 | AI81: 32.31578947 | AJ81: 21 | AK81: =IF($AJ81=0,0,AK177/$AJ81*100) -> 100 | AL81: 90.47619048 | AM81: 90.47619048 | AN81: 57.14285714 | AO81: 14.28571429 | AP81: 76.19047619 | AQ81: 71.42857143 | AR81: 85.71428571 | AS81: 38.0952381 | AT81: 28.57142857 | AU81: 80.95238095 | AV81: 0
C82: ２人以上 | E82: 3 | F82: 33.33333333 | G82: 33.33333333 | H82: 0 | I82: 33.33333333 | J82: 2 | K82: =IF($J82=0,0,K178/$J82*100) -> 0 | L82: 0 | M82: 0 | N82: 0 | O82: 50 | P82: 0 | Q82: 0 | R82: 0 | S82: 0 | T82: 50 | U82: 0 | V82: 66 | W82: 2 | X82: =IF($W82=0,0,X178/$W82*100) -> 0 | Y82: 0 | Z82: 0 | AA82: 0 | AB82: 50 | AC82: 0 | AD82: 0 | AE82: 0 | AF82: 0 | AG82: 50 | AH82: 0 | AI82: 66.5 | AJ82: 3 | AK82: =IF($AJ82=0,0,AK178/$AJ82*100) -> 66.66666667 | AL82: 66.66666667 | AM82: 66.66666667 | AN82: 66.66666667 | AO82: 33.33333333 | AP82: 33.33333333 | AQ82: 33.33333333 | AR82: 66.66666667 | AS82: 33.33333333 | AT82: 66.66666667 | AU82: 66.66666667 | AV82: 33.33333333
C83: 無回答 | E83: 88 | F83: 3.409090909 | G83: 28.40909091 | H83: 61.36363636 | I83: 6.818181818 | J83: 80 | K83: =IF($J83=0,0,K179/$J83*100) -> 3.75 | L83: 12.5 | M83: 5 | N83: 18.75 | O83: 10 | P83: 11.25 | Q83: 6.25 | R83: 2.5 | S83: 0 | T83: 15 | U83: 15 | V83: =V179 -> 36.29264706 | W83: 80 | X83: =IF($W83=0,0,X179/$W83*100) -> 3.75 | Y83: 15 | Z83: 11.25 | AA83: 25 | AB83: 15 | AC83: 10 | AD83: 7.5 | AE83: 3.75 | AF83: 0 | AG83: 2.5 | AH83: 6.25 | AI83: =AI179 -> 13.70533333 | AJ83: 88 | AK83: =IF($AJ83=0,0,AK179/$AJ83*100) -> 93.18181818 | AL83: 76.13636364 | AM83: 81.81818182 | AN83: 61.36363636 | AO83: 17.04545455 | AP83: 65.90909091 | AQ83: 59.09090909 | AR83: 65.90909091 | AS83: 45.45454545 | AT83: 20.45454545 | AU83: 68.18181818 | AV83: 6.818181818
B84: 看護師 | C84: ０人 | E84: 984 | F84: 3.556910569 | G84: 29.16666667 | H84: 61.99186992 | I84: 5.284552846 | J84: 922 | K84: =IF($J84=0,0,K180/$J84*100) -> 3.579175705 | L84: 9.110629067 | M84: 3.904555315 | N84: 15.61822126 | O84: 12.5813449 | P84: 12.5813449 | Q84: 6.399132321 | R84: 5.856832972 | S84: 2.169197397 | T84: 7.917570499 | U84: 20.28199566 | V84: 32.30637188 | W84: 922 | X84: =IF($W84=0,0,X180/$W84*100) -> 5.639913232 | Y84: 13.88286334 | Z84: 6.8329718 | AA84: 19.19739696 | AB84: 16.81127983 | AC84: 12.79826464 | AD84: 8.351409978 | AE84: 5.531453362 | AF84: 2.603036876 | AG84: 1.735357918 | AH84: 6.616052061 | AI84: 16.99240805 | AJ84: 984 | AK84: =IF($AJ84=0,0,AK180/$AJ84*100) -> 93.49593496 | AL84: 75.50813008 | AM84: 88.1097561 | AN84: 57.72357724 | AO84: 14.83739837 | AP84: 67.4796748 | AQ84: 62.09349593 | AR84: 75.6097561 | AS84: 39.22764228 | AT84: 22.05284553 | AU84: 72.45934959 | AV84: 5.691056911
C85: １人 | E85: 18 | F85: 11.11111111 | G85: 38.88888889 | H85: 50 | I85: 0 | J85: 18 | K85: =IF($J85=0,0,K181/$J85*100) -> 0 | L85: 0 | M85: 0 | N85: 11.11111111 | O85: 11.11111111 | P85: 11.11111111 | Q85: 11.11111111 | R85: 5.555555556 | S85: 0 | T85: 16.66666667 | U85: 33.33333333 | V85: 52.33333333 | W85: 18 | X85: =IF($W85=0,0,X181/$W85*100) -> 0 | Y85: 0 | Z85: 5.555555556 | AA85: 22.22222222 | AB85: 16.66666667 | AC85: 16.66666667 | AD85: 11.11111111 | AE85: 0 | AF85: 0 | AG85: 16.66666667 | AH85: 11.11111111 | AI85: 35.21875 | AJ85: 18 | AK85: =IF($AJ85=0,0,AK181/$AJ85*100) -> 100 | AL85: 94.44444444 | AM85: 88.88888889 | AN85: 61.11111111 | AO85: 22.22222222 | AP85: 72.22222222 | AQ85: 61.11111111 | AR85: 83.33333333 | AS85: 44.44444444 | AT85: 33.33333333 | AU85: 83.33333333 | AV85: 0
C86: ２人以上 | E86: 2 | F86: 50 | G86: 50 | H86: 0 | I86: 0 | J86: 2 | K86: =IF($J86=0,0,K182/$J86*100) -> 0 | L86: 0 | M86: 0 | N86: 0 | O86: 50 | P86: 0 | Q86: 0 | R86: 0 | S86: 0 | T86: 50 | U86: 0 | V86: 66 | W86: 2 | X86: =IF($W86=0,0,X182/$W86*100) -> 0 | Y86: 0 | Z86: 0 | AA86: 0 | AB86: 50 | AC86: 0 | AD86: 0 | AE86: 0 | AF86: 0 | AG86: 50 | AH86: 0 | AI86: 66.5 | AJ86: 2 | AK86: =IF($AJ86=0,0,AK182/$AJ86*100) -> 100 | AL86: 100 | AM86: 100 | AN86: 100 | AO86: 50 | AP86: 50 | AQ86: 50 | AR86: 100 | AS86: 50 | AT86: 100 | AU86: 100 | AV86: 0
C87: 無回答 | E87: 85 | F87: 3.529411765 | G87: 28.23529412 | H87: 61.17647059 | I87: 7.058823529 | J87: 77 | K87: =IF($J87=0,0,K183/$J87*100) -> 3.896103896 | L87: 12.98701299 | M87: 5.194805195 | N87: 19.48051948 | O87: 9.090909091 | P87: 11.68831169 | Q87: 5.194805195 | R87: 2.597402597 | S87: 0 | T87: 14.28571429 | U87: 15.58441558 | V87: 34.79846154 | W87: 77 | X87: =IF($W87=0,0,X183/$W87*100) -> 3.896103896 | Y87: 15.58441558 | Z87: 10.38961039 | AA87: 25.97402597 | AB87: 14.28571429 | AC87: 10.38961039 | AD87: 6.493506494 | AE87: 3.896103896 | AF87: 0 | AG87: 2.597402597 | AH87: 6.493506494 | AI87: 13.64444444 | AJ87: 85 | AK87: =IF($AJ87=0,0,AK183/$AJ87*100) -> 92.94117647 | AL87: 75.29411765 | AM87: 81.17647059 | AN87: 61.17647059 | AO87: 15.29411765 | AP87: 64.70588235 | AQ87: 58.82352941 | AR87: 65.88235294 | AS87: 43.52941176 | AT87: 18.82352941 | AU87: 67.05882353 | AV87: 7.058823529
B88: 准看護師 | C88: ０人 | E88: 999 | F88: 3.803803804 | G88: 29.22922923 | H88: 61.86186186 | I88: 5.105105105 | J88: 938 | K88: =IF($J88=0,0,K184/$J88*100) -> 3.518123667 | L88: 9.061833689 | M88: 3.837953092 | N88: 15.7782516 | O88: 12.36673774 | P88: 12.26012793 | Q88: 6.396588486 | R88: 5.863539446 | S88: 2.132196162 | T88: 8.208955224 | U88: 20.57569296 | V88: 32.73581655 | W88: 938 | X88: =IF($W88=0,0,X184/$W88*100) -> 5.650319829 | Y88: 13.64605544 | Z88: 6.823027719 | AA88: 19.50959488 | AB88: 16.52452026 | AC88: 12.79317697 | AD88: 8.208955224 | AE88: 5.437100213 | AF88: 2.558635394 | AG88: 2.132196162 | AH88: 6.71641791 | AI88: 17.40624381 | AJ88: 999 | AK88: =IF($AJ88=0,0,AK184/$AJ88*100) -> 93.69369369 | AL88: 75.97597598 | AM88: 88.18818819 | AN88: 58.05805806 | AO88: 15.01501502 | AP88: 67.36736737 | AQ88: 61.96196196 | AR88: 75.97597598 | AS88: 39.43943944 | AT88: 22.42242242 | AU88: 72.77277277 | AV88: 5.505505506
C89: １人 | E89: 8 | F89: 0 | G89: 50 | H89: 50 | I89: 0 | J89: 7 | K89: =IF($J89=0,0,K185/$J89*100) -> 0 | L89: 0 | M89: 0 | N89: 0 | O89: 42.85714286 | P89: 42.85714286 | Q89: 14.28571429 | R89: 0 | S89: 0 | T89: 0 | U89: 0 | V89: 16 | W89: 7 | X89: =IF($W89=0,0,X185/$W89*100) -> 0 | Y89: 0 | Z89: 0 | AA89: 0 | AB89: 57.14285714 | AC89: 14.28571429 | AD89: 28.57142857 | AE89: 0 | AF89: 0 | AG89: 0 | AH89: 0 | AI89: 15.71428571 | AJ89: 8 | AK89: =IF($AJ89=0,0,AK185/$AJ89*100) -> 100 | AL89: 87.5 | AM89: 100 | AN89: 50 | AO89: 12.5 | AP89: 87.5 | AQ89: 87.5 | AR89: 87.5 | AS89: 37.5 | AT89: 25 | AU89: 75 | AV89: 0
C90: ２人以上 | E90: 1 | F90: 0 | G90: 0 | H90: 0 | I90: 100 | J90: 0 | K90: =IF($J90=0,0,K186/$J90*100) -> 0 | L90: 0 | M90: 0 | N90: 0 | O90: 0 | P90: 0 | Q90: 0 | R90: 0 | S90: 0 | T90: 0 | U90: 0 | V90: － | W90: 0 | X90: =IF($W90=0,0,X186/$W90*100) -> 0 | Y90: 0 | Z90: 0 | AA90: 0 | AB90: 0 | AC90: 0 | AD90: 0 | AE90: 0 | AF90: 0 | AG90: 0 | AH90: 0 | AI90: － | AJ90: 1 | AK90: =IF($AJ90=0,0,AK186/$AJ90*100) -> 0 | AL90: 0 | AM90: 0 | AN90: 0 | AO90: 0 | AP90: 0 | AQ90: 0 | AR90: 0 | AS90: 0 | AT90: 0 | AU90: 0 | AV90: 100
C91: 無回答 | E91: 81 | F91: 3.703703704 | G91: 28.39506173 | H91: 60.49382716 | I91: 7.407407407 | J91: 74 | K91: =IF($J91=0,0,K187/$J91*100) -> 4.054054054 | L91: 12.16216216 | M91: 5.405405405 | N91: 17.56756757 | O91: 9.459459459 | P91: 12.16216216 | Q91: 5.405405405 | R91: 2.702702703 | S91: 0 | T91: 14.86486486 | U91: 16.21621622 | V91: 36.56290323 | W91: 74 | X91: =IF($W91=0,0,X187/$W91*100) -> 2.702702703 | Y91: 16.21621622 | Z91: 10.81081081 | AA91: 24.32432432 | AB91: 14.86486486 | AC91: 10.81081081 | AD91: 6.756756757 | AE91: 4.054054054 | AF91: 0 | AG91: 2.702702703 | AH91: 6.756756757 | AI91: 14.04202899 | AJ91: 81 | AK91: =IF($AJ91=0,0,AK187/$AJ91*100) -> 92.59259259 | AL91: 74.07407407 | AM91: 80.24691358 | AN91: 60.49382716 | AO91: 16.04938272 | AP91: 65.43209877 | AQ91: 58.02469136 | AR91: 62.96296296 | AS91: 43.20987654 | AT91: 18.51851852 | AU91: 66.66666667 | AV91: 7.407407407
A92: 問２(8) | B92: 常に夜勤または宿直の看護職員（併設事業所と兼務の場合を含む）が対応 | E92: 12 | F92: 25 | G92: 41.66666667 | H92: 33.33333333 | I92: 0 | J92: 12 | K92: =IF($J92=0,0,K188/$J92*100) -> 0 | L92: 8.333333333 | M92: 0 | N92: 0 | O92: 33.33333333 | P92: 0 | Q92: 8.333333333 | R92: 0 | S92: 0 | T92: 25 | U92: 25 | V92: 54.54444444 | W92: 12 | X92: =IF($W92=0,0,X188/$W92*100) -> 0 | Y92: 8.333333333 | Z92: 0 | AA92: 0 | AB92: 41.66666667 | AC92: 0 | AD92: 8.333333333 | AE92: 0 | AF92: 0 | AG92: 25 | AH92: 16.66666667 | AI92: 49.49 | AJ92: 12 | AK92: =IF($AJ92=0,0,AK188/$AJ92*100) -> 100 | AL92: 91.66666667 | AM92: 91.66666667 | AN92: 58.33333333 | AO92: 16.66666667 | AP92: 66.66666667 | AQ92: 66.66666667 | AR92: 83.33333333 | AS92: 33.33333333 | AT92: 33.33333333 | AU92: 83.33333333 | AV92: 0
A93: 夜間の看護体制 | B93: 通常、施設の看護職員（併設事業所と兼務の場合を含む）がオンコールで対応 | E93: 920 | F93: 3.369565217 | G93: 29.34782609 | H93: 61.95652174 | I93: 5.326086957 | J93: 862 | K93: =IF($J93=0,0,K189/$J93*100) -> 3.944315545 | L93: 9.628770302 | M93: 3.712296984 | N93: 15.6612529 | O93: 11.71693735 | P93: 12.41299304 | Q93: 6.380510441 | R93: 5.220417633 | S93: 2.204176334 | T93: 8.584686775 | U93: 20.53364269 | V93: 33.26194647 | W93: 862 | X93: =IF($W93=0,0,X189/$W93*100) -> 5.916473318 | Y93: 14.15313225 | Z93: 6.496519722 | AA93: 19.95359629 | AB93: 16.12529002 | AC93: 12.76102088 | AD93: 8.352668213 | AE93: 4.988399072 | AF93: 2.552204176 | AG93: 1.972157773 | AH93: 6.728538283 | AI93: 16.94553897 | AJ93: 920 | AK93: =IF($AJ93=0,0,AK189/$AJ93*100) -> 93.58695652 | AL93: 75.86956522 | AM93: 88.04347826 | AN93: 58.91304348 | AO93: 15.43478261 | AP93: 68.80434783 | AQ93: 62.93478261 | AR93: 75.32608696 | AS93: 39.7826087 | AT93: 22.5 | AU93: 72.60869565 | AV93: 5.760869565
B94: 訪問看護ステーション、医療機関と連携してオンコール体制をとっている | E94: 31 | F94: 6.451612903 | G94: 32.25806452 | H94: 54.83870968 | I94: 6.451612903 | J94: 29 | K94: =IF($J94=0,0,K190/$J94*100) -> 3.448275862 | L94: 6.896551724 | M94: 0 | N94: 24.13793103 | O94: 17.24137931 | P94: 10.34482759 | Q94: 10.34482759 | R94: 6.896551724 | S94: 0 | T94: 13.79310345 | U94: 6.896551724 | V94: 34.18518519 | W94: 29 | X94: =IF($W94=0,0,X190/$W94*100) -> 3.448275862 | Y94: 13.79310345 | Z94: 6.896551724 | AA94: 24.13793103 | AB94: 27.5862069 | AC94: 6.896551724 | AD94: 10.34482759 | AE94: 3.448275862 | AF94: 0 | AG94: 3.448275862 | AH94: 0 | AI94: 16.18965517 | AJ94: 31 | AK94: =IF($AJ94=0,0,AK190/$AJ94*100) -> 93.5483871 | AL94: 61.29032258 | AM94: 83.87096774 | AN94: 64.51612903 | AO94: 19.35483871 | AP94: 74.19354839 | AQ94: 51.61290323 | AR94: 67.74193548 | AS94: 38.70967742 | AT94: 19.35483871 | AU94: 64.51612903 | AV94: 6.451612903
B95: 夜勤・宿直の看護職員はおらず、オンコール対応もしていない | E95: 49 | F95: 4.081632653 | G95: 26.53061224 | H95: 67.34693878 | I95: 2.040816327 | J95: 47 | K95: =IF($J95=0,0,K191/$J95*100) -> 2.127659574 | L95: 2.127659574 | M95: 8.510638298 | N95: 21.27659574 | O95: 17.0212766 | P95: 10.63829787 | Q95: 4.255319149 | R95: 10.63829787 | S95: 0 | T95: 6.382978723 | U95: 17.0212766 | V95: 30.39615385 | W95: 47 | X95: =IF($W95=0,0,X191/$W95*100) -> 6.382978723 | Y95: 6.382978723 | Z95: 12.76595745 | AA95: 21.27659574 | AB95: 21.27659574 | AC95: 12.76595745 | AD95: 6.382978723 | AE95: 8.510638298 | AF95: 0 | AG95: 2.127659574 | AH95: 2.127659574 | AI95: 15.99891304 | AJ95: 49 | AK95: =IF($AJ95=0,0,AK191/$AJ95*100) -> 91.83673469 | AL95: 77.55102041 | AM95: 89.79591837 | AN95: 46.93877551 | AO95: 16.32653061 | AP95: 40.81632653 | AQ95: 40.81632653 | AR95: 73.46938776 | AS95: 32.65306122 | AT95: 28.57142857 | AU95: 71.42857143 | AV95: 4.081632653
B96: 無回答 | E96: 77 | F96: 3.896103896 | G96: 27.27272727 | H96: 61.03896104 | I96: 7.792207792 | J96: 69 | K96: =IF($J96=0,0,K192/$J96*100) -> 0 | L96: 10.14492754 | M96: 5.797101449 | N96: 13.04347826 | O96: 11.5942029 | P96: 17.39130435 | Q96: 5.797101449 | R96: 7.246376812 | S96: 1.449275362 | T96: 5.797101449 | U96: 21.73913043 | V96: 25.61666667 | W96: 69 | X96: =IF($W96=0,0,X192/$W96*100) -> 0 | Y96: 14.49275362 | Z96: 11.5942029 | AA96: 17.39130435 | AB96: 11.5942029 | AC96: 15.94202899 | AD96: 7.246376812 | AE96: 8.695652174 | AF96: 2.898550725 | AG96: 0 | AH96: 10.14492754 | AI96: 15.88387097 | AJ96: 77 | AK96: =IF($AJ96=0,0,AK192/$AJ96*100) -> 93.50649351 | AL96: 77.92207792 | AM96: 81.81818182 | AN96: 53.24675325 | AO96: 7.792207792 | AP96: 63.63636364 | AQ96: 64.93506494 | AR96: 74.02597403 | AS96: 44.15584416 | AT96: 12.98701299 | AU96: 70.12987013 | AV96: 6.493506494
A100: 全 体 | E100: 1089 | F100: 41 | G100: 319 | H100: 671 | I100: 58 | J100: 1019 | K100: 36 | L100: 94 | M100: 40 | N100: 161 | O100: 126 | P100: 127 | Q100: 65 | R100: 57 | S100: 20 | T100: 88 | U100: 205 | V100: 32.88339476 | W100: 1019 | X100: 55 | Y100: 140 | Z100: 72 | AA100: 201 | AB100: 170 | AC100: 129 | AD100: 84 | AE100: 54 | AF100: 24 | AG100: 22 | AH100: 68 | AI100: 17.14969856 | AJ100: 1089 | AK100: 1019 | AL100: 826 | AM100: 954 | AN100: 633 | AO100: 164 | AP100: 733 | AQ100: 673 | AR100: 817 | AS100: 432 | AT100: 241 | AU100: 787 | AV100: 62
A102: 都市圏 | B102: 首都圏 | E102: 172 | F102: 9 | G102: 72 | H102: 87 | I102: 4 | J102: 164 | K102: 2 | L102: 9 | M102: 11 | N102: 26 | O102: 27 | P102: 20 | Q102: 15 | R102: 11 | S102: 3 | T102: 16 | U102: 24 | V102: 31.36035714 | W102: 164 | X102: 3 | Y102: 16 | Z102: 13 | AA102: 34 | AB102: 32 | AC102: 21 | AD102: 18 | AE102: 8 | AF102: 3 | AG102: 7 | AH102: 9 | AI102: 20.39548387 | AJ102: 172 | AK102: 163 | AL102: 125 | AM102: 152 | AN102: 104 | AO102: 41 | AP102: 105 | AQ102: 112 | AR102: 122 | AS102: 61 | AT102: 44 | AU102: 130 | AV102: 7
B103: 中京圏 | E103: 91 | F103: 4 | G103: 29 | H103: 53 | I103: 5 | J103: 86 | K103: 6 | L103: 10 | M103: 5 | N103: 14 | O103: 9 | P103: 10 | Q103: 7 | R103: 5 | S103: 0 | T103: 7 | U103: 13 | V103: 33.34246575 | W103: 86 | X103: 7 | Y103: 18 | Z103: 5 | AA103: 13 | AB103: 16 | AC103: 10 | AD103: 9 | AE103: 5 | AF103: 0 | AG103: 1 | AH103: 2 | AI103: 13.17059524 | AJ103: 91 | AK103: 86 | AL103: 70 | AM103: 77 | AN103: 51 | AO103: 9 | AP103: 61 | AQ103: 54 | AR103: 69 | AS103: 38 | AT103: 22 | AU103: 69 | AV103: 5
B104: 近畿圏 | E104: 126 | F104: 7 | G104: 51 | H104: 61 | I104: 7 | J104: 117 | K104: 2 | L104: 8 | M104: 2 | N104: 15 | O104: 7 | P104: 14 | Q104: 15 | R104: 15 | S104: 8 | T104: 8 | U104: 23 | V104: 39.42446809 | W104: 117 | X104: 2 | Y104: 11 | Z104: 6 | AA104: 17 | AB104: 10 | AC104: 17 | AD104: 17 | AE104: 17 | AF104: 10 | AG104: 4 | AH104: 6 | AI104: 26.27747748 | AJ104: 126 | AK104: 119 | AL104: 98 | AM104: 112 | AN104: 81 | AO104: 27 | AP104: 77 | AQ104: 87 | AR104: 97 | AS104: 54 | AT104: 24 | AU104: 90 | AV104: 6
B105: その他 | E105: 697 | F105: 21 | G105: 166 | H105: 468 | I105: 42 | J105: 649 | K105: 26 | L105: 67 | M105: 22 | N105: 105 | O105: 82 | P105: 83 | Q105: 28 | R105: 26 | S105: 9 | T105: 57 | U105: 144 | V105: 32.11234323 | W105: 649 | X105: 43 | Y105: 95 | Z105: 48 | AA105: 136 | AB105: 111 | AC105: 80 | AD105: 40 | AE105: 24 | AF105: 11 | AG105: 10 | AH105: 51 | AI105: 15.19554069 | AJ105: 697 | AK105: 648 | AL105: 531 | AM105: 610 | AN105: 394 | AO105: 86 | AP105: 487 | AQ105: 417 | AR105: 526 | AS105: 277 | AT105: 150 | AU105: 495 | AV105: 44
B106: 無回答 | E106: 3 | F106: 0 | G106: 1 | H106: 2 | I106: 0 | J106: 3 | K106: 0 | L106: 0 | M106: 0 | N106: 1 | O106: 1 | P106: 0 | Q106: 0 | R106: 0 | S106: 0 | T106: 0 | U106: 1 | V106: 10 | W106: 3 | X106: 0 | Y106: 0 | Z106: 0 | AA106: 1 | AB106: 1 | AC106: 1 | AD106: 0 | AE106: 0 | AF106: 0 | AG106: 0 | AH106: 0 | AI106: 12.66666667 | AJ106: 3 | AK106: 3 | AL106: 2 | AM106: 3 | AN106: 3 | AO106: 1 | AP106: 3 | AQ106: 3 | AR106: 3 | AS106: 2 | AT106: 1 | AU106: 3 | AV106: 0
A107: 都市規模 | B107: 指定都市・特別区 | E107: 192 | F107: 17 | G107: 59 | H107: 108 | I107: 8 | J107: 184 | K107: 2 | L107: 9 | M107: 8 | N107: 28 | O107: 20 | P107: 21 | Q107: 16 | R107: 16 | S107: 5 | T107: 19 | U107: 40 | V107: 37.01458333 | W107: 184 | X107: 5 | Y107: 15 | Z107: 14 | AA107: 29 | AB107: 35 | AC107: 26 | AD107: 21 | AE107: 13 | AF107: 3 | AG107: 9 | AH107: 14 | AI107: 22.86147059 | AJ107: 192 | AK107: 183 | AL107: 148 | AM107: 172 | AN107: 117 | AO107: 34 | AP107: 116 | AQ107: 124 | AR107: 145 | AS107: 72 | AT107: 35 | AU107: 148 | AV107: 8
B108: 中核市 | E108: 188 | F108: 5 | G108: 62 | H108: 115 | I108: 6 | J108: 181 | K108: 6 | L108: 18 | M108: 8 | N108: 25 | O108: 21 | P108: 23 | Q108: 12 | R108: 9 | S108: 2 | T108: 18 | U108: 39 | V108: 38.03098592 | W108: 181 | X108: 9 | Y108: 25 | Z108: 12 | AA108: 31 | AB108: 31 | AC108: 24 | AD108: 17 | AE108: 11 | AF108: 5 | AG108: 3 | AH108: 13 | AI108: 16.05059524 | AJ108: 188 | AK108: 181 | AL108: 149 | AM108: 166 | AN108: 115 | AO108: 35 | AP108: 130 | AQ108: 114 | AR108: 145 | AS108: 78 | AT108: 37 | AU108: 138 | AV108: 7
B109: その他の市 | E109: 514 | F109: 15 | G109: 153 | H109: 310 | I109: 36 | J109: 471 | K109: 20 | L109: 46 | M109: 17 | N109: 79 | O109: 62 | P109: 63 | Q109: 27 | R109: 23 | S109: 9 | T109: 38 | U109: 87 | V109: 31.11662326 | W109: 471 | X109: 27 | Y109: 66 | Z109: 37 | AA109: 101 | AB109: 74 | AC109: 60 | AD109: 37 | AE109: 20 | AF109: 11 | AG109: 8 | AH109: 30 | AI109: 16.34372638 | AJ109: 514 | AK109: 471 | AL109: 383 | AM109: 447 | AN109: 292 | AO109: 74 | AP109: 362 | AQ109: 324 | AR109: 384 | AS109: 200 | AT109: 130 | AU109: 364 | AV109: 37
B110: 町村 | E110: 192 | F110: 4 | G110: 44 | H110: 136 | I110: 8 | J110: 180 | K110: 8 | L110: 21 | M110: 7 | N110: 28 | O110: 22 | P110: 20 | Q110: 10 | R110: 9 | S110: 4 | T110: 13 | U110: 38 | V110: 28.64647887 | W110: 180 | X110: 14 | Y110: 34 | Z110: 9 | AA110: 39 | AB110: 29 | AC110: 18 | AD110: 9 | AE110: 10 | AF110: 5 | AG110: 2 | AH110: 11 | AI110: 14.67946746 | AJ110: 192 | AK110: 181 | AL110: 144 | AM110: 166 | AN110: 106 | AO110: 20 | AP110: 122 | AQ110: 108 | AR110: 140 | AS110: 80 | AT110: 38 | AU110: 134 | AV110: 10
B111: 無回答 | E111: 3 | F111: 0 | G111: 1 | H111: 2 | I111: 0 | J111: 3 | K111: 0 | L111: 0 | M111: 0 | N111: 1 | O111: 1 | P111: 0 | Q111: 0 | R111: 0 | S111: 0 | T111: 0 | U111: 1 | V111: 10 | W111: 3 | X111: 0 | Y111: 0 | Z111: 0 | AA111: 1 | AB111: 1 | AC111: 1 | AD111: 0 | AE111: 0 | AF111: 0 | AG111: 0 | AH111: 0 | AI111: 12.66666667 | AJ111: 3 | AK111: 3 | AL111: 2 | AM111: 3 | AN111: 3 | AO111: 1 | AP111: 3 | AQ111: 3 | AR111: 3 | AS111: 2 | AT111: 1 | AU111: 3 | AV111: 0
A112: 地域区分 | B112: １級地 | E112: 27 | F112: 3 | G112: 12 | H112: 11 | I112: 1 | J112: 26 | K112: 0 | L112: 0 | M112: 2 | N112: 5 | O112: 4 | P112: 1 | Q112: 6 | R112: 2 | S112: 0 | T112: 5 | U112: 1 | V112: 43.32 | W112: 26 | X112: 0 | Y112: 1 | Z112: 2 | AA112: 5 | AB112: 7 | AC112: 1 | AD112: 7 | AE112: 0 | AF112: 0 | AG112: 3 | AH112: 0 | AI112: 28.80769231 | AJ112: 27 | AK112: 25 | AL112: 21 | AM112: 25 | AN112: 16 | AO112: 7 | AP112: 14 | AQ112: 18 | AR112: 19 | AS112: 8 | AT112: 7 | AU112: 22 | AV112: 2
B113: ２級地 | E113: 27 | F113: 2 | G113: 13 | H113: 11 | I113: 1 | J113: 26 | K113: 0 | L113: 0 | M113: 2 | N113: 3 | O113: 2 | P113: 2 | Q113: 3 | R113: 4 | S113: 2 | T113: 2 | U113: 6 | V113: 39.18 | W113: 26 | X113: 0 | Y113: 1 | Z113: 1 | AA113: 4 | AB113: 2 | AC113: 3 | AD113: 4 | AE113: 5 | AF113: 1 | AG113: 1 | AH113: 4 | AI113: 28.27045455 | AJ113: 27 | AK113: 26 | AL113: 20 | AM113: 23 | AN113: 18 | AO113: 4 | AP113: 17 | AQ113: 21 | AR113: 21 | AS113: 13 | AT113: 7 | AU113: 22 | AV113: 1
B114: ３級地 | E114: 46 | F114: 3 | G114: 18 | H114: 23 | I114: 2 | J114: 44 | K114: 1 | L114: 2 | M114: 1 | N114: 8 | O114: 4 | P114: 9 | Q114: 5 | R114: 4 | S114: 1 | T114: 5 | U114: 4 | V114: 32.0625 | W114: 44 | X114: 3 | Y114: 5 | Z114: 2 | AA114: 10 | AB114: 6 | AC114: 6 | AD114: 5 | AE114: 4 | AF114: 1 | AG114: 1 | AH114: 1 | AI114: 17.44186047 | AJ114: 46 | AK114: 44 | AL114: 38 | AM114: 42 | AN114: 26 | AO114: 12 | AP114: 34 | AQ114: 31 | AR114: 31 | AS114: 18 | AT114: 10 | AU114: 32 | AV114: 2
B115: ４級地 | E115: 32 | F115: 4 | G115: 14 | H115: 12 | I115: 2 | J115: 30 | K115: 0 | L115: 1 | M115: 0 | N115: 4 | O115: 2 | P115: 6 | Q115: 1 | R115: 4 | S115: 2 | T115: 3 | U115: 7 | V115: 36.95652174 | W115: 30 | X115: 0 | Y115: 0 | Z115: 3 | AA115: 5 | AB115: 5 | AC115: 9 | AD115: 2 | AE115: 1 | AF115: 2 | AG115: 2 | AH115: 1 | AI115: 24.36206897 | AJ115: 32 | AK115: 31 | AL115: 21 | AM115: 28 | AN115: 19 | AO115: 7 | AP115: 15 | AQ115: 22 | AR115: 18 | AS115: 7 | AT115: 3 | AU115: 25 | AV115: 1
B116: ５級地 | E116: 85 | F116: 3 | G116: 33 | H116: 46 | I116: 3 | J116: 79 | K116: 2 | L116: 8 | M116: 5 | N116: 12 | O116: 6 | P116: 11 | Q116: 6 | R116: 7 | S116: 3 | T116: 4 | U116: 15 | V116: 26.9140625 | W116: 79 | X116: 3 | Y116: 9 | Z116: 5 | AA116: 11 | AB116: 10 | AC116: 15 | AD116: 7 | AE116: 8 | AF116: 3 | AG116: 2 | AH116: 6 | AI116: 21.27260274 | AJ116: 85 | AK116: 78 | AL116: 62 | AM116: 75 | AN116: 46 | AO116: 16 | AP116: 45 | AQ116: 50 | AR116: 66 | AS116: 33 | AT116: 10 | AU116: 57 | AV116: 4
B117: ６級地 | E117: 121 | F117: 6 | G117: 41 | H117: 71 | I117: 3 | J117: 117 | K117: 4 | L117: 9 | M117: 3 | N117: 12 | O117: 20 | P117: 14 | Q117: 8 | R117: 4 | S117: 4 | T117: 10 | U117: 29 | V117: 39.24772727 | W117: 117 | X117: 4 | Y117: 16 | Z117: 6 | AA117: 17 | AB117: 23 | AC117: 12 | AD117: 13 | AE117: 5 | AF117: 6 | AG117: 4 | AH117: 11 | AI117: 21.46037736 | AJ117: 121 | AK117: 117 | AL117: 92 | AM117: 106 | AN117: 73 | AO117: 22 | AP117: 80 | AQ117: 74 | AR117: 90 | AS117: 51 | AT117: 30 | AU117: 89 | AV117: 4
B118: ７級地 | E118: 183 | F118: 6 | G118: 47 | H118: 117 | I118: 13 | J118: 169 | K118: 4 | L118: 17 | M118: 9 | N118: 32 | O118: 14 | P118: 15 | Q118: 8 | R118: 12 | S118: 3 | T118: 15 | U118: 40 | V118: 40.29457364 | W118: 169 | X118: 10 | Y118: 23 | Z118: 14 | AA118: 38 | AB118: 25 | AC118: 18 | AD118: 11 | AE118: 11 | AF118: 5 | AG118: 2 | AH118: 12 | AI118: 16.03566879 | AJ118: 183 | AK118: 171 | AL118: 137 | AM118: 158 | AN118: 110 | AO118: 26 | AP118: 129 | AQ118: 108 | AR118: 139 | AS118: 78 | AT118: 42 | AU118: 135 | AV118: 12
B119: その他 | E119: 565 | F119: 14 | G119: 140 | H119: 378 | I119: 33 | J119: 525 | K119: 25 | L119: 57 | M119: 18 | N119: 84 | O119: 73 | P119: 69 | Q119: 28 | R119: 20 | S119: 5 | T119: 44 | U119: 102 | V119: 29.25220646 | W119: 525 | X119: 35 | Y119: 85 | Z119: 39 | AA119: 110 | AB119: 91 | AC119: 64 | AD119: 35 | AE119: 20 | AF119: 6 | AG119: 7 | AH119: 33 | AI119: 14.42807588 | AJ119: 565 | AK119: 524 | AL119: 433 | AM119: 494 | AN119: 322 | AO119: 69 | AP119: 396 | AQ119: 346 | AR119: 430 | AS119: 222 | AT119: 131 | AU119: 402 | AV119: 36
B120: 無回答 | E120: 3 | F120: 0 | G120: 1 | H120: 2 | I120: 0 | J120: 3 | K120: 0 | L120: 0 | M120: 0 | N120: 1 | O120: 1 | P120: 0 | Q120: 0 | R120: 0 | S120: 0 | T120: 0 | U120: 1 | V120: 10 | W120: 3 | X120: 0 | Y120: 0 | Z120: 0 | AA120: 1 | AB120: 1 | AC120: 1 | AD120: 0 | AE120: 0 | AF120: 0 | AG120: 0 | AH120: 0 | AI120: 12.66666667 | AJ120: 3 | AK120: 3 | AL120: 2 | AM120: 3 | AN120: 3 | AO120: 1 | AP120: 3 | AQ120: 3 | AR120: 3 | AS120: 2 | AT120: 1 | AU120: 3 | AV120: 0
A121: 問１(1) | B121: 介護老人福 | C121: 介護福祉施設 | E121: 477 | F121: 20 | G121: 186 | H121: 246 | I121: 25 | J121: 446 | K121: 11 | L121: 21 | M121: 18 | N121: 57 | O121: 61 | P121: 69 | Q121: 42 | R121: 27 | S121: 14 | T121: 36 | U121: 90 | V121: 33.10079588 | W121: 446 | X121: 17 | Y121: 39 | Z121: 32 | AA121: 80 | AB121: 85 | AC121: 67 | AD121: 48 | AE121: 24 | AF121: 14 | AG121: 12 | AH121: 28 | AI121: 18.99058214 | AJ121: 477 | AK121: 448 | AL121: 360 | AM121: 422 | AN121: 263 | AO121: 73 | AP121: 325 | AQ121: 291 | AR121: 358 | AS121: 183 | AT121: 107 | AU121: 362 | AV121: 26
A122: 施設の種類 | B122: 祉施設 | C122: 小規模介護福祉施設 | E122: 13 | F122: 0 | G122: 3 | H122: 8 | I122: 2 | J122: 11 | K122: 0 | L122: 3 | M122: 0 | N122: 2 | O122: 3 | P122: 1 | Q122: 0 | R122: 1 | S122: 0 | T122: 0 | U122: 1 | V122: 11.74 | W122: 11 | X122: 0 | Y122: 3 | Z122: 0 | AA122: 2 | AB122: 4 | AC122: 1 | AD122: 0 | AE122: 1 | AF122: 0 | AG122: 0 | AH122: 0 | AI122: 11.44545455 | AJ122: 13 | AK122: 11 | AL122: 6 | AM122: 11 | AN122: 6 | AO122: 3 | AP122: 10 | AQ122: 8 | AR122: 9 | AS122: 4 | AT122: 1 | AU122: 8 | AV122: 2
A123: （複数回答） | C123: ﾕﾆｯﾄ型介護福祉施設 | E123: 350 | F123: 19 | G123: 107 | H123: 210 | I123: 14 | J123: 333 | K123: 5 | L123: 28 | M123: 17 | N123: 58 | O123: 43 | P123: 41 | Q123: 17 | R123: 21 | S123: 7 | T123: 30 | U123: 66 | V123: 36.66404494 | W123: 333 | X123: 9 | Y123: 35 | Z123: 26 | AA123: 67 | AB123: 53 | AC123: 45 | AD123: 31 | AE123: 21 | AF123: 9 | AG123: 10 | AH123: 27 | AI123: 20.93294118 | AJ123: 350 | AK123: 334 | AL123: 281 | AM123: 311 | AN123: 217 | AO123: 58 | AP123: 238 | AQ123: 230 | AR123: 266 | AS123: 133 | AT123: 81 | AU123: 250 | AV123: 15
C124: ﾕﾆｯﾄ型小規模介護福祉施設 | E124: 15 | F124: 0 | G124: 2 | H124: 12 | I124: 1 | J124: 14 | K124: 0 | L124: 1 | M124: 1 | N124: 2 | O124: 4 | P124: 1 | Q124: 0 | R124: 1 | S124: 0 | T124: 1 | U124: 3 | V124: 26.62727273 | W124: 14 | X124: 2 | Y124: 1 | Z124: 0 | AA124: 4 | AB124: 4 | AC124: 2 | AD124: 0 | AE124: 1 | AF124: 0 | AG124: 0 | AH124: 0 | AI124: 11.70714286 | AJ124: 15 | AK124: 15 | AL124: 13 | AM124: 15 | AN124: 11 | AO124: 1 | AP124: 12 | AQ124: 9 | AR124: 12 | AS124: 6 | AT124: 3 | AU124: 11 | AV124: 0
B125: 地域密着型 | C125: 地域密着型介護福祉施設 | E125: 22 | F125: 0 | G125: 2 | H125: 19 | I125: 1 | J125: 21 | K125: 0 | L125: 1 | M125: 2 | N125: 5 | O125: 4 | P125: 3 | Q125: 0 | R125: 3 | S125: 0 | T125: 0 | U125: 3 | V125: 14.83333333 | W125: 21 | X125: 1 | Y125: 2 | Z125: 3 | AA125: 7 | AB125: 2 | AC125: 2 | AD125: 1 | AE125: 2 | AF125: 0 | AG125: 0 | AH125: 1 | AI125: 11.975 | AJ125: 22 | AK125: 21 | AL125: 17 | AM125: 18 | AN125: 15 | AO125: 3 | AP125: 16 | AQ125: 13 | AR125: 15 | AS125: 10 | AT125: 6 | AU125: 15 | AV125: 1
B126: 介護老人福 | C126: ｻﾃﾗｲﾄ型介護福祉施設 | E126: 2 | F126: 0 | G126: 1 | H126: 1 | I126: 0 | J126: 2 | K126: 0 | L126: 0 | M126: 0 | N126: 1 | O126: 0 | P126: 0 | Q126: 0 | R126: 1 | S126: 0 | T126: 0 | U126: 0 | V126: 25 | W126: 2 | X126: 0 | Y126: 1 | Z126: 0 | AA126: 0 | AB126: 0 | AC126: 0 | AD126: 0 | AE126: 1 | AF126: 0 | AG126: 0 | AH126: 0 | AI126: 23 | AJ126: 2 | AK126: 2 | AL126: 2 | AM126: 2 | AN126: 1 | AO126: 0 | AP126: 0 | AQ126: 1 | AR126: 1 | AS126: 1 | AT126: 0 | AU126: 2 | AV126: 0
B127: 祉施設 | C127: ﾕﾆｯﾄ型地域密着型介護福祉施設 | E127: 234 | F127: 4 | G127: 33 | H127: 182 | I127: 15 | J127: 216 | K127: 17 | L127: 32 | M127: 5 | N127: 35 | O127: 21 | P127: 17 | Q127: 10 | R127: 6 | S127: 1 | T127: 21 | U127: 51 | V127: 30.38787879 | W127: 216 | X127: 19 | Y127: 52 | Z127: 14 | AA127: 43 | AB127: 31 | AC127: 18 | AD127: 12 | AE127: 6 | AF127: 3 | AG127: 2 | AH127: 16 | AI127: 11.3295 | AJ127: 234 | AK127: 214 | AL127: 173 | AM127: 198 | AN127: 127 | AO127: 31 | AP127: 156 | AQ127: 134 | AR127: 172 | AS127: 103 | AT127: 45 | AU127: 160 | AV127: 18
C128: ﾕﾆｯﾄ型ｻﾃﾗｲﾄ型地域密着型介護福祉施設 | E128: 62 | F128: 2 | G128: 9 | H128: 48 | I128: 3 | J128: 58 | K128: 3 | L128: 13 | M128: 3 | N128: 10 | O128: 5 | P128: 5 | Q128: 2 | R128: 1 | S128: 0 | T128: 5 | U128: 11 | V128: 24.67021277 | W128: 58 | X128: 8 | Y128: 18 | Z128: 2 | AA128: 14 | AB128: 5 | AC128: 4 | AD128: 3 | AE128: 1 | AF128: 0 | AG128: 0 | AH128: 3 | AI128: 7.954545455 | AJ128: 62 | AK128: 57 | AL128: 46 | AM128: 55 | AN128: 40 | AO128: 6 | AP128: 42 | AQ128: 43 | AR128: 50 | AS128: 22 | AT128: 13 | AU128: 45 | AV128: 3
A129: 問１(2) | B129: 病院 | C129: 併設または隣接あり | E129: 59 | F129: 6 | G129: 18 | H129: 30 | I129: 5 | J129: 54 | K129: 2 | L129: 10 | M129: 1 | N129: 4 | O129: 7 | P129: 3 | Q129: 5 | R129: 4 | S129: 2 | T129: 7 | U129: 9 | V129: 39.08746617 | W129: 54 | X129: 2 | Y129: 12 | Z129: 3 | AA129: 5 | AB129: 11 | AC129: 4 | AD129: 4 | AE129: 4 | AF129: 2 | AG129: 3 | AH129: 4 | AI129: 25.129 | AJ129: 59 | AK129: 52 | AL129: 43 | AM129: 47 | AN129: 33 | AO129: 9 | AP129: 30 | AQ129: 30 | AR129: 43 | AS129: 24 | AT129: 13 | AU129: 40 | AV129: 6
A130: 併設・隣接の状況 | C130: なし | E130: 829 | F130: 19 | G130: 251 | H130: 515 | I130: 44 | J130: 777 | K130: 28 | L130: 70 | M130: 31 | N130: 136 | O130: 98 | P130: 99 | Q130: 46 | R130: 37 | S130: 13 | T130: 60 | U130: 159 | V130: 30.62788565 | W130: 777 | X130: 45 | Y130: 104 | Z130: 57 | AA130: 169 | AB130: 129 | AC130: 99 | AD130: 61 | AE130: 38 | AF130: 14 | AG130: 10 | AH130: 51 | AI130: 14.93300735 | AJ130: 829 | AK130: 775 | AL130: 633 | AM130: 726 | AN130: 483 | AO130: 114 | AP130: 563 | AQ130: 509 | AR130: 628 | AS130: 325 | AT130: 170 | AU130: 597 | AV130: 49
C131: 無回答 | E131: 201 | F131: 16 | G131: 50 | H131: 126 | I131: 9 | J131: 188 | K131: 6 | L131: 14 | M131: 8 | N131: 21 | O131: 21 | P131: 25 | Q131: 14 | R131: 16 | S131: 5 | T131: 21 | U131: 37 | V131: 40.27880795 | W131: 188 | X131: 8 | Y131: 24 | Z131: 12 | AA131: 27 | AB131: 30 | AC131: 26 | AD131: 19 | AE131: 12 | AF131: 8 | AG131: 9 | AH131: 13 | AI131: 24.066 | AJ131: 201 | AK131: 192 | AL131: 150 | AM131: 181 | AN131: 117 | AO131: 41 | AP131: 140 | AQ131: 134 | AR131: 146 | AS131: 83 | AT131: 58 | AU131: 150 | AV131: 7
B132: 診療所 | C132: 併設または隣接あり | E132: 10 | F132: 1 | G132: 2 | H132: 7 | I132: 0 | J132: 10 | K132: 0 | L132: 2 | M132: 0 | N132: 1 | O132: 2 | P132: 1 | Q132: 0 | R132: 1 | S132: 1 | T132: 1 | U132: 1 | V132: 34.77777778 | W132: 10 | X132: 0 | Y132: 2 | Z132: 0 | AA132: 1 | AB132: 3 | AC132: 1 | AD132: 0 | AE132: 1 | AF132: 2 | AG132: 0 | AH132: 0 | AI132: 29.6 | AJ132: 10 | AK132: 10 | AL132: 9 | AM132: 10 | AN132: 9 | AO132: 2 | AP132: 8 | AQ132: 7 | AR132: 8 | AS132: 5 | AT132: 1 | AU132: 9 | AV132: 0
B133: （有床） | C133: なし | E133: 842 | F133: 20 | G133: 256 | H133: 520 | I133: 46 | J133: 788 | K133: 25 | L133: 71 | M133: 31 | N133: 140 | O133: 101 | P133: 98 | Q133: 49 | R133: 40 | S133: 14 | T133: 61 | U133: 158 | V133: 30.66671958 | W133: 788 | X133: 43 | Y133: 107 | Z133: 59 | AA133: 170 | AB133: 133 | AC133: 98 | AD133: 63 | AE133: 40 | AF133: 14 | AG133: 11 | AH133: 50 | AI133: 15.28640018 | AJ133: 842 | AK133: 785 | AL133: 642 | AM133: 736 | AN133: 485 | AO133: 120 | AP133: 567 | AQ133: 514 | AR133: 637 | AS133: 331 | AT133: 171 | AU133: 608 | AV133: 52
C134: 無回答 | E134: 237 | F134: 20 | G134: 61 | H134: 144 | I134: 12 | J134: 221 | K134: 11 | L134: 21 | M134: 9 | N134: 20 | O134: 23 | P134: 28 | Q134: 16 | R134: 16 | S134: 5 | T134: 26 | U134: 46 | V134: 40.766 | W134: 221 | X134: 12 | Y134: 31 | Z134: 13 | AA134: 30 | AB134: 34 | AC134: 30 | AD134: 21 | AE134: 13 | AF134: 8 | AG134: 11 | AH134: 18 | AI134: 23.31034483 | AJ134: 237 | AK134: 224 | AL134: 175 | AM134: 208 | AN134: 139 | AO134: 42 | AP134: 158 | AQ134: 152 | AR134: 172 | AS134: 96 | AT134: 69 | AU134: 170 | AV134: 10
B135: 診療所 | C135: 併設または隣接あり | E135: 314 | F135: 18 | G135: 91 | H135: 192 | I135: 13 | J135: 299 | K135: 9 | L135: 21 | M135: 11 | N135: 45 | O135: 41 | P135: 44 | Q135: 21 | R135: 20 | S135: 9 | T135: 26 | U135: 52 | V135: 34.72960284 | W135: 299 | X135: 13 | Y135: 34 | Z135: 19 | AA135: 56 | AB135: 48 | AC135: 45 | AD135: 26 | AE135: 19 | AF135: 11 | AG135: 11 | AH135: 17 | AI135: 20.92102837 | AJ135: 314 | AK135: 299 | AL135: 242 | AM135: 284 | AN135: 172 | AO135: 57 | AP135: 213 | AQ135: 205 | AR135: 241 | AS135: 131 | AT135: 78 | AU135: 238 | AV135: 13
B136: （無床） | C136: なし | E136: 677 | F136: 15 | G136: 207 | H136: 417 | I136: 38 | J136: 631 | K136: 22 | L136: 61 | M136: 26 | N136: 106 | O136: 73 | P136: 74 | Q136: 39 | R136: 34 | S136: 9 | T136: 52 | U136: 135 | V136: 31.73293011 | W136: 631 | X136: 36 | Y136: 89 | Z136: 49 | AA136: 133 | AB136: 103 | AC136: 73 | AD136: 53 | AE136: 32 | AF136: 9 | AG136: 9 | AH136: 45 | AI136: 15.270876 | AJ136: 677 | AK136: 629 | AL136: 510 | AM136: 590 | AN136: 395 | AO136: 96 | AP136: 459 | AQ136: 410 | AR136: 505 | AS136: 266 | AT136: 138 | AU136: 487 | AV136: 43
C137: 無回答 | E137: 98 | F137: 8 | G137: 21 | H137: 62 | I137: 7 | J137: 89 | K137: 5 | L137: 12 | M137: 3 | N137: 10 | O137: 12 | P137: 9 | Q137: 5 | R137: 3 | S137: 2 | T137: 10 | U137: 18 | V137: 34.85140845 | W137: 89 | X137: 6 | Y137: 17 | Z137: 4 | AA137: 12 | AB137: 19 | AC137: 11 | AD137: 5 | AE137: 3 | AF137: 4 | AG137: 2 | AH137: 6 | AI137: 17.60120482 | AJ137: 98 | AK137: 91 | AL137: 74 | AM137: 80 | AN137: 66 | AO137: 11 | AP137: 61 | AQ137: 58 | AR137: 71 | AS137: 35 | AT137: 25 | AU137: 62 | AV137: 6
A138: 設立年月日 | B138: 1999年以前 | E138: 352 | F138: 12 | G138: 144 | H138: 174 | I138: 22 | J138: 325 | K138: 7 | L138: 15 | M138: 13 | N138: 42 | O138: 52 | P138: 53 | Q138: 32 | R138: 22 | S138: 13 | T138: 26 | U138: 50 | V138: 33.84084848 | W138: 325 | X138: 10 | Y138: 26 | Z138: 26 | AA138: 55 | AB138: 70 | AC138: 50 | AD138: 36 | AE138: 19 | AF138: 13 | AG138: 5 | AH138: 15 | AI138: 18.30978495 | AJ138: 352 | AK138: 329 | AL138: 258 | AM138: 308 | AN138: 193 | AO138: 59 | AP138: 235 | AQ138: 215 | AR138: 260 | AS138: 137 | AT138: 80 | AU138: 264 | AV138: 23
B139: 2000～2002年 | E139: 85 | F139: 3 | G139: 27 | H139: 50 | I139: 5 | J139: 79 | K139: 3 | L139: 6 | M139: 3 | N139: 12 | O139: 8 | P139: 10 | Q139: 3 | R139: 3 | S139: 2 | T139: 4 | U139: 25 | V139: 22.70185185 | W139: 79 | X139: 7 | Y139: 10 | Z139: 2 | AA139: 17 | AB139: 13 | AC139: 12 | AD139: 5 | AE139: 4 | AF139: 2 | AG139: 2 | AH139: 5 | AI139: 16.09567568 | AJ139: 85 | AK139: 78 | AL139: 63 | AM139: 75 | AN139: 51 | AO139: 13 | AP139: 60 | AQ139: 53 | AR139: 65 | AS139: 26 | AT139: 18 | AU139: 61 | AV139: 6
B140: 2003～2005年 | E140: 86 | F140: 4 | G140: 28 | H140: 50 | I140: 4 | J140: 81 | K140: 4 | L140: 5 | M140: 3 | N140: 13 | O140: 8 | P140: 9 | Q140: 8 | R140: 10 | S140: 1 | T140: 6 | U140: 14 | V140: 30.20447761 | W140: 81 | X140: 4 | Y140: 7 | Z140: 6 | AA140: 14 | AB140: 11 | AC140: 10 | AD140: 9 | AE140: 10 | AF140: 2 | AG140: 1 | AH140: 7 | AI140: 18.78378378 | AJ140: 86 | AK140: 80 | AL140: 66 | AM140: 77 | AN140: 58 | AO140: 13 | AP140: 55 | AQ140: 56 | AR140: 64 | AS140: 35 | AT140: 19 | AU140: 68 | AV140: 5
B141: 2006～2008年 | E141: 91 | F141: 6 | G141: 25 | H141: 56 | I141: 4 | J141: 87 | K141: 2 | L141: 7 | M141: 2 | N141: 17 | O141: 8 | P141: 9 | Q141: 3 | R141: 2 | S141: 0 | T141: 10 | U141: 27 | V141: 54.43833333 | W141: 87 | X141: 4 | Y141: 12 | Z141: 5 | AA141: 18 | AB141: 12 | AC141: 8 | AD141: 8 | AE141: 4 | AF141: 0 | AG141: 4 | AH141: 12 | AI141: 25.884 | AJ141: 91 | AK141: 87 | AL141: 69 | AM141: 77 | AN141: 57 | AO141: 12 | AP141: 62 | AQ141: 63 | AR141: 65 | AS141: 33 | AT141: 20 | AU141: 64 | AV141: 3
B142: 2009～2011年 | E142: 113 | F142: 2 | G142: 11 | H142: 93 | I142: 7 | J142: 104 | K142: 4 | L142: 16 | M142: 5 | N142: 23 | O142: 9 | P142: 10 | Q142: 5 | R142: 2 | S142: 3 | T142: 9 | U142: 18 | V142: 27.77325581 | W142: 104 | X142: 7 | Y142: 20 | Z142: 9 | AA142: 26 | AB142: 14 | AC142: 10 | AD142: 6 | AE142: 1 | AF142: 4 | AG142: 1 | AH142: 6 | AI142: 12.87755102 | AJ142: 113 | AK142: 104 | AL142: 81 | AM142: 99 | AN142: 66 | AO142: 16 | AP142: 72 | AQ142: 73 | AR142: 85 | AS142: 46 | AT142: 32 | AU142: 77 | AV142: 8
B143: 2012～2014年 | E143: 188 | F143: 8 | G143: 46 | H143: 125 | I143: 9 | J143: 178 | K143: 12 | L143: 22 | M143: 6 | N143: 24 | O143: 22 | P143: 23 | Q143: 8 | R143: 8 | S143: 1 | T143: 16 | U143: 36 | V143: 29.68309859 | W143: 178 | X143: 14 | Y143: 40 | Z143: 12 | AA143: 33 | AB143: 28 | AC143: 19 | AD143: 13 | AE143: 5 | AF143: 2 | AG143: 4 | AH143: 8 | AI143: 14.53852941 | AJ143: 188 | AK143: 175 | AL143: 148 | AM143: 168 | AN143: 107 | AO143: 20 | AP143: 135 | AQ143: 110 | AR143: 144 | AS143: 80 | AT143: 39 | AU143: 127 | AV143: 11
B144: 2015～2017年 | E144: 116 | F144: 4 | G144: 29 | H144: 80 | I144: 3 | J144: 111 | K144: 2 | L144: 15 | M144: 4 | N144: 20 | O144: 13 | P144: 10 | Q144: 2 | R144: 5 | S144: 0 | T144: 13 | U144: 27 | V144: 38.09464286 | W144: 111 | X144: 5 | Y144: 17 | Z144: 6 | AA144: 28 | AB144: 14 | AC144: 14 | AD144: 3 | AE144: 8 | AF144: 1 | AG144: 3 | AH144: 12 | AI144: 15.66616162 | AJ144: 116 | AK144: 111 | AL144: 94 | AM144: 99 | AN144: 68 | AO144: 23 | AP144: 74 | AQ144: 69 | AR144: 89 | AS144: 52 | AT144: 20 | AU144: 81 | AV144: 3
B145: 2018～2019年 | E145: 55 | F145: 2 | G145: 8 | H145: 41 | I145: 4 | J145: 51 | K145: 2 | L145: 8 | M145: 4 | N145: 9 | O145: 5 | P145: 3 | Q145: 4 | R145: 5 | S145: 0 | T145: 4 | U145: 7 | V145: 25.48863636 | W145: 51 | X145: 4 | Y145: 8 | Z145: 6 | AA145: 9 | AB145: 7 | AC145: 5 | AD145: 4 | AE145: 3 | AF145: 0 | AG145: 2 | AH145: 3 | AI145: 16.42604167 | AJ145: 55 | AK145: 52 | AL145: 45 | AM145: 48 | AN145: 30 | AO145: 7 | AP145: 37 | AQ145: 31 | AR145: 42 | AS145: 21 | AT145: 12 | AU145: 42 | AV145: 3
B146: 無回答 | E146: 3 | F146: 0 | G146: 1 | H146: 2 | I146: 0 | J146: 3 | K146: 0 | L146: 0 | M146: 0 | N146: 1 | O146: 1 | P146: 0 | Q146: 0 | R146: 0 | S146: 0 | T146: 0 | U146: 1 | V146: 10 | W146: 3 | X146: 0 | Y146: 0 | Z146: 0 | AA146: 1 | AB146: 1 | AC146: 1 | AD146: 0 | AE146: 0 | AF146: 0 | AG146: 0 | AH146: 0 | AI146: 12.66666667 | AJ146: 3 | AK146: 3 | AL146: 2 | AM146: 3 | AN146: 3 | AO146: 1 | AP146: 3 | AQ146: 3 | AR146: 3 | AS146: 2 | AT146: 1 | AU146: 3 | AV146: 0
A147: 問３(4) | B147: 3.5未満 | E147: 42 | F147: 1 | G147: 10 | H147: 30 | I147: 1 | J147: 41 | K147: 1 | L147: 7 | M147: 3 | N147: 5 | O147: 8 | P147: 6 | Q147: 2 | R147: 3 | S147: 0 | T147: 0 | U147: 6 | V147: 13.01428571 | W147: 41 | X147: 3 | Y147: 6 | Z147: 3 | AA147: 6 | AB147: 10 | AC147: 5 | AD147: 2 | AE147: 3 | AF147: 0 | AG147: 0 | AH147: 3 | AI147: 12.75 | AJ147: 42 | AK147: 40 | AL147: 36 | AM147: 37 | AN147: 25 | AO147: 4 | AP147: 28 | AQ147: 24 | AR147: 37 | AS147: 15 | AT147: 4 | AU147: 31 | AV147: 1
A148: 施設の平均要介護 | B148: 3.5～4.0未満 | E148: 437 | F148: 18 | G148: 131 | H148: 263 | I148: 25 | J148: 406 | K148: 12 | L148: 33 | M148: 17 | N148: 65 | O148: 50 | P148: 48 | Q148: 33 | R148: 30 | S148: 7 | T148: 34 | U148: 77 | V148: 31.82031408 | W148: 406 | X148: 17 | Y148: 51 | Z148: 30 | AA148: 79 | AB148: 66 | AC148: 51 | AD148: 40 | AE148: 28 | AF148: 7 | AG148: 10 | AH148: 27 | AI148: 17.63605101 | AJ148: 437 | AK148: 404 | AL148: 333 | AM148: 378 | AN148: 233 | AO148: 64 | AP148: 289 | AQ148: 257 | AR148: 325 | AS148: 175 | AT148: 86 | AU148: 312 | AV148: 30
A149: 度 | B149: 4.0～4.5未満 | E149: 492 | F149: 19 | G149: 146 | H149: 303 | I149: 24 | J149: 464 | K149: 22 | L149: 44 | M149: 14 | N149: 74 | O149: 59 | P149: 58 | Q149: 23 | R149: 19 | S149: 12 | T149: 46 | U149: 93 | V149: 35.82264151 | W149: 464 | X149: 28 | Y149: 70 | Z149: 28 | AA149: 95 | AB149: 77 | AC149: 60 | AD149: 34 | AE149: 17 | AF149: 15 | AG149: 12 | AH149: 28 | AI149: 18.04025229 | AJ149: 492 | AK149: 464 | AL149: 370 | AM149: 436 | AN149: 302 | AO149: 84 | AP149: 339 | AQ149: 324 | AR149: 372 | AS149: 208 | AT149: 124 | AU149: 354 | AV149: 25
B150: 4.5以上 | E150: 20 | F150: 0 | G150: 7 | H150: 13 | I150: 0 | J150: 20 | K150: 0 | L150: 2 | M150: 2 | N150: 1 | O150: 1 | P150: 5 | Q150: 2 | R150: 1 | S150: 1 | T150: 2 | U150: 3 | V150: 34.52941176 | W150: 20 | X150: 1 | Y150: 1 | Z150: 3 | AA150: 4 | AB150: 2 | AC150: 5 | AD150: 2 | AE150: 0 | AF150: 1 | AG150: 0 | AH150: 1 | AI150: 15.92105263 | AJ150: 20 | AK150: 20 | AL150: 17 | AM150: 20 | AN150: 15 | AO150: 2 | AP150: 13 | AQ150: 15 | AR150: 16 | AS150: 6 | AT150: 3 | AU150: 16 | AV150: 0
B151: エラー・無回答 | E151: 98 | F151: 3 | G151: 25 | H151: 62 | I151: 8 | J151: 88 | K151: 1 | L151: 8 | M151: 4 | N151: 16 | O151: 8 | P151: 10 | Q151: 5 | R151: 4 | S151: 0 | T151: 6 | U151: 26 | V151: 31.7016129 | W151: 88 | X151: 6 | Y151: 12 | Z151: 8 | AA151: 17 | AB151: 15 | AC151: 8 | AD151: 6 | AE151: 6 | AF151: 1 | AG151: 0 | AH151: 9 | AI151: 12.31329114 | AJ151: 98 | AK151: 91 | AL151: 70 | AM151: 83 | AN151: 58 | AO151: 10 | AP151: 64 | AQ151: 53 | AR151: 67 | AS151: 28 | AT151: 24 | AU151: 74 | AV151: 6
A152: 問３(4) | B152: 30％未満 | E152: 444 | F152: 14 | G152: 124 | H152: 279 | I152: 27 | J152: 410 | K152: 9 | L152: 40 | M152: 17 | N152: 66 | O152: 57 | P152: 51 | Q152: 32 | R152: 28 | S152: 5 | T152: 27 | U152: 78 | V152: 27.5746988 | W152: 410 | X152: 19 | Y152: 55 | Z152: 26 | AA152: 81 | AB152: 75 | AC152: 49 | AD152: 37 | AE152: 24 | AF152: 6 | AG152: 6 | AH152: 32 | AI152: 15.32058201 | AJ152: 444 | AK152: 411 | AL152: 349 | AM152: 378 | AN152: 249 | AO152: 65 | AP152: 286 | AQ152: 259 | AR152: 329 | AS152: 172 | AT152: 86 | AU152: 311 | AV152: 30
A153: 要介護度５の割合 | B153: 30～60％未満 | E153: 525 | F153: 23 | G153: 165 | H153: 316 | I153: 21 | J153: 500 | K153: 26 | L153: 42 | M153: 18 | N153: 77 | O153: 56 | P153: 64 | Q153: 29 | R153: 24 | S153: 14 | T153: 51 | U153: 99 | V153: 36.49322527 | W153: 500 | X153: 28 | Y153: 72 | Z153: 35 | AA153: 98 | AB153: 75 | AC153: 69 | AD153: 42 | AE153: 24 | AF153: 16 | AG153: 15 | AH153: 26 | AI153: 19.22137834 | AJ153: 525 | AK153: 497 | AL153: 390 | AM153: 472 | AN153: 308 | AO153: 85 | AP153: 373 | AQ153: 346 | AR153: 408 | AS153: 225 | AT153: 125 | AU153: 385 | AV153: 24
B154: 60％以上 | E154: 20 | F154: 0 | G154: 5 | H154: 14 | I154: 1 | J154: 19 | K154: 0 | L154: 2 | M154: 1 | N154: 2 | O154: 2 | P154: 3 | Q154: 1 | R154: 1 | S154: 1 | T154: 2 | U154: 4 | V154: 36.13333333 | W154: 19 | X154: 1 | Y154: 2 | Z154: 2 | AA154: 5 | AB154: 3 | AC154: 3 | AD154: 1 | AE154: 0 | AF154: 1 | AG154: 0 | AH154: 1 | AI154: 14.55555556 | AJ154: 20 | AK154: 19 | AL154: 16 | AM154: 19 | AN154: 14 | AO154: 2 | AP154: 12 | AQ154: 12 | AR154: 15 | AS154: 4 | AT154: 4 | AU154: 15 | AV154: 1
B155: エラー・無回答 | E155: 100 | F155: 4 | G155: 25 | H155: 62 | I155: 9 | J155: 90 | K155: 1 | L155: 10 | M155: 4 | N155: 16 | O155: 11 | P155: 9 | Q155: 3 | R155: 4 | S155: 0 | T155: 8 | U155: 24 | V155: 36.91666667 | W155: 90 | X155: 7 | Y155: 11 | Z155: 9 | AA155: 17 | AB155: 17 | AC155: 8 | AD155: 4 | AE155: 6 | AF155: 1 | AG155: 1 | AH155: 9 | AI155: 14.13888889 | AJ155: 100 | AK155: 92 | AL155: 71 | AM155: 85 | AN155: 62 | AO155: 12 | AP155: 62 | AQ155: 56 | AR155: 65 | AS155: 31 | AT155: 26 | AU155: 76 | AV155: 7
A156: 問４(1)⑨⑩ | B156: 重複を除いた医療処置を要する入所者実人数 | D156: 15％以下 | E156: 322 | F156: 9 | G156: 93 | H156: 204 | I156: 16 | J156: 305 | K156: 10 | L156: 34 | M156: 11 | N156: 53 | O156: 35 | P156: 30 | Q156: 25 | R156: 19 | S156: 3 | T156: 26 | U156: 59 | V156: 31.79288618 | W156: 305 | X156: 17 | Y156: 52 | Z156: 19 | AA156: 59 | AB156: 55 | AC156: 28 | AD156: 29 | AE156: 16 | AF156: 4 | AG156: 6 | AH156: 20 | AI156: 15.29421053 | AJ156: 322 | AK156: 305 | AL156: 238 | AM156: 287 | AN156: 193 | AO156: 47 | AP156: 213 | AQ156: 199 | AR156: 240 | AS156: 127 | AT156: 61 | AU156: 247 | AV156: 16
A157: 入所者に対する | D157: 15％を超える | E157: 229 | F157: 11 | G157: 58 | H157: 149 | I157: 11 | J157: 216 | K157: 12 | L157: 24 | M157: 9 | N157: 26 | O157: 27 | P157: 24 | Q157: 17 | R157: 9 | S157: 4 | T157: 20 | U157: 44 | V157: 32.85426357 | W157: 216 | X157: 15 | Y157: 29 | Z157: 16 | AA157: 42 | AB157: 34 | AC157: 27 | AD157: 19 | AE157: 11 | AF157: 5 | AG157: 5 | AH157: 13 | AI157: 18.41361248 | AJ157: 229 | AK157: 216 | AL157: 181 | AM157: 207 | AN157: 133 | AO157: 30 | AP157: 154 | AQ157: 151 | AR157: 176 | AS157: 86 | AT157: 48 | AU157: 164 | AV157: 13
A158: 割合 | D158: エラー・無回答 | E158: 538 | F158: 21 | G158: 168 | H158: 318 | I158: 31 | J158: 498 | K158: 14 | L158: 36 | M158: 20 | N158: 82 | O158: 64 | P158: 73 | Q158: 23 | R158: 29 | S158: 13 | T158: 42 | U158: 102 | V158: 33.57348485 | W158: 498 | X158: 23 | Y158: 59 | Z158: 37 | AA158: 100 | AB158: 81 | AC158: 74 | AD158: 36 | AE158: 27 | AF158: 15 | AG158: 11 | AH158: 35 | AI158: 17.73768898 | AJ158: 538 | AK158: 498 | AL158: 407 | AM158: 460 | AN158: 307 | AO158: 87 | AP158: 366 | AQ158: 323 | AR158: 401 | AS158: 219 | AT158: 132 | AU158: 376 | AV158: 33
B159: 「胃ろう・腸ろうの管理」「経鼻経管栄養の管理」「たんの吸引」のいずれかを要する実人数 | D159: ８％以下 | E159: 638 | F159: 17 | G159: 195 | H159: 391 | I159: 35 | J159: 595 | K159: 18 | L159: 57 | M159: 26 | N159: 102 | O159: 70 | P159: 65 | Q159: 41 | R159: 38 | S159: 10 | T159: 50 | U159: 118 | V159: 33.16118099 | W159: 595 | X159: 32 | Y159: 93 | Z159: 39 | AA159: 119 | AB159: 101 | AC159: 63 | AD159: 52 | AE159: 32 | AF159: 14 | AG159: 8 | AH159: 42 | AI159: 15.02944545 | AJ159: 638 | AK159: 597 | AL159: 478 | AM159: 556 | AN159: 375 | AO159: 100 | AP159: 415 | AQ159: 394 | AR159: 481 | AS159: 254 | AT159: 139 | AU159: 463 | AV159: 37
D160: ８％を超える | E160: 362 | F160: 20 | G160: 96 | H160: 232 | I160: 14 | J160: 345 | K160: 14 | L160: 30 | M160: 13 | N160: 48 | O160: 43 | P160: 51 | Q160: 23 | R160: 14 | S160: 10 | T160: 33 | U160: 66 | V160: 32.99964158 | W160: 345 | X160: 18 | Y160: 41 | Z160: 27 | AA160: 66 | AB160: 55 | AC160: 53 | AD160: 27 | AE160: 17 | AF160: 10 | AG160: 12 | AH160: 19 | AI160: 20.45453988 | AJ160: 362 | AK160: 343 | AL160: 281 | AM160: 322 | AN160: 207 | AO160: 55 | AP160: 263 | AQ160: 235 | AR160: 276 | AS160: 147 | AT160: 80 | AU160: 266 | AV160: 16
D161: エラー・無回答 | E161: 89 | F161: 4 | G161: 28 | H161: 48 | I161: 9 | J161: 79 | K161: 4 | L161: 7 | M161: 1 | N161: 11 | O161: 13 | P161: 11 | Q161: 1 | R161: 5 | S161: 0 | T161: 5 | U161: 21 | V161: 30.03965517 | W161: 79 | X161: 5 | Y161: 6 | Z161: 6 | AA161: 16 | AB161: 14 | AC161: 13 | AD161: 5 | AE161: 5 | AF161: 0 | AG161: 2 | AH161: 7 | AI161: 18.47083333 | AJ161: 89 | AK161: 79 | AL161: 67 | AM161: 76 | AN161: 51 | AO161: 9 | AP161: 55 | AQ161: 44 | AR161: 60 | AS161: 31 | AT161: 22 | AU161: 58 | AV161: 9
A162: 問２(3) | B162: 20％未満 | E162: 83 | F162: 2 | G162: 27 | H162: 49 | I162: 5 | J162: 78 | K162: 3 | L162: 12 | M162: 3 | N162: 11 | O162: 14 | P162: 6 | Q162: 5 | R162: 3 | S162: 1 | T162: 8 | U162: 12 | V162: 31.43863636 | W162: 78 | X162: 4 | Y162: 17 | Z162: 5 | AA162: 11 | AB162: 17 | AC162: 9 | AD162: 5 | AE162: 4 | AF162: 1 | AG162: 2 | AH162: 3 | AI162: 15.73266667 | AJ162: 83 | AK162: 74 | AL162: 56 | AM162: 71 | AN162: 40 | AO162: 11 | AP162: 55 | AQ162: 43 | AR162: 63 | AS162: 29 | AT162: 16 | AU162: 57 | AV162: 5
A163: 看護職員の常勤割 | B163: 20～40％未満 | E163: 153 | F163: 2 | G163: 60 | H163: 84 | I163: 7 | J163: 142 | K163: 1 | L163: 10 | M163: 7 | N163: 27 | O163: 22 | P163: 23 | Q163: 14 | R163: 5 | S163: 3 | T163: 6 | U163: 24 | V163: 24.9720339 | W163: 142 | X163: 8 | Y163: 12 | Z163: 12 | AA163: 32 | AB163: 25 | AC163: 23 | AD163: 16 | AE163: 6 | AF163: 2 | AG163: 0 | AH163: 6 | AI163: 13.29801471 | AJ163: 153 | AK163: 144 | AL163: 118 | AM163: 135 | AN163: 89 | AO163: 22 | AP163: 107 | AQ163: 95 | AR163: 120 | AS163: 63 | AT163: 31 | AU163: 116 | AV163: 9
A164: 合 | B164: 40～60％未満 | E164: 190 | F164: 4 | G164: 46 | H164: 131 | I164: 9 | J164: 179 | K164: 5 | L164: 21 | M164: 6 | N164: 27 | O164: 24 | P164: 14 | Q164: 8 | R164: 16 | S164: 2 | T164: 17 | U164: 39 | V164: 34.73095238 | W164: 179 | X164: 4 | Y164: 32 | Z164: 11 | AA164: 41 | AB164: 29 | AC164: 16 | AD164: 15 | AE164: 13 | AF164: 4 | AG164: 2 | AH164: 12 | AI164: 16.08343313 | AJ164: 190 | AK164: 179 | AL164: 149 | AM164: 165 | AN164: 111 | AO164: 24 | AP164: 129 | AQ164: 115 | AR164: 141 | AS164: 78 | AT164: 39 | AU164: 133 | AV164: 11
B165: 60～80％未満 | E165: 165 | F165: 8 | G165: 57 | H165: 94 | I165: 6 | J165: 158 | K165: 7 | L165: 7 | M165: 8 | N165: 28 | O165: 22 | P165: 17 | Q165: 12 | R165: 7 | S165: 8 | T165: 12 | U165: 30 | V165: 33.74296875 | W165: 158 | X165: 11 | Y165: 13 | Z165: 14 | AA165: 38 | AB165: 26 | AC165: 17 | AD165: 15 | AE165: 5 | AF165: 8 | AG165: 5 | AH165: 6 | AI165: 21.87763158 | AJ165: 165 | AK165: 159 | AL165: 129 | AM165: 150 | AN165: 95 | AO165: 22 | AP165: 117 | AQ165: 115 | AR165: 128 | AS165: 55 | AT165: 35 | AU165: 118 | AV165: 5
B166: 80～100％未満 | E166: 73 | F166: 2 | G166: 21 | H166: 48 | I166: 2 | J166: 70 | K166: 4 | L166: 6 | M166: 4 | N166: 10 | O166: 11 | P166: 9 | Q166: 2 | R166: 5 | S166: 1 | T166: 5 | U166: 13 | V166: 26.64912281 | W166: 70 | X166: 3 | Y166: 12 | Z166: 5 | AA166: 17 | AB166: 12 | AC166: 9 | AD166: 2 | AE166: 3 | AF166: 2 | AG166: 2 | AH166: 3 | AI166: 15.15597015 | AJ166: 73 | AK166: 70 | AL166: 53 | AM166: 65 | AN166: 36 | AO166: 15 | AP166: 46 | AQ166: 42 | AR166: 59 | AS166: 27 | AT166: 16 | AU166: 52 | AV166: 3
B167: 100％ | E167: 87 | F167: 5 | G167: 15 | H167: 60 | I167: 7 | J167: 80 | K167: 4 | L167: 9 | M167: 3 | N167: 15 | O167: 8 | P167: 11 | Q167: 3 | R167: 3 | S167: 1 | T167: 9 | U167: 14 | V167: 32.87121212 | W167: 80 | X167: 5 | Y167: 15 | Z167: 3 | AA167: 14 | AB167: 12 | AC167: 11 | AD167: 3 | AE167: 6 | AF167: 2 | AG167: 2 | AH167: 7 | AI167: 18.00273973 | AJ167: 87 | AK167: 78 | AL167: 62 | AM167: 74 | AN167: 51 | AO167: 10 | AP167: 54 | AQ167: 43 | AR167: 64 | AS167: 35 | AT167: 13 | AU167: 61 | AV167: 8
B168: エラー・無回答 | E168: 338 | F168: 18 | G168: 93 | H168: 205 | I168: 22 | J168: 312 | K168: 12 | L168: 29 | M168: 9 | N168: 43 | O168: 25 | P168: 47 | Q168: 21 | R168: 18 | S168: 4 | T168: 31 | U168: 73 | V168: 37.13598326 | W168: 312 | X168: 20 | Y168: 39 | Z168: 22 | AA168: 48 | AB168: 49 | AC168: 44 | AD168: 28 | AE168: 17 | AF168: 5 | AG168: 9 | AH168: 31 | AI168: 17.72206406 | AJ168: 338 | AK168: 315 | AL168: 259 | AM168: 294 | AN168: 211 | AO168: 60 | AP168: 225 | AQ168: 220 | AR168: 242 | AS168: 145 | AT168: 91 | AU168: 250 | AV168: 21
A169: 問２(6) | B169: ８時間未満 | E169: 6 | F169: 0 | G169: 2 | H169: 4 | I169: 0 | J169: 6 | K169: 0 | L169: 0 | M169: 0 | N169: 2 | O169: 2 | P169: 0 | Q169: 0 | R169: 1 | S169: 0 | T169: 1 | U169: 0 | V169: 43.58333333 | W169: 6 | X169: 0 | Y169: 0 | Z169: 0 | AA169: 3 | AB169: 2 | AC169: 0 | AD169: 0 | AE169: 1 | AF169: 0 | AG169: 0 | AH169: 0 | AI169: 14.25 | AJ169: 6 | AK169: 5 | AL169: 6 | AM169: 6 | AN169: 3 | AO169: 1 | AP169: 5 | AQ169: 3 | AR169: 6 | AS169: 2 | AT169: 0 | AU169: 5 | AV169: 0
A170: 看護職員が必ず勤 | B170: ８～９時間未満 | E170: 96 | F170: 9 | G170: 33 | H170: 48 | I170: 6 | J170: 89 | K170: 0 | L170: 8 | M170: 1 | N170: 13 | O170: 13 | P170: 10 | Q170: 6 | R170: 3 | S170: 2 | T170: 11 | U170: 22 | V170: 41.54626866 | W170: 89 | X170: 1 | Y170: 9 | Z170: 3 | AA170: 15 | AB170: 21 | AC170: 10 | AD170: 8 | AE170: 5 | AF170: 5 | AG170: 5 | AH170: 7 | AI170: 25.56097561 | AJ170: 96 | AK170: 89 | AL170: 74 | AM170: 77 | AN170: 62 | AO170: 13 | AP170: 49 | AQ170: 53 | AR170: 68 | AS170: 41 | AT170: 22 | AU170: 67 | AV170: 7
A171: 務している時間 | B171: ９～10時間未満 | E171: 545 | F171: 14 | G171: 131 | H171: 368 | I171: 32 | J171: 511 | K171: 23 | L171: 56 | M171: 24 | N171: 87 | O171: 60 | P171: 56 | Q171: 31 | R171: 26 | S171: 12 | T171: 42 | U171: 94 | V171: 32.72645883 | W171: 511 | X171: 36 | Y171: 86 | Z171: 37 | AA171: 109 | AB171: 77 | AC171: 58 | AD171: 41 | AE171: 25 | AF171: 10 | AG171: 5 | AH171: 27 | AI171: 14.92703168 | AJ171: 545 | AK171: 507 | AL171: 404 | AM171: 481 | AN171: 313 | AO171: 85 | AP171: 370 | AQ171: 326 | AR171: 399 | AS171: 210 | AT171: 113 | AU171: 386 | AV171: 35
A172: （時間数） | B172: 10～12時間未満 | E172: 349 | F172: 13 | G172: 124 | H172: 198 | I172: 14 | J172: 329 | K172: 10 | L172: 24 | M172: 12 | N172: 52 | O172: 41 | P172: 48 | Q172: 22 | R172: 22 | S172: 4 | T172: 26 | U172: 68 | V172: 30.4545977 | W172: 329 | X172: 15 | Y172: 38 | Z172: 25 | AA172: 63 | AB172: 51 | AC172: 49 | AD172: 27 | AE172: 20 | AF172: 6 | AG172: 8 | AH172: 27 | AI172: 17.31218543 | AJ172: 349 | AK172: 332 | AL172: 270 | AM172: 317 | AN172: 203 | AO172: 56 | AP172: 247 | AQ172: 233 | AR172: 277 | AS172: 145 | AT172: 85 | AU172: 260 | AV172: 15
B173: 12～24時間未満 | E173: 55 | F173: 2 | G173: 15 | H173: 36 | I173: 2 | J173: 53 | K173: 1 | L173: 5 | M173: 3 | N173: 6 | O173: 5 | P173: 9 | Q173: 4 | R173: 2 | S173: 2 | T173: 5 | U173: 11 | V173: 33.75 | W173: 53 | X173: 2 | Y173: 6 | Z173: 6 | AA173: 8 | AB173: 10 | AC173: 7 | AD173: 7 | AE173: 1 | AF173: 3 | AG173: 1 | AH173: 2 | AI173: 18.39215686 | AJ173: 55 | AK173: 51 | AL173: 43 | AM173: 46 | AN173: 30 | AO173: 7 | AP173: 37 | AQ173: 37 | AR173: 41 | AS173: 23 | AT173: 12 | AU173: 44 | AV173: 2
B174: 24時間 | E174: 8 | F174: 3 | G174: 3 | H174: 2 | I174: 0 | J174: 8 | K174: 0 | L174: 0 | M174: 0 | N174: 0 | O174: 3 | P174: 0 | Q174: 0 | R174: 0 | S174: 0 | T174: 3 | U174: 2 | V174: 75.15 | W174: 8 | X174: 0 | Y174: 0 | Z174: 0 | AA174: 0 | AB174: 4 | AC174: 0 | AD174: 0 | AE174: 0 | AF174: 0 | AG174: 3 | AH174: 1 | AI174: 64.98571429 | AJ174: 8 | AK174: 8 | AL174: 7 | AM174: 7 | AN174: 5 | AO174: 0 | AP174: 5 | AQ174: 5 | AR174: 6 | AS174: 2 | AT174: 2 | AU174: 8 | AV174: 0
B175: エラー・無回答 | E175: 30 | F175: 0 | G175: 11 | H175: 15 | I175: 4 | J175: 23 | K175: 2 | L175: 1 | M175: 0 | N175: 1 | O175: 2 | P175: 4 | Q175: 2 | R175: 3 | S175: 0 | T175: 0 | U175: 8 | V175: 17.2 | W175: 23 | X175: 1 | Y175: 1 | Z175: 1 | AA175: 3 | AB175: 5 | AC175: 5 | AD175: 1 | AE175: 2 | AF175: 0 | AG175: 0 | AH175: 4 | AI175: 14.84210526 | AJ175: 30 | AK175: 27 | AL175: 22 | AM175: 20 | AN175: 17 | AO175: 2 | AP175: 20 | AQ175: 16 | AR175: 20 | AS175: 9 | AT175: 7 | AU175: 17 | AV175: 3
A176: 問２(7) | B176: 看護師＋ | C176: ０人 | E176: 977 | F176: 35 | G176: 284 | H176: 607 | I176: 51 | J176: 916 | K176: 33 | L176: 84 | M176: 36 | N176: 144 | O176: 114 | P176: 113 | Q176: 58 | R176: 54 | S176: 20 | T176: 73 | U176: 187 | V176: 32.43783722 | W176: 916 | X176: 52 | Y176: 128 | Z176: 63 | AA176: 177 | AB176: 152 | AC176: 117 | AD176: 75 | AE176: 51 | AF176: 24 | AG176: 16 | AH176: 61 | AI176: 16.99937232 | AJ176: 977 | AK176: 914 | AL176: 738 | AM176: 861 | AN176: 565 | AO176: 145 | AP176: 658 | AQ176: 605 | AR176: 739 | AS176: 383 | AT176: 215 | AU176: 708 | AV176: 55
A177: 夜間の看護職員数 | B177: 准看護師 | C177: １人 | E177: 21 | F177: 2 | G177: 9 | H177: 10 | I177: 0 | J177: 21 | K177: 0 | L177: 0 | M177: 0 | N177: 2 | O177: 3 | P177: 5 | Q177: 2 | R177: 1 | S177: 0 | T177: 2 | U177: 6 | V177: 34.66666667 | W177: 21 | X177: 0 | Y177: 0 | Z177: 0 | AA177: 4 | AB177: 5 | AC177: 4 | AD177: 3 | AE177: 0 | AF177: 0 | AG177: 3 | AH177: 2 | AI177: 32.31578947 | AJ177: 21 | AK177: 21 | AL177: 19 | AM177: 19 | AN177: 12 | AO177: 3 | AP177: 16 | AQ177: 15 | AR177: 18 | AS177: 8 | AT177: 6 | AU177: 17 | AV177: 0
C178: ２人以上 | E178: 3 | F178: 1 | G178: 1 | H178: 0 | I178: 1 | J178: 2 | K178: 0 | L178: 0 | M178: 0 | N178: 0 | O178: 1 | P178: 0 | Q178: 0 | R178: 0 | S178: 0 | T178: 1 | U178: 0 | V178: 66 | W178: 2 | X178: 0 | Y178: 0 | Z178: 0 | AA178: 0 | AB178: 1 | AC178: 0 | AD178: 0 | AE178: 0 | AF178: 0 | AG178: 1 | AH178: 0 | AI178: 66.5 | AJ178: 3 | AK178: 2 | AL178: 2 | AM178: 2 | AN178: 2 | AO178: 1 | AP178: 1 | AQ178: 1 | AR178: 2 | AS178: 1 | AT178: 2 | AU178: 2 | AV178: 1
C179: 無回答 | E179: 88 | F179: 3 | G179: 25 | H179: 54 | I179: 6 | J179: 80 | K179: 3 | L179: 10 | M179: 4 | N179: 15 | O179: 8 | P179: 9 | Q179: 5 | R179: 2 | S179: 0 | T179: 12 | U179: 12 | V179: 36.29264706 | W179: 80 | X179: 3 | Y179: 12 | Z179: 9 | AA179: 20 | AB179: 12 | AC179: 8 | AD179: 6 | AE179: 3 | AF179: 0 | AG179: 2 | AH179: 5 | AI179: 13.70533333 | AJ179: 88 | AK179: 82 | AL179: 67 | AM179: 72 | AN179: 54 | AO179: 15 | AP179: 58 | AQ179: 52 | AR179: 58 | AS179: 40 | AT179: 18 | AU179: 60 | AV179: 6
B180: 看護師 | C180: ０人 | E180: 984 | F180: 35 | G180: 287 | H180: 610 | I180: 52 | J180: 922 | K180: 33 | L180: 84 | M180: 36 | N180: 144 | O180: 116 | P180: 116 | Q180: 59 | R180: 54 | S180: 20 | T180: 73 | U180: 187 | V180: 32.30637188 | W180: 922 | X180: 52 | Y180: 128 | Z180: 63 | AA180: 177 | AB180: 155 | AC180: 118 | AD180: 77 | AE180: 51 | AF180: 24 | AG180: 16 | AH180: 61 | AI180: 16.99240805 | AJ180: 984 | AK180: 920 | AL180: 743 | AM180: 867 | AN180: 568 | AO180: 146 | AP180: 664 | AQ180: 611 | AR180: 744 | AS180: 386 | AT180: 217 | AU180: 713 | AV180: 56
C181: １人 | E181: 18 | F181: 2 | G181: 7 | H181: 9 | I181: 0 | J181: 18 | K181: 0 | L181: 0 | M181: 0 | N181: 2 | O181: 2 | P181: 2 | Q181: 2 | R181: 1 | S181: 0 | T181: 3 | U181: 6 | V181: 52.33333333 | W181: 18 | X181: 0 | Y181: 0 | Z181: 1 | AA181: 4 | AB181: 3 | AC181: 3 | AD181: 2 | AE181: 0 | AF181: 0 | AG181: 3 | AH181: 2 | AI181: 35.21875 | AJ181: 18 | AK181: 18 | AL181: 17 | AM181: 16 | AN181: 11 | AO181: 4 | AP181: 13 | AQ181: 11 | AR181: 15 | AS181: 8 | AT181: 6 | AU181: 15 | AV181: 0
C182: ２人以上 | E182: 2 | F182: 1 | G182: 1 | H182: 0 | I182: 0 | J182: 2 | K182: 0 | L182: 0 | M182: 0 | N182: 0 | O182: 1 | P182: 0 | Q182: 0 | R182: 0 | S182: 0 | T182: 1 | U182: 0 | V182: 66 | W182: 2 | X182: 0 | Y182: 0 | Z182: 0 | AA182: 0 | AB182: 1 | AC182: 0 | AD182: 0 | AE182: 0 | AF182: 0 | AG182: 1 | AH182: 0 | AI182: 66.5 | AJ182: 2 | AK182: 2 | AL182: 2 | AM182: 2 | AN182: 2 | AO182: 1 | AP182: 1 | AQ182: 1 | AR182: 2 | AS182: 1 | AT182: 2 | AU182: 2 | AV182: 0
C183: 無回答 | E183: 85 | F183: 3 | G183: 24 | H183: 52 | I183: 6 | J183: 77 | K183: 3 | L183: 10 | M183: 4 | N183: 15 | O183: 7 | P183: 9 | Q183: 4 | R183: 2 | S183: 0 | T183: 11 | U183: 12 | V183: 34.79846154 | W183: 77 | X183: 3 | Y183: 12 | Z183: 8 | AA183: 20 | AB183: 11 | AC183: 8 | AD183: 5 | AE183: 3 | AF183: 0 | AG183: 2 | AH183: 5 | AI183: 13.64444444 | AJ183: 85 | AK183: 79 | AL183: 64 | AM183: 69 | AN183: 52 | AO183: 13 | AP183: 55 | AQ183: 50 | AR183: 56 | AS183: 37 | AT183: 16 | AU183: 57 | AV183: 6
B184: 准看護師 | C184: ０人 | E184: 999 | F184: 38 | G184: 292 | H184: 618 | I184: 51 | J184: 938 | K184: 33 | L184: 85 | M184: 36 | N184: 148 | O184: 116 | P184: 115 | Q184: 60 | R184: 55 | S184: 20 | T184: 77 | U184: 193 | V184: 32.73581655 | W184: 938 | X184: 53 | Y184: 128 | Z184: 64 | AA184: 183 | AB184: 155 | AC184: 120 | AD184: 77 | AE184: 51 | AF184: 24 | AG184: 20 | AH184: 63 | AI184: 17.40624381 | AJ184: 999 | AK184: 936 | AL184: 759 | AM184: 881 | AN184: 580 | AO184: 150 | AP184: 673 | AQ184: 619 | AR184: 759 | AS184: 394 | AT184: 224 | AU184: 727 | AV184: 55
C185: １人 | E185: 8 | F185: 0 | G185: 4 | H185: 4 | I185: 0 | J185: 7 | K185: 0 | L185: 0 | M185: 0 | N185: 0 | O185: 3 | P185: 3 | Q185: 1 | R185: 0 | S185: 0 | T185: 0 | U185: 0 | V185: 16 | W185: 7 | X185: 0 | Y185: 0 | Z185: 0 | AA185: 0 | AB185: 4 | AC185: 1 | AD185: 2 | AE185: 0 | AF185: 0 | AG185: 0 | AH185: 0 | AI185: 15.71428571 | AJ185: 8 | AK185: 8 | AL185: 7 | AM185: 8 | AN185: 4 | AO185: 1 | AP185: 7 | AQ185: 7 | AR185: 7 | AS185: 3 | AT185: 2 | AU185: 6 | AV185: 0
C186: ２人以上 | E186: 1 | F186: 0 | G186: 0 | H186: 0 | I186: 1 | J186: 0 | K186: 0 | L186: 0 | M186: 0 | N186: 0 | O186: 0 | P186: 0 | Q186: 0 | R186: 0 | S186: 0 | T186: 0 | U186: 0 | V186: － | W186: 0 | X186: 0 | Y186: 0 | Z186: 0 | AA186: 0 | AB186: 0 | AC186: 0 | AD186: 0 | AE186: 0 | AF186: 0 | AG186: 0 | AH186: 0 | AI186: － | AJ186: 1 | AK186: 0 | AL186: 0 | AM186: 0 | AN186: 0 | AO186: 0 | AP186: 0 | AQ186: 0 | AR186: 0 | AS186: 0 | AT186: 0 | AU186: 0 | AV186: 1
C187: 無回答 | E187: 81 | F187: 3 | G187: 23 | H187: 49 | I187: 6 | J187: 74 | K187: 3 | L187: 9 | M187: 4 | N187: 13 | O187: 7 | P187: 9 | Q187: 4 | R187: 2 | S187: 0 | T187: 11 | U187: 12 | V187: 36.56290323 | W187: 74 | X187: 2 | Y187: 12 | Z187: 8 | AA187: 18 | AB187: 11 | AC187: 8 | AD187: 5 | AE187: 3 | AF187: 0 | AG187: 2 | AH187: 5 | AI187: 14.04202899 | AJ187: 81 | AK187: 75 | AL187: 60 | AM187: 65 | AN187: 49 | AO187: 13 | AP187: 53 | AQ187: 47 | AR187: 51 | AS187: 35 | AT187: 15 | AU187: 54 | AV187: 6
A188: 問２(8) | B188: 常に夜勤または宿直の看護職員（併設事業所と兼務の場合を含む）が対応 | E188: 12 | F188: 3 | G188: 5 | H188: 4 | I188: 0 | J188: 12 | K188: 0 | L188: 1 | M188: 0 | N188: 0 | O188: 4 | P188: 0 | Q188: 1 | R188: 0 | S188: 0 | T188: 3 | U188: 3 | V188: 54.54444444 | W188: 12 | X188: 0 | Y188: 1 | Z188: 0 | AA188: 0 | AB188: 5 | AC188: 0 | AD188: 1 | AE188: 0 | AF188: 0 | AG188: 3 | AH188: 2 | AI188: 49.49 | AJ188: 12 | AK188: 12 | AL188: 11 | AM188: 11 | AN188: 7 | AO188: 2 | AP188: 8 | AQ188: 8 | AR188: 10 | AS188: 4 | AT188: 4 | AU188: 10 | AV188: 0
A189: 夜間の看護体制 | B189: 通常、施設の看護職員（併設事業所と兼務の場合を含む）がオンコールで対応 | E189: 920 | F189: 31 | G189: 270 | H189: 570 | I189: 49 | J189: 862 | K189: 34 | L189: 83 | M189: 32 | N189: 135 | O189: 101 | P189: 107 | Q189: 55 | R189: 45 | S189: 19 | T189: 74 | U189: 177 | V189: 33.26194647 | W189: 862 | X189: 51 | Y189: 122 | Z189: 56 | AA189: 172 | AB189: 139 | AC189: 110 | AD189: 72 | AE189: 43 | AF189: 22 | AG189: 17 | AH189: 58 | AI189: 16.94553897 | AJ189: 920 | AK189: 861 | AL189: 698 | AM189: 810 | AN189: 542 | AO189: 142 | AP189: 633 | AQ189: 579 | AR189: 693 | AS189: 366 | AT189: 207 | AU189: 668 | AV189: 53
B190: 訪問看護ステーション、医療機関と連携してオンコール体制をとっている | E190: 31 | F190: 2 | G190: 10 | H190: 17 | I190: 2 | J190: 29 | K190: 1 | L190: 2 | M190: 0 | N190: 7 | O190: 5 | P190: 3 | Q190: 3 | R190: 2 | S190: 0 | T190: 4 | U190: 2 | V190: 34.18518519 | W190: 29 | X190: 1 | Y190: 4 | Z190: 2 | AA190: 7 | AB190: 8 | AC190: 2 | AD190: 3 | AE190: 1 | AF190: 0 | AG190: 1 | AH190: 0 | AI190: 16.18965517 | AJ190: 31 | AK190: 29 | AL190: 19 | AM190: 26 | AN190: 20 | AO190: 6 | AP190: 23 | AQ190: 16 | AR190: 21 | AS190: 12 | AT190: 6 | AU190: 20 | AV190: 2
B191: 夜勤・宿直の看護職員はおらず、オンコール対応もしていない | E191: 49 | F191: 2 | G191: 13 | H191: 33 | I191: 1 | J191: 47 | K191: 1 | L191: 1 | M191: 4 | N191: 10 | O191: 8 | P191: 5 | Q191: 2 | R191: 5 | S191: 0 | T191: 3 | U191: 8 | V191: 30.39615385 | W191: 47 | X191: 3 | Y191: 3 | Z191: 6 | AA191: 10 | AB191: 10 | AC191: 6 | AD191: 3 | AE191: 4 | AF191: 0 | AG191: 1 | AH191: 1 | AI191: 15.99891304 | AJ191: 49 | AK191: 45 | AL191: 38 | AM191: 44 | AN191: 23 | AO191: 8 | AP191: 20 | AQ191: 20 | AR191: 36 | AS191: 16 | AT191: 14 | AU191: 35 | AV191: 2
B192: 無回答 | E192: 77 | F192: 3 | G192: 21 | H192: 47 | I192: 6 | J192: 69 | K192: 0 | L192: 7 | M192: 4 | N192: 9 | O192: 8 | P192: 12 | Q192: 4 | R192: 5 | S192: 1 | T192: 4 | U192: 15 | V192: 25.61666667 | W192: 69 | X192: 0 | Y192: 10 | Z192: 8 | AA192: 12 | AB192: 8 | AC192: 11 | AD192: 5 | AE192: 6 | AF192: 2 | AG192: 0 | AH192: 7 | AI192: 15.88387097 | AJ192: 77 | AK192: 72 | AL192: 60 | AM192: 63 | AN192: 41 | AO192: 6 | AP192: 49 | AQ192: 50 | AR192: 57 | AS192: 34 | AT192: 10 | AU192: 54 | AV192: 5

Sheet 配置医師ー⑤
A1: =RIGHT(CELL("filename",A1),LEN(CELL("filename",A1))-FIND("]",CELL("filename",A1))) -> 配置医師ー⑤ | C1: 問６(2) 配置医師の役割（複数回答）
C2: ①実際に担っているもの
C3: 全体 | D3: 日常の健康管理のための診察・診療 | E3: 検査結果や介護・生活上での留意点の職員への説明 | F3: 予防接種の実施 | G3: 病状や状態の変化等への備えに関する指示書の作成 | H3: リハビリテーションや介護予防等の指示書の作成 | I3: 施設の求めに応じた急変対応（往診、休日夜間対応等） | J3: ターミナルケア・看取りに対する入所者や家族へのメンタルサポート | K3: 外部医療機関との連携 | L3: 入所者の日常的な生活や介護の状況を常に把握 | M3: 施設の運営状況・職員の能力等の理解 | N3: 感染症対策に関する相談対応・指導 | O3: 無回答
A4: 全 体 | C4: =C35 -> 1484 | D4: 1470 | E4: 1192 | F4: 1374 | G4: 931 | H4: 240 | I4: 1061 | J4: =J35 -> 983 | K4: 1178 | L4: 609 | M4: 328 | N4: 1147 | O4: 6
C5: =IF(SUM(D5:O5)>100,"－",SUM(D5:O5)) -> － | D5: =D4/$C4*100 -> 99.05660377 | E5: =E4/$C4*100 -> 80.32345013 | F5: =F4/$C4*100 -> 92.58760108 | G5: =G4/$C4*100 -> 62.73584906 | H5: =H4/$C4*100 -> 16.17250674 | I5: =I4/$C4*100 -> 71.49595687 | J5: 66.23989218 | K5: 79.38005391 | L5: 41.03773585 | M5: 22.10242588 | N5: 77.29110512 | O5: 0.4043126685
A6: 問６SQ(1)-1① | B6: 常勤医師 | C6: =C37 -> 50 | D6: =IF($C6=0,0,D37/$C6*100) -> 98 | E6: 82 | F6: 94 | G6: 62 | H6: 20 | I6: 56 | J6: 64 | K6: 86 | L6: 48 | M6: 42 | N6: 82 | O6: 0
A7: 問６SQ(1)-1①SQ | B7: 非常勤医師（在宅療養支援病院または在宅療養支援診療所に所属） | C7: 109 | D7: =IF($C7=0,0,D38/$C7*100) -> 99.08256881 | E7: 76.14678899 | F7: 94.49541284 | G7: 66.97247706 | H7: 18.34862385 | I7: 84.40366972 | J7: 79.81651376 | K7: 89.90825688 | L7: 42.20183486 | M7: 35.77981651 | N7: 78.89908257 | O7: 0.9174311927
A8: 勤務形態 | B8: 非常勤医師（その他） | C8: 1304 | D8: =IF($C8=0,0,D39/$C8*100) -> 99.0797546 | E8: 80.52147239 | F8: 92.63803681 | G8: 62.11656442 | H8: 15.95092025 | I8: 71.08895706 | J8: 65.49079755 | K8: 78.52760736 | L8: 41.1809816 | M8: 20.32208589 | N8: 76.91717791 | O8: 0.3834355828
B9: 無回答 | C9: 21 | D9: =IF($C9=0,0,D40/$C9*100) -> 100 | E9: 85.71428571 | F9: 76.19047619 | G9: 80.95238095 | H9: 9.523809524 | I9: 66.66666667 | J9: 47.61904762 | K9: 61.9047619 | L9: 9.523809524 | M9: 14.28571429 | N9: 80.95238095 | O9: 0
A10: 問６(1)SQ③a | B10: ４時間未満 | C10: 36 | D10: =IF($C10=0,0,D41/$C10*100) -> 97.22222222 | E10: 77.77777778 | F10: 100 | G10: 61.11111111 | H10: 8.333333333 | I10: 61.11111111 | J10: 58.33333333 | K10: 75 | L10: 36.11111111 | M10: 27.77777778 | N10: 66.66666667 | O10: 0
A11: 契約上責任を持つ | B11: ４～６時間未満 | C11: 94 | D11: =IF($C11=0,0,D42/$C11*100) -> 100 | E11: 70.21276596 | F11: 91.4893617 | G11: 57.44680851 | H11: 7.446808511 | I11: 58.5106383 | J11: 54.25531915 | K11: 72.34042553 | L11: 36.17021277 | M11: 12.76595745 | N11: 71.27659574 | O11: 0
A12: 時間 | B12: ６～８時間未満 | C12: 40 | D12: =IF($C12=0,0,D43/$C12*100) -> 97.5 | E12: 82.5 | F12: 97.5 | G12: 45 | H12: 17.5 | I12: 80 | J12: 72.5 | K12: 87.5 | L12: 35 | M12: 22.5 | N12: 82.5 | O12: 0
A13: （施設単位） | B13: ８～10時間未満 | C13: 161 | D13: =IF($C13=0,0,D44/$C13*100) -> 98.75776398 | E13: 73.91304348 | F13: 92.54658385 | G13: 64.59627329 | H13: 19.8757764 | I13: 67.70186335 | J13: 63.97515528 | K13: 79.50310559 | L13: 44.09937888 | M13: 26.70807453 | N13: 73.29192547 | O13: 0
B14: 10～15時間未満 | C14: 126 | D14: =IF($C14=0,0,D45/$C14*100) -> 98.41269841 | E14: 83.33333333 | F14: 95.23809524 | G14: 63.49206349 | H14: 15.87301587 | I14: 74.6031746 | J14: 66.66666667 | K14: 80.95238095 | L14: 38.0952381 | M14: 20.63492063 | N14: 76.98412698 | O14: 0.7936507937
B15: 15～20時間未満 | C15: 127 | D15: =IF($C15=0,0,D46/$C15*100) -> 100 | E15: 78.74015748 | F15: 90.5511811 | G15: 60.62992126 | H15: 18.8976378 | I15: 75.59055118 | J15: 72.44094488 | K15: 83.46456693 | L15: 42.51968504 | M15: 22.04724409 | N15: 77.95275591 | O15: 0
B16: 20～30時間未満 | C16: 65 | D16: =IF($C16=0,0,D47/$C16*100) -> 98.46153846 | E16: 81.53846154 | F16: 87.69230769 | G16: 56.92307692 | H16: 13.84615385 | I16: 72.30769231 | J16: 64.61538462 | K16: 80 | L16: 50.76923077 | M16: 21.53846154 | N16: 86.15384615 | O16: 1.538461538
B17: 30～50時間未満 | C17: 57 | D17: =IF($C17=0,0,D48/$C17*100) -> 100 | E17: 82.45614035 | F17: 91.22807018 | G17: 64.9122807 | H17: 10.52631579 | I17: 70.1754386 | J17: 63.15789474 | K17: 82.45614035 | L17: 42.10526316 | M17: 21.05263158 | N17: 82.45614035 | O17: 0
B18: 50～100時間未満 | C18: 20 | D18: =IF($C18=0,0,D49/$C18*100) -> 100 | E18: 80 | F18: 90 | G18: 60 | H18: 20 | I18: 60 | J18: 80 | K18: 85 | L18: 55 | M18: 25 | N18: 75 | O18: 0
B19: 100時間以上 | C19: 88 | D19: =IF($C19=0,0,D50/$C19*100) -> 97.72727273 | E19: 84.09090909 | F19: 93.18181818 | G19: 63.63636364 | H19: 18.18181818 | I19: 71.59090909 | J19: 64.77272727 | K19: 82.95454545 | L19: 51.13636364 | M19: 35.22727273 | N19: 75 | O19: 0
B20: エラー・無回答 | C20: 205 | D20: =IF($C20=0,0,D51/$C20*100) -> 99.02439024 | E20: 85.36585366 | F20: 92.19512195 | G20: 62.43902439 | H20: 15.6097561 | I20: 75.6097561 | J20: 64.3902439 | K20: 74.63414634 | L20: 38.53658537 | M20: 23.41463415 | N20: 76.58536585 | O20: 0.487804878
A21: 問６(1)SQ③b | B21: ４時間未満 | C21: 55 | D21: =IF($C21=0,0,D52/$C21*100) -> 96.36363636 | E21: 74.54545455 | F21: 94.54545455 | G21: 52.72727273 | H21: 12.72727273 | I21: 69.09090909 | J21: 60 | K21: 70.90909091 | L21: 30.90909091 | M21: 23.63636364 | N21: 69.09090909 | O21: 0
A22: 実際に施設で勤務 | B22: ４～６時間未満 | C22: 140 | D22: =IF($C22=0,0,D53/$C22*100) -> 100 | E22: 76.42857143 | F22: 91.42857143 | G22: 57.14285714 | H22: 9.285714286 | I22: 62.85714286 | J22: 55.71428571 | K22: 75 | L22: 39.28571429 | M22: 15 | N22: 69.28571429 | O22: 0
A23: する時間 | B23: ６～８時間未満 | C23: 72 | D23: =IF($C23=0,0,D54/$C23*100) -> 97.22222222 | E23: 81.94444444 | F23: 97.22222222 | G23: 40.27777778 | H23: 13.88888889 | I23: 72.22222222 | J23: 65.27777778 | K23: 83.33333333 | L23: 44.44444444 | M23: 29.16666667 | N23: 77.77777778 | O23: 0
A24: （施設単位） | B24: ８～10時間未満 | C24: 201 | D24: =IF($C24=0,0,D55/$C24*100) -> 99.00497512 | E24: 76.61691542 | F24: 92.039801 | G24: 63.1840796 | H24: 16.41791045 | I24: 72.13930348 | J24: 65.17412935 | K24: 79.10447761 | L24: 40.7960199 | M24: 24.37810945 | N24: 70.64676617 | O24: 0.4975124378
B25: 10～15時間未満 | C25: 170 | D25: =IF($C25=0,0,D56/$C25*100) -> 98.82352941 | E25: 82.35294118 | F25: 95.29411765 | G25: 61.76470588 | H25: 14.70588235 | I25: 72.35294118 | J25: 67.64705882 | K25: 80 | L25: 38.23529412 | M25: 21.17647059 | N25: 80.58823529 | O25: 0.5882352941
B26: 15～20時間未満 | C26: 129 | D26: =IF($C26=0,0,D57/$C26*100) -> 100 | E26: 81.39534884 | F26: 91.47286822 | G26: 63.56589147 | H26: 21.70542636 | I26: 77.51937984 | J26: 70.54263566 | K26: 82.94573643 | L26: 41.86046512 | M26: 20.93023256 | N26: 80.62015504 | O26: 0
B27: 20～30時間未満 | C27: 84 | D27: =IF($C27=0,0,D58/$C27*100) -> 98.80952381 | E27: 85.71428571 | F27: 89.28571429 | G27: 64.28571429 | H27: 16.66666667 | I27: 72.61904762 | J27: 71.42857143 | K27: 78.57142857 | L27: 52.38095238 | M27: 26.19047619 | N27: 86.9047619 | O27: 1.19047619
B28: 30～50時間未満 | C28: 54 | D28: =IF($C28=0,0,D59/$C28*100) -> 100 | E28: 79.62962963 | F28: 92.59259259 | G28: 68.51851852 | H28: 12.96296296 | I28: 74.07407407 | J28: 62.96296296 | K28: 75.92592593 | L28: 44.44444444 | M28: 16.66666667 | N28: 75.92592593 | O28: 0
B29: 50～100時間未満 | C29: 24 | D29: =IF($C29=0,0,D60/$C29*100) -> 100 | E29: 83.33333333 | F29: 91.66666667 | G29: 70.83333333 | H29: 20.83333333 | I29: 66.66666667 | J29: 79.16666667 | K29: 91.66666667 | L29: 54.16666667 | M29: 37.5 | N29: 79.16666667 | O29: 0
B30: 100時間以上 | C30: 22 | D30: =IF($C30=0,0,D61/$C30*100) -> 95.45454545 | E30: 81.81818182 | F30: 86.36363636 | G30: 63.63636364 | H30: 27.27272727 | I30: 59.09090909 | J30: 63.63636364 | K30: 90.90909091 | L30: 63.63636364 | M30: 40.90909091 | N30: 86.36363636 | O30: 0
B31: エラー・無回答 | C31: 68 | D31: =IF($C31=0,0,D62/$C31*100) -> 98.52941176 | E31: 83.82352941 | F31: 91.17647059 | G31: 75 | H31: 17.64705882 | I31: 72.05882353 | J31: 60.29411765 | K31: 77.94117647 | L31: 38.23529412 | M31: 32.35294118 | N31: 77.94117647 | O31: 0
A35: 全 体 | C35: 1484 | D35: 1470 | E35: 1192 | F35: 1374 | G35: 931 | H35: 240 | I35: 1061 | J35: 983 | K35: 1178 | L35: 609 | M35: 328 | N35: 1147 | O35: 6
A37: 問６SQ(1)-1① | B37: 常勤医師 | C37: 50 | D37: 49 | E37: 41 | F37: 47 | G37: 31 | H37: 10 | I37: 28 | J37: 32 | K37: 43 | L37: 24 | M37: 21 | N37: 41 | O37: 0
A38: 問６SQ(1)-1①SQ | B38: 非常勤医師（在宅療養支援病院または在宅療養支援診療所に所属） | C38: 109 | D38: 108 | E38: 83 | F38: 103 | G38: 73 | H38: 20 | I38: 92 | J38: 87 | K38: 98 | L38: 46 | M38: 39 | N38: 86 | O38: 1
A39: 勤務形態 | B39: 非常勤医師（その他） | C39: 1304 | D39: 1292 | E39: 1050 | F39: 1208 | G39: 810 | H39: 208 | I39: 927 | J39: 854 | K39: 1024 | L39: 537 | M39: 265 | N39: 1003 | O39: 5
B40: 無回答 | C40: 21 | D40: 21 | E40: 18 | F40: 16 | G40: 17 | H40: 2 | I40: 14 | J40: 10 | K40: 13 | L40: 2 | M40: 3 | N40: 17 | O40: 0
A41: 問６(1)SQ③a | B41: ４時間未満 | C41: 36 | D41: 35 | E41: 28 | F41: 36 | G41: 22 | H41: 3 | I41: 22 | J41: 21 | K41: 27 | L41: 13 | M41: 10 | N41: 24 | O41: 0
A42: 契約上責任を持つ | B42: ４～６時間未満 | C42: 94 | D42: 94 | E42: 66 | F42: 86 | G42: 54 | H42: 7 | I42: 55 | J42: 51 | K42: 68 | L42: 34 | M42: 12 | N42: 67 | O42: 0
A43: 時間 | B43: ６～８時間未満 | C43: 40 | D43: 39 | E43: 33 | F43: 39 | G43: 18 | H43: 7 | I43: 32 | J43: 29 | K43: 35 | L43: 14 | M43: 9 | N43: 33 | O43: 0
A44: （施設単位） | B44: ８～10時間未満 | C44: 161 | D44: 159 | E44: 119 | F44: 149 | G44: 104 | H44: 32 | I44: 109 | J44: 103 | K44: 128 | L44: 71 | M44: 43 | N44: 118 | O44: 0
B45: 10～15時間未満 | C45: 126 | D45: 124 | E45: 105 | F45: 120 | G45: 80 | H45: 20 | I45: 94 | J45: 84 | K45: 102 | L45: 48 | M45: 26 | N45: 97 | O45: 1
B46: 15～20時間未満 | C46: 127 | D46: 127 | E46: 100 | F46: 115 | G46: 77 | H46: 24 | I46: 96 | J46: 92 | K46: 106 | L46: 54 | M46: 28 | N46: 99 | O46: 0
B47: 20～30時間未満 | C47: 65 | D47: 64 | E47: 53 | F47: 57 | G47: 37 | H47: 9 | I47: 47 | J47: 42 | K47: 52 | L47: 33 | M47: 14 | N47: 56 | O47: 1
B48: 30～50時間未満 | C48: 57 | D48: 57 | E48: 47 | F48: 52 | G48: 37 | H48: 6 | I48: 40 | J48: 36 | K48: 47 | L48: 24 | M48: 12 | N48: 47 | O48: 0
B49: 50～100時間未満 | C49: 20 | D49: 20 | E49: 16 | F49: 18 | G49: 12 | H49: 4 | I49: 12 | J49: 16 | K49: 17 | L49: 11 | M49: 5 | N49: 15 | O49: 0
B50: 100時間以上 | C50: 88 | D50: 86 | E50: 74 | F50: 82 | G50: 56 | H50: 16 | I50: 63 | J50: 57 | K50: 73 | L50: 45 | M50: 31 | N50: 66 | O50: 0
B51: エラー・無回答 | C51: 205 | D51: 203 | E51: 175 | F51: 189 | G51: 128 | H51: 32 | I51: 155 | J51: 132 | K51: 153 | L51: 79 | M51: 48 | N51: 157 | O51: 1
A52: 問６(1)SQ③b | B52: ４時間未満 | C52: 55 | D52: 53 | E52: 41 | F52: 52 | G52: 29 | H52: 7 | I52: 38 | J52: 33 | K52: 39 | L52: 17 | M52: 13 | N52: 38 | O52: 0
A53: 実際に施設で勤務 | B53: ４～６時間未満 | C53: 140 | D53: 140 | E53: 107 | F53: 128 | G53: 80 | H53: 13 | I53: 88 | J53: 78 | K53: 105 | L53: 55 | M53: 21 | N53: 97 | O53: 0
A54: する時間 | B54: ６～８時間未満 | C54: 72 | D54: 70 | E54: 59 | F54: 70 | G54: 29 | H54: 10 | I54: 52 | J54: 47 | K54: 60 | L54: 32 | M54: 21 | N54: 56 | O54: 0
A55: （施設単位） | B55: ８～10時間未満 | C55: 201 | D55: 199 | E55: 154 | F55: 185 | G55: 127 | H55: 33 | I55: 145 | J55: 131 | K55: 159 | L55: 82 | M55: 49 | N55: 142 | O55: 1
B56: 10～15時間未満 | C56: 170 | D56: 168 | E56: 140 | F56: 162 | G56: 105 | H56: 25 | I56: 123 | J56: 115 | K56: 136 | L56: 65 | M56: 36 | N56: 137 | O56: 1
B57: 15～20時間未満 | C57: 129 | D57: 129 | E57: 105 | F57: 118 | G57: 82 | H57: 28 | I57: 100 | J57: 91 | K57: 107 | L57: 54 | M57: 27 | N57: 104 | O57: 0
B58: 20～30時間未満 | C58: 84 | D58: 83 | E58: 72 | F58: 75 | G58: 54 | H58: 14 | I58: 61 | J58: 60 | K58: 66 | L58: 44 | M58: 22 | N58: 73 | O58: 1
B59: 30～50時間未満 | C59: 54 | D59: 54 | E59: 43 | F59: 50 | G59: 37 | H59: 7 | I59: 40 | J59: 34 | K59: 41 | L59: 24 | M59: 9 | N59: 41 | O59: 0
B60: 50～100時間未満 | C60: 24 | D60: 24 | E60: 20 | F60: 22 | G60: 17 | H60: 5 | I60: 16 | J60: 19 | K60: 22 | L60: 13 | M60: 9 | N60: 19 | O60: 0
B61: 100時間以上 | C61: 22 | D61: 21 | E61: 18 | F61: 19 | G61: 14 | H61: 6 | I61: 13 | J61: 14 | K61: 20 | L61: 14 | M61: 9 | N61: 19 | O61: 0
B62: エラー・無回答 | C62: 68 | D62: 67 | E62: 57 | F62: 62 | G62: 51 | H62: 12 | I62: 49 | J62: 41 | K62: 53 | L62: 26 | M62: 22 | N62: 53 | O62: 0
C64: =IF(C5>100,"",(#REF!-#REF!-#REF!/100)) -> 

Sheet 配置医師ー⑥
A1: =RIGHT(CELL("filename",A1),LEN(CELL("filename",A1))-FIND("]",CELL("filename",A1))) -> 配置医師ー⑥ | C1: 問６(1)SQ(1)-1② 診療科（複数回答） | P1: 問６(1)SQ(1)-1③ 施設での１か月における平均勤務時間合計（７月１か月間の実績） | AC1: 問６(1)SQ(1)-1③ 施設での１か月における平均勤務時間合計（７月１か月間の実績）
P2: 契約上責任を持つ時間（ケース単位） | AC2: 実際に施設で勤務する時間（ケース単位）
C3: 全体 | D3: 内科 | E3: 外科 | F3: 整形外科 | G3: 精神科 | H3: 眼科 | I3: 耳鼻咽喉科 | J3: 歯科 | K3: 皮膚科 | L3: その他 | M3: 複数の診療科に該当 | N3: 不明 | O3: 無回答 | P3: N数 | Q3: ４時間未満 | R3: ４～６時間未満 | S3: ６～８時間未満 | T3: ８～10時間未満 | U3: 10～15時間未満 | V3: 15～20時間未満 | W3: 20～30時間未満 | X3: 30～50時間未満 | Y3: 50～100時間未満 | Z3: 100時間以上 | AA3: エラー・無回答 | AB3: 契約上 責任を 持つ時間 （平均 時間/月) | AC3: 全体 | AD3: ４時間未満 | AE3: ４～６時間未満 | AF3: ６～８時間未満 | AG3: ８～10時間未満 | AH3: 10～15時間未満 | AI3: 15～20時間未満 | AJ3: 20～30時間未満 | AK3: 30～50時間未満 | AL3: 50～100時間未満 | AM3: 100時間以上 | AN3: エラー・無回答 | AO3: 実際に 施設で 勤務する 時間 （平均 時間/月)
A4: 全 体 | C4: =C13 -> 1484 | D4: 1162 | E4: 216 | F4: 110 | G4: 205 | H4: 10 | I4: 13 | J4: =J13 -> 37 | K4: 62 | L4: 195 | M4: 392 | N4: 1 | O4: 10 | P4: 1484 | Q4: 189 | R4: =R13 -> 214 | S4: =S13 -> 54 | T4: =T13 -> 261 | U4: =U13 -> 142 | V4: =V13 -> 141 | W4: =W13 -> 51 | X4: 42 | Y4: 16 | Z4: 103 | AA4: 271 | AB4: 22.32323441 | AC4: 1484 | AD4: 264 | AE4: =AE13 -> 287 | AF4: =AF13 -> 85 | AG4: =AG13 -> 297 | AH4: =AH13 -> 186 | AI4: =AI13 -> 126 | AJ4: =AJ13 -> 64 | AK4: 41 | AL4: 19 | AM4: 25 | AN4: 90 | AO4: 11.97371832
C5: =IF(SUM(D5:O5)>100,"－",SUM(D5:O5)) -> － | D5: =D4/$C4*100 -> 78.30188679 | E5: 14.55525606 | F5: 7.412398922 | G5: 13.81401617 | H5: 0.6738544474 | I5: 0.8760107817 | J5: 2.493261456 | K5: 4.177897574 | L5: 13.14016173 | M5: 26.41509434 | N5: 0.06738544474 | O5: 0.6738544474 | P5: - | Q5: =Q4/$P4*100 -> 12.73584906 | R5: 14.42048518 | S5: 3.638814016 | T5: 17.58760108 | U5: 9.568733154 | V5: 9.501347709 | W5: 3.436657682 | X5: 2.830188679 | Y5: 1.078167116 | Z5: 6.940700809 | AA5: 18.26145553 | AB5: - | AC5: =IF(SUM(AD5:AN5)>100,"－",SUM(AD5:AN5)) -> 100 | AD5: =AD4/$AC4*100 -> 17.78975741 | AE5: 19.33962264 | AF5: 5.727762803 | AG5: 20.01347709 | AH5: 12.53369272 | AI5: 8.490566038 | AJ5: 4.312668464 | AK5: 2.762803235 | AL5: 1.28032345 | AM5: 1.684636119 | AN5: 6.064690027 | AO5: -
A6: 問６SQ(1)-1① | B6: 常勤医師 | C6: =C15 -> 50 | D6: =IF($C6=0,0,D15/$C6*100) -> 90 | E6: 12 | F6: 10 | G6: 8 | H6: 0 | I6: 0 | J6: 0 | K6: 4 | L6: 10 | M6: 22 | N6: 0 | O6: 2 | P6: =P15 -> 50 | Q6: =IF($P6=0,0,Q15/$P6*100) -> 10 | R6: 2 | S6: 0 | T6: 2 | U6: 0 | V6: 0 | W6: 10 | X6: 6 | Y6: 0 | Z6: 50 | AA6: 20 | AB6: =AB15 -> 97.86125 | AC6: =AC15 -> 50 | AD6: =IF($AC6=0,0,AD15/$AC6*100) -> 10 | AE6: 6 | AF6: 4 | AG6: 6 | AH6: 8 | AI6: 0 | AJ6: 6 | AK6: 6 | AL6: 4 | AM6: 40 | AN6: 10 | AO6: =AO15 -> 71.54333333
A7: 問６SQ(1)-1①SQ | B7: 非常勤医師（在宅療養支援病院または在宅療養支援診療所に所属） | C7: =C16 -> 109 | D7: =IF($C7=0,0,D16/$C7*100) -> 88.0733945 | E7: 18.34862385 | F7: 7.339449541 | G7: 7.339449541 | H7: 0.9174311927 | I7: 0.9174311927 | J7: 1.834862385 | K7: 4.587155963 | L7: 11.9266055 | M7: 26.60550459 | N7: 0 | O7: 0 | P7: =P16 -> 109 | Q7: =IF($P7=0,0,Q16/$P7*100) -> 22.01834862 | R7: 10.09174312 | S7: 4.587155963 | T7: 27.52293578 | U7: 4.587155963 | V7: 4.587155963 | W7: 1.834862385 | X7: 1.834862385 | Y7: 0 | Z7: 6.422018349 | AA7: 16.51376147 | AB7: 18.38461538 | AC7: 109 | AD7: =IF($AC7=0,0,AD16/$AC7*100) -> 26.60550459 | AE7: 18.34862385 | AF7: 7.339449541 | AG7: 24.7706422 | AH7: 6.422018349 | AI7: 6.422018349 | AJ7: 3.669724771 | AK7: 0.9174311927 | AL7: 0 | AM7: 0.9174311927 | AN7: 4.587155963 | AO7: =AO16 -> 8.682692308
A8: 勤務形態 | B8: 非常勤医師（その他） | C8: =C17 -> 1304 | D8: =IF($C8=0,0,D17/$C8*100) -> 77.22392638 | E8: 14.11042945 | F8: 7.438650307 | G8: 14.57055215 | H8: 0.6901840491 | I8: 0.9202453988 | J8: 2.68404908 | K8: 4.141104294 | L8: 13.49693252 | M8: 26.53374233 | N8: 0.07668711656 | O8: 0.4601226994 | P8: =P17 -> 1304 | Q8: =IF($P8=0,0,Q17/$P8*100) -> 12.11656442 | R8: 15.18404908 | S8: 3.757668712 | T8: 17.17791411 | U8: 10.42944785 | V8: 10.27607362 | W8: 3.297546012 | X8: 2.837423313 | Y8: 1.226993865 | Z8: 5.444785276 | AA8: 18.25153374 | AB8: 20.03436523 | AC8: 1304 | AD8: =IF($AC8=0,0,AD17/$AC8*100) -> 17.40797546 | AE8: 19.93865031 | AF8: 5.751533742 | AG8: 19.93865031 | AH8: 13.34355828 | AI8: 8.972392638 | AJ8: 4.217791411 | AK8: 2.837423313 | AL8: 1.303680982 | AM8: 0.3067484663 | AN8: 5.981595092 | AO8: =AO17 -> 10.11983143
B9: 無回答 | C9: =C18 -> 21 | D9: =IF($C9=0,0,D18/$C9*100) -> 66.66666667 | E9: 28.57142857 | F9: 0 | G9: 14.28571429 | H9: 0 | I9: 0 | J9: 0 | K9: 4.761904762 | L9: 4.761904762 | M9: 28.57142857 | N9: 0 | O9: 14.28571429 | P9: =P18 -> 21 | Q9: =IF($P9=0,0,Q18/$P9*100) -> 9.523809524 | R9: 19.04761905 | S9: 0 | T9: 28.57142857 | U9: 4.761904762 | V9: 9.523809524 | W9: 4.761904762 | X9: 0 | Y9: 0 | Z9: 0 | AA9: 23.80952381 | AB9: 8.375 | AC9: 21 | AD9: =IF($AC9=0,0,AD18/$AC9*100) -> 14.28571429 | AE9: 19.04761905 | AF9: 0 | AG9: 33.33333333 | AH9: 4.761904762 | AI9: 9.523809524 | AJ9: 9.523809524 | AK9: 0 | AL9: 0 | AM9: 0 | AN9: 9.523809524 | AO9: =AO18 -> 8.526315789
A13: 全 体 | C13: 1484 | D13: 1162 | E13: 216 | F13: 110 | G13: 205 | H13: 10 | I13: 13 | J13: 37 | K13: 62 | L13: 195 | M13: 392 | N13: 1 | O13: 10 | P13: 1484 | Q13: 189 | R13: 214 | S13: 54 | T13: 261 | U13: 142 | V13: 141 | W13: 51 | X13: 42 | Y13: 16 | Z13: 103 | AA13: 271 | AB13: 22.32323441 | AC13: 1484 | AD13: 264 | AE13: 287 | AF13: 85 | AG13: 297 | AH13: 186 | AI13: 126 | AJ13: 64 | AK13: 41 | AL13: 19 | AM13: 25 | AN13: 90 | AO13: 11.97371832
A15: 問６SQ(1)-1① | B15: 常勤医師 | C15: 50 | D15: 45 | E15: 6 | F15: 5 | G15: 4 | H15: 0 | I15: 0 | J15: 0 | K15: 2 | L15: 5 | M15: 11 | N15: 0 | O15: 1 | P15: 50 | Q15: 5 | R15: 1 | S15: 0 | T15: 1 | U15: 0 | V15: 0 | W15: 5 | X15: 3 | Y15: 0 | Z15: 25 | AA15: 10 | AB15: 97.86125 | AC15: 50 | AD15: 5 | AE15: 3 | AF15: 2 | AG15: 3 | AH15: 4 | AI15: 0 | AJ15: 3 | AK15: 3 | AL15: 2 | AM15: 20 | AN15: 5 | AO15: 71.54333333
A16: 問６SQ(1)-1①SQ | B16: 非常勤医師（在宅療養支援病院または在宅療養支援診療所に所属） | C16: 109 | D16: 96 | E16: 20 | F16: 8 | G16: 8 | H16: 1 | I16: 1 | J16: 2 | K16: 5 | L16: 13 | M16: 29 | N16: 0 | O16: 0 | P16: 109 | Q16: 24 | R16: 11 | S16: 5 | T16: 30 | U16: 5 | V16: 5 | W16: 2 | X16: 2 | Y16: 0 | Z16: 7 | AA16: 18 | AB16: 18.38461538 | AC16: 109 | AD16: 29 | AE16: 20 | AF16: 8 | AG16: 27 | AH16: 7 | AI16: 7 | AJ16: 4 | AK16: 1 | AL16: 0 | AM16: 1 | AN16: 5 | AO16: 8.682692308
A17: 勤務形態 | B17: 非常勤医師（その他） | C17: 1304 | D17: 1007 | E17: 184 | F17: 97 | G17: 190 | H17: 9 | I17: 12 | J17: 35 | K17: 54 | L17: 176 | M17: 346 | N17: 1 | O17: 6 | P17: 1304 | Q17: 158 | R17: 198 | S17: 49 | T17: 224 | U17: 136 | V17: 134 | W17: 43 | X17: 37 | Y17: 16 | Z17: 71 | AA17: 238 | AB17: 20.03436523 | AC17: 1304 | AD17: 227 | AE17: 260 | AF17: 75 | AG17: 260 | AH17: 174 | AI17: 117 | AJ17: 55 | AK17: 37 | AL17: 17 | AM17: 4 | AN17: 78 | AO17: 10.11983143
B18: 無回答 | C18: 21 | D18: 14 | E18: 6 | F18: 0 | G18: 3 | H18: 0 | I18: 0 | J18: 0 | K18: 1 | L18: 1 | M18: 6 | N18: 0 | O18: 3 | P18: 21 | Q18: 2 | R18: 4 | S18: 0 | T18: 6 | U18: 1 | V18: 2 | W18: 1 | X18: 0 | Y18: 0 | Z18: 0 | AA18: 5 | AB18: 8.375 | AC18: 21 | AD18: 3 | AE18: 4 | AF18: 0 | AG18: 7 | AH18: 1 | AI18: 2 | AJ18: 2 | AK18: 0 | AL18: 0 | AM18: 0 | AN18: 2 | AO18: 8.526315789

Sheet 配置医師-⑦-1
A1: =RIGHT(CELL("filename",A1),LEN(CELL("filename",A1))-FIND("]",CELL("filename",A1))) -> 配置医師-⑦-1 | C1: 問７(2)① 協力・連携関係にある医療機関数 | M1: 問７(4) 協力・連携関係にある医療機関の役割（複数回答）
C2: 入所者の入院先となっている医療機関の数 | M2: ①実際に担っているもの
C3: 全体 | D3: ０箇所 | E3: １箇所 | F3: ２箇所 | G3: ３箇所 | H3: ４箇所 | I3: ５～９箇所 | J3: 10箇所以上 | K3: 無回答 | L3: 平均 (箇所) | M3: 全体 | N3: 日常の健康管理のための診察・診療 | O3: 検査結果や介護・生活上での留意点の職員への説明 | P3: 予防接種の実施 | Q3: 病状や状態の変化等への備えに関する指示書の作成 | R3: リハビリテーションや介護予防等の指示書の作成 | S3: 施設の求めに応じた急変対応（往診、休日夜間対応等） | T3: ターミナルケア・看取りに対する入所者や家族へのメンタルサポート | U3: 専門的な医療に関する助言や提供 | V3: 入所者の日常的な生活や介護の状況を常に把握 | W3: 配置医師の休暇・不在時のバックアップ（代診等） | X3: 感染症対策に関する相談対応・指導 | Y3: 左記に該当なし | Z3: 無回答
A4: 全 体 | C4: =C46 -> 1089 | D4: 118 | E4: 319 | F4: 227 | G4: 136 | H4: 83 | I4: 103 | J4: 5 | K4: 98 | L4: =L46 -> 2.196770938 | M4: 1089 | N4: 643 | O4: 550 | P4: 424 | Q4: 305 | R4: 132 | S4: 664 | T4: 263 | U4: 667 | V4: 177 | W4: 331 | X4: 357 | Y4: 25 | Z4: 74
C5: =IF(SUM(D5:K5)>100,"－",SUM(D5:K5)) -> 100 | D5: =D4/$C4*100 -> 10.83562902 | E5: 29.29292929 | F5: 20.84481175 | G5: 12.48852158 | H5: 7.621671258 | I5: 9.458218549 | J5: 0.4591368228 | K5: 8.999081726 | M5: =IF(SUM(N5:Z5)>100,"－",SUM(N5:Z5)) -> － | N5: =N4/$M4*100 -> 59.04499541 | O5: 50.50505051 | P5: 38.93480257 | Q5: 28.00734619 | R5: 12.12121212 | S5: 60.97337006 | T5: 24.15059688 | U5: 61.24885216 | V5: 16.25344353 | W5: 30.39485767 | X5: 32.78236915 | Y5: 2.295684114 | Z5: 6.795224977
A6: 問６(1) | B6: 常勤医師あり | C6: =C48 -> 41 | D6: =IF($C6=0,0,D48/$C6*100) -> 12.19512195 | E6: 31.70731707 | F6: 14.63414634 | G6: 17.07317073 | H6: 2.43902439 | I6: 12.19512195 | J6: 2.43902439 | K6: 7.317073171 | L6: =L48 -> 2.5 | M6: =M48 -> 41 | N6: =IF($M6=0,0,N48/$M6*100) -> 56.09756098 | O6: 31.70731707 | P6: 43.90243902 | Q6: 31.70731707 | R6: 17.07317073 | S6: 51.2195122 | T6: 26.82926829 | U6: 68.29268293 | V6: 19.51219512 | W6: 31.70731707 | X6: 29.26829268 | Y6: 4.87804878 | Z6: 4.87804878
A7: 配置医師の勤務形態 | B7: 非常勤２名以上 | C7: 319 | D7: 10.65830721 | E7: 27.89968652 | F7: 18.80877743 | G7: 14.73354232 | H7: 7.523510972 | I7: 7.836990596 | J7: 1.253918495 | K7: 11.28526646 | L7: =L49 -> 2.243816254 | M7: 319 | N7: 60.81504702 | O7: 50.47021944 | P7: 34.48275862 | Q7: 29.15360502 | R7: 12.53918495 | S7: 61.44200627 | T7: 24.45141066 | U7: 66.14420063 | V7: 16.92789969 | W7: 30.72100313 | X7: 38.87147335 | Y7: 2.821316614 | Z7: 6.5830721
B8: 非常勤１名 | C8: 671 | D8: 10.87928465 | E8: 30.2533532 | F8: 22.50372578 | G8: 11.32637854 | H8: 7.302533532 | I8: 10.28315946 | J8: 0 | K8: 7.451564829 | L8: 2.15136876 | M8: 671 | N8: 56.4828614 | O8: 50.22354694 | P8: 37.70491803 | Q8: 26.2295082 | R8: 11.47540984 | S8: 59.91058122 | T8: 21.7585693 | U8: 58.42026826 | V8: 14.75409836 | W8: 31.29657228 | X8: 28.16691505 | Y8: 2.086438152 | Z8: 6.408345753
B9: エラー・無回答 | C9: 58 | D9: 10.34482759 | E9: 24.13793103 | F9: 17.24137931 | G9: 10.34482759 | H9: 15.51724138 | I9: 6.896551724 | J9: 0 | K9: 15.51724138 | L9: 2.265306122 | M9: 58 | N9: 81.03448276 | O9: 67.24137931 | P9: 74.13793103 | Q9: 39.65517241 | R9: 13.79310345 | S9: 77.5862069 | T9: 48.27586207 | U9: 62.06896552 | V9: 27.5862069 | W9: 17.24137931 | X9: 55.17241379 | Y9: 0 | Z9: 13.79310345
A10: 問６(1)SQ③a | B10: ４時間未満 | C10: 36 | D10: 13.88888889 | E10: 41.66666667 | F10: 19.44444444 | G10: 13.88888889 | H10: 5.555555556 | I10: 0 | J10: 0 | K10: 5.555555556 | L10: 1.529411765 | M10: 36 | N10: 72.22222222 | O10: 61.11111111 | P10: 58.33333333 | Q10: 36.11111111 | R10: 8.333333333 | S10: 58.33333333 | T10: 33.33333333 | U10: 44.44444444 | V10: 8.333333333 | W10: 13.88888889 | X10: 30.55555556 | Y10: 2.777777778 | Z10: 11.11111111
A11: 契約上責任を持つ | B11: ４～６時間未満 | C11: 94 | D11: 9.574468085 | E11: 31.91489362 | F11: 20.21276596 | G11: 11.70212766 | H11: 8.510638298 | I11: 8.510638298 | J11: 0 | K11: 9.574468085 | L11: 2.070588235 | M11: 94 | N11: 56.38297872 | O11: 45.74468085 | P11: 37.23404255 | Q11: 22.34042553 | R11: 7.446808511 | S11: 55.31914894 | T11: 10.63829787 | U11: 59.57446809 | V11: 10.63829787 | W11: 31.91489362 | X11: 27.65957447 | Y11: 1.063829787 | Z11: 4.255319149
A12: 時間 | B12: ６～８時間未満 | C12: 40 | D12: 10 | E12: 25 | F12: 27.5 | G12: 5 | H12: 17.5 | I12: 7.5 | J12: 0 | K12: 7.5 | L12: 2.243243243 | M12: 40 | N12: 52.5 | O12: 52.5 | P12: 27.5 | Q12: 10 | R12: 10 | S12: 57.5 | T12: 17.5 | U12: 55 | V12: 15 | W12: 40 | X12: 27.5 | Y12: 0 | Z12: 7.5
A13: （施設単位） | B13: ８～10時間未満 | C13: 161 | D13: 13.66459627 | E13: 37.26708075 | F13: 24.22360248 | G13: 4.968944099 | H13: 4.347826087 | I13: 8.695652174 | J13: 0.6211180124 | K13: 6.211180124 | L13: 1.854304636 | M13: 161 | N13: 57.76397516 | O13: 54.03726708 | P13: 38.50931677 | Q13: 27.32919255 | R13: 10.55900621 | S13: 59.00621118 | T13: 22.36024845 | U13: 62.11180124 | V13: 19.8757764 | W13: 35.40372671 | X13: 28.57142857 | Y13: 3.726708075 | Z13: 5.590062112
B14: 10～15時間未満 | C14: 126 | D14: 12.6984127 | E14: 27.77777778 | F14: 23.80952381 | G14: 11.11111111 | H14: 5.555555556 | I14: 11.11111111 | J14: 0 | K14: 7.936507937 | L14: 2.155172414 | M14: 126 | N14: 61.11111111 | O14: 49.20634921 | P14: 38.0952381 | Q14: 30.15873016 | R14: 15.07936508 | S14: 63.49206349 | T14: 24.6031746 | U14: 61.11111111 | V14: 13.49206349 | W14: 28.57142857 | X14: 32.53968254 | Y14: 0.7936507937 | Z14: 6.349206349
B15: 15～20時間未満 | C15: 127 | D15: 5.511811024 | E15: 29.92125984 | F15: 24.40944882 | G15: 18.8976378 | H15: 5.511811024 | I15: 9.448818898 | J15: 0 | K15: 6.299212598 | L15: 2.268907563 | M15: 127 | N15: 59.84251969 | O15: 54.33070866 | P15: 38.58267717 | Q15: 29.13385827 | R15: 11.81102362 | S15: 66.14173228 | T15: 26.77165354 | U15: 64.56692913 | V15: 18.8976378 | W15: 33.07086614 | X15: 33.85826772 | Y15: 1.57480315 | Z15: 7.086614173
B16: 20～30時間未満 | C16: 65 | D16: 13.84615385 | E16: 21.53846154 | F16: 10.76923077 | G16: 24.61538462 | H16: 7.692307692 | I16: 13.84615385 | J16: 0 | K16: 7.692307692 | L16: 2.533333333 | M16: 65 | N16: 46.15384615 | O16: 44.61538462 | P16: 23.07692308 | Q16: 26.15384615 | R16: 10.76923077 | S16: 63.07692308 | T16: 21.53846154 | U16: 63.07692308 | V16: 9.230769231 | W16: 32.30769231 | X16: 33.84615385 | Y16: 9.230769231 | Z16: 4.615384615
B17: 30～50時間未満 | C17: 57 | D17: 10.52631579 | E17: 21.05263158 | F17: 22.80701754 | G17: 14.03508772 | H17: 8.771929825 | I17: 15.78947368 | J17: 1.754385965 | K17: 5.263157895 | L17: 2.777777778 | M17: 57 | N17: 63.15789474 | O17: 43.85964912 | P17: 36.84210526 | Q17: 29.8245614 | R17: 8.771929825 | S17: 63.15789474 | T17: 28.07017544 | U17: 63.15789474 | V17: 14.03508772 | W17: 28.07017544 | X17: 36.84210526 | Y17: 0 | Z17: 3.50877193
B18: 50～100時間未満 | C18: 20 | D18: 20 | E18: 30 | F18: 10 | G18: 15 | H18: 0 | I18: 20 | J18: 5 | K18: 0 | L18: 2.7 | M18: 20 | N18: 50 | O18: 40 | P18: 30 | Q18: 15 | R18: 10 | S18: 65 | T18: 25 | U18: 55 | V18: 10 | W18: 35 | X18: 30 | Y18: 5 | Z18: 0
B19: 100時間以上 | C19: 88 | D19: 14.77272727 | E19: 21.59090909 | F19: 20.45454545 | G19: 15.90909091 | H19: 7.954545455 | I19: 6.818181818 | J19: 2.272727273 | K19: 10.22727273 | L19: 2.303797468 | M19: 88 | N19: 59.09090909 | O19: 45.45454545 | P19: 38.63636364 | Q19: 29.54545455 | R19: 12.5 | S19: 50 | T19: 25 | U19: 60.22727273 | V19: 23.86363636 | W19: 28.40909091 | X19: 30.68181818 | Y19: 4.545454545 | Z19: 4.545454545
B20: エラー・無回答 | C20: 205 | D20: 7.804878049 | E20: 30.24390244 | F20: 18.53658537 | G20: 11.70731707 | H20: 8.780487805 | I20: 9.756097561 | J20: 0 | K20: 13.17073171 | L20: 2.258426966 | M20: 205 | N20: 56.09756098 | O20: 48.29268293 | P20: 35.12195122 | Q20: 27.31707317 | R20: 15.6097561 | S20: 60.97560976 | T20: 21.95121951 | U20: 63.41463415 | V20: 14.14634146 | W20: 30.73170732 | X20: 32.19512195 | Y20: 0.9756097561 | Z20: 8.292682927
A21: 問６(1)SQ③b | B21: ４時間未満 | C21: 55 | D21: 16.36363636 | E21: 30.90909091 | F21: 25.45454545 | G21: 5.454545455 | H21: 3.636363636 | I21: 9.090909091 | J21: 0 | K21: 9.090909091 | L21: 1.84 | M21: 55 | N21: 70.90909091 | O21: 56.36363636 | P21: 52.72727273 | Q21: 34.54545455 | R21: 16.36363636 | S21: 50.90909091 | T21: 27.27272727 | U21: 54.54545455 | V21: 18.18181818 | W21: 25.45454545 | X21: 30.90909091 | Y21: 1.818181818 | Z21: 7.272727273
A22: 実際に施設で勤務 | B22: ４～６時間未満 | C22: 140 | D22: =IF($C22=0,0,D64/$C22*100) -> 10 | E22: 30 | F22: 24.28571429 | G22: 14.28571429 | H22: 6.428571429 | I22: 7.142857143 | J22: 0 | K22: 7.857142857 | L22: 2.031007752 | M22: 140 | N22: =IF($M22=0,0,N64/$M22*100) -> 50 | O22: 45.71428571 | P22: 33.57142857 | Q22: 22.14285714 | R22: 7.142857143 | S22: 57.85714286 | T22: 15 | U22: 58.57142857 | V22: 10 | W22: 27.85714286 | X22: 22.85714286 | Y22: 2.857142857 | Z22: 5.714285714
A23: する時間 | B23: ６～８時間未満 | C23: 72 | D23: 19.44444444 | E23: 27.77777778 | F23: 20.83333333 | G23: 6.944444444 | H23: 12.5 | I23: 5.555555556 | J23: 0 | K23: 6.944444444 | L23: =L65 -> 1.820895522 | M23: 72 | N23: 62.5 | O23: 52.77777778 | P23: 34.72222222 | Q23: 16.66666667 | R23: 6.944444444 | S23: 61.11111111 | T23: 19.44444444 | U23: 55.55555556 | V23: 16.66666667 | W23: 27.77777778 | X23: 37.5 | Y23: 0 | Z23: 6.944444444
A24: （施設単位） | B24: ８～10時間未満 | C24: 201 | D24: 11.94029851 | E24: 34.32835821 | F24: 26.3681592 | G24: 6.467661692 | H24: 5.970149254 | I24: 9.452736318 | J24: 0.4975124378 | K24: 4.975124378 | L24: 2 | M24: 201 | N24: 55.2238806 | O24: 52.23880597 | P24: 35.32338308 | Q24: 23.88059701 | R24: 11.44278607 | S24: 60.19900498 | T24: 19.90049751 | U24: 59.2039801 | V24: 17.91044776 | W24: 34.32835821 | X24: 24.87562189 | Y24: 2.985074627 | Z24: 4.975124378
B25: 10～15時間未満 | C25: 170 | D25: 10 | E25: 29.41176471 | F25: 22.35294118 | G25: 11.76470588 | H25: 7.058823529 | I25: 11.17647059 | J25: 0 | K25: 8.235294118 | L25: 2.217948718 | M25: 170 | N25: 64.11764706 | O25: 49.41176471 | P25: 40 | Q25: 27.64705882 | R25: 11.17647059 | S25: 61.76470588 | T25: 24.11764706 | U25: 61.76470588 | V25: 14.11764706 | W25: 31.76470588 | X25: 37.05882353 | Y25: 1.764705882 | Z25: 5.294117647
B26: 15～20時間未満 | C26: 129 | D26: 6.201550388 | E26: 30.23255814 | F26: 18.60465116 | G26: 22.48062016 | H26: 6.201550388 | I26: 7.751937984 | J26: 0 | K26: 8.527131783 | L26: 2.245762712 | M26: 129 | N26: 60.46511628 | O26: 56.58914729 | P26: 38.75968992 | Q26: 34.88372093 | R26: 16.27906977 | S26: 64.34108527 | T26: 28.68217054 | U26: 68.21705426 | V26: 20.15503876 | W26: 31.78294574 | X26: 39.53488372 | Y26: 0.7751937984 | Z26: 9.302325581
B27: 20～30時間未満 | C27: 84 | D27: 11.9047619 | E27: 16.66666667 | F27: 14.28571429 | G27: 17.85714286 | H27: 11.9047619 | I27: 11.9047619 | J27: 0 | K27: 15.47619048 | L27: 2.577464789 | M27: 84 | N27: 53.57142857 | O27: 50 | P27: 29.76190476 | Q27: 35.71428571 | R27: 16.66666667 | S27: 63.0952381 | T27: 26.19047619 | U27: 66.66666667 | V27: 16.66666667 | W27: 32.14285714 | X27: 36.9047619 | Y27: 7.142857143 | Z27: 5.952380952
B28: 30～50時間未満 | C28: 54 | D28: 9.259259259 | E28: 22.22222222 | F28: 14.81481481 | G28: 16.66666667 | H28: 7.407407407 | I28: 20.37037037 | J28: 1.851851852 | K28: 7.407407407 | L28: 3.04 | M28: 54 | N28: 66.66666667 | O28: 33.33333333 | P28: 37.03703704 | Q28: 33.33333333 | R28: 9.259259259 | S28: 61.11111111 | T28: 25.92592593 | U28: 57.40740741 | V28: 12.96296296 | W28: 29.62962963 | X28: 31.48148148 | Y28: 0 | Z28: 1.851851852
B29: 50～100時間未満 | C29: 24 | D29: 20.83333333 | E29: 33.33333333 | F29: 8.333333333 | G29: 12.5 | H29: 0 | I29: 12.5 | J29: 4.166666667 | K29: 8.333333333 | L29: 2.227272727 | M29: 24 | N29: 33.33333333 | O29: 29.16666667 | P29: 25 | Q29: 12.5 | R29: 4.166666667 | S29: 54.16666667 | T29: 20.83333333 | U29: 50 | V29: 4.166666667 | W29: 37.5 | X29: 20.83333333 | Y29: 12.5 | Z29: 4.166666667
B30: 100時間以上 | C30: 22 | D30: 9.090909091 | E30: 31.81818182 | F30: 4.545454545 | G30: 18.18181818 | H30: 4.545454545 | I30: 18.18181818 | J30: 9.090909091 | K30: 4.545454545 | L30: 3.476190476 | M30: 22 | N30: 63.63636364 | O30: 59.09090909 | P30: 36.36363636 | Q30: 31.81818182 | R30: 31.81818182 | S30: 50 | T30: 27.27272727 | U30: 63.63636364 | V30: 27.27272727 | W30: 22.72727273 | X30: 31.81818182 | Y30: 0 | Z30: 9.090909091
B31: エラー・無回答 | C31: 68 | D31: 4.411764706 | E31: 33.82352941 | F31: 20.58823529 | G31: 11.76470588 | H31: 8.823529412 | I31: 5.882352941 | J31: 0 | K31: 14.70588235 | L31: 2.155172414 | M31: 68 | N31: 50 | O31: 44.11764706 | P31: 36.76470588 | Q31: 23.52941176 | R31: 11.76470588 | S31: 61.76470588 | T31: 25 | U31: 69.11764706 | V31: 11.76470588 | W31: 35.29411765 | X31: 29.41176471 | Y31: 0 | Z31: 8.823529412
A32: 問６(2)① | B32: 日常の健康管理のための診察・診療 | C32: 1019 | D32: 10.89303238 | E32: 29.34249264 | F32: 21.19725221 | G32: 12.46319921 | H32: 7.26202159 | I32: 9.617271835 | J32: 0.4906771344 | K32: 8.734052993 | L32: 2.197849462
A33: 実際に担っている | B33: 検査結果や介護・生活上での留意点の職員への説明 | C33: 826 | D33: 10.89588378 | E33: 29.17675545 | F33: 21.18644068 | G33: 12.22760291 | H33: 7.748184019 | I33: 9.564164649 | J33: 0.6053268765 | K33: 8.595641646 | L33: 2.22384106
A34: 配置医師の役割 | B34: 予防接種の実施 | C34: 954 | D34: 11.21593291 | E34: 29.14046122 | F34: 21.06918239 | G34: 11.84486373 | H34: 7.756813417 | I34: 9.538784067 | J34: 0.4192872117 | K34: 9.014675052 | L34: 2.19124424
A35: （複数回答） | B35: 病状や状態の変化等への備えに関する指示書の作成 | C35: 633 | D35: 9.636650869 | E35: 28.75197472 | F35: 20.5371248 | G35: 13.27014218 | H35: 6.793048973 | I35: 10.74249605 | J35: 0.7898894155 | K35: 9.478672986 | L35: 2.303664921
B36: リハビリテーションや介護予防等の指示書の作成 | C36: 164 | D36: 4.268292683 | E36: 32.92682927 | F36: 18.29268293 | G36: 10.36585366 | H36: 8.536585366 | I36: 13.41463415 | J36: 0.6097560976 | K36: 11.58536585 | L36: 2.565517241
B37: 施設の求めに応じた急変対応（往診、休日夜間対応等） | C37: 733 | D37: 12.14188267 | E37: 28.37653479 | F37: 20.32742156 | G37: 11.45975443 | H37: 6.957708049 | I37: 11.18690314 | J37: 0.272851296 | K37: 9.276944065 | L37: 2.212030075
B38: ターミナルケア・看取りに対する入所者や家族へのメンタルサポート | C38: 673 | D38: =IF($C38=0,0,D80/$C38*100) -> 10.99554235 | E38: 28.38038633 | F38: 21.09955423 | G38: 11.44130758 | H38: 7.726597325 | I38: 10.99554235 | J38: 0.5943536404 | K38: 8.766716196 | L38: 2.262214984
B39: 外部医療機関との連携 | C39: 817 | D39: 10.52631579 | E39: 28.15177479 | F39: 21.41982864 | G39: 12.60709914 | H39: 7.833537332 | I39: 10.15911873 | J39: 0.611995104 | K39: 8.690330477 | L39: =L81 -> 2.264075067
B40: 入所者の日常的な生活や介護の状況を常に把握 | C40: 432 | D40: 10.41666667 | E40: 29.86111111 | F40: 20.83333333 | G40: 12.03703704 | H40: 7.638888889 | I40: 9.953703704 | J40: 0.2314814815 | K40: 9.027777778 | L40: =L82 -> 2.216284987
B41: 施設の運営状況・職員の能力等の理解 | C41: 241 | D41: 8.713692946 | E41: 29.87551867 | F41: 21.57676349 | G41: 12.86307054 | H41: 7.883817427 | I41: 10.78838174 | J41: 0.4149377593 | K41: 7.883817427 | L41: =L83 -> 2.328828829
B42: 感染症対策に関する相談対応・指導 | C42: 787 | D42: 11.18170267 | E42: 29.47903431 | F42: 21.47395172 | G42: 11.30876747 | H42: 7.369758577 | I42: 10.03811944 | J42: 0.5082592122 | K42: 8.640406607 | L42: =L84 -> 2.200278164
B43: 無回答 | C43: 62 | D43: 9.677419355 | E43: 25.80645161 | F43: 17.74193548 | G43: 12.90322581 | H43: 12.90322581 | I43: 6.451612903 | J43: 0 | K43: 14.51612903 | L43: =L85 -> 2.20754717
A46: 全 体 | C46: 1089 | D46: 118 | E46: 319 | F46: 227 | G46: 136 | H46: 83 | I46: 103 | J46: 5 | K46: 98 | L46: 2.196770938 | M46: 1089 | N46: 643 | O46: 550 | P46: 424 | Q46: 305 | R46: 132 | S46: 664 | T46: 263 | U46: 667 | V46: 177 | W46: 331 | X46: 357 | Y46: 25 | Z46: 74
A48: 問６(1) | B48: 常勤医師あり | C48: 41 | D48: 5 | E48: 13 | F48: 6 | G48: 7 | H48: 1 | I48: 5 | J48: 1 | K48: 3 | L48: 2.5 | M48: 41 | N48: 23 | O48: 13 | P48: 18 | Q48: 13 | R48: 7 | S48: 21 | T48: 11 | U48: 28 | V48: 8 | W48: 13 | X48: 12 | Y48: 2 | Z48: 2
A49: 配置医師の勤務形態 | B49: 非常勤２名以上 | C49: 319 | D49: 34 | E49: 89 | F49: 60 | G49: 47 | H49: 24 | I49: 25 | J49: 4 | K49: 36 | L49: 2.243816254 | M49: 319 | N49: 194 | O49: 161 | P49: 110 | Q49: 93 | R49: 40 | S49: 196 | T49: 78 | U49: 211 | V49: 54 | W49: 98 | X49: 124 | Y49: 9 | Z49: 21
B50: 非常勤１名 | C50: 671 | D50: 73 | E50: 203 | F50: 151 | G50: 76 | H50: 49 | I50: 69 | J50: 0 | K50: 50 | L50: 2.15136876 | M50: 671 | N50: 379 | O50: 337 | P50: 253 | Q50: 176 | R50: 77 | S50: 402 | T50: 146 | U50: 392 | V50: 99 | W50: 210 | X50: 189 | Y50: 14 | Z50: 43
B51: エラー・無回答 | C51: 58 | D51: 6 | E51: 14 | F51: 10 | G51: 6 | H51: 9 | I51: 4 | J51: 0 | K51: 9 | L51: 2.265306122 | M51: 58 | N51: 47 | O51: 39 | P51: 43 | Q51: 23 | R51: 8 | S51: 45 | T51: 28 | U51: 36 | V51: 16 | W51: 10 | X51: 32 | Y51: 0 | Z51: 8
A52: 問６(1)SQ③a | B52: ４時間未満 | C52: 36 | D52: 5 | E52: 15 | F52: 7 | G52: 5 | H52: 2 | I52: 0 | J52: 0 | K52: 2 | L52: 1.529411765 | M52: 36 | N52: 26 | O52: 22 | P52: 21 | Q52: 13 | R52: 3 | S52: 21 | T52: 12 | U52: 16 | V52: 3 | W52: 5 | X52: 11 | Y52: 1 | Z52: 4
A53: 契約上責任を持つ | B53: ４～６時間未満 | C53: 94 | D53: 9 | E53: 30 | F53: 19 | G53: 11 | H53: 8 | I53: 8 | J53: 0 | K53: 9 | L53: 2.070588235 | M53: 94 | N53: 53 | O53: 43 | P53: 35 | Q53: 21 | R53: 7 | S53: 52 | T53: 10 | U53: 56 | V53: 10 | W53: 30 | X53: 26 | Y53: 1 | Z53: 4
A54: 時間 | B54: ６～８時間未満 | C54: 40 | D54: 4 | E54: 10 | F54: 11 | G54: 2 | H54: 7 | I54: 3 | J54: 0 | K54: 3 | L54: 2.243243243 | M54: 40 | N54: 21 | O54: 21 | P54: 11 | Q54: 4 | R54: 4 | S54: 23 | T54: 7 | U54: 22 | V54: 6 | W54: 16 | X54: 11 | Y54: 0 | Z54: 3
A55: （施設単位） | B55: ８～10時間未満 | C55: 161 | D55: 22 | E55: 60 | F55: 39 | G55: 8 | H55: 7 | I55: 14 | J55: 1 | K55: 10 | L55: 1.854304636 | M55: 161 | N55: 93 | O55: 87 | P55: 62 | Q55: 44 | R55: 17 | S55: 95 | T55: 36 | U55: 100 | V55: 32 | W55: 57 | X55: 46 | Y55: 6 | Z55: 9
B56: 10～15時間未満 | C56: 126 | D56: 16 | E56: 35 | F56: 30 | G56: 14 | H56: 7 | I56: 14 | J56: 0 | K56: 10 | L56: 2.155172414 | M56: 126 | N56: 77 | O56: 62 | P56: 48 | Q56: 38 | R56: 19 | S56: 80 | T56: 31 | U56: 77 | V56: 17 | W56: 36 | X56: 41 | Y56: 1 | Z56: 8
B57: 15～20時間未満 | C57: 127 | D57: 7 | E57: 38 | F57: 31 | G57: 24 | H57: 7 | I57: 12 | J57: 0 | K57: 8 | L57: 2.268907563 | M57: 127 | N57: 76 | O57: 69 | P57: 49 | Q57: 37 | R57: 15 | S57: 84 | T57: 34 | U57: 82 | V57: 24 | W57: 42 | X57: 43 | Y57: 2 | Z57: 9
B58: 20～30時間未満 | C58: 65 | D58: 9 | E58: 14 | F58: 7 | G58: 16 | H58: 5 | I58: 9 | J58: 0 | K58: 5 | L58: 2.533333333 | M58: 65 | N58: 30 | O58: 29 | P58: 15 | Q58: 17 | R58: 7 | S58: 41 | T58: 14 | U58: 41 | V58: 6 | W58: 21 | X58: 22 | Y58: 6 | Z58: 3
B59: 30～50時間未満 | C59: 57 | D59: 6 | E59: 12 | F59: 13 | G59: 8 | H59: 5 | I59: 9 | J59: 1 | K59: 3 | L59: 2.777777778 | M59: 57 | N59: 36 | O59: 25 | P59: 21 | Q59: 17 | R59: 5 | S59: 36 | T59: 16 | U59: 36 | V59: 8 | W59: 16 | X59: 21 | Y59: 0 | Z59: 2
B60: 50～100時間未満 | C60: 20 | D60: 4 | E60: 6 | F60: 2 | G60: 3 | H60: 0 | I60: 4 | J60: 1 | K60: 0 | L60: 2.7 | M60: 20 | N60: 10 | O60: 8 | P60: 6 | Q60: 3 | R60: 2 | S60: 13 | T60: 5 | U60: 11 | V60: 2 | W60: 7 | X60: 6 | Y60: 1 | Z60: 0
B61: 100時間以上 | C61: 88 | D61: 13 | E61: 19 | F61: 18 | G61: 14 | H61: 7 | I61: 6 | J61: 2 | K61: 9 | L61: 2.303797468 | M61: 88 | N61: 52 | O61: 40 | P61: 34 | Q61: 26 | R61: 11 | S61: 44 | T61: 22 | U61: 53 | V61: 21 | W61: 25 | X61: 27 | Y61: 4 | Z61: 4
B62: エラー・無回答 | C62: 205 | D62: 16 | E62: 62 | F62: 38 | G62: 24 | H62: 18 | I62: 20 | J62: 0 | K62: 27 | L62: 2.258426966 | M62: 205 | N62: 115 | O62: 99 | P62: 72 | Q62: 56 | R62: 32 | S62: 125 | T62: 45 | U62: 130 | V62: 29 | W62: 63 | X62: 66 | Y62: 2 | Z62: 17
A63: 問６(1)SQ③b | B63: ４時間未満 | C63: 55 | D63: 9 | E63: 17 | F63: 14 | G63: 3 | H63: 2 | I63: 5 | J63: 0 | K63: 5 | L63: 1.84 | M63: 55 | N63: 39 | O63: 31 | P63: 29 | Q63: 19 | R63: 9 | S63: 28 | T63: 15 | U63: 30 | V63: 10 | W63: 14 | X63: 17 | Y63: 1 | Z63: 4
A64: 実際に施設で勤務 | B64: ４～６時間未満 | C64: 140 | D64: 14 | E64: 42 | F64: 34 | G64: 20 | H64: 9 | I64: 10 | J64: 0 | K64: 11 | L64: 2.031007752 | M64: 140 | N64: 70 | O64: 64 | P64: 47 | Q64: 31 | R64: 10 | S64: 81 | T64: 21 | U64: 82 | V64: 14 | W64: 39 | X64: 32 | Y64: 4 | Z64: 8
A65: する時間 | B65: ６～８時間未満 | C65: 72 | D65: 14 | E65: 20 | F65: 15 | G65: 5 | H65: 9 | I65: 4 | J65: 0 | K65: 5 | L65: 1.820895522 | M65: 72 | N65: 45 | O65: 38 | P65: 25 | Q65: 12 | R65: 5 | S65: 44 | T65: 14 | U65: 40 | V65: 12 | W65: 20 | X65: 27 | Y65: 0 | Z65: 5
A66: （施設単位） | B66: ８～10時間未満 | C66: 201 | D66: 24 | E66: 69 | F66: 53 | G66: 13 | H66: 12 | I66: 19 | J66: 1 | K66: 10 | L66: 2 | M66: 201 | N66: 111 | O66: 105 | P66: 71 | Q66: 48 | R66: 23 | S66: 121 | T66: 40 | U66: 119 | V66: 36 | W66: 69 | X66: 50 | Y66: 6 | Z66: 10
B67: 10～15時間未満 | C67: 170 | D67: 17 | E67: 50 | F67: 38 | G67: 20 | H67: 12 | I67: 19 | J67: 0 | K67: 14 | L67: 2.217948718 | M67: 170 | N67: 109 | O67: 84 | P67: 68 | Q67: 47 | R67: 19 | S67: 105 | T67: 41 | U67: 105 | V67: 24 | W67: 54 | X67: 63 | Y67: 3 | Z67: 9
B68: 15～20時間未満 | C68: 129 | D68: 8 | E68: 39 | F68: 24 | G68: 29 | H68: 8 | I68: 10 | J68: 0 | K68: 11 | L68: 2.245762712 | M68: 129 | N68: 78 | O68: 73 | P68: 50 | Q68: 45 | R68: 21 | S68: 83 | T68: 37 | U68: 88 | V68: 26 | W68: 41 | X68: 51 | Y68: 1 | Z68: 12
B69: 20～30時間未満 | C69: 84 | D69: 10 | E69: 14 | F69: 12 | G69: 15 | H69: 10 | I69: 10 | J69: 0 | K69: 13 | L69: 2.577464789 | M69: 84 | N69: 45 | O69: 42 | P69: 25 | Q69: 30 | R69: 14 | S69: 53 | T69: 22 | U69: 56 | V69: 14 | W69: 27 | X69: 31 | Y69: 6 | Z69: 5
B70: 30～50時間未満 | C70: 54 | D70: 5 | E70: 12 | F70: 8 | G70: 9 | H70: 4 | I70: 11 | J70: 1 | K70: 4 | L70: 3.04 | M70: 54 | N70: 36 | O70: 18 | P70: 20 | Q70: 18 | R70: 5 | S70: 33 | T70: 14 | U70: 31 | V70: 7 | W70: 16 | X70: 17 | Y70: 0 | Z70: 1
B71: 50～100時間未満 | C71: 24 | D71: 5 | E71: 8 | F71: 2 | G71: 3 | H71: 0 | I71: 3 | J71: 1 | K71: 2 | L71: 2.227272727 | M71: 24 | N71: 8 | O71: 7 | P71: 6 | Q71: 3 | R71: 1 | S71: 13 | T71: 5 | U71: 12 | V71: 1 | W71: 9 | X71: 5 | Y71: 3 | Z71: 1
B72: 100時間以上 | C72: 22 | D72: 2 | E72: 7 | F72: 1 | G72: 4 | H72: 1 | I72: 4 | J72: 2 | K72: 1 | L72: 3.476190476 | M72: 22 | N72: 14 | O72: 13 | P72: 8 | Q72: 7 | R72: 7 | S72: 11 | T72: 6 | U72: 14 | V72: 6 | W72: 5 | X72: 7 | Y72: 0 | Z72: 2
B73: エラー・無回答 | C73: 68 | D73: 3 | E73: 23 | F73: 14 | G73: 8 | H73: 6 | I73: 4 | J73: 0 | K73: 10 | L73: 2.155172414 | M73: 68 | N73: 34 | O73: 30 | P73: 25 | Q73: 16 | R73: 8 | S73: 42 | T73: 17 | U73: 47 | V73: 8 | W73: 24 | X73: 20 | Y73: 0 | Z73: 6
A74: 問６(2)① | B74: 日常の健康管理のための診察・診療 | C74: 1019 | D74: 111 | E74: 299 | F74: 216 | G74: 127 | H74: 74 | I74: 98 | J74: 5 | K74: 89 | L74: 2.197849462
A75: 実際に担っている | B75: 検査結果や介護・生活上での留意点の職員への説明 | C75: 826 | D75: 90 | E75: 241 | F75: 175 | G75: 101 | H75: 64 | I75: 79 | J75: 5 | K75: 71 | L75: 2.22384106
A76: 配置医師の役割 | B76: 予防接種の実施 | C76: 954 | D76: 107 | E76: 278 | F76: 201 | G76: 113 | H76: 74 | I76: 91 | J76: 4 | K76: 86 | L76: 2.19124424
A77: （複数回答） | B77: 病状や状態の変化等への備えに関する指示書の作成 | C77: 633 | D77: 61 | E77: 182 | F77: 130 | G77: 84 | H77: 43 | I77: 68 | J77: 5 | K77: 60 | L77: 2.303664921
B78: リハビリテーションや介護予防等の指示書の作成 | C78: 164 | D78: 7 | E78: 54 | F78: 30 | G78: 17 | H78: 14 | I78: 22 | J78: 1 | K78: 19 | L78: 2.565517241
B79: 施設の求めに応じた急変対応（往診、休日夜間対応等） | C79: 733 | D79: 89 | E79: 208 | F79: 149 | G79: 84 | H79: 51 | I79: 82 | J79: 2 | K79: 68 | L79: 2.212030075
B80: ターミナルケア・看取りに対する入所者や家族へのメンタルサポート | C80: 673 | D80: 74 | E80: 191 | F80: 142 | G80: 77 | H80: 52 | I80: 74 | J80: 4 | K80: 59 | L80: 2.262214984
B81: 外部医療機関との連携 | C81: 817 | D81: 86 | E81: 230 | F81: 175 | G81: 103 | H81: 64 | I81: 83 | J81: 5 | K81: 71 | L81: 2.264075067
B82: 入所者の日常的な生活や介護の状況を常に把握 | C82: 432 | D82: 45 | E82: 129 | F82: 90 | G82: 52 | H82: 33 | I82: 43 | J82: 1 | K82: 39 | L82: 2.216284987
B83: 施設の運営状況・職員の能力等の理解 | C83: 241 | D83: 21 | E83: 72 | F83: 52 | G83: 31 | H83: 19 | I83: 26 | J83: 1 | K83: 19 | L83: 2.328828829
B84: 感染症対策に関する相談対応・指導 | C84: 787 | D84: 88 | E84: 232 | F84: 169 | G84: 89 | H84: 58 | I84: 79 | J84: 4 | K84: 68 | L84: 2.200278164
B85: 無回答 | C85: 62 | D85: 6 | E85: 16 | F85: 11 | G85: 8 | H85: 8 | I85: 4 | J85: 0 | K85: 9 | L85: 2.20754717

Sheet 配置医師-⑦-1-2
A1: =RIGHT(CELL("filename",A1),LEN(CELL("filename",A1))-FIND("]",CELL("filename",A1))) -> 配置医師-⑦-1-2 | D1: 問７(4)① 協力・連携関係にある医療機関
E2: ※「配置医師/医療機関」×「担っている/いない」の４区分で100％になるように集計
D3: 全体 | E3: （表側の項目を） 協力・連携関係 にある医療機関が 担っている | F3: （表側の項目を） 協力・連携関係 にある医療機関が 担っていない
B4: 全 体 | D4: 1089
A5: 問６(2)① | B5: 日常の健康管理のための診察・診療 | C5: 配置医師が担っている | D5: =D29 -> 1019 | E5: 53.6271809 | F5: 39.94490358
A6: 配置医師が | C6: 配置医師が担っていない | D6: 70 | E6: 5.417814509 | F6: 1.01010101
A7: 担っている役割 | B7: 検査結果や介護・生活上での留意点の職員への説明 | C7: 配置医師が担っている | D7: 826 | E7: 41.87327824 | F7: 33.97612489
C8: 配置医師が担っていない | D8: 263 | E8: 8.631772268 | F8: 15.51882461
B9: 予防接種の実施 | C9: 配置医師が担っている | D9: 954 | E9: 32.23140496 | F9: 55.37190083
C10: 配置医師が担っていない | D10: 135 | E10: 6.703397612 | F10: 5.693296602
B11: 病状や状態の変化等への備えに関する指示書の作成 | C11: 配置医師が担っている | D11: 633 | E11: 19.83471074 | F11: 38.29201102
C12: 配置医師が担っていない | D12: 456 | E12: 8.172635445 | F12: 33.70064279
B13: リハビリテーションや介護予防等の指示書の作成 | C13: 配置医師が担っている | D13: 164 | E13: 5.601469238 | F13: 9.458218549
C14: 配置医師が担っていない | D14: 925 | E14: 6.519742883 | F14: 78.42056933
B15: 施設の求めに応じた急変対応（往診、休日夜間対応等） | C15: 配置医師が担っている | D15: 733 | E15: 42.05693297 | F15: 25.25252525
C16: 配置医師が担っていない | D16: 356 | E16: 18.9164371 | F16: 13.77410468
B17: ターミナルケア・看取りに対する入所者や家族への | C17: 配置医師が担っている | D17: 673 | E17: 18.45730028 | F17: 43.34251607
B18: メンタルサポート | C18: 配置医師が担っていない | D18: 416 | E18: 5.693296602 | F18: 32.50688705
B19: 外部医療機関との連携 | C19: 配置医師が担っている | D19: 817 | E19: 47.56657484 | F19: 27.456382
C20: 配置医師が担っていない | D20: 272 | E20: 13.68227732 | F20: 11.29476584
B21: 入所者の日常的な生活や介護の状況を常に把握 | C21: 配置医師が担っている | D21: 432 | E21: 11.84573003 | F21: 27.82369146
C22: 配置医師が担っていない | D22: 657 | E22: 4.407713499 | F22: 55.92286501
B23: 施設の運営状況・職員の能力等の理解 | C23: 配置医師が担っている | D23: 241 | E23: 9.917355372 | F23: 12.21303949
C24: 配置医師が担っていない | D24: 848 | E24: 20.4775023 | F24: 57.39210285
B25: 感染症対策に関する相談対応・指導 | C25: 配置医師が担っている | D25: 787 | E25: 26.62993572 | F25: 45.63820018
C26: 配置医師が担っていない | D26: 302 | E26: 6.152433425 | F26: 21.57943067
A29: 問６(2)① | B29: 日常の健康管理のための診察・診療 | C29: 担っている | D29: 1019
A30: 配置医師 | C30: 担っていない | D30: 70
B31: 検査結果や介護・生活上での留意点の職員への | C31: 担っている | D31: 826
B32: 説明 | C32: 担っていない | D32: 263
B33: 予防接種の実施 | C33: 担っている | D33: 954
C34: 担っていない | D34: 135
B35: 病状や状態の変化等への備えに関する指示書の | C35: 担っている | D35: 633
B36: 作成 | C36: 担っていない | D36: 456
B37: リハビリテーションや介護予防等の指示書の作 | C37: 担っている | D37: 164
B38: 成 | C38: 担っていない | D38: 925
B39: 施設の求めに応じた急変対応（往診、休日夜間 | C39: 担っている | D39: 733
B40: 対応等） | C40: 担っていない | D40: 356
B41: ターミナルケア・看取りに対する入所者や家族 | C41: 担っている | D41: 673
B42: へのメンタルサポート | C42: 担っていない | D42: 416
B43: 外部医療機関との連携 | C43: 担っている | D43: 817
C44: 担っていない | D44: 272
B45: 入所者の日常的な生活や介護の状況を常に把握 | C45: 担っている | D45: 432
C46: 担っていない | D46: 657
B47: 施設の運営状況・職員の能力等の理解 | C47: 担っている | D47: 241
C48: 担っていない | D48: 848
B49: 感染症対策に関する相談対応・指導 | C49: 担っている | D49: 787
C50: 担っていない | D50: 302

Sheet 配置医師-追加
A1: =RIGHT(CELL("filename",A1),LEN(CELL("filename",A1))-FIND("]",CELL("filename",A1))) -> 配置医師-追加 | C1: 問６(4) 配置医師の対応（複数回答） | H1: 問６(4) 配置医師の対応（複数回答） | M1: 問６(4) 配置医師の対応（複数回答） | R1: 問６(4) 配置医師の対応（複数回答）
C2: ①平日－日中 | H2: ②平日－夜間・早朝 | M2: ③休日－日中 | R2: ④休日－夜間・早朝
C3: 全体 | D3: 電話対応に加えて駆けつけ対応も行う | E3: 電話対応のみ | F3: 原則対応しない | G3: 無回答 | H3: 全体 | I3: 電話対応に加えて駆けつけ対応も行う | J3: 電話対応のみ | K3: 原則対応しない | L3: 無回答 | M3: 全体 | N3: 電話対応に加えて駆けつけ対応も行う | O3: 電話対応のみ | P3: 原則対応しない | Q3: 無回答 | R3: 全体 | S3: 電話対応に加えて駆けつけ対応も行う | T3: 電話対応のみ | U3: 原則対応しない | V3: 無回答
A4: 全 体 | C4: =C35 -> 1019 | D4: 524 | E4: 420 | F4: 60 | G4: 44 | H4: 1019 | I4: 391 | J4: 323 | K4: 258 | L4: 73 | M4: 1019 | N4: 421 | O4: 389 | P4: 181 | Q4: 62 | R4: 1019 | S4: 366 | T4: 332 | U4: 272 | V4: 75
C5: =IF(SUM(D5:G5)>100,"－",SUM(D5:G5)) -> － | D5: =D4/C4*100 -> 51.42296369 | E5: =E4/C4*100 -> 41.21687929 | F5: =F4/C4*100 -> 5.888125613 | G5: =G4/C4*100 -> 4.317958783 | H5: =IF(SUM(I5:L5)>100,"－",SUM(I5:L5)) -> － | I5: =I4/H4*100 -> 38.37095191 | J5: =J4/H4*100 -> 31.69774289 | K5: =K4/H4*100 -> 25.31894014 | L5: =L4/H4*100 -> 7.163886163 | M5: =IF(SUM(N5:Q5)>100,"－",SUM(N5:Q5)) -> － | N5: =N4/M4*100 -> 41.31501472 | O5: =O4/M4*100 -> 38.17468106 | P5: =P4/M4*100 -> 17.76251227 | Q5: =Q4/M4*100 -> 6.084396467 | R5: =IF(SUM(S5:V5)>100,"－",SUM(S5:V5)) -> － | S5: =S4/R4*100 -> 35.91756624 | T5: =T4/R4*100 -> 32.58096173 | U5: =U4/R4*100 -> 26.69283611 | V5: =V4/R4*100 -> 7.360157017
A6: 問６(1)SQ③a | B6: ４時間未満 | C6: =C37 -> 36 | D6: =IF(C6=0,0,D37/C6*100) -> 41.66666667 | E6: =IF(C6=0,0,E37/C6*100) -> 38.88888889 | F6: =IF(C6=0,0,F37/C6*100) -> 16.66666667 | G6: =IF(C6=0,0,G37/C6*100) -> 5.555555556 | H6: =H37 -> 36 | I6: =IF(H6=0,0,I37/H6*100) -> 30.55555556 | J6: =IF(H6=0,0,J37/H6*100) -> 25 | K6: =IF(H6=0,0,K37/H6*100) -> 41.66666667 | L6: =IF(H6=0,0,L37/H6*100) -> 5.555555556 | M6: =M37 -> 36 | N6: =IF(M6=0,0,N37/M6*100) -> 30.55555556 | O6: =IF(M6=0,0,O37/M6*100) -> 30.55555556 | P6: =IF(M6=0,0,P37/M6*100) -> 36.11111111 | Q6: =IF(M6=0,0,Q37/M6*100) -> 5.555555556 | R6: =R37 -> 36 | S6: =IF(R6=0,0,S37/R6*100) -> 30.55555556 | T6: =IF(R6=0,0,T37/R6*100) -> 22.22222222 | U6: =IF(R6=0,0,U37/R6*100) -> 44.44444444 | V6: =IF(R6=0,0,V37/R6*100) -> 5.555555556
A7: 契約上責任を持つ | B7: ４～６時間未満 | C7: 94 | D7: 50 | E7: 36.17021277 | F7: 10.63829787 | G7: 7.446808511 | H7: 94 | I7: 35.10638298 | J7: 22.34042553 | K7: 30.85106383 | L7: 13.82978723 | M7: 94 | N7: 38.29787234 | O7: 29.78723404 | P7: 25.53191489 | Q7: 9.574468085 | R7: 94 | S7: 31.91489362 | T7: 24.46808511 | U7: 30.85106383 | V7: 14.89361702
A8: 時間 | B8: ６～８時間未満 | C8: 40 | D8: 42.5 | E8: 55 | F8: 2.5 | G8: 0 | H8: 40 | I8: 40 | J8: 35 | K8: 22.5 | L8: 5 | M8: 40 | N8: 40 | O8: 45 | P8: 12.5 | Q8: 5 | R8: 40 | S8: 37.5 | T8: 35 | U8: 22.5 | V8: 5
A9: （施設単位） | B9: ８～10時間未満 | C9: 161 | D9: 48.44720497 | E9: 44.09937888 | F9: 4.347826087 | G9: 4.347826087 | H9: 161 | I9: 34.7826087 | J9: 29.8136646 | K9: 27.32919255 | L9: 8.695652174 | M9: 161 | N9: 35.40372671 | O9: 39.7515528 | P9: 21.11801242 | Q9: 4.968944099 | R9: 161 | S9: 30.43478261 | T9: 32.91925466 | U9: 29.8136646 | V9: 8.074534161
B10: 10～15時間未満 | C10: 126 | D10: 47.61904762 | E10: 44.44444444 | F10: 5.555555556 | G10: 3.968253968 | H10: 126 | I10: 39.68253968 | J10: 34.12698413 | K10: 23.01587302 | L10: 4.761904762 | M10: 126 | N10: 38.88888889 | O10: 38.88888889 | P10: 18.25396825 | Q10: 5.555555556 | R10: 126 | S10: 37.3015873 | T10: 34.12698413 | U10: 24.6031746 | V10: 5.555555556
B11: 15～20時間未満 | C11: 127 | D11: 48.81889764 | E11: 42.51968504 | F11: 6.299212598 | G11: 5.511811024 | H11: 127 | I11: 40.94488189 | J11: 34.64566929 | K11: 22.83464567 | L11: 6.299212598 | M11: 127 | N11: 41.73228346 | O11: 40.94488189 | P11: 14.17322835 | Q11: 7.086614173 | R11: 127 | S11: 37.79527559 | T11: 38.58267717 | U11: 22.83464567 | V11: 5.511811024
B12: 20～30時間未満 | C12: 65 | D12: 46.15384615 | E12: 58.46153846 | F12: 0 | G12: 1.538461538 | H12: 65 | I12: 29.23076923 | J12: 47.69230769 | K12: 24.61538462 | L12: 3.076923077 | M12: 65 | N12: 40 | O12: 55.38461538 | P12: 10.76923077 | Q12: 1.538461538 | R12: 65 | S12: 29.23076923 | T12: 47.69230769 | U12: 24.61538462 | V12: 3.076923077
B13: 30～50時間未満 | C13: 57 | D13: 57.89473684 | E13: 26.31578947 | F13: 10.52631579 | G13: 7.01754386 | H13: 57 | I13: 45.61403509 | J13: 15.78947368 | K13: 28.07017544 | L13: 12.28070175 | M13: 57 | N13: 47.36842105 | O13: 26.31578947 | P13: 17.54385965 | Q13: 10.52631579 | R13: 57 | S13: 43.85964912 | T13: 14.03508772 | U13: 29.8245614 | V13: 12.28070175
B14: 50～100時間未満 | C14: 20 | D14: 60 | E14: 35 | F14: 5 | G14: 0 | H14: 20 | I14: 40 | J14: 30 | K14: 30 | L14: 0 | M14: 20 | N14: 50 | O14: 35 | P14: 15 | Q14: 0 | R14: 20 | S14: 40 | T14: 20 | U14: 40 | V14: 0
B15: 100時間以上 | C15: 88 | D15: 69.31818182 | E15: 27.27272727 | F15: 5.681818182 | G15: 2.272727273 | H15: 88 | I15: 47.72727273 | J15: 23.86363636 | K15: 27.27272727 | L15: 4.545454545 | M15: 88 | N15: 52.27272727 | O15: 35.22727273 | P15: 15.90909091 | Q15: 4.545454545 | R15: 88 | S15: 44.31818182 | T15: 26.13636364 | U15: 29.54545455 | V15: 4.545454545
B16: エラー・無回答 | C16: 205 | D16: 53.17073171 | E16: 41.46341463 | F16: 4.390243902 | G16: 4.390243902 | H16: 205 | I16: 38.04878049 | J16: 37.56097561 | K16: 20 | L16: 7.317073171 | M16: 205 | N16: 43.90243902 | O16: 38.04878049 | P16: 14.63414634 | Q16: 6.829268293 | R16: 205 | S16: 36.58536585 | T16: 37.07317073 | U16: 20.97560976 | V16: 8.292682927
A17: 問６(1)SQ③b | B17: ４時間未満 | C17: 55 | D17: 49.09090909 | E17: 30.90909091 | F17: 10.90909091 | G17: 9.090909091 | H17: 55 | I17: 36.36363636 | J17: 23.63636364 | K17: 32.72727273 | L17: 9.090909091 | M17: 55 | N17: 41.81818182 | O17: 25.45454545 | P17: 27.27272727 | Q17: 7.272727273 | R17: 55 | S17: 38.18181818 | T17: 25.45454545 | U17: 30.90909091 | V17: 9.090909091
A18: 実際に施設で勤務 | B18: ４～６時間未満 | C18: 140 | D18: 49.28571429 | E18: 42.14285714 | F18: 7.857142857 | G18: 5 | H18: 140 | I18: 33.57142857 | J18: 28.57142857 | K18: 31.42857143 | L18: 9.285714286 | M18: 140 | N18: 37.85714286 | O18: 37.14285714 | P18: 22.85714286 | Q18: 5.714285714 | R18: 140 | S18: 32.14285714 | T18: 28.57142857 | U18: 32.85714286 | V18: 9.285714286
A19: する時間 | B19: ６～８時間未満 | C19: 72 | D19: 47.22222222 | E19: 50 | F19: 5.555555556 | G19: 1.388888889 | H19: 72 | I19: 43.05555556 | J19: 36.11111111 | K19: 20.83333333 | L19: 5.555555556 | M19: 72 | N19: 41.66666667 | O19: 43.05555556 | P19: 15.27777778 | Q19: 5.555555556 | R19: 72 | S19: 41.66666667 | T19: 36.11111111 | U19: 20.83333333 | V19: 5.555555556
A20: （施設単位） | B20: ８～10時間未満 | C20: 201 | D20: 51.74129353 | E20: 41.29353234 | F20: 3.482587065 | G20: 5.472636816 | H20: 201 | I20: 37.81094527 | J20: 29.35323383 | K20: 25.37313433 | L20: 8.955223881 | M20: 201 | N20: 39.30348259 | O20: 36.8159204 | P20: 19.90049751 | Q20: 6.467661692 | R20: 201 | S20: 33.33333333 | T20: 31.84079602 | U20: 27.36318408 | V20: 9.452736318
B21: 10～15時間未満 | C21: 170 | D21: 44.11764706 | E21: 47.64705882 | F21: 5.294117647 | G21: 4.705882353 | H21: 170 | I21: 37.64705882 | J21: 35.88235294 | K21: 22.35294118 | L21: 5.882352941 | M21: 170 | N21: 35.88235294 | O21: 42.35294118 | P21: 16.47058824 | Q21: 7.058823529 | R21: 170 | S21: 35.29411765 | T21: 36.47058824 | U21: 23.52941176 | V21: 6.470588235
B22: 15～20時間未満 | C22: 129 | D22: 53.48837209 | E22: 37.98449612 | F22: 6.976744186 | G22: 3.875968992 | H22: 129 | I22: 38.75968992 | J22: 33.33333333 | K22: 22.48062016 | L22: 8.527131783 | M22: 129 | N22: 43.41085271 | O22: 38.75968992 | P22: 13.95348837 | Q22: 6.976744186 | R22: 129 | S22: 35.65891473 | T22: 36.43410853 | U22: 23.25581395 | V22: 7.751937984
B23: 20～30時間未満 | C23: 84 | D23: 57.14285714 | E23: 44.04761905 | F23: 3.571428571 | G23: 1.19047619 | H23: 84 | I23: 41.66666667 | J23: 38.0952381 | K23: 22.61904762 | L23: 2.380952381 | M23: 84 | N23: 45.23809524 | O23: 46.42857143 | P23: 14.28571429 | Q23: 2.380952381 | R23: 84 | S23: 36.9047619 | T23: 40.47619048 | U23: 23.80952381 | V23: 3.571428571
B24: 30～50時間未満 | C24: 54 | D24: 62.96296296 | E24: 33.33333333 | F24: 1.851851852 | G24: 3.703703704 | H24: 54 | I24: 44.44444444 | J24: 24.07407407 | K24: 27.77777778 | L24: 5.555555556 | M24: 54 | N24: 53.7037037 | O24: 31.48148148 | P24: 12.96296296 | Q24: 3.703703704 | R24: 54 | S24: 42.59259259 | T24: 18.51851852 | U24: 33.33333333 | V24: 5.555555556
B25: 50～100時間未満 | C25: 24 | D25: 66.66666667 | E25: 25 | F25: 4.166666667 | G25: 4.166666667 | H25: 24 | I25: 50 | J25: 25 | K25: 20.83333333 | L25: 4.166666667 | M25: 24 | N25: 62.5 | O25: 25 | P25: 8.333333333 | Q25: 4.166666667 | R25: 24 | S25: 50 | T25: 20.83333333 | U25: 25 | V25: 4.166666667
B26: 100時間以上 | C26: 22 | D26: 72.72727273 | E26: 13.63636364 | F26: 13.63636364 | G26: 4.545454545 | H26: 22 | I26: 50 | J26: 22.72727273 | K26: 27.27272727 | L26: 4.545454545 | M26: 22 | N26: 59.09090909 | O26: 22.72727273 | P26: 22.72727273 | Q26: 4.545454545 | R26: 22 | S26: 50 | T26: 22.72727273 | U26: 27.27272727 | V26: 4.545454545
B27: エラー・無回答 | C27: 68 | D27: 47.05882353 | E27: 45.58823529 | F27: 8.823529412 | G27: 2.941176471 | H27: 68 | I27: 30.88235294 | J27: 36.76470588 | K27: 26.47058824 | L27: 7.352941176 | M27: 68 | N27: 35.29411765 | O27: 42.64705882 | P27: 16.17647059 | Q27: 8.823529412 | R27: 68 | S27: 29.41176471 | T27: 36.76470588 | U27: 27.94117647 | V27: 7.352941176
A28: 問６(1) | B28: 常勤医師あり | C28: =C55 -> 54 | D28: =IF(C28=0,0,D55/C28*100) -> 62.96296296 | E28: =IF(C28=0,0,E55/C28*100) -> 33.33333333 | F28: =IF(C28=0,0,F55/C28*100) -> 1.851851852 | G28: =IF(C28=0,0,G55/C28*100) -> 3.703703704 | H28: =H55 -> 54 | I28: =IF(H28=0,0,I55/H28*100) -> 44.44444444 | J28: =IF(H28=0,0,J55/H28*100) -> 24.07407407 | K28: =IF(H28=0,0,K55/H28*100) -> 27.77777778 | L28: =IF(H28=0,0,L55/H28*100) -> 5.555555556 | M28: =M55 -> 54 | N28: =IF(M28=0,0,N55/M28*100) -> 53.7037037 | O28: =IF(M28=0,0,O55/M28*100) -> 31.48148148 | P28: =IF(M28=0,0,P55/M28*100) -> 12.96296296 | Q28: =IF(M28=0,0,Q55/M28*100) -> 3.703703704 | R28: =R55 -> 54 | S28: =IF(R28=0,0,S55/R28*100) -> 42.59259259 | T28: =IF(R28=0,0,T55/R28*100) -> 18.51851852 | U28: =IF(R28=0,0,U55/R28*100) -> 33.33333333 | V28: =IF(R28=0,0,V55/R28*100) -> 5.555555556
A29: 配置医師の勤務形態 | B29: 非常勤２名以上 | C29: 24 | D29: 66.66666667 | E29: 25 | F29: 4.166666667 | G29: 4.166666667 | H29: 24 | I29: 50 | J29: 25 | K29: 20.83333333 | L29: 4.166666667 | M29: 24 | N29: 62.5 | O29: 25 | P29: 8.333333333 | Q29: 4.166666667 | R29: 24 | S29: 50 | T29: 20.83333333 | U29: 25 | V29: 4.166666667
B30: 非常勤１名 | C30: 22 | D30: 72.72727273 | E30: 13.63636364 | F30: 13.63636364 | G30: 4.545454545 | H30: 22 | I30: 50 | J30: 22.72727273 | K30: 27.27272727 | L30: 4.545454545 | M30: 22 | N30: 59.09090909 | O30: 22.72727273 | P30: 22.72727273 | Q30: 4.545454545 | R30: 22 | S30: 50 | T30: 22.72727273 | U30: 27.27272727 | V30: 4.545454545
B31: エラー・無回答 | C31: 68 | D31: 47.05882353 | E31: 45.58823529 | F31: 8.823529412 | G31: 2.941176471 | H31: 68 | I31: 30.88235294 | J31: 36.76470588 | K31: 26.47058824 | L31: 7.352941176 | M31: 68 | N31: 35.29411765 | O31: 42.64705882 | P31: 16.17647059 | Q31: 8.823529412 | R31: 68 | S31: 29.41176471 | T31: 36.76470588 | U31: 27.94117647 | V31: 7.352941176
A35: 全 体 | C35: 1019 | D35: 524 | E35: 420 | F35: 60 | G35: 44 | H35: 1019 | I35: 391 | J35: 323 | K35: 258 | L35: 73 | M35: 1019 | N35: 421 | O35: 389 | P35: 181 | Q35: 62 | R35: 1019 | S35: 366 | T35: 332 | U35: 272 | V35: 75
A37: 問６(1)SQ③a | B37: ４時間未満 | C37: 36 | D37: 15 | E37: 14 | F37: 6 | G37: 2 | H37: 36 | I37: 11 | J37: 9 | K37: 15 | L37: 2 | M37: 36 | N37: 11 | O37: 11 | P37: 13 | Q37: 2 | R37: 36 | S37: 11 | T37: 8 | U37: 16 | V37: 2
A38: 契約上責任を持つ | B38: ４～６時間未満 | C38: 94 | D38: 47 | E38: 34 | F38: 10 | G38: 7 | H38: 94 | I38: 33 | J38: 21 | K38: 29 | L38: 13 | M38: 94 | N38: 36 | O38: 28 | P38: 24 | Q38: 9 | R38: 94 | S38: 30 | T38: 23 | U38: 29 | V38: 14
A39: 時間 | B39: ６～８時間未満 | C39: 40 | D39: 17 | E39: 22 | F39: 1 | G39: 0 | H39: 40 | I39: 16 | J39: 14 | K39: 9 | L39: 2 | M39: 40 | N39: 16 | O39: 18 | P39: 5 | Q39: 2 | R39: 40 | S39: 15 | T39: 14 | U39: 9 | V39: 2
A40: （施設単位） | B40: ８～10時間未満 | C40: 161 | D40: 78 | E40: 71 | F40: 7 | G40: 7 | H40: 161 | I40: 56 | J40: 48 | K40: 44 | L40: 14 | M40: 161 | N40: 57 | O40: 64 | P40: 34 | Q40: 8 | R40: 161 | S40: 49 | T40: 53 | U40: 48 | V40: 13
B41: 10～15時間未満 | C41: 126 | D41: 60 | E41: 56 | F41: 7 | G41: 5 | H41: 126 | I41: 50 | J41: 43 | K41: 29 | L41: 6 | M41: 126 | N41: 49 | O41: 49 | P41: 23 | Q41: 7 | R41: 126 | S41: 47 | T41: 43 | U41: 31 | V41: 7
B42: 15～20時間未満 | C42: 127 | D42: 62 | E42: 54 | F42: 8 | G42: 7 | H42: 127 | I42: 52 | J42: 44 | K42: 29 | L42: 8 | M42: 127 | N42: 53 | O42: 52 | P42: 18 | Q42: 9 | R42: 127 | S42: 48 | T42: 49 | U42: 29 | V42: 7
B43: 20～30時間未満 | C43: 65 | D43: 30 | E43: 38 | F43: 0 | G43: 1 | H43: 65 | I43: 19 | J43: 31 | K43: 16 | L43: 2 | M43: 65 | N43: 26 | O43: 36 | P43: 7 | Q43: 1 | R43: 65 | S43: 19 | T43: 31 | U43: 16 | V43: 2
B44: 30～50時間未満 | C44: 57 | D44: 33 | E44: 15 | F44: 6 | G44: 4 | H44: 57 | I44: 26 | J44: 9 | K44: 16 | L44: 7 | M44: 57 | N44: 27 | O44: 15 | P44: 10 | Q44: 6 | R44: 57 | S44: 25 | T44: 8 | U44: 17 | V44: 7
B45: 50～100時間未満 | C45: 20 | D45: 12 | E45: 7 | F45: 1 | G45: 0 | H45: 20 | I45: 8 | J45: 6 | K45: 6 | L45: 0 | M45: 20 | N45: 10 | O45: 7 | P45: 3 | Q45: 0 | R45: 20 | S45: 8 | T45: 4 | U45: 8 | V45: 0
B46: 100時間以上 | C46: 88 | D46: 61 | E46: 24 | F46: 5 | G46: 2 | H46: 88 | I46: 42 | J46: 21 | K46: 24 | L46: 4 | M46: 88 | N46: 46 | O46: 31 | P46: 14 | Q46: 4 | R46: 88 | S46: 39 | T46: 23 | U46: 26 | V46: 4
B47: エラー・無回答 | C47: 205 | D47: 109 | E47: 85 | F47: 9 | G47: 9 | H47: 205 | I47: 78 | J47: 77 | K47: 41 | L47: 15 | M47: 205 | N47: 90 | O47: 78 | P47: 30 | Q47: 14 | R47: 205 | S47: 75 | T47: 76 | U47: 43 | V47: 17
A48: 問６(1)SQ③b | B48: ４時間未満 | C48: 55 | D48: 27 | E48: 17 | F48: 6 | G48: 5 | H48: 55 | I48: 20 | J48: 13 | K48: 18 | L48: 5 | M48: 55 | N48: 23 | O48: 14 | P48: 15 | Q48: 4 | R48: 55 | S48: 21 | T48: 14 | U48: 17 | V48: 5
A49: 実際に施設で勤務 | B49: ４～６時間未満 | C49: 140 | D49: 69 | E49: 59 | F49: 11 | G49: 7 | H49: 140 | I49: 47 | J49: 40 | K49: 44 | L49: 13 | M49: 140 | N49: 53 | O49: 52 | P49: 32 | Q49: 8 | R49: 140 | S49: 45 | T49: 40 | U49: 46 | V49: 13
A50: する時間 | B50: ６～８時間未満 | C50: 72 | D50: 34 | E50: 36 | F50: 4 | G50: 1 | H50: 72 | I50: 31 | J50: 26 | K50: 15 | L50: 4 | M50: 72 | N50: 30 | O50: 31 | P50: 11 | Q50: 4 | R50: 72 | S50: 30 | T50: 26 | U50: 15 | V50: 4
A51: （施設単位） | B51: ８～10時間未満 | C51: 201 | D51: 104 | E51: 83 | F51: 7 | G51: 11 | H51: 201 | I51: 76 | J51: 59 | K51: 51 | L51: 18 | M51: 201 | N51: 79 | O51: 74 | P51: 40 | Q51: 13 | R51: 201 | S51: 67 | T51: 64 | U51: 55 | V51: 19
B52: 10～15時間未満 | C52: 170 | D52: 75 | E52: 81 | F52: 9 | G52: 8 | H52: 170 | I52: 64 | J52: 61 | K52: 38 | L52: 10 | M52: 170 | N52: 61 | O52: 72 | P52: 28 | Q52: 12 | R52: 170 | S52: 60 | T52: 62 | U52: 40 | V52: 11
B53: 15～20時間未満 | C53: 129 | D53: 69 | E53: 49 | F53: 9 | G53: 5 | H53: 129 | I53: 50 | J53: 43 | K53: 29 | L53: 11 | M53: 129 | N53: 56 | O53: 50 | P53: 18 | Q53: 9 | R53: 129 | S53: 46 | T53: 47 | U53: 30 | V53: 10
B54: 20～30時間未満 | C54: 84 | D54: 48 | E54: 37 | F54: 3 | G54: 1 | H54: 84 | I54: 35 | J54: 32 | K54: 19 | L54: 2 | M54: 84 | N54: 38 | O54: 39 | P54: 12 | Q54: 2 | R54: 84 | S54: 31 | T54: 34 | U54: 20 | V54: 3
B55: 30～50時間未満 | C55: 54 | D55: 34 | E55: 18 | F55: 1 | G55: 2 | H55: 54 | I55: 24 | J55: 13 | K55: 15 | L55: 3 | M55: 54 | N55: 29 | O55: 17 | P55: 7 | Q55: 2 | R55: 54 | S55: 23 | T55: 10 | U55: 18 | V55: 3
B56: 50～100時間未満 | C56: 24 | D56: 16 | E56: 6 | F56: 1 | G56: 1 | H56: 24 | I56: 12 | J56: 6 | K56: 5 | L56: 1 | M56: 24 | N56: 15 | O56: 6 | P56: 2 | Q56: 1 | R56: 24 | S56: 12 | T56: 5 | U56: 6 | V56: 1
B57: 100時間以上 | C57: 22 | D57: 16 | E57: 3 | F57: 3 | G57: 1 | H57: 22 | I57: 11 | J57: 5 | K57: 6 | L57: 1 | M57: 22 | N57: 13 | O57: 5 | P57: 5 | Q57: 1 | R57: 22 | S57: 11 | T57: 5 | U57: 6 | V57: 1
B58: エラー・無回答 | C58: 68 | D58: 32 | E58: 31 | F58: 6 | G58: 2 | H58: 68 | I58: 21 | J58: 25 | K58: 18 | L58: 5 | M58: 68 | N58: 24 | O58: 29 | P58: 11 | Q58: 6 | R58: 68 | S58: 20 | T58: 25 | U58: 19 | V58: 5
A59: 問６(1) | B59: 常勤医師あり | C59: 41 | D59: 28 | E59: 8 | F59: 2 | G59: 3 | H59: 41 | I59: 17 | J59: 10 | K59: 10 | L59: 4 | M59: 41 | N59: 20 | O59: 14 | P59: 5 | Q59: 3 | R59: 41 | S59: 17 | T59: 11 | U59: 9 | V59: 4
A60: 配置医師の勤務形態 | B60: 非常勤２名以上 | C60: 319 | D60: 160 | E60: 132 | F60: 22 | G60: 14 | H60: 319 | I60: 121 | J60: 102 | K60: 82 | L60: 23 | M60: 319 | N60: 135 | O60: 115 | P60: 60 | Q60: 19 | R60: 319 | S60: 113 | T60: 105 | U60: 89 | V60: 22
B61: 非常勤１名 | C61: 671 | D61: 340 | E61: 280 | F61: 37 | G61: 34 | H61: 671 | I61: 254 | J61: 212 | K61: 169 | L61: 53 | M61: 671 | N61: 267 | O61: 263 | P61: 117 | Q61: 47 | R61: 671 | S61: 237 | T61: 217 | U61: 177 | V61: 56
B62: エラー・無回答 | C62: 58 | D62: 3 | E62: 1 | F62: 0 | G62: 54 | H62: 58 | I62: 2 | J62: 1 | K62: 0 | L62: 55 | M62: 58 | N62: 2 | O62: 2 | P62: 0 | Q62: 54 | R62: 58 | S62: 2 | T62: 2 | U62: 0 | V62: 54

Sheet 救急-(1)①～⑤
A1: =RIGHT(CELL("filename",A1),LEN(CELL("filename",A1))-FIND("]",CELL("filename",A1))) -> 救急-(1)①～⑤ | E1: 問８(1) 119番への救急要請－延べ回数
E2: 平日・休日合計
E3: 全体 | F3: ０回 | G3: １回 | H3: ２～３回 | I3: ４～５回 | J3: ６～９回 | K3: 10回以上 | L3: エラー・ 無回答 | M3: 平均 (回)
A4: 全 体 | E4: =E136 -> 1089 | F4: 289 | G4: 164 | H4: 229 | I4: 131 | J4: 107 | K4: 75 | L4: 94 | M4: =M136 -> 3.132663317
E5: =IF(SUM(F5:L5)>100,"－",SUM(F5:L5)) -> 100 | F5: =F4/$E4*100 -> 26.53810836 | G5: 15.05968779 | H5: 21.02846648 | I5: 12.02938476 | J5: 9.825528007 | K5: 6.887052342 | L5: 8.631772268
A6: 都市圏 | B6: 首都圏 | E6: =E138 -> 172 | F6: =IF($E6=0,0,F138/$E6*100) -> 16.27906977 | G6: 13.95348837 | H6: 18.60465116 | I6: 15.11627907 | J6: 18.02325581 | K6: 9.302325581 | L6: 8.720930233 | M6: =M138 -> 4.350318471
B7: 中京圏 | E7: 91 | F7: 19.78021978 | G7: 10.98901099 | H7: 19.78021978 | I7: 12.08791209 | J7: 15.38461538 | K7: 12.08791209 | L7: 9.89010989 | M7: =M139 -> 3.926829268
B8: 近畿圏 | E8: 126 | F8: 15.07936508 | G8: 14.28571429 | H8: 24.6031746 | I8: 18.25396825 | J8: 11.11111111 | K8: 8.73015873 | L8: 7.936507937 | M8: 4.094827586
B9: その他 | E9: 697 | F9: 32.13773314 | G9: 16.06886657 | H9: 21.09038737 | I9: 10.18651363 | J9: 6.886657102 | K9: 5.308464849 | L9: 8.321377331 | M9: 2.558685446
B10: 無回答 | E10: 3 | F10: 0 | G10: 0 | H10: 33.33333333 | I10: 0 | J10: 0 | K10: 0 | L10: 66.66666667 | M10: 2
A11: 都市規模 | B11: 指定都市・特別区 | E11: 192 | F11: 18.22916667 | G11: 8.333333333 | H11: 19.27083333 | I11: 14.58333333 | J11: 12.5 | K11: 16.14583333 | L11: 10.9375 | M11: 5.116959064
B12: 中核市 | E12: 188 | F12: 26.59574468 | G12: 14.36170213 | H12: 23.93617021 | I12: 12.76595745 | J12: 12.23404255 | K12: 4.787234043 | L12: 5.319148936 | M12: 3.04494382
B13: その他の市 | E13: 514 | F13: 28.40466926 | G13: 17.50972763 | H13: 20.81712062 | I13: 11.67315175 | J13: 9.143968872 | K13: 5.058365759 | L13: 7.392996109 | M13: 2.678571429
B14: 町村 | E14: 192 | F14: 30.20833333 | G14: 16.14583333 | H14: 20.3125 | I14: 9.895833333 | J14: 6.770833333 | K14: 4.6875 | L14: 11.97916667 | M14: 2.50295858
B15: 無回答 | E15: 3 | F15: 0 | G15: 0 | H15: 33.33333333 | I15: 0 | J15: 0 | K15: 0 | L15: 66.66666667 | M15: 2
A16: 地域区分 | B16: １級地 | E16: 27 | F16: 14.81481481 | G16: 14.81481481 | H16: 25.92592593 | I16: 11.11111111 | J16: 14.81481481 | K16: 11.11111111 | L16: 7.407407407 | M16: 4.2
B17: ２級地 | E17: 27 | F17: 3.703703704 | G17: 7.407407407 | H17: 18.51851852 | I17: 11.11111111 | J17: 22.22222222 | K17: 22.22222222 | L17: 14.81481481 | M17: 8.173913043
B18: ３級地 | E18: 46 | F18: 15.2173913 | G18: 2.173913043 | H18: 19.56521739 | I18: 13.04347826 | J18: 21.73913043 | K18: 19.56521739 | L18: 8.695652174 | M18: 5.642857143
B19: ４級地 | E19: 32 | F19: 25 | G19: 12.5 | H19: 25 | I19: 15.625 | J19: 9.375 | K19: 6.25 | L19: 6.25 | M19: 3.3
B20: ５級地 | E20: 85 | F20: 14.11764706 | G20: 12.94117647 | H20: 15.29411765 | I20: 21.17647059 | J20: 16.47058824 | K20: 8.235294118 | L20: 11.76470588 | M20: 4.373333333
B21: ６級地 | E21: 121 | F21: 21.48760331 | G21: 17.3553719 | H21: 20.66115702 | I21: 14.04958678 | J21: 13.2231405 | K21: 7.438016529 | L21: 5.785123967 | M21: 3.535087719
B22: ７級地 | E22: 183 | F22: =IF($E22=0,0,F154/$E22*100) -> 24.59016393 | G22: 12.02185792 | H22: 21.8579235 | I22: 9.289617486 | J22: 10.92896175 | K22: 7.650273224 | L22: 13.66120219 | M22: 3.436708861
B23: その他 | E23: 565 | F23: 32.92035398 | G23: 17.52212389 | H23: 21.4159292 | I23: 10.97345133 | J23: 6.017699115 | K23: 4.424778761 | L23: 6.725663717 | M23: 2.299810247
B24: 無回答 | E24: 3 | F24: 0 | G24: 0 | H24: 33.33333333 | I24: 0 | J24: 0 | K24: 0 | L24: 66.66666667 | M24: 2
A25: 問１(1) | B25: 介護老人福 | C25: 介護福祉施設 | E25: 477 | F25: 21.5932914 | G25: 13.83647799 | H25: 24.10901468 | I25: 12.36897275 | J25: 11.74004193 | K25: 7.337526205 | L25: 9.014675052 | M25: 3.449308756
A26: 施設の種類 | B26: 祉施設 | C26: 小規模介護福祉施設 | E26: 13 | F26: 53.84615385 | G26: 7.692307692 | H26: 15.38461538 | I26: 7.692307692 | J26: 0 | K26: 7.692307692 | L26: 7.692307692 | M26: 2.166666667
A27: （複数回答） | C27: ﾕﾆｯﾄ型介護福祉施設 | E27: 350 | F27: 18.57142857 | G27: 13.42857143 | H27: 18.57142857 | I27: 17.71428571 | J27: 12.57142857 | K27: 10.85714286 | L27: 8.285714286 | M27: 4.190031153
C28: ﾕﾆｯﾄ型小規模介護福祉施設 | E28: 15 | F28: 60 | G28: 6.666666667 | H28: 13.33333333 | I28: 13.33333333 | J28: 0 | K28: 0 | L28: 6.666666667 | M28: 1.071428571
B29: 地域密着型 | C29: 地域密着型介護福祉施設 | E29: 22 | F29: 36.36363636 | G29: 13.63636364 | H29: 22.72727273 | I29: 9.090909091 | J29: 0 | K29: 9.090909091 | L29: 9.090909091 | M29: 2.15
B30: 介護老人福 | C30: ｻﾃﾗｲﾄ型介護福祉施設 | E30: 2 | F30: 50 | G30: 50 | H30: 0 | I30: 0 | J30: 0 | K30: 0 | L30: 0 | M30: 0.5
B31: 祉施設 | C31: ﾕﾆｯﾄ型地域密着型介護福祉施設 | E31: 234 | F31: 40.17094017 | G31: 18.8034188 | H31: 20.51282051 | I31: 5.982905983 | J31: 5.128205128 | K31: 2.136752137 | L31: 7.264957265 | M31: 1.66359447
C32: ﾕﾆｯﾄ型ｻﾃﾗｲﾄ型地域密着型介護福祉施設 | E32: 62 | F32: 35.48387097 | G32: 19.35483871 | H32: 14.51612903 | I32: 9.677419355 | J32: 4.838709677 | K32: 3.225806452 | L32: 12.90322581 | M32: 2.351851852
A33: 問１(2) | B33: 病院 | C33: 併設または隣接あり | E33: 59 | F33: 54.23728814 | G33: 8.474576271 | H33: 20.33898305 | I33: 6.779661017 | J33: 3.389830508 | K33: 1.694915254 | L33: 5.084745763 | M33: 1.642857143
A34: 併設・隣接の状況 | C34: なし | E34: 829 | F34: 25.21109771 | G34: 16.04342581 | H34: 21.71290712 | I34: 12.78648975 | J34: 9.650180941 | K34: 6.996381182 | L34: 7.599517491 | M34: 3.130548303
C35: 無回答 | E35: 201 | F35: 23.88059701 | G35: 12.93532338 | H35: 18.4079602 | I35: 10.44776119 | J35: 12.43781095 | K35: 7.960199005 | L35: 13.93034826 | M35: 3.624277457
B36: 診療所 | C36: 併設または隣接あり | E36: 10 | F36: 30 | G36: 10 | H36: 30 | I36: 10 | J36: 0 | K36: 10 | L36: 10 | M36: 3.222222222
B37: （有床） | C37: なし | E37: 842 | F37: 25.7719715 | G37: 15.79572447 | H37: 22.20902613 | I37: 12.82660333 | J37: 9.382422803 | K37: 6.650831354 | L37: 7.363420428 | M37: 3.078205128
C38: 無回答 | E38: 237 | F38: =IF($E38=0,0,F170/$E38*100) -> 29.11392405 | G38: 12.65822785 | H38: 16.4556962 | I38: 9.282700422 | J38: 11.81434599 | K38: 7.594936709 | L38: 13.08016878 | M38: 3.334951456
B39: 診療所 | C39: 併設または隣接あり | E39: 314 | F39: 24.20382166 | G39: 14.01273885 | H39: 21.33757962 | I39: 12.7388535 | J39: 11.14649682 | K39: 8.280254777 | L39: 8.280254777 | M39: 3.409722222
B40: （無床） | C40: なし | E40: 677 | F40: 26.14475628 | G40: 15.65731167 | H40: 21.86115214 | I40: 12.25997046 | J40: 9.601181684 | K40: 6.35155096 | L40: 8.124076809 | M40: 3.078778135
C41: 無回答 | E41: 98 | F41: 36.73469388 | G41: 14.28571429 | H41: 14.28571429 | I41: 8.163265306 | J41: 7.142857143 | K41: 6.12244898 | L41: 13.26530612 | M41: 2.588235294
A42: 設立年月日 | B42: 1999年以前 | E42: 352 | F42: 23.29545455 | G42: 14.20454545 | H42: 21.875 | I42: 12.21590909 | J42: 11.64772727 | K42: 7.102272727 | L42: 9.659090909 | M42: 3.336477987
B43: 2000～2002年 | E43: 85 | F43: 29.41176471 | G43: 12.94117647 | H43: 29.41176471 | I43: 8.235294118 | J43: 10.58823529 | K43: 5.882352941 | L43: 3.529411765 | M43: 2.817073171
B44: 2003～2005年 | E44: 86 | F44: 15.11627907 | G44: 15.11627907 | H44: 19.76744186 | I44: 19.76744186 | J44: 12.79069767 | K44: 10.46511628 | L44: 6.976744186 | M44: 4.3
B45: 2006～2008年 | E45: 91 | F45: 21.97802198 | G45: 16.48351648 | H45: 20.87912088 | I45: 12.08791209 | J45: 12.08791209 | K45: 5.494505495 | L45: 10.98901099 | M45: 3.074074074
B46: 2009～2011年 | E46: 113 | F46: 34.51327434 | G46: 17.69911504 | H46: 15.04424779 | I46: 8.849557522 | J46: 7.079646018 | K46: 7.96460177 | L46: 8.849557522 | M46: 2.805825243
B47: 2012～2014年 | E47: 188 | F47: 31.38297872 | G47: 18.61702128 | H47: 21.27659574 | I47: 11.17021277 | J47: 7.978723404 | K47: 3.723404255 | L47: 5.85106383 | M47: 2.491525424
B48: 2015～2017年 | E48: 116 | F48: 37.06896552 | G48: 14.65517241 | H48: 19.82758621 | I48: 9.482758621 | J48: 5.172413793 | K48: 6.034482759 | L48: 7.75862069 | M48: 2.457943925
B49: 2018～2019年 | E49: 55 | F49: 14.54545455 | G49: 5.454545455 | H49: 18.18181818 | I49: 20 | J49: 10.90909091 | K49: 14.54545455 | L49: 16.36363636 | M49: 5.152173913
B50: 無回答 | E50: 3 | F50: 0 | G50: 0 | H50: 33.33333333 | I50: 0 | J50: 0 | K50: 0 | L50: 66.66666667 | M50: 2
A51: 問３(1) | B51: 20人未満 | E51: 9 | F51: 44.44444444 | G51: 11.11111111 | H51: 22.22222222 | I51: 0 | J51: 0 | K51: 0 | L51: 22.22222222 | M51: 0.8571428571
A52: 定員数 | B52: 20～30人未満 | E52: 277 | F52: 39.71119134 | G52: 19.49458484 | H52: 18.41155235 | I52: 6.859205776 | J52: 5.054151625 | K52: 2.166064982 | L52: 8.303249097 | M52: 1.728346457
B53: 30～40人未満 | E53: 36 | F53: 50 | G53: 13.88888889 | H53: 19.44444444 | I53: 8.333333333 | J53: 2.777777778 | K53: 2.777777778 | L53: 2.777777778 | M53: 1.628571429
B54: 40～50人未満 | E54: 24 | F54: =IF($E54=0,0,F186/$E54*100) -> 41.66666667 | G54: 16.66666667 | H54: 12.5 | I54: 16.66666667 | J54: 8.333333333 | K54: 0 | L54: 4.166666667 | M54: 1.826086957
B55: 50～60人未満 | E55: 173 | F55: 26.01156069 | G55: 13.87283237 | H55: 27.16763006 | I55: 10.40462428 | J55: 7.514450867 | K55: 6.936416185 | L55: 8.092485549 | M55: 2.937106918
B56: 60～80人未満 | E56: 142 | F56: 23.94366197 | G56: 16.1971831 | H56: 22.53521127 | I56: 13.38028169 | J56: 11.97183099 | K56: 4.929577465 | L56: 7.042253521 | M56: 2.992424242
B57: 80～100人未満 | E57: 193 | F57: 15.54404145 | G57: 12.43523316 | H57: 22.79792746 | I57: 16.58031088 | J57: 13.98963731 | K57: 9.32642487 | L57: 9.32642487 | M57: 4.102857143
B58: 100人以上 | E58: 157 | F58: 15.2866242 | G58: 9.554140127 | H58: 14.64968153 | I58: 15.92356688 | J58: 17.8343949 | K58: 17.19745223 | L58: 9.554140127 | M58: 5.542253521
B59: 無回答 | E59: 78 | F59: 17.94871795 | G59: 17.94871795 | H59: 25.64102564 | I59: 14.1025641 | J59: 6.41025641 | K59: 5.128205128 | L59: 12.82051282 | M59: 3.029411765
A60: 問３(1)(2) | B60: 70％未満 | E60: 10 | F60: 40 | G60: 30 | H60: 10 | I60: 10 | J60: 10 | K60: 0 | L60: 0 | M60: 1.6
A61: 入居率 | B61: 70～80％未満 | E61: 18 | F61: 50 | G61: 0 | H61: 33.33333333 | I61: 0 | J61: 5.555555556 | K61: 5.555555556 | L61: 5.555555556 | M61: 1.823529412
B62: 80～90％未満 | E62: 69 | F62: 24.63768116 | G62: 13.04347826 | H62: 14.49275362 | I62: 7.246376812 | J62: 20.28985507 | K62: 11.5942029 | L62: 8.695652174 | M62: 4.904761905
B63: 90～95％未満 | E63: 88 | F63: 13.63636364 | G63: 15.90909091 | H63: 22.72727273 | I63: 15.90909091 | J63: 13.63636364 | K63: 7.954545455 | L63: 10.22727273 | M63: 3.708860759
B64: 95％以上 | E64: 811 | F64: 28.48335388 | G64: 15.0431566 | H64: 20.5918619 | I64: 12.0838471 | J64: 8.877928483 | K64: 6.5351418 | L64: 8.384710234 | M64: 2.940780619
B65: エラー・無回答 | E65: 93 | F65: 17.20430108 | G65: 17.20430108 | H65: 26.88172043 | I65: 13.97849462 | J65: 7.52688172 | K65: 6.451612903 | L65: 10.75268817 | M65: 3.409638554
A66: 問３(4) | B66: 3.5未満 | E66: 42 | F66: 19.04761905 | G66: 16.66666667 | H66: 16.66666667 | I66: 14.28571429 | J66: 14.28571429 | K66: 7.142857143 | L66: 11.9047619 | M66: 3.513513514
A67: 施設の平均要介護 | B67: 3.5～4.0未満 | E67: 437 | F67: 22.88329519 | G67: 14.41647597 | H67: 21.28146453 | I67: 12.35697941 | J67: 10.98398169 | K67: 8.23798627 | L67: 9.839816934 | M67: 3.515228426
A68: 度 | B68: 4.0～4.5未満 | E68: 492 | F68: 30.28455285 | G68: 15.24390244 | H68: 21.13821138 | I68: 11.78861789 | J68: 8.739837398 | K68: 5.894308943 | L68: 6.910569106 | M68: 2.816593886
B69: 4.5以上 | E69: 20 | F69: 35 | G69: 20 | H69: 25 | I69: 15 | J69: 0 | K69: 5 | L69: 0 | M69: 2.1
B70: エラー・無回答 | E70: =E202 -> 98 | F70: =IF($E70=0,0,F202/$E70*100) -> 25.51020408 | G70: 15.30612245 | H70: 20.40816327 | I70: 10.20408163 | J70: 10.20408163 | K70: 6.12244898 | L70: 12.24489796 | M70: 3.139534884
A71: 問３(4) | B71: 30％未満 | E71: 444 | F71: 22.74774775 | G71: 15.09009009 | H71: 19.14414414 | I71: 12.83783784 | J71: 11.26126126 | K71: 8.108108108 | L71: 10.81081081 | M71: =M203 -> 3.550505051
A72: 要介護度５の割合 | B72: 30～60％未満 | E72: 525 | F72: 29.52380952 | G72: 14.66666667 | H72: 22.28571429 | I72: 12 | J72: 8.761904762 | K72: 6.095238095 | L72: 6.666666667 | M72: 2.846938776
B73: 60％以上 | E73: 20 | F73: 40 | G73: 20 | H73: 30 | I73: 5 | J73: 5 | K73: 0 | L73: 0 | M73: 1.65
B74: エラー・無回答 | E74: 100 | F74: 25 | G74: 16 | H74: 21 | I74: 10 | J74: 10 | K74: 7 | L74: 11 | M74: 3.179775281
A75: 問４(1)⑨⑩ | B75: 重複を除いた医療処置を要する入所者実人数 | D75: 15％以下 | E75: 322 | F75: 28.88198758 | G75: 18.32298137 | H75: 20.49689441 | I75: 10.2484472 | J75: 8.385093168 | K75: 7.142857143 | L75: 6.52173913 | M75: 3.073141487
A76: 入所者に対する | D76: 15％を超える | E76: 229 | F76: 25.76419214 | G76: 15.28384279 | H76: 24.45414847 | I76: 8.296943231 | J76: 10.91703057 | K76: 7.423580786 | L76: 7.860262009 | M76: 3.145038168
A77: 割合 | D77: エラー・無回答 | E77: 538 | F77: 25.46468401 | G77: 13.01115242 | H77: 19.88847584 | I77: 14.68401487 | J77: 10.22304833 | K77: 6.505576208 | L77: 10.22304833 | M77: 4.733333333
B78: 「胃ろう・腸ろうの管理」「経鼻経管栄養の管理」「たんの吸引」のいずれかを要する実人数 | D78: ８％以下 | E78: 638 | F78: 26.80250784 | G78: 14.57680251 | H78: 19.90595611 | I78: 12.69592476 | J78: 10.18808777 | K78: 7.523510972 | L78: 8.307210031 | M78: 2.996677741
D79: ８％を超える | E79: 362 | F79: 27.62430939 | G79: 17.67955801 | H79: 22.09944751 | I79: 10.49723757 | J79: 9.392265193 | K79: 4.972375691 | L79: 7.73480663 | M79: 3.056872038
D80: エラー・無回答 | E80: 89 | F80: 20.2247191 | G80: 7.865168539 | H80: 24.71910112 | I80: 13.48314607 | J80: 8.988764045 | K80: 10.11235955 | L80: 14.60674157 | M80: 3.250517598
A81: 問２(6) | B81: ８時間未満 | E81: 6 | F81: 50 | G81: 33.33333333 | H81: 16.66666667 | I81: 0 | J81: 0 | K81: 0 | L81: 0 | M81: 0.8333333333
A82: 看護職員が必ず勤 | B82: ８～９時間未満 | E82: 96 | F82: 27.08333333 | G82: 14.58333333 | H82: 19.79166667 | I82: 13.54166667 | J82: 13.54166667 | K82: 5.208333333 | L82: 6.25 | M82: 3.266666667
A83: 務している時間 | B83: ９～10時間未満 | E83: 545 | F83: 29.17431193 | G83: 15.04587156 | H83: 20.73394495 | I83: 11.9266055 | J83: 8.623853211 | K83: 6.23853211 | L83: 8.256880734 | M83: 2.942
B84: 10～12時間未満 | E84: 349 | F84: 21.48997135 | G84: 14.04011461 | H84: 24.06876791 | I84: 12.89398281 | J84: 11.1747851 | K84: 7.449856734 | L84: 8.88252149 | M84: 3.311320755
B85: 12～24時間未満 | E85: 55 | F85: 21.81818182 | G85: 29.09090909 | H85: 7.272727273 | I85: 14.54545455 | J85: 5.454545455 | K85: 10.90909091 | L85: 10.90909091 | M85: 3.673469388
B86: 24時間 | E86: 8 | F86: =IF($E86=0,0,F218/$E86*100) -> 25 | G86: 0 | H86: 25 | I86: 0 | J86: 0 | K86: 37.5 | L86: 12.5 | M86: 5.857142857
B87: エラー・無回答 | E87: 30 | F87: 40 | G87: 3.333333333 | H87: 20 | I87: 0 | J87: 16.66666667 | K87: 3.333333333 | L87: 16.66666667 | M87: 2.92
A88: 問２(7) | B88: 看護師＋ | C88: ０人 | E88: 977 | F88: 26.4073695 | G88: 15.3531218 | H88: 21.39201638 | I88: 12.28249744 | J88: 9.416581372 | K88: 6.960081883 | L88: 8.188331627 | M88: 3.100334448
A89: 夜間の看護職員数 | B89: 准看護師 | C89: １人 | E89: 21 | F89: 19.04761905 | G89: 9.523809524 | H89: 23.80952381 | I89: 4.761904762 | J89: 14.28571429 | K89: 14.28571429 | L89: 14.28571429 | M89: 4.777777778
C90: ２人以上 | E90: 3 | F90: 0 | G90: 0 | H90: 33.33333333 | I90: 0 | J90: 0 | K90: 33.33333333 | L90: 33.33333333 | M90: 7.5
C91: 無回答 | E91: 88 | F91: 30.68181818 | G91: 13.63636364 | H91: 15.90909091 | I91: 11.36363636 | J91: 13.63636364 | K91: 3.409090909 | L91: 11.36363636 | M91: 3.012820513
B92: 看護師 | C92: ０人 | E92: 984 | F92: 26.32113821 | G92: 15.24390244 | H92: 21.74796748 | I92: 12.19512195 | J92: 9.451219512 | K92: 6.910569106 | L92: 8.130081301 | M92: 3.096238938
C93: １人 | E93: 18 | F93: 27.77777778 | G93: 11.11111111 | H93: 5.555555556 | I93: 5.555555556 | J93: 11.11111111 | K93: 16.66666667 | L93: 22.22222222 | M93: 5
C94: ２人以上 | E94: 2 | F94: 0 | G94: 0 | H94: 0 | I94: 0 | J94: 0 | K94: 50 | L94: 50 | M94: 13
C95: 無回答 | E95: 85 | F95: 29.41176471 | G95: 14.11764706 | H95: 16.47058824 | I95: 11.76470588 | J95: 14.11764706 | K95: 3.529411765 | L95: 10.58823529 | M95: 3.092105263
B96: 准看護師 | C96: ０人 | E96: 999 | F96: 26.32632633 | G96: 15.31531532 | H96: 21.02102102 | I96: 12.21221221 | J96: 9.50950951 | K96: 7.207207207 | L96: 8.408408408 | M96: 3.144262295
C97: １人 | E97: 8 | F97: 12.5 | G97: 0 | H97: 75 | I97: 0 | J97: 12.5 | K97: 0 | L97: 0 | M97: 2.5
C98: ２人以上 | E98: 1 | F98: 0 | G98: 0 | H98: 100 | I98: 0 | J98: 0 | K98: 0 | L98: 0 | M98: 2
C99: 無回答 | E99: 81 | F99: 30.86419753 | G99: 13.58024691 | H99: 14.81481481 | I99: 11.11111111 | J99: 13.58024691 | K99: 3.703703704 | L99: 12.34567901 | M99: 3.070422535
A100: 問２(8) | B100: 常に夜勤または宿直の看護職員（併設事業所と兼務の場合を含む）が対応 | E100: 12 | F100: 25 | G100: 0 | H100: 25 | I100: 0 | J100: 8.333333333 | K100: 33.33333333 | L100: 8.333333333 | M100: 6.818181818
A101: 夜間の看護体制 | B101: 通常、施設の看護職員（併設事業所と兼務の場合を含む）がオンコールで対応 | E101: 920 | F101: 27.39130435 | G101: 14.7826087 | H101: 20.86956522 | I101: 12.17391304 | J101: 10 | K101: 6.52173913 | L101: 8.260869565 | M101: 3.037914692
B102: 訪問看護ステーション、医療機関と連携してオンコール体制をとっている | E102: 31 | F102: =IF($E102=0,0,F234/$E102*100) -> 29.03225806 | G102: 9.677419355 | H102: 25.80645161 | I102: 3.225806452 | J102: 16.12903226 | K102: 6.451612903 | L102: 9.677419355 | M102: 3.285714286
B103: 夜勤・宿直の看護職員はおらず、オンコール対応もしていない | E103: 49 | F103: 20.40816327 | G103: 14.28571429 | H103: 24.48979592 | I103: 14.28571429 | J103: 10.20408163 | K103: 10.20408163 | L103: 6.12244898 | M103: 4.47826087
B104: 無回答 | E104: 77 | F104: 19.48051948 | G104: 23.37662338 | H104: 18.18181818 | I104: 14.28571429 | J104: 5.194805195 | K104: 5.194805195 | L104: 14.28571429 | M104: 2.727272727
A105: 問６(1) | B105: 常勤医師あり | E105: 41 | F105: 34.14634146 | G105: 2.43902439 | H105: 7.317073171 | I105: 9.756097561 | J105: 17.07317073 | K105: 14.63414634 | L105: 14.63414634 | M105: 5.057142857
A106: 配置医師の勤務形態 | B106: 非常勤２名以上 | E106: 319 | F106: =IF($E106=0,0,F238/$E106*100) -> 24.13793103 | G106: 14.10658307 | H106: 23.19749216 | I106: 12.22570533 | J106: 10.97178683 | K106: 6.5830721 | L106: 8.777429467 | M106: 3.257731959
B107: 非常勤１名 | E107: 671 | F107: =IF($E107=0,0,F239/$E107*100) -> 27.71982116 | G107: 16.24441133 | H107: 20.11922504 | I107: 11.92250373 | J107: 9.239940387 | K107: 6.557377049 | L107: 8.196721311 | M107: 2.957792208
B108: エラー・無回答 | E108: 58 | F108: =IF($E108=0,0,F240/$E108*100) -> 20.68965517 | G108: 15.51724138 | H108: 29.31034483 | I108: 13.79310345 | J108: 5.172413793 | K108: 6.896551724 | L108: 8.620689655 | M108: 3.20754717
A109: 問６(1)SQ③a | B109: ４時間未満 | E109: 36 | F109: 38.88888889 | G109: 13.88888889 | H109: 13.88888889 | I109: 13.88888889 | J109: 5.555555556 | K109: 2.777777778 | L109: 11.11111111 | M109: 1.96875
A110: 契約上責任を持つ | B110: ４～６時間未満 | E110: 94 | F110: 25.53191489 | G110: 22.34042553 | H110: 21.27659574 | I110: 8.510638298 | J110: 7.446808511 | K110: 3.191489362 | L110: 11.70212766 | M110: 2.289156627
A111: 時間 | B111: ６～８時間未満 | E111: 40 | F111: 27.5 | G111: 12.5 | H111: 15 | I111: 25 | J111: 7.5 | K111: 7.5 | L111: 5 | M111: 3.157894737
A112: （施設単位） | B112: ８～10時間未満 | E112: 161 | F112: 27.32919255 | G112: 20.49689441 | H112: 18.63354037 | I112: 10.55900621 | J112: 8.695652174 | K112: 7.453416149 | L112: 6.832298137 | M112: 2.92
B113: 10～15時間未満 | E113: 126 | F113: 30.15873016 | G113: 11.11111111 | H113: 23.80952381 | I113: 12.6984127 | J113: 8.73015873 | K113: 5.555555556 | L113: 7.936507937 | M113: 2.715517241
B114: 15～20時間未満 | E114: 127 | F114: 18.8976378 | G114: 19.68503937 | H114: 26.77165354 | I114: 11.02362205 | J114: 11.02362205 | K114: 7.874015748 | L114: 4.724409449 | M114: 3.338842975
B115: 20～30時間未満 | E115: 65 | F115: 24.61538462 | G115: 13.84615385 | H115: 24.61538462 | I115: 12.30769231 | J115: 13.84615385 | K115: 6.153846154 | L115: 4.615384615 | M115: 3.435483871
B116: 30～50時間未満 | E116: 57 | F116: 26.31578947 | G116: 7.01754386 | H116: 19.29824561 | I116: 10.52631579 | J116: 12.28070175 | K116: 12.28070175 | L116: 12.28070175 | M116: 4.36
B117: 50～100時間未満 | E117: 20 | F117: 15 | G117: 15 | H117: 25 | I117: 20 | J117: 15 | K117: 10 | L117: 0 | M117: 4.3
B118: 100時間以上 | E118: 88 | F118: =IF($E118=0,0,F250/$E118*100) -> 29.54545455 | G118: 7.954545455 | H118: 19.31818182 | I118: 11.36363636 | J118: 11.36363636 | K118: 11.36363636 | L118: 9.090909091 | M118: 3.95
B119: エラー・無回答 | E119: 205 | F119: 28.29268293 | G119: 14.14634146 | H119: 17.07317073 | I119: 12.19512195 | J119: 10.73170732 | K119: 5.853658537 | L119: 11.70731707 | M119: 3.104972376
A120: 問６(1)SQ③b | B120: ４時間未満 | E120: 55 | F120: 43.63636364 | G120: 9.090909091 | H120: 14.54545455 | I120: 10.90909091 | J120: 5.454545455 | K120: 5.454545455 | L120: 10.90909091 | M120: 2.326530612
A121: 実際に施設で勤務 | B121: ４～６時間未満 | E121: 140 | F121: 27.85714286 | G121: 21.42857143 | H121: 17.85714286 | I121: 10 | J121: 10 | K121: 4.285714286 | L121: 8.571428571 | M121: 2.6171875
A122: する時間 | B122: ６～８時間未満 | E122: 72 | F122: 23.61111111 | G122: 15.27777778 | H122: 16.66666667 | I122: 18.05555556 | J122: 9.722222222 | K122: 6.944444444 | L122: 9.722222222 | M122: 3.153846154
A123: （施設単位） | B123: ８～10時間未満 | E123: 201 | F123: 26.3681592 | G123: 17.91044776 | H123: 19.90049751 | I123: 9.950248756 | J123: 10.94527363 | K123: 7.462686567 | L123: 7.462686567 | M123: 3.220430108
B124: 10～15時間未満 | E124: 170 | F124: 26.47058824 | G124: 11.76470588 | H124: 27.64705882 | I124: 12.94117647 | J124: 7.647058824 | K124: 5.882352941 | L124: 7.647058824 | M124: 2.732484076
B125: 15～20時間未満 | E125: 129 | F125: 20.93023256 | G125: 19.37984496 | H125: 28.68217054 | I125: 11.62790698 | J125: 7.751937984 | K125: 6.201550388 | L125: 5.426356589 | M125: 2.893442623
B126: 20～30時間未満 | E126: 84 | F126: 23.80952381 | G126: 9.523809524 | H126: 22.61904762 | I126: 13.0952381 | J126: 15.47619048 | K126: 8.333333333 | L126: 7.142857143 | M126: 3.961538462
B127: 30～50時間未満 | E127: 54 | F127: 24.07407407 | G127: 11.11111111 | H127: 16.66666667 | I127: 12.96296296 | J127: 11.11111111 | K127: 14.81481481 | L127: 9.259259259 | M127: 4.653061224
B128: 50～100時間未満 | E128: 24 | F128: 29.16666667 | G128: 12.5 | H128: 20.83333333 | I128: 12.5 | J128: 12.5 | K128: 8.333333333 | L128: 4.166666667 | M128: 3.52173913
B129: 100時間以上 | E129: 22 | F129: 40.90909091 | G129: 4.545454545 | H129: 4.545454545 | I129: 13.63636364 | J129: 9.090909091 | K129: 13.63636364 | L129: 13.63636364 | M129: 3.947368421
B130: エラー・無回答 | E130: 68 | F130: 27.94117647 | G130: 14.70588235 | H130: 8.823529412 | I130: 13.23529412 | J130: 13.23529412 | K130: 5.882352941 | L130: 16.17647059 | M130: 3.456140351
A131: 問６(2)①-6 | B131: 施設の求めに応じた急変対応（往診、休日夜間対応等）を行っている | E131: 733 | F131: 27.69440655 | G131: 14.05184175 | H131: 22.23738063 | I131: 11.59618008 | J131: 8.867667121 | K131: 6.548431105 | L131: 9.004092769 | M131: 2.977511244
A132: 配置医師の役割 | B132: 施設の求めに応じた急変対応（往診、休日夜間対応等）を行っていない | E132: 356 | F132: 24.15730337 | G132: 17.13483146 | H132: 18.53932584 | I132: 12.92134831 | J132: 11.79775281 | K132: 7.584269663 | L132: 7.865168539 | M132: 3.448170732
A136: 全 体 | E136: 1089 | F136: 289 | G136: 164 | H136: 229 | I136: 131 | J136: 107 | K136: 75 | L136: 94 | M136: 3.132663317
A138: 都市圏 | B138: 首都圏 | E138: 172 | F138: 28 | G138: 24 | H138: 32 | I138: 26 | J138: 31 | K138: 16 | L138: 15 | M138: 4.350318471
B139: 中京圏 | E139: 91 | F139: 18 | G139: 10 | H139: 18 | I139: 11 | J139: 14 | K139: 11 | L139: 9 | M139: 3.926829268
B140: 近畿圏 | E140: 126 | F140: 19 | G140: 18 | H140: 31 | I140: 23 | J140: 14 | K140: 11 | L140: 10 | M140: 4.094827586
B141: その他 | E141: 697 | F141: 224 | G141: 112 | H141: 147 | I141: 71 | J141: 48 | K141: 37 | L141: 58 | M141: 2.558685446
B142: 無回答 | E142: 3 | F142: 0 | G142: 0 | H142: 1 | I142: 0 | J142: 0 | K142: 0 | L142: 2 | M142: 2
A143: 都市規模 | B143: 指定都市・特別区 | E143: 192 | F143: 35 | G143: 16 | H143: 37 | I143: 28 | J143: 24 | K143: 31 | L143: 21 | M143: 5.116959064
B144: 中核市 | E144: 188 | F144: 50 | G144: 27 | H144: 45 | I144: 24 | J144: 23 | K144: 9 | L144: 10 | M144: 3.04494382
B145: その他の市 | E145: 514 | F145: 146 | G145: 90 | H145: 107 | I145: 60 | J145: 47 | K145: 26 | L145: 38 | M145: 2.678571429
B146: 町村 | E146: 192 | F146: 58 | G146: 31 | H146: 39 | I146: 19 | J146: 13 | K146: 9 | L146: 23 | M146: 2.50295858
B147: 無回答 | E147: 3 | F147: 0 | G147: 0 | H147: 1 | I147: 0 | J147: 0 | K147: 0 | L147: 2 | M147: 2
A148: 地域区分 | B148: １級地 | E148: 27 | F148: 4 | G148: 4 | H148: 7 | I148: 3 | J148: 4 | K148: 3 | L148: 2 | M148: 4.2
B149: ２級地 | E149: 27 | F149: 1 | G149: 2 | H149: 5 | I149: 3 | J149: 6 | K149: 6 | L149: 4 | M149: 8.173913043
B150: ３級地 | E150: 46 | F150: 7 | G150: 1 | H150: 9 | I150: 6 | J150: 10 | K150: 9 | L150: 4 | M150: 5.642857143
B151: ４級地 | E151: 32 | F151: 8 | G151: 4 | H151: 8 | I151: 5 | J151: 3 | K151: 2 | L151: 2 | M151: 3.3
B152: ５級地 | E152: 85 | F152: 12 | G152: 11 | H152: 13 | I152: 18 | J152: 14 | K152: 7 | L152: 10 | M152: 4.373333333
B153: ６級地 | E153: 121 | F153: 26 | G153: 21 | H153: 25 | I153: 17 | J153: 16 | K153: 9 | L153: 7 | M153: 3.535087719
B154: ７級地 | E154: 183 | F154: 45 | G154: 22 | H154: 40 | I154: 17 | J154: 20 | K154: 14 | L154: 25 | M154: 3.436708861
B155: その他 | E155: 565 | F155: 186 | G155: 99 | H155: 121 | I155: 62 | J155: 34 | K155: 25 | L155: 38 | M155: 2.299810247
B156: 無回答 | E156: 3 | F156: 0 | G156: 0 | H156: 1 | I156: 0 | J156: 0 | K156: 0 | L156: 2 | M156: 2
A157: 問１(1) | B157: 介護老人福 | C157: 介護福祉施設 | E157: 477 | F157: 103 | G157: 66 | H157: 115 | I157: 59 | J157: 56 | K157: 35 | L157: 43 | M157: 3.449308756
A158: 施設の種類 | B158: 祉施設 | C158: 小規模介護福祉施設 | E158: 13 | F158: 7 | G158: 1 | H158: 2 | I158: 1 | J158: 0 | K158: 1 | L158: 1 | M158: 2.166666667
A159: （複数回答） | C159: ﾕﾆｯﾄ型介護福祉施設 | E159: 350 | F159: 65 | G159: 47 | H159: 65 | I159: 62 | J159: 44 | K159: 38 | L159: 29 | M159: 4.190031153
C160: ﾕﾆｯﾄ型小規模介護福祉施設 | E160: 15 | F160: 9 | G160: 1 | H160: 2 | I160: 2 | J160: 0 | K160: 0 | L160: 1 | M160: 1.071428571
B161: 地域密着型 | C161: 地域密着型介護福祉施設 | E161: 22 | F161: 8 | G161: 3 | H161: 5 | I161: 2 | J161: 0 | K161: 2 | L161: 2 | M161: 2.15
B162: 介護老人福 | C162: ｻﾃﾗｲﾄ型介護福祉施設 | E162: 2 | F162: 1 | G162: 1 | H162: 0 | I162: 0 | J162: 0 | K162: 0 | L162: 0 | M162: 0.5
B163: 祉施設 | C163: ﾕﾆｯﾄ型地域密着型介護福祉施設 | E163: 234 | F163: 94 | G163: 44 | H163: 48 | I163: 14 | J163: 12 | K163: 5 | L163: 17 | M163: 1.66359447
C164: ﾕﾆｯﾄ型ｻﾃﾗｲﾄ型地域密着型介護福祉施設 | E164: 62 | F164: 22 | G164: 12 | H164: 9 | I164: 6 | J164: 3 | K164: 2 | L164: 8 | M164: 2.351851852
A165: 問１(2) | B165: 病院 | C165: 併設または隣接あり | E165: 59 | F165: 32 | G165: 5 | H165: 12 | I165: 4 | J165: 2 | K165: 1 | L165: 3 | M165: 1.642857143
A166: 併設・隣接の状況 | C166: なし | E166: 829 | F166: 209 | G166: 133 | H166: 180 | I166: 106 | J166: 80 | K166: 58 | L166: 63 | M166: 3.130548303
C167: 無回答 | E167: 201 | F167: 48 | G167: 26 | H167: 37 | I167: 21 | J167: 25 | K167: 16 | L167: 28 | M167: 3.624277457
B168: 診療所 | C168: 併設または隣接あり | E168: 10 | F168: 3 | G168: 1 | H168: 3 | I168: 1 | J168: 0 | K168: 1 | L168: 1 | M168: 3.222222222
B169: （有床） | C169: なし | E169: 842 | F169: 217 | G169: 133 | H169: 187 | I169: 108 | J169: 79 | K169: 56 | L169: 62 | M169: 3.078205128
C170: 無回答 | E170: 237 | F170: 69 | G170: 30 | H170: 39 | I170: 22 | J170: 28 | K170: 18 | L170: 31 | M170: 3.334951456
B171: 診療所 | C171: 併設または隣接あり | E171: 314 | F171: 76 | G171: 44 | H171: 67 | I171: 40 | J171: 35 | K171: 26 | L171: 26 | M171: 3.409722222
B172: （無床） | C172: なし | E172: 677 | F172: 177 | G172: 106 | H172: 148 | I172: 83 | J172: 65 | K172: 43 | L172: 55 | M172: 3.078778135
C173: 無回答 | E173: 98 | F173: 36 | G173: 14 | H173: 14 | I173: 8 | J173: 7 | K173: 6 | L173: 13 | M173: 2.588235294
A174: 設立年月日 | B174: 1999年以前 | E174: 352 | F174: 82 | G174: 50 | H174: 77 | I174: 43 | J174: 41 | K174: 25 | L174: 34 | M174: 3.336477987
B175: 2000～2002年 | E175: 85 | F175: 25 | G175: 11 | H175: 25 | I175: 7 | J175: 9 | K175: 5 | L175: 3 | M175: 2.817073171
B176: 2003～2005年 | E176: 86 | F176: 13 | G176: 13 | H176: 17 | I176: 17 | J176: 11 | K176: 9 | L176: 6 | M176: 4.3
B177: 2006～2008年 | E177: 91 | F177: 20 | G177: 15 | H177: 19 | I177: 11 | J177: 11 | K177: 5 | L177: 10 | M177: 3.074074074
B178: 2009～2011年 | E178: 113 | F178: 39 | G178: 20 | H178: 17 | I178: 10 | J178: 8 | K178: 9 | L178: 10 | M178: 2.805825243
B179: 2012～2014年 | E179: 188 | F179: 59 | G179: 35 | H179: 40 | I179: 21 | J179: 15 | K179: 7 | L179: 11 | M179: 2.491525424
B180: 2015～2017年 | E180: 116 | F180: 43 | G180: 17 | H180: 23 | I180: 11 | J180: 6 | K180: 7 | L180: 9 | M180: 2.457943925
B181: 2018～2019年 | E181: 55 | F181: 8 | G181: 3 | H181: 10 | I181: 11 | J181: 6 | K181: 8 | L181: 9 | M181: 5.152173913
B182: 無回答 | E182: 3 | F182: 0 | G182: 0 | H182: 1 | I182: 0 | J182: 0 | K182: 0 | L182: 2 | M182: 2
A183: 問３(1) | B183: 20人未満 | E183: 9 | F183: 4 | G183: 1 | H183: 2 | I183: 0 | J183: 0 | K183: 0 | L183: 2 | M183: 0.8571428571
A184: 定員数 | B184: 20～30人未満 | E184: 277 | F184: 110 | G184: 54 | H184: 51 | I184: 19 | J184: 14 | K184: 6 | L184: 23 | M184: 1.728346457
B185: 30～40人未満 | E185: 36 | F185: 18 | G185: 5 | H185: 7 | I185: 3 | J185: 1 | K185: 1 | L185: 1 | M185: 1.628571429
B186: 40～50人未満 | E186: 24 | F186: 10 | G186: 4 | H186: 3 | I186: 4 | J186: 2 | K186: 0 | L186: 1 | M186: 1.826086957
B187: 50～60人未満 | E187: 173 | F187: 45 | G187: 24 | H187: 47 | I187: 18 | J187: 13 | K187: 12 | L187: 14 | M187: 2.937106918
B188: 60～80人未満 | E188: 142 | F188: 34 | G188: 23 | H188: 32 | I188: 19 | J188: 17 | K188: 7 | L188: 10 | M188: 2.992424242
B189: 80～100人未満 | E189: 193 | F189: 30 | G189: 24 | H189: 44 | I189: 32 | J189: 27 | K189: 18 | L189: 18 | M189: 4.102857143
B190: 100人以上 | E190: 157 | F190: 24 | G190: 15 | H190: 23 | I190: 25 | J190: 28 | K190: 27 | L190: 15 | M190: 5.542253521
B191: 無回答 | E191: 78 | F191: 14 | G191: 14 | H191: 20 | I191: 11 | J191: 5 | K191: 4 | L191: 10 | M191: 3.029411765
A192: 問３(1)(2) | B192: 70％未満 | E192: 10 | F192: 4 | G192: 3 | H192: 1 | I192: 1 | J192: 1 | K192: 0 | L192: 0 | M192: 1.6
A193: 入居率 | B193: 70～80％未満 | E193: 18 | F193: 9 | G193: 0 | H193: 6 | I193: 0 | J193: 1 | K193: 1 | L193: 1 | M193: 1.823529412
B194: 80～90％未満 | E194: 69 | F194: 17 | G194: 9 | H194: 10 | I194: 5 | J194: 14 | K194: 8 | L194: 6 | M194: 4.904761905
B195: 90～95％未満 | E195: 88 | F195: 12 | G195: 14 | H195: 20 | I195: 14 | J195: 12 | K195: 7 | L195: 9 | M195: 3.708860759
B196: 95％以上 | E196: 811 | F196: 231 | G196: 122 | H196: 167 | I196: 98 | J196: 72 | K196: 53 | L196: 68 | M196: 2.940780619
B197: エラー・無回答 | E197: 93 | F197: 16 | G197: 16 | H197: 25 | I197: 13 | J197: 7 | K197: 6 | L197: 10 | M197: 3.409638554
A198: 問３(4) | B198: 3.5未満 | E198: 42 | F198: 8 | G198: 7 | H198: 7 | I198: 6 | J198: 6 | K198: 3 | L198: 5 | M198: 3.513513514
A199: 施設の平均要介護 | B199: 3.5～4.0未満 | E199: 437 | F199: 100 | G199: 63 | H199: 93 | I199: 54 | J199: 48 | K199: 36 | L199: 43 | M199: 3.515228426
A200: 度 | B200: 4.0～4.5未満 | E200: 492 | F200: 149 | G200: 75 | H200: 104 | I200: 58 | J200: 43 | K200: 29 | L200: 34 | M200: 2.816593886
B201: 4.5以上 | E201: 20 | F201: 7 | G201: 4 | H201: 5 | I201: 3 | J201: 0 | K201: 1 | L201: 0 | M201: 2.1
B202: エラー・無回答 | E202: 98 | F202: 25 | G202: 15 | H202: 20 | I202: 10 | J202: 10 | K202: 6 | L202: 12 | M202: 3.139534884
A203: 問３(4) | B203: 30％未満 | E203: 444 | F203: 101 | G203: 67 | H203: 85 | I203: 57 | J203: 50 | K203: 36 | L203: 48 | M203: 3.550505051
A204: 要介護度５の割合 | B204: 30～60％未満 | E204: 525 | F204: 155 | G204: 77 | H204: 117 | I204: 63 | J204: 46 | K204: 32 | L204: 35 | M204: 2.846938776
... 60 more rows

Sheet 救急-(1)⑥
A1: =RIGHT(CELL("filename",A1),LEN(CELL("filename",A1))-FIND("]",CELL("filename",A1))) -> 救急-(1)⑥ | D1: 問８(2) 特定の病院への救急要請－延べ回数
D2: 平日・休日合計
D3: 全体 | E3: ０回 | F3: １回 | G3: ２～３回 | H3: ４～５回 | I3: ６～９回 | J3: 10回以上 | K3: エラー・ 無回答 | L3: 平均 (回)
A4: 全 体 | D4: =D21 -> 1089 | E4: 977 | F4: 17 | G4: 16 | H4: 4 | I4: 6 | J4: 4 | K4: 65 | L4: 0.1708984375
D5: =IF(SUM(E5:K5)>100,"－",SUM(E5:K5)) -> 100 | E5: =E4/$D4*100 -> 89.71533517 | F5: 1.561065197 | G5: 1.469237833 | H5: 0.3673094582 | I5: 0.5509641873 | J5: 0.3673094582 | K5: 5.968778696
A6: 問１(2) | B6: 病院 | C6: 併設 | D6: =D23 -> 9 | E6: =IF($D6=0,0,E23/$D6*100) -> 100 | F6: 0 | G6: 0 | H6: 0 | I6: 0 | J6: 0 | K6: 0 | L6: =L23 -> 0
A7: 併設・隣接の状況 | C7: 隣接 | D7: 50 | E7: 86 | F7: 2 | G7: 6 | H7: 0 | I7: 0 | J7: 2 | K7: 4 | L7: 0.3958333333
C8: なし | D8: 829 | E8: 90.47044632 | F8: 1.688781665 | G8: 1.085645356 | H8: 0.482509047 | I8: 0.7237635706 | J8: 0.3618817853 | K8: 5.186972256 | L8: 0.1832061069
C9: 無回答 | D9: 201 | E9: 87.06467662 | F9: 0.9950248756 | G9: 1.990049751 | H9: 0 | I9: 0 | J9: 0 | K9: 9.950248756 | L9: 0.06629834254
B10: 診療所 | C10: 併設 | D10: 5 | E10: 80 | F10: 0 | G10: 0 | H10: 0 | I10: 0 | J10: 0 | K10: 20 | L10: 0
B11: （有床） | C11: 隣接 | D11: 5 | E11: 80 | F11: 0 | G11: 20 | H11: 0 | I11: 0 | J11: 0 | K11: 0 | L11: 0.4
C12: なし | D12: 842 | E12: 90.73634204 | F12: 1.543942993 | G12: 1.06888361 | H12: 0.4750593824 | I12: 0.7125890736 | J12: 0.3562945368 | K12: 5.106888361 | L12: 0.1789737171
C13: 無回答 | D13: 237 | E13: 86.4978903 | F13: 1.687763713 | G13: 2.53164557 | H13: 0 | I13: 0 | J13: 0.4219409283 | K13: 8.860759494 | L13: 0.1388888889
B14: 診療所 | C14: 併設 | D14: 271 | E14: 92.98892989 | F14: 1.10701107 | G14: 1.10701107 | H14: 0 | I14: 0 | J14: 0.36900369 | K14: 4.42804428 | L14: 0.07722007722
B15: （無床） | C15: 隣接 | D15: 43 | E15: 88.37209302 | F15: 0 | G15: 4.651162791 | H15: 0 | I15: 2.325581395 | J15: 0 | K15: 4.651162791 | L15: 0.2926829268
C16: なし | D16: 677 | E16: 89.21713442 | F16: 1.772525849 | G16: 1.477104874 | H16: 0.5908419498 | I16: 0.7385524372 | J16: 0.1477104874 | K16: 6.056129985 | L16: 0.1808176101
C17: 無回答 | D17: 98 | E17: 84.69387755 | F17: 2.040816327 | G17: 1.020408163 | H17: 0 | I17: 0 | J17: 2.040816327 | K17: 10.20408163 | L17: 0.3181818182
A21: 全 体 | D21: 1089 | E21: 977 | F21: 17 | G21: 16 | H21: 4 | I21: 6 | J21: 4 | K21: 65 | L21: 0.1708984375
A23: 問１(2) | B23: 病院 | C23: 併設 | D23: 9 | E23: 9 | F23: 0 | G23: 0 | H23: 0 | I23: 0 | J23: 0 | K23: 0 | L23: 0
A24: 併設・隣接の状況 | C24: 隣接 | D24: 50 | E24: 43 | F24: 1 | G24: 3 | H24: 0 | I24: 0 | J24: 1 | K24: 2 | L24: 0.3958333333
C25: なし | D25: 829 | E25: 750 | F25: 14 | G25: 9 | H25: 4 | I25: 6 | J25: 3 | K25: 43 | L25: 0.1832061069
C26: 無回答 | D26: 201 | E26: 175 | F26: 2 | G26: 4 | H26: 0 | I26: 0 | J26: 0 | K26: 20 | L26: 0.06629834254
B27: 診療所 | C27: 併設 | D27: 5 | E27: 4 | F27: 0 | G27: 0 | H27: 0 | I27: 0 | J27: 0 | K27: 1 | L27: 0
B28: （有床） | C28: 隣接 | D28: 5 | E28: 4 | F28: 0 | G28: 1 | H28: 0 | I28: 0 | J28: 0 | K28: 0 | L28: 0.4
C29: なし | D29: 842 | E29: 764 | F29: 13 | G29: 9 | H29: 4 | I29: 6 | J29: 3 | K29: 43 | L29: 0.1789737171
C30: 無回答 | D30: 237 | E30: 205 | F30: 4 | G30: 6 | H30: 0 | I30: 0 | J30: 1 | K30: 21 | L30: 0.1388888889
B31: 診療所 | C31: 併設 | D31: 271 | E31: 252 | F31: 3 | G31: 3 | H31: 0 | I31: 0 | J31: 1 | K31: 12 | L31: 0.07722007722
B32: （無床） | C32: 隣接 | D32: 43 | E32: 38 | F32: 0 | G32: 2 | H32: 0 | I32: 1 | J32: 0 | K32: 2 | L32: 0.2926829268
C33: なし | D33: 677 | E33: 604 | F33: 12 | G33: 10 | H33: 4 | I33: 5 | J33: 1 | K33: 41 | L33: 0.1808176101
C34: 無回答 | D34: 98 | E34: 83 | F34: 2 | G34: 1 | H34: 0 | I34: 0 | J34: 2 | K34: 10 | L34: 0.3181818182

Sheet 救急-(1)⑦～⑨
A1: =RIGHT(CELL("filename",A1),LEN(CELL("filename",A1))-FIND("]",CELL("filename",A1))) -> 救急-(1)⑦～⑨ | D1: 問８(1) 119番への救急要請－延べ回数
D2: 平日・休日合計
D3: 全体 | E3: ０回 | F3: １回 | G3: ２～３回 | H3: ４～５回 | I3: ６～９回 | J3: 10回以上 | K3: エラー・ 無回答 | L3: 平均 (回)
A4: 全 体 | D4: =D64 -> 1089 | E4: 289 | F4: 164 | G4: 229 | H4: 131 | I4: 107 | J4: 75 | K4: 94 | L4: 3.132663317
D5: =IF(SUM(E5:K5)>100,"－",SUM(E5:K5)) -> 100 | E5: =E4/$D4*100 -> 26.53810836 | F5: 15.05968779 | G5: 21.02846648 | H5: 12.02938476 | I5: 9.825528007 | J5: 6.887052342 | K5: 8.631772268
A6: 問７(1)① | B6: ０箇所 | D6: =D66 -> 371 | E6: =IF($D6=0,0,E66/$D6*100) -> 29.91913747 | F6: 13.74663073 | G6: 21.8328841 | H6: 12.93800539 | I6: 9.433962264 | J6: 4.851752022 | K6: 7.277628032 | L6: =L66 -> 2.755813953
A7: 協力・連携関係にある | B7: １箇所 | D7: 187 | E7: 29.94652406 | F7: 18.71657754 | G7: 19.78609626 | H7: 12.29946524 | I7: 6.951871658 | J7: 3.20855615 | K7: 9.090909091 | L7: 2.358823529
A8: 医療機関数 | B8: ２箇所 | D8: 126 | E8: 28.57142857 | F8: 20.63492063 | G8: 21.42857143 | H8: 11.11111111 | I8: 9.523809524 | J8: 4.761904762 | K8: 3.968253968 | L8: 2.710743802
A9: （専門外来） | B9: ３箇所 | D9: 106 | E9: 23.58490566 | F9: 9.433962264 | G9: 26.41509434 | H9: 9.433962264 | I9: 16.03773585 | J9: 7.547169811 | K9: 7.547169811 | L9: 3.367346939
B10: ４箇所 | D10: 51 | E10: 19.60784314 | F10: 17.64705882 | G10: 23.52941176 | H10: 11.76470588 | I10: 11.76470588 | J10: 11.76470588 | K10: 3.921568627 | L10: 3.816326531
B11: ５～９箇所 | D11: 125 | E11: 14.4 | F11: 13.6 | G11: 19.2 | H11: 13.6 | I11: 16 | J11: 15.2 | K11: 8 | L11: 5.208695652
B12: 10箇所以上 | D12: 24 | E12: 20.83333333 | F12: 12.5 | G12: 12.5 | H12: 16.66666667 | I12: 4.166666667 | J12: 25 | K12: 8.333333333 | L12: 5.772727273
B13: 無回答 | D13: 99 | E13: 28.28282828 | F13: 13.13131313 | G13: 17.17171717 | H13: 9.090909091 | I13: 3.03030303 | J13: 6.060606061 | K13: 23.23232323 | L13: 2.592105263
A14: 問７(2)① | B14: ０箇所 | D14: 118 | E14: 38.13559322 | F14: 12.71186441 | G14: 17.79661017 | H14: 12.71186441 | I14: 6.779661017 | J14: 2.542372881 | K14: 9.322033898 | L14: 2.130841121
A15: 協力・連携関係にある | B15: １箇所 | D15: 319 | E15: 34.79623824 | F15: 17.86833856 | G15: 19.12225705 | H15: 10.34482759 | I15: 7.523510972 | J15: 3.448275862 | K15: 6.896551724 | L15: 2.212121212
A16: 医療機関数 | B16: ２箇所 | D16: 227 | E16: =IF($D16=0,0,E76/$D16*100) -> 24.22907489 | F16: 14.97797357 | G16: 21.14537445 | H16: 15.4185022 | I16: 9.691629956 | J16: 6.167400881 | K16: 8.370044053 | L16: 3.144230769
A17: （入院先） | B17: ３箇所 | D17: 136 | E17: 20.58823529 | F17: 15.44117647 | G17: 25 | H17: 13.23529412 | I17: 11.76470588 | J17: 8.088235294 | K17: 5.882352941 | L17: 3.46875
B18: ４箇所 | D18: 83 | E18: 14.45783133 | F18: 15.6626506 | G18: 22.89156627 | H18: 12.04819277 | I18: 18.07228916 | J18: 13.25301205 | K18: 3.614457831 | L18: 4.4375
B19: ５～９箇所 | D19: 103 | E19: 11.65048544 | F19: 9.708737864 | G19: 24.27184466 | H19: 12.62135922 | I19: 15.53398058 | J19: 16.50485437 | K19: 9.708737864 | L19: 5.623655914
B20: 10箇所以上 | D20: 5 | E20: 0 | F20: 0 | G20: 20 | H20: 40 | I20: 20 | J20: 20 | K20: 0 | L20: 8
B21: 無回答 | D21: 98 | E21: 26.53061224 | F21: 14.28571429 | G21: 20.40816327 | H21: 5.102040816 | I21: 5.102040816 | J21: 7.142857143 | K21: 21.42857143 | L21: 2.805194805
A22: 問７(3)① | B22: ０箇所 | D22: 307 | E22: 31.59609121 | F22: 14.65798046 | G22: 18.89250814 | H22: 12.37785016 | I22: 11.07491857 | J22: 3.908794788 | K22: 7.491856678 | L22: 2.725352113
A23: 協力・連携関係にある | B23: １箇所 | D23: 298 | E23: 29.53020134 | F23: 19.12751678 | G23: 19.12751678 | H23: 10.40268456 | I23: 11.40939597 | J23: 4.362416107 | K23: 6.040268456 | L23: 2.621428571
A24: 医療機関数 | B24: ２箇所 | D24: 224 | E24: 24.10714286 | F24: 12.5 | G24: 22.32142857 | H24: 15.625 | I24: 8.928571429 | J24: 9.375 | K24: 7.142857143 | L24: 3.533653846
A25: （訪問診療・往診） | B25: ３箇所 | D25: 95 | E25: 14.73684211 | F25: 7.368421053 | G25: 29.47368421 | H25: 14.73684211 | I25: 8.421052632 | J25: 11.57894737 | K25: 13.68421053 | L25: 4.634146341
B26: ４箇所 | D26: 43 | E26: =IF($D26=0,0,E86/$D26*100) -> 13.95348837 | F26: 16.27906977 | G26: 30.23255814 | H26: 13.95348837 | I26: 9.302325581 | J26: 11.62790698 | K26: 4.651162791 | L26: 4.097560976
B27: ５～９箇所 | D27: 29 | E27: 13.79310345 | F27: 17.24137931 | G27: 20.68965517 | H27: 3.448275862 | I27: 13.79310345 | J27: 24.13793103 | K27: 6.896551724 | L27: 5.185185185
B28: 10箇所以上 | D28: 1 | E28: 0 | F28: 0 | G28: 100 | H28: 0 | I28: 0 | J28: 0 | K28: 0 | L28: 2
B29: 無回答 | D29: 92 | E29: 28.26086957 | F29: 16.30434783 | G29: 17.39130435 | H29: 6.52173913 | I29: 3.260869565 | J29: 6.52173913 | K29: 21.73913043 | L29: 2.555555556
A30: 問７(4)①-6 | B30: 施設の求めに応じた急変対応（往診、休日夜間対応等）を行っている | D30: 664 | E30: 26.65662651 | F30: 15.36144578 | G30: 21.98795181 | H30: 11.89759036 | I30: 10.24096386 | J30: 6.777108434 | K30: 7.078313253 | L30: 3.079416532
A31: 協力・連携関係にある医療機関の役割 | B31: 施設の求めに応じた急変対応（往診、休日夜間対応等）を行っていない | D31: 425 | E31: 26.35294118 | F31: 14.58823529 | G31: 19.52941176 | H31: 12.23529412 | I31: 9.176470588 | J31: 7.058823529 | K31: 11.05882353 | L31: 3.21957672
A32: 問８(4)② | B32: 決まっていない | D32: 29 | E32: 10.34482759 | F32: 31.03448276 | G32: 20.68965517 | H32: 13.79310345 | I32: 13.79310345 | J32: 6.896551724 | K32: 3.448275862 | L32: 3.928571429
A33: 搬送の必要性を判断する | B33: 配置医師 | D33: 211 | E33: 28.43601896 | F33: 15.63981043 | G33: 15.63981043 | H33: 14.21800948 | I33: 10.42654028 | J33: 6.161137441 | K33: 9.478672986 | L33: 3.052356021
A34: 人 | B34: 協力医療機関 | D34: 31 | E34: 38.70967742 | F34: 12.90322581 | G34: 22.58064516 | H34: 6.451612903 | I34: 6.451612903 | J34: 0 | K34: 12.90322581 | L34: 1.62962963
B35: その他の医師・医療機関 | D35: 4 | E35: 25 | F35: 25 | G35: 50 | H35: 0 | I35: 0 | J35: 0 | K35: 0 | L35: 1.75
B36: 看護職 | D36: 368 | E36: =IF($D36=0,0,E96/$D36*100) -> 25 | F36: 14.94565217 | G36: 23.91304348 | H36: 11.68478261 | I36: 9.782608696 | J36: 7.608695652 | K36: 7.065217391 | L36: 3.204678363
B37: 施設長 | D37: 32 | E37: 28.125 | F37: 9.375 | G37: 25 | H37: 15.625 | I37: 3.125 | J37: 6.25 | K37: 12.5 | L37: 2.642857143
B38: 家族 | D38: 37 | E38: 24.32432432 | F38: 10.81081081 | G38: 32.43243243 | H38: 8.108108108 | I38: 13.51351351 | J38: 5.405405405 | K38: 5.405405405 | L38: 3.542857143
B39: その他 | D39: 17 | E39: 5.882352941 | F39: 23.52941176 | G39: 11.76470588 | H39: 11.76470588 | I39: 11.76470588 | J39: 11.76470588 | K39: 23.52941176 | L39: 4.538461538
B40: 無回答 | D40: 360 | E40: 28.33333333 | F40: 14.16666667 | G40: 19.72222222 | H40: 11.66666667 | I40: 9.722222222 | J40: 7.222222222 | K40: 9.166666667 | L40: 3.119266055
A41: 問８(5) | B41: A：配置医師による駆けつけ・診察 | C41: 行っている | D41: =D95 -> 4 | E41: =IF($D41=0,0,E95/$D41*100) -> 25 | F41: 25 | G41: 50 | H41: 0 | I41: 0 | J41: 0 | K41: 0 | L41: =L95 -> 1.75
A42: 搬送の回避に向けて必ず | C42: 行っていない | D42: 368 | E42: 25 | F42: 14.94565217 | G42: 23.91304348 | H42: 11.68478261 | I42: 9.782608696 | J42: 7.608695652 | K42: 7.065217391 | L42: 3.204678363
A43: 行う処置 | B43: B：配置医師以外の医師による駆けつけ・診察 | C43: 行っている | D43: 32 | E43: 28.125 | F43: 9.375 | G43: 25 | H43: 15.625 | I43: 3.125 | J43: 6.25 | K43: 12.5 | L43: 2.642857143
A44: （複数回答） | C44: 行っていない | D44: 37 | E44: 24.32432432 | F44: 10.81081081 | G44: 32.43243243 | H44: 8.108108108 | I44: 13.51351351 | J44: 5.405405405 | K44: 5.405405405 | L44: 3.542857143
B45: C：配置医師による電話対応 | C45: 行っている | D45: 17 | E45: 5.882352941 | F45: 23.52941176 | G45: 11.76470588 | H45: 11.76470588 | I45: 11.76470588 | J45: 11.76470588 | K45: 23.52941176 | L45: 4.538461538
C46: 行っていない | D46: 360 | E46: 28.33333333 | F46: 14.16666667 | G46: 19.72222222 | H46: 11.66666667 | I46: 9.722222222 | J46: 7.222222222 | K46: 9.166666667 | L46: 3.119266055
B47: D：配置医師以外による電話対応 | C47: 行っている | D47: 224 | E47: 32.14285714 | F47: 14.73214286 | G47: 20.53571429 | H47: 12.05357143 | I47: 6.25 | J47: 6.25 | K47: 8.035714286 | L47: 2.791262136
C48: 行っていない | D48: 865 | E48: 25.0867052 | F48: 15.14450867 | G48: 21.15606936 | H48: 12.02312139 | I48: 10.75144509 | J48: 7.052023121 | K48: 8.786127168 | L48: 2.96097561
B49: E：A～Dのいずれにも該当しない | C49: 行っている | D49: 20 | E49: 35 | F49: 5 | G49: 25 | H49: 15 | I49: 5 | J49: 5 | K49: 10 | L49: 2.483412322
C50: 行っていない | D50: 1069 | E50: 26.3797942 | F50: 15.24789523 | G50: 20.95416277 | H50: 11.9738073 | I50: 9.915809167 | J50: 6.922357343 | K50: 8.606173994 | L50: 3.306220096
B51: 無回答 | C51: 行っている | D51: 440 | E51: 24.77272727 | F51: 14.54545455 | G51: 20.22727273 | H51: 13.40909091 | I51: 11.36363636 | J51: 7.045454545 | K51: 8.636363636 | L51: 3.290640394
C52: 行っていない | D52: 649 | E52: 27.73497689 | F52: 15.40832049 | G52: 21.57164869 | H52: 11.09399076 | I52: 8.782742681 | J52: 6.779661017 | K52: 8.628659476 | L52: 2.686567164
A53: 問８(6) | B53: 施設内で作成したマニュアルを使用 | D53: =D113 -> 886 | E53: =IF($D53=0,0,E113/$D53*100) -> 24.60496614 | F53: 15.8013544 | G53: 21.78329571 | H53: 12.97968397 | I53: 10.27088036 | J53: 6.997742664 | K53: 7.562076749 | L53: =L113 -> 3.217338217
A54: 搬送マニュアルの使用 | B54: 自治体等外部機関が提供するマニュアルを使用 | D54: 3 | E54: 0 | F54: 0 | G54: 33.33333333 | H54: 0 | I54: 0 | J54: 0 | K54: 66.66666667 | L54: 2
A55: 状況 | B55: マニュアルを作成中または使用の検討中 | D55: 42 | E55: 30.95238095 | F55: 16.66666667 | G55: 19.04761905 | H55: 9.523809524 | I55: 4.761904762 | J55: 11.9047619 | K55: 7.142857143 | L55: 3.512820513
B56: マニュアルは使用していない | D56: 113 | E56: 31.85840708 | F56: 13.27433628 | G56: 20.3539823 | H56: 8.849557522 | I56: 11.50442478 | J56: 5.309734513 | K56: 8.849557522 | L56: 2.825242718
B57: 無回答 | D57: 45 | E57: 48.88888889 | F57: 4.444444444 | G57: 8.888888889 | H57: 4.444444444 | I57: 2.222222222 | J57: 4.444444444 | K57: 26.66666667 | L57: 1.575757576
A58: 問11(1) | B58: 「施設で亡くなりたい」という希望があれば、受け入れる | D58: 914 | E58: 27.13347921 | F58: 14.22319475 | G58: 21.5536105 | H58: 12.58205689 | I58: 9.190371991 | J58: 6.564551422 | K58: 8.75273523 | L58: 3.073141487
A59: 看取りの受け入れ方針 | B59: 原則的には受け入れていない | D59: 139 | E59: 25.17985612 | F59: 20.14388489 | G59: 18.70503597 | H59: 10.79136691 | I59: 12.94964029 | J59: 6.474820144 | K59: 5.755395683 | L59: 3.145038168
B60: 無回答 | D60: 36 | E60: 16.66666667 | F60: 16.66666667 | G60: 16.66666667 | H60: 2.777777778 | I60: 13.88888889 | J60: 16.66666667 | K60: 16.66666667 | L60: 4.733333333
A64: 全 体 | D64: 1089 | E64: 289 | F64: 164 | G64: 229 | H64: 131 | I64: 107 | J64: 75 | K64: 94 | L64: 3.132663317
A66: 問７(1)① | B66: ０箇所 | D66: 371 | E66: 111 | F66: 51 | G66: 81 | H66: 48 | I66: 35 | J66: 18 | K66: 27 | L66: 2.755813953
A67: 協力・連携関係にある | B67: １箇所 | D67: 187 | E67: 56 | F67: 35 | G67: 37 | H67: 23 | I67: 13 | J67: 6 | K67: 17 | L67: 2.358823529
A68: 医療機関数 | B68: ２箇所 | D68: 126 | E68: 36 | F68: 26 | G68: 27 | H68: 14 | I68: 12 | J68: 6 | K68: 5 | L68: 2.710743802
A69: （専門外来） | B69: ３箇所 | D69: 106 | E69: 25 | F69: 10 | G69: 28 | H69: 10 | I69: 17 | J69: 8 | K69: 8 | L69: 3.367346939
B70: ４箇所 | D70: 51 | E70: 10 | F70: 9 | G70: 12 | H70: 6 | I70: 6 | J70: 6 | K70: 2 | L70: 3.816326531
B71: ５～９箇所 | D71: 125 | E71: 18 | F71: 17 | G71: 24 | H71: 17 | I71: 20 | J71: 19 | K71: 10 | L71: 5.208695652
B72: 10箇所以上 | D72: 24 | E72: 5 | F72: 3 | G72: 3 | H72: 4 | I72: 1 | J72: 6 | K72: 2 | L72: 5.772727273
B73: 無回答 | D73: 99 | E73: 28 | F73: 13 | G73: 17 | H73: 9 | I73: 3 | J73: 6 | K73: 23 | L73: 2.592105263
A74: 問７(2)① | B74: ０箇所 | D74: 118 | E74: 45 | F74: 15 | G74: 21 | H74: 15 | I74: 8 | J74: 3 | K74: 11 | L74: 2.130841121
A75: 協力・連携関係にある | B75: １箇所 | D75: 319 | E75: 111 | F75: 57 | G75: 61 | H75: 33 | I75: 24 | J75: 11 | K75: 22 | L75: 2.212121212
A76: 医療機関数 | B76: ２箇所 | D76: 227 | E76: 55 | F76: 34 | G76: 48 | H76: 35 | I76: 22 | J76: 14 | K76: 19 | L76: 3.144230769
A77: （入院先） | B77: ３箇所 | D77: 136 | E77: 28 | F77: 21 | G77: 34 | H77: 18 | I77: 16 | J77: 11 | K77: 8 | L77: 3.46875
B78: ４箇所 | D78: 83 | E78: 12 | F78: 13 | G78: 19 | H78: 10 | I78: 15 | J78: 11 | K78: 3 | L78: 4.4375
B79: ５～９箇所 | D79: 103 | E79: 12 | F79: 10 | G79: 25 | H79: 13 | I79: 16 | J79: 17 | K79: 10 | L79: 5.623655914
B80: 10箇所以上 | D80: 5 | E80: 0 | F80: 0 | G80: 1 | H80: 2 | I80: 1 | J80: 1 | K80: 0 | L80: 8
B81: 無回答 | D81: 98 | E81: 26 | F81: 14 | G81: 20 | H81: 5 | I81: 5 | J81: 7 | K81: 21 | L81: 2.805194805
A82: 問７(3)① | B82: ０箇所 | D82: 307 | E82: 97 | F82: 45 | G82: 58 | H82: 38 | I82: 34 | J82: 12 | K82: 23 | L82: 2.725352113
A83: 協力・連携関係にある | B83: １箇所 | D83: 298 | E83: 88 | F83: 57 | G83: 57 | H83: 31 | I83: 34 | J83: 13 | K83: 18 | L83: 2.621428571
A84: 医療機関数 | B84: ２箇所 | D84: 224 | E84: 54 | F84: 28 | G84: 50 | H84: 35 | I84: 20 | J84: 21 | K84: 16 | L84: 3.533653846
A85: （訪問診療・往診） | B85: ３箇所 | D85: 95 | E85: 14 | F85: 7 | G85: 28 | H85: 14 | I85: 8 | J85: 11 | K85: 13 | L85: 4.634146341
B86: ４箇所 | D86: 43 | E86: 6 | F86: 7 | G86: 13 | H86: 6 | I86: 4 | J86: 5 | K86: 2 | L86: 4.097560976
B87: ５～９箇所 | D87: 29 | E87: 4 | F87: 5 | G87: 6 | H87: 1 | I87: 4 | J87: 7 | K87: 2 | L87: 5.185185185
B88: 10箇所以上 | D88: 1 | E88: 0 | F88: 0 | G88: 1 | H88: 0 | I88: 0 | J88: 0 | K88: 0 | L88: 2
B89: 無回答 | D89: 92 | E89: 26 | F89: 15 | G89: 16 | H89: 6 | I89: 3 | J89: 6 | K89: 20 | L89: 2.555555556
A90: 問７(4)①-6 | B90: 施設の求めに応じた急変対応（往診、休日夜間対応等）を行っている | D90: 664 | E90: 177 | F90: 102 | G90: 146 | H90: 79 | I90: 68 | J90: 45 | K90: 47 | L90: 3.079416532
A91: 協力・連携関係にある医療機関の役割 | B91: 施設の求めに応じた急変対応（往診、休日夜間対応等）を行っていない | D91: 425 | E91: 112 | F91: 62 | G91: 83 | H91: 52 | I91: 39 | J91: 30 | K91: 47 | L91: 3.21957672
A92: 問８(4)② | B92: 決まっていない | D92: 29 | E92: 3 | F92: 9 | G92: 6 | H92: 4 | I92: 4 | J92: 2 | K92: 1 | L92: 3.928571429
A93: 搬送の必要性を判断する | B93: 配置医師 | D93: 211 | E93: 60 | F93: 33 | G93: 33 | H93: 30 | I93: 22 | J93: 13 | K93: 20 | L93: 3.052356021
A94: 人 | B94: 協力医療機関 | D94: 31 | E94: 12 | F94: 4 | G94: 7 | H94: 2 | I94: 2 | J94: 0 | K94: 4 | L94: 1.62962963
B95: その他の医師・医療機関 | D95: 4 | E95: 1 | F95: 1 | G95: 2 | H95: 0 | I95: 0 | J95: 0 | K95: 0 | L95: 1.75
B96: 看護職 | D96: 368 | E96: 92 | F96: 55 | G96: 88 | H96: 43 | I96: 36 | J96: 28 | K96: 26 | L96: 3.204678363
B97: 施設長 | D97: 32 | E97: 9 | F97: 3 | G97: 8 | H97: 5 | I97: 1 | J97: 2 | K97: 4 | L97: 2.642857143
B98: 家族 | D98: 37 | E98: 9 | F98: 4 | G98: 12 | H98: 3 | I98: 5 | J98: 2 | K98: 2 | L98: 3.542857143
B99: その他 | D99: 17 | E99: 1 | F99: 4 | G99: 2 | H99: 2 | I99: 2 | J99: 2 | K99: 4 | L99: 4.538461538
B100: 無回答 | D100: 360 | E100: 102 | F100: 51 | G100: 71 | H100: 42 | I100: 35 | J100: 26 | K100: 33 | L100: 3.119266055
A101: 問８(5) | B101: A：配置医師による駆けつけ・診察 | C101: 行っている | D101: 224 | E101: 72 | F101: 33 | G101: 46 | H101: 27 | I101: 14 | J101: 14 | K101: 18 | L101: 2.791262136
A102: 搬送の回避に向けて必ず | C102: 行っていない | D102: 865 | E102: 217 | F102: 131 | G102: 183 | H102: 104 | I102: 93 | J102: 61 | K102: 76 | L102: 2.96097561
A103: 行う処置 | B103: B：配置医師以外の医師による駆けつけ・診察 | C103: 行っている | D103: 20 | E103: 7 | F103: 1 | G103: 5 | H103: 3 | I103: 1 | J103: 1 | K103: 2 | L103: 2.483412322
A104: （複数回答） | C104: 行っていない | D104: 1069 | E104: 282 | F104: 163 | G104: 224 | H104: 128 | I104: 106 | J104: 74 | K104: 92 | L104: 3.306220096
B105: C：配置医師による電話対応 | C105: 行っている | D105: 440 | E105: 109 | F105: 64 | G105: 89 | H105: 59 | I105: 50 | J105: 31 | K105: 38 | L105: 3.290640394
C106: 行っていない | D106: 649 | E106: 180 | F106: 100 | G106: 140 | H106: 72 | I106: 57 | J106: 44 | K106: 56 | L106: 2.686567164
B107: D：配置医師以外による電話対応 | C107: 行っている | D107: 21 | E107: 3 | F107: 3 | G107: 7 | H107: 1 | I107: 2 | J107: 3 | K107: 2 | L107: 3.170731707
C108: 行っていない | D108: 1068 | E108: 286 | F108: 161 | G108: 222 | H108: 130 | I108: 105 | J108: 72 | K108: 92 | L108: 2.964824121
B109: E：A～Dのいずれにも該当しない | C109: 行っている | D109: 337 | E109: 79 | F109: 60 | G109: 77 | H109: 38 | I109: 35 | J109: 26 | K109: 22 | L109: 3.063414634
C110: 行っていない | D110: 752 | E110: 210 | F110: 104 | G110: 152 | H110: 93 | I110: 72 | J110: 49 | K110: 72 | L110: 3.160194175
B111: 無回答 | C111: 行っている | D111: 47 | E111: 19 | F111: 3 | G111: 5 | H111: 3 | I111: 5 | J111: 0 | K111: 12 | L111: 2.724137931
C112: 行っていない | D112: 1042 | E112: 270 | F112: 161 | G112: 224 | H112: 128 | I112: 102 | J112: 75 | K112: 82 | L112: 3.07286336
A113: 問８(6) | B113: 施設内で作成したマニュアルを使用 | D113: 886 | E113: 218 | F113: 140 | G113: 193 | H113: 115 | I113: 91 | J113: 62 | K113: 67 | L113: 3.217338217
A114: 搬送マニュアルの使用 | B114: 自治体等外部機関が提供するマニュアルを使用 | D114: 3 | E114: 0 | F114: 0 | G114: 1 | H114: 0 | I114: 0 | J114: 0 | K114: 2 | L114: 2
A115: 状況 | B115: マニュアルを作成中または使用の検討中 | D115: 42 | E115: 13 | F115: 7 | G115: 8 | H115: 4 | I115: 2 | J115: 5 | K115: 3 | L115: 3.512820513
B116: マニュアルは使用していない | D116: 113 | E116: 36 | F116: 15 | G116: 23 | H116: 10 | I116: 13 | J116: 6 | K116: 10 | L116: 2.825242718
B117: 無回答 | D117: 45 | E117: 22 | F117: 2 | G117: 4 | H117: 2 | I117: 1 | J117: 2 | K117: 12 | L117: 1.575757576
A118: 問11(1) | B118: 「施設で亡くなりたい」という希望があれば、受け入れる | D118: 914 | E118: 248 | F118: 130 | G118: 197 | H118: 115 | I118: 84 | J118: 60 | K118: 80 | L118: 3.073141487
A119: 看取りの受け入れ方針 | B119: 原則的には受け入れていない | D119: 139 | E119: 35 | F119: 28 | G119: 26 | H119: 15 | I119: 18 | J119: 9 | K119: 8 | L119: 3.145038168
B120: 無回答 | D120: 36 | E120: 6 | F120: 6 | G120: 6 | H120: 1 | I120: 5 | J120: 6 | K120: 6 | L120: 4.733333333

Sheet 救急-(1)⑨
C1: 問８(1) 119番への救急要請－延べ回数 | L1: 問８(2) 特定の病院への救急要請－延べ回数 | U1: 問８(3) 施設の車等による搬送・緊急受診－延べ回数
C2: 平日・休日合計 | L2: 平日・休日合計 | U2: 平日・休日合計
C3: 全体 | D3: ０回 | E3: １回 | F3: ２～３回 | G3: ４～５回 | H3: ６～９回 | I3: 10回以上 | J3: エラー・ 無回答 | K3: 平均 (回) | L3: 全体 | M3: ０回 | N3: １回 | O3: ２～３回 | P3: ４～５回 | Q3: ６～９回 | R3: 10回以上 | S3: エラー・ 無回答 | T3: 平均 (回) | U3: 全体 | V3: ０回 | W3: １回 | X3: ２～３回 | Y3: ４～５回 | Z3: ６～９回 | AA3: 10回以上 | AB3: エラー・ 無回答 | AC3: 平均 (回)
A4: 問５ | B4: N | C4: 1018 | D4: 263 | E4: 156 | F4: 218 | G4: 126 | H4: 101 | I4: 70 | J4: 84 | K4: － | L4: 1018 | M4: 921 | N4: 14 | O4: 15 | P4: 4 | Q4: 5 | R4: 4 | S4: 55 | T4: － | U4: 1018 | V4: 383 | W4: 99 | X4: 111 | Y4: 74 | Z4: 82 | AA4: 171 | AB4: 98 | AC4: －
A5: 看取り率 | B5: n | C5: 8097 | D5: 1605 | E5: 1110 | F5: 1683 | G5: 1125 | H5: 995 | I5: 843 | J5: 736 | K5: － | L5: 8097 | M5: 7251 | N5: 91 | O5: 131 | P5: 28 | Q5: 36 | R5: 36 | S5: 524 | T5: － | U5: 8097 | V5: 2894 | W5: 665 | X5: 816 | Y5: 459 | Z5: 715 | AA5: 1678 | AB5: 870 | AC5: －
B6: 看取り率 | C6: 47.05446462 | D6: 52.89719626 | E6: 51.17117117 | F6: 50.68330362 | G6: 47.73333333 | H6: 41.00502513 | I6: 30.0118624 | J6: 46.4673913 | K6: － | L6: 47.05446462 | M6: 47.23486416 | N6: 37.36263736 | O6: 42.7480916 | P6: 17.85714286 | Q6: 52.77777778 | R6: 50 | S6: 48.28244275 | T6: － | U6: 47.05446462 | V6: 51.55494126 | W6: 56.9924812 | X6: 43.62745098 | Y6: 48.80174292 | Z6: 42.93706294 | AA6: 37.3659118 | AB6: 48.85057471 | AC6: －
B7: 看取り率高：55％以上 | C7: =C16 -> 448 | D7: =IF($C7=0,0,D16/$C7*100) -> 31.02678571 | E7: 16.51785714 | F7: 21.875 | G7: 12.05357143 | H7: 8.482142857 | I7: 2.678571429 | J7: 7.366071429 | K7: =K16 -> 2.313253012 | L7: 448 | M7: =IF($L7=0,0,M16/$L7*100) -> 31.02678571 | N7: 16.51785714 | O7: 21.875 | P7: 12.05357143 | Q7: 8.482142857 | R7: 2.678571429 | S7: 7.366071429 | T7: =T16 -> 0.1418604651 | U7: 448 | V7: =IF($U7=0,0,V16/$U7*100) -> 31.02678571 | W7: 16.51785714 | X7: 21.875 | Y7: 12.05357143 | Z7: 8.482142857 | AA7: 2.678571429 | AB7: 7.366071429 | AC7: =AC16 -> 4.462287105
B8: 看取り率中：40％以上55％未満 | C8: =C17 -> 160 | D8: 21.25 | E8: 15.625 | F8: 22.5 | G8: 16.875 | H8: 8.75 | I8: 6.25 | J8: 8.75 | K8: 3.315068493 | L8: 160 | M8: 21.25 | N8: 15.625 | O8: 22.5 | P8: 16.875 | Q8: 8.75 | R8: 6.25 | S8: 8.75 | T8: 0.156462585 | U8: 160 | V8: 21.25 | W8: 15.625 | X8: 22.5 | Y8: 16.875 | Z8: 8.75 | AA8: 6.25 | AB8: 8.75 | AC8: =AC17 -> 4.721428571
B9: 看取り率低：40％未満 | C9: =C18 -> 410 | D9: 21.95121951 | E9: 13.90243902 | F9: 20.48780488 | G9: 10.97560976 | H9: 11.95121951 | I9: 11.70731707 | J9: 9.024390244 | K9: 4.069705094 | L9: 410 | M9: 21.95121951 | N9: 13.90243902 | O9: 20.48780488 | P9: 10.97560976 | Q9: 11.95121951 | R9: 11.70731707 | S9: 9.024390244 | T9: 0.207253886 | U9: 410 | V9: 21.95121951 | W9: 13.90243902 | X9: 20.48780488 | Y9: 10.97560976 | Z9: 11.95121951 | AA9: 11.70731707 | AB9: 9.024390244 | AC9: =AC18 -> 8.292682927
A13: 問５ | B13: N
A14: 看取り率 | B14: n
B15: 看取り率
B16: 看取り率高：55％以上 | C16: 448 | D16: 139 | E16: 74 | F16: 98 | G16: 54 | H16: 38 | I16: 12 | J16: 33 | K16: 2.313253012 | L16: 448 | M16: 139 | N16: 74 | O16: 98 | P16: 54 | Q16: 38 | R16: 12 | S16: 33 | T16: 0.1418604651 | U16: 448 | V16: 139 | W16: 74 | X16: 98 | Y16: 54 | Z16: 38 | AA16: 12 | AB16: 33 | AC16: 4.462287105
B17: 看取り率中：40％以上55％未満 | C17: 160 | D17: 34 | E17: 25 | F17: 36 | G17: 27 | H17: 14 | I17: 10 | J17: 14 | K17: 3.315068493 | L17: 160 | M17: 34 | N17: 25 | O17: 36 | P17: 27 | Q17: 14 | R17: 10 | S17: 14 | T17: 0.156462585 | U17: 160 | V17: 34 | W17: 25 | X17: 36 | Y17: 27 | Z17: 14 | AA17: 10 | AB17: 14 | AC17: 4.721428571
B18: 看取り率低：40％未満 | C18: 410 | D18: 90 | E18: 57 | F18: 84 | G18: 45 | H18: 49 | I18: 48 | J18: 37 | K18: 4.069705094 | L18: 410 | M18: 90 | N18: 57 | O18: 84 | P18: 45 | Q18: 49 | R18: 48 | S18: 37 | T18: 0.207253886 | U18: 410 | V18: 90 | W18: 57 | X18: 84 | Y18: 45 | Z18: 49 | AA18: 48 | AB18: 37 | AC18: 8.292682927

Sheet 救急-(2)①
A1: =RIGHT(CELL("filename",A1),LEN(CELL("filename",A1))-FIND("]",CELL("filename",A1))) -> 救急-(2)① | C1: 問９Q1 年齢 | N1: 問９Q3 搬送時の認知症の程度 | W1: 問９Q4 看取りの対象としての認識
C3: 全体 | D3: 70歳未満 | E3: 70～74歳 | F3: 75～79歳 | G3: 80～84歳 | H3: 85～89歳 | I3: 90～94歳 | J3: 95～99歳 | K3: 100歳以上 | L3: エラー・無回答 | M3: 平均 (歳) | N3: 全体 | O3: Ⅰ | P3: Ⅱａ・Ⅱｂ | Q3: Ⅲａ・Ⅲｂ | R3: Ⅳ | S3: Ｍ | T3: その他 | U3: 不明 | V3: 無回答 | W3: 全体 | X3: 看取りと認識されていた | Y3: 看取りと認識されていなかった | Z3: 無回答
A4: 全 体 | C4: =C17 -> 3002 | D4: 36 | E4: 56 | F4: =F17 -> 148 | G4: =G17 -> 264 | H4: 461 | I4: 456 | J4: 261 | K4: 57 | L4: 1263 | M4: 87.73835538 | N4: 3002 | O4: 106 | P4: 571 | Q4: =Q17 -> 1262 | R4: 710 | S4: 156 | T4: 26 | U4: 101 | V4: 70 | W4: 3002 | X4: 339 | Y4: 2631 | Z4: 32
C5: =IF(SUM(D5:L5)>100,"－",SUM(D5:L5)) -> 100 | D5: =D4/$C4*100 -> 1.199200533 | E5: 1.865423051 | F5: =F4/$C4*100 -> 4.930046636 | G5: =G4/$C4*100 -> 8.794137242 | H5: 15.35642905 | I5: 15.18987342 | J5: 8.694203864 | K5: 1.898734177 | L5: 42.07195203 | N5: =IF(SUM(O5:V5)>100,"－",SUM(O5:V5)) -> 100 | O5: =O4/$N4*100 -> 3.530979347 | P5: 19.0206529 | Q5: =Q4/$N4*100 -> 42.03864091 | R5: 23.6508994 | S5: 5.196535643 | T5: 0.8660892738 | U5: 3.364423718 | V5: 2.331778814 | W5: =IF(SUM(X5:Z5)>100,"－",SUM(X5:Z5)) -> 100 | X5: =X4/$W4*100 -> 11.29247169 | Y5: =Y4/$W4*100 -> 87.64157229 | Z5: =Z4/$W4*100 -> 1.065956029
A6: 問９Q2 | B6: 要介護１ | C6: =C19 -> 28 | D6: =IF($C6=0,0,D19/$C6*100) -> 0 | E6: 0 | F6: 7.142857143 | G6: 10.71428571 | H6: 14.28571429 | I6: 10.71428571 | J6: 14.28571429 | K6: 3.571428571 | L6: 39.28571429 | M6: =M19 -> 89.11764706 | N6: =N19 -> 28 | O6: =IF($N6=0,0,O19/$N6*100) -> 21.42857143 | P6: 50 | Q6: 7.142857143 | R6: 3.571428571 | S6: 0 | T6: 7.142857143 | U6: 7.142857143 | V6: 3.571428571 | W6: =W19 -> 28 | X6: =IF($W6=0,0,X19/$W6*100) -> 0 | Y6: 100 | Z6: 0
A7: 搬送時の要介護度 | B7: 要介護２ | C7: 57 | D7: =IF($C7=0,0,D20/$C7*100) -> 1.754385965 | E7: 5.263157895 | F7: 7.01754386 | G7: 3.50877193 | H7: 10.52631579 | I7: 14.03508772 | J7: 12.28070175 | K7: 1.754385965 | L7: 43.85964912 | M7: 87.09375 | N7: 57 | O7: 8.771929825 | P7: 49.12280702 | Q7: 21.05263158 | R7: 5.263157895 | S7: 1.754385965 | T7: 0 | U7: 3.50877193 | V7: 10.52631579 | W7: 57 | X7: 5.263157895 | Y7: 94.73684211 | Z7: 0
B8: 要介護３ | C8: 652 | D8: =IF($C8=0,0,D21/$C8*100) -> 1.226993865 | E8: 1.840490798 | F8: 4.294478528 | G8: 8.435582822 | H8: 15.33742331 | I8: 16.25766871 | J8: 9.202453988 | K8: 2.300613497 | L8: 41.10429448 | M8: 88.01041667 | N8: 652 | O8: 5.36809816 | P8: 30.98159509 | Q8: 45.24539877 | R8: 11.04294479 | S8: 1.840490798 | T8: 1.073619632 | U8: 3.067484663 | V8: 1.380368098 | W8: 652 | X8: 7.668711656 | Y8: 90.79754601 | Z8: 1.533742331
B9: 要介護４ | C9: 1143 | D9: =IF($C9=0,0,D22/$C9*100) -> 1.13735783 | E9: 1.487314086 | F9: 4.374453193 | G9: 9.361329834 | H9: 16.01049869 | I9: 16.09798775 | J9: 9.448818898 | K9: 1.837270341 | L9: 40.24496938 | M9: 88.10541728 | N9: 1143 | O9: 3.84951881 | P9: 19.94750656 | Q9: 48.38145232 | R9: 19.07261592 | S9: 3.149606299 | T9: 0.5249343832 | U9: 3.062117235 | V9: 2.012248469 | W9: 1143 | X9: 11.28608924 | Y9: 88.01399825 | Z9: 0.6999125109
B10: 要介護５ | C10: 1100 | D10: =IF($C10=0,0,D23/$C10*100) -> 1.272727273 | E10: 2.181818182 | F10: 5.818181818 | G10: 8.818181818 | H10: 15.09090909 | I10: 13.90909091 | J10: 7.363636364 | K10: 1.727272727 | L10: 43.81818182 | M10: 87.12135922 | N10: 1100 | O10: 1.454545455 | P10: 8.909090909 | Q10: 36.27272727 | R10: 37.81818182 | S10: 9.454545455 | T10: 1 | U10: 3.636363636 | V10: 1.454545455 | W10: 1100 | X10: 14.09090909 | Y10: 84.63636364 | Z10: 1.272727273
B11: その他 | C11: 1 | D11: =IF($C11=0,0,D24/$C11*100) -> 0 | E11: 0 | F11: 0 | G11: 0 | H11: 0 | I11: 0 | J11: 0 | K11: 0 | L11: 100 | M11: － | N11: 1 | O11: 0 | P11: 0 | Q11: 100 | R11: 0 | S11: 0 | T11: 0 | U11: 0 | V11: 0 | W11: 1 | X11: 100 | Y11: 0 | Z11: 0
B12: 不明 | C12: 0 | D12: =IF($C12=0,0,D25/$C12*100) -> 0 | E12: 0 | F12: 0 | G12: 0 | H12: 0 | I12: 0 | J12: 0 | K12: 0 | L12: 0 | M12: － | N12: 0 | O12: 0 | P12: 0 | Q12: 0 | R12: 0 | S12: 0 | T12: 0 | U12: 0 | V12: 0 | W12: 0 | X12: 0 | Y12: 0 | Z12: 0
B13: 無回答 | C13: 21 | D13: =IF($C13=0,0,D26/$C13*100) -> 0 | E13: 0 | F13: 0 | G13: 0 | H13: 9.523809524 | I13: 9.523809524 | J13: 4.761904762 | K13: 0 | L13: 76.19047619 | M13: 92.4 | N13: 21 | O13: 0 | P13: 4.761904762 | Q13: 0 | R13: 0 | S13: 14.28571429 | T13: 0 | U13: 9.523809524 | V13: 71.42857143 | W13: 21 | X13: 4.761904762 | Y13: 95.23809524 | Z13: 0
A17: 全 体 | C17: 3002 | D17: 36 | E17: 56 | F17: 148 | G17: 264 | H17: 461 | I17: 456 | J17: 261 | K17: 57 | L17: 1263 | M17: 87.73835538 | N17: 3002 | O17: 106 | P17: 571 | Q17: 1262 | R17: 710 | S17: 156 | T17: 26 | U17: 101 | V17: 70 | W17: 3002 | X17: 339 | Y17: 2631 | Z17: 32
A19: 問９Q2 | B19: 要介護１ | C19: 28 | D19: 0 | E19: 0 | F19: 2 | G19: 3 | H19: 4 | I19: 3 | J19: 4 | K19: 1 | L19: 11 | M19: 89.11764706 | N19: 28 | O19: 6 | P19: 14 | Q19: 2 | R19: 1 | S19: 0 | T19: 2 | U19: 2 | V19: 1 | W19: 28 | X19: 0 | Y19: 28 | Z19: 0
A20: 搬送時の要介護度 | B20: 要介護２ | C20: 57 | D20: 1 | E20: 3 | F20: 4 | G20: 2 | H20: 6 | I20: 8 | J20: 7 | K20: 1 | L20: 25 | M20: 87.09375 | N20: 57 | O20: 5 | P20: 28 | Q20: 12 | R20: 3 | S20: 1 | T20: 0 | U20: 2 | V20: 6 | W20: 57 | X20: 3 | Y20: 54 | Z20: 0
B21: 要介護３ | C21: 652 | D21: 8 | E21: 12 | F21: 28 | G21: 55 | H21: 100 | I21: 106 | J21: 60 | K21: 15 | L21: 268 | M21: 88.01041667 | N21: 652 | O21: 35 | P21: 202 | Q21: 295 | R21: 72 | S21: 12 | T21: 7 | U21: 20 | V21: 9 | W21: 652 | X21: 50 | Y21: 592 | Z21: 10
B22: 要介護４ | C22: 1143 | D22: 13 | E22: 17 | F22: 50 | G22: 107 | H22: 183 | I22: 184 | J22: 108 | K22: 21 | L22: 460 | M22: 88.10541728 | N22: 1143 | O22: 44 | P22: 228 | Q22: 553 | R22: 218 | S22: 36 | T22: 6 | U22: 35 | V22: 23 | W22: 1143 | X22: 129 | Y22: 1006 | Z22: 8
B23: 要介護５ | C23: 1100 | D23: 14 | E23: 24 | F23: 64 | G23: 97 | H23: 166 | I23: 153 | J23: 81 | K23: 19 | L23: 482 | M23: 87.12135922 | N23: 1100 | O23: 16 | P23: 98 | Q23: 399 | R23: 416 | S23: 104 | T23: 11 | U23: 40 | V23: 16 | W23: 1100 | X23: 155 | Y23: 931 | Z23: 14
B24: その他 | C24: 1 | D24: 0 | E24: 0 | F24: 0 | G24: 0 | H24: 0 | I24: 0 | J24: 0 | K24: 0 | L24: 1 | M24: － | N24: 1 | O24: 0 | P24: 0 | Q24: 1 | R24: 0 | S24: 0 | T24: 0 | U24: 0 | V24: 0 | W24: 1 | X24: 1 | Y24: 0 | Z24: 0
B25: 不明 | C25: 0 | D25: 0 | E25: 0 | F25: 0 | G25: 0 | H25: 0 | I25: 0 | J25: 0 | K25: 0 | L25: 0 | M25: － | N25: 0 | O25: 0 | P25: 0 | Q25: 0 | R25: 0 | S25: 0 | T25: 0 | U25: 0 | V25: 0 | W25: 0 | X25: 0 | Y25: 0 | Z25: 0
B26: 無回答 | C26: 21 | D26: 0 | E26: 0 | F26: 0 | G26: 0 | H26: 2 | I26: 2 | J26: 1 | K26: 0 | L26: 16 | M26: 92.4 | N26: 21 | O26: 0 | P26: 1 | Q26: 0 | R26: 0 | S26: 3 | T26: 0 | U26: 2 | V26: 15 | W26: 21 | X26: 1 | Y26: 20 | Z26: 0

Sheet 救急-(2)②
A1: =RIGHT(CELL("filename",A1),LEN(CELL("filename",A1))-FIND("]",CELL("filename",A1))) -> 救急-(2)② | C1: 問９Q4 看取りの対象としての認識
C3: 全体 | D3: 看取りと認識されていた | E3: 看取りと認識されていなかった | F3: 無回答
A4: 全 体 | C4: =C21 -> 3002 | D4: =D21 -> 339 | E4: =E21 -> 2631 | F4: =F21 -> 32
C5: =IF(SUM(D5:F5)>100,"－",SUM(D5:F5)) -> 100 | D5: =D4/$C4*100 -> 11.29247169 | E5: =E4/$C4*100 -> 87.64157229 | F5: =F4/$C4*100 -> 1.065956029
A6: 問９Q11 | B6: 配置医師 | C6: =C23 -> 832 | D6: =IF($C6=0,0,D23/$C6*100) -> 11.53846154 | E6: 87.86057692 | F6: 0.6009615385
A7: 搬送の実施を判断 | B7: 協力医療機関 | C7: 125 | D7: 8.8 | E7: 90.4 | F7: 0.8
A8: した人 | B8: その他医師・医療機関 | C8: 50 | D8: 4 | E8: 94 | F8: 2
B9: 看護職 | C9: 1394 | D9: 11.54949785 | E9: 87.44619799 | F9: 1.004304161
B10: 施設長 | C10: 72 | D10: 8.333333333 | E10: 91.66666667 | F10: 0
B11: 家族 | C11: 133 | D11: 17.29323308 | E11: 81.95488722 | F11: 0.7518796992
B12: その他 | C12: 120 | D12: 13.33333333 | E12: 85.83333333 | F12: 0.8333333333
B13: 無回答 | C13: 276 | D13: 8.695652174 | E13: 88.04347826 | F13: 3.260869565
A14: 問８(7) | B14: 特に行っていない | C14: 1419 | D14: 8.738548273 | E14: 90.62720226 | F14: 0.6342494715
A15: 搬送後の振り返り | B15: ケースを取り上げて行う | C15: 1180 | D15: 13.72881356 | E15: 84.91525424 | F15: 1.355932203
B16: 毎回行う | C16: 266 | D16: 13.15789474 | E16: 85.71428571 | F16: 1.127819549
B17: 無回答 | C17: 137 | D17: 13.13868613 | E17: 83.94160584 | F17: 2.919708029
A21: 全 体 | C21: 3002 | D21: 339 | E21: 2631 | F21: 32
A23: 問９Q11 | B23: 配置医師 | C23: 832 | D23: 96 | E23: 731 | F23: 5
A24: 搬送の実施を判断 | B24: 協力医療機関 | C24: 125 | D24: 11 | E24: 113 | F24: 1
A25: した人 | B25: その他医師・医療機関 | C25: 50 | D25: 2 | E25: 47 | F25: 1
B26: 看護職 | C26: 1394 | D26: 161 | E26: 1219 | F26: 14
B27: 施設長 | C27: 72 | D27: 6 | E27: 66 | F27: 0
B28: 家族 | C28: 133 | D28: 23 | E28: 109 | F28: 1
B29: その他 | C29: 120 | D29: 16 | E29: 103 | F29: 1
B30: 無回答 | C30: 276 | D30: 24 | E30: 243 | F30: 9
A31: 問８(7) | B31: 特に行っていない | C31: 1419 | D31: 124 | E31: 1286 | F31: 9
A32: 搬送後の振り返り | B32: ケースを取り上げて行う | C32: 1180 | D32: 162 | E32: 1002 | F32: 16
B33: 毎回行う | C33: 266 | D33: 35 | E33: 228 | F33: 3
B34: 無回答 | C34: 137 | D34: 18 | E34: 115 | F34: 4

Sheet 救急-(2)③
A1: =RIGHT(CELL("filename",A1),LEN(CELL("filename",A1))-FIND("]",CELL("filename",A1))) -> 救急-(2)③ | C1: 問９Q5①② 搬送された日時 | I1: 問９Q6 搬送方法
C3: 全体 | D3: 平日日中 | E3: 平日夜間深夜早朝 | F3: 土日祝日日中 | G3: 土日祝日夜間深夜早朝 | H3: 無回答 | I3: 全体 | J3: 119番への救急要請 | K3: 特定の病院への救急要請（病院救急） | L3: 無回答
A4: 全 体 | C4: =C50 -> 3002 | D4: 1547 | E4: 671 | F4: =F50 -> 504 | G4: 272 | H4: 8 | I4: 3002 | J4: 2456 | K4: 544 | L4: 2
C5: =IF(SUM(D5:H5)>100,"－",SUM(D5:H5)) -> 100 | D5: =D4/$C4*100 -> 51.53231179 | E5: =E4/$C4*100 -> 22.35176549 | F5: =F4/$C4*100 -> 16.78880746 | G5: =G4/$C4*100 -> 9.060626249 | H5: =H4/$C4*100 -> 0.2664890073 | I5: =IF(SUM(J5:L5)>100,"－",SUM(J5:L5)) -> 100 | J5: =J4/$I4*100 -> 81.81212525 | K5: =K4/$I4*100 -> 18.1212525 | L5: =L4/$I4*100 -> 0.06662225183
A6: 問９Q1 | B6: 70歳未満 | C6: =C52 -> 36 | D6: =IF($C6=0,0,D52/$C6*100) -> 50 | E6: 33.33333333 | F6: 11.11111111 | G6: 5.555555556 | H6: 0 | I6: =I52 -> 36 | J6: =IF($I6=0,0,J52/$I6*100) -> 72.22222222 | K6: 27.77777778 | L6: 0
A7: 年齢 | B7: 70～74歳 | C7: 56 | D7: 58.92857143 | E7: 12.5 | F7: 16.07142857 | G7: 12.5 | H7: 0 | I7: 56 | J7: 87.5 | K7: 12.5 | L7: 0
B8: 75～79歳 | C8: 148 | D8: 56.75675676 | E8: 21.62162162 | F8: 12.83783784 | G8: 8.783783784 | H8: 0 | I8: 148 | J8: 83.78378378 | K8: 16.21621622 | L8: 0
B9: 80～84歳 | C9: 264 | D9: 48.48484848 | E9: 21.21212121 | F9: 20.45454545 | G9: 9.848484848 | H9: 0 | I9: 264 | J9: 84.46969697 | K9: 15.15151515 | L9: 0.3787878788
B10: 85～89歳 | C10: 461 | D10: 54.22993492 | E10: 20.17353579 | F10: 18.43817787 | G10: 6.94143167 | H10: 0.2169197397 | I10: 461 | J10: 81.12798265 | K10: 18.65509761 | L10: 0.2169197397
B11: 90～94歳 | C11: 456 | D11: 51.09649123 | E11: 19.73684211 | F11: 17.3245614 | G11: 11.40350877 | H11: 0.4385964912 | I11: 456 | J11: 83.77192982 | K11: 16.22807018 | L11: 0
B12: 95～99歳 | C12: 261 | D12: 51.34099617 | E12: 24.5210728 | F12: 11.49425287 | G12: 11.87739464 | H12: 0.7662835249 | I12: 261 | J12: 81.22605364 | K12: 18.77394636 | L12: 0
B13: 100歳以上 | C13: 57 | D13: 45.61403509 | E13: 28.07017544 | F13: 19.29824561 | G13: 7.01754386 | H13: 0 | I13: 57 | J13: 87.71929825 | K13: 12.28070175 | L13: 0
B14: エラー・無回答 | C14: 1263 | D14: 50.75217736 | E14: 23.83214568 | F14: 16.86460808 | G14: 8.313539192 | H14: 0.2375296912 | I14: 1263 | J14: 80.44338876 | K14: 19.55661124 | L14: 0
A15: 問９Q2 | B15: 要介護１ | C15: 28 | D15: 64.28571429 | E15: 17.85714286 | F15: 14.28571429 | G15: 3.571428571 | H15: 0 | I15: 28 | J15: 78.57142857 | K15: 21.42857143 | L15: 0
A16: 搬送時の要介護度 | B16: 要介護２ | C16: 57 | D16: =IF($C16=0,0,D62/$C16*100) -> 40.35087719 | E16: 28.07017544 | F16: 21.05263158 | G16: 10.52631579 | H16: 0 | I16: 57 | J16: 82.45614035 | K16: 17.54385965 | L16: 0
B17: 要介護３ | C17: 652 | D17: 51.07361963 | E17: 23.92638037 | F17: 16.10429448 | G17: 8.895705521 | H17: 0 | I17: 652 | J17: 83.28220859 | K17: 16.56441718 | L17: 0.1533742331
B18: 要介護４ | C18: 1143 | D18: 52.49343832 | E18: 20.20997375 | F18: 17.76027997 | G18: 9.098862642 | H18: 0.4374453193 | I18: 1143 | J18: 83.98950131 | K18: 16.01049869 | L18: 0
B19: 要介護５ | C19: 1100 | D19: 50.81818182 | E19: 23.36363636 | F19: 16.36363636 | G19: 9.363636364 | H19: 0.09090909091 | I19: 1100 | J19: 78.90909091 | K19: 21 | L19: 0.09090909091
B20: その他 | C20: 1 | D20: 0 | E20: 100 | F20: 0 | G20: 0 | H20: 0 | I20: 1 | J20: 100 | K20: 0 | L20: 0
B21: 不明 | C21: 0 | D21: 0 | E21: 0 | F21: 0 | G21: 0 | H21: 0 | I21: 0 | J21: 0 | K21: 0 | L21: 0
B22: 無回答 | C22: 21 | D22: 66.66666667 | E22: 23.80952381 | F22: 0 | G22: 0 | H22: 9.523809524 | I22: 21 | J22: 71.42857143 | K22: 28.57142857 | L22: 0
A23: 問９Q4 | B23: 看取りと認識されていた | C23: 339 | D23: 51.03244838 | E23: 25.07374631 | F23: 15.63421829 | G23: 8.259587021 | H23: 0 | I23: 339 | J23: 82.30088496 | K23: 17.69911504 | L23: 0
A24: 看取り対象としての | B24: 看取りと認識されていなかった | C24: 2631 | D24: 51.84340555 | E24: 21.77879133 | F24: 16.98973774 | G24: 9.08399848 | H24: 0.3040668947 | I24: 2631 | J24: 81.52793615 | K24: 18.39604713 | L24: 0.07601672368
A25: 認識 | B25: 無回答 | C25: 32 | D25: 31.25 | E25: 40.625 | F25: 12.5 | G25: 15.625 | H25: 0 | I25: 32 | J25: 100 | K25: 0 | L25: 0
A26: 問９Q5①② | B26: 平日日中 | C26: 1547 | D26: =IF($C26=0,0,D72/$C26*100) -> 100 | E26: 0 | F26: 0 | G26: 0 | H26: 0 | I26: 1547 | J26: =IF($I26=0,0,J72/$I26*100) -> 76.34130575 | K26: 23.52941176 | L26: 0.1292824822
A27: 搬送された日時 | B27: 平日夜間深夜早朝 | C27: 671 | D27: 0 | E27: 100 | F27: 0 | G27: 0 | H27: 0 | I27: 671 | J27: 89.86587183 | K27: 10.13412817 | L27: 0
B28: 土日祝日日中 | C28: 504 | D28: 0 | E28: 0 | F28: 100 | G28: 0 | H28: 0 | I28: 504 | J28: 82.53968254 | K28: 17.46031746 | L28: 0
B29: 土日祝日夜間深夜早朝 | C29: 272 | D29: 0 | E29: 0 | F29: 0 | G29: 100 | H29: 0 | I29: 272 | J29: 91.54411765 | K29: 8.455882353 | L29: 0
B30: 無回答 | C30: 8 | D30: 0 | E30: 0 | F30: 0 | G30: 0 | H30: 100 | I30: 8 | J30: 87.5 | K30: 12.5 | L30: 0
A31: 問９Q7 | B31: 事前に決めていた（配置医師・協力医療機関等と予め相談していた） | C31: 1472 | D31: 60.39402174 | E31: 17.45923913 | F31: 15.42119565 | G31: 6.385869565 | H31: 0.339673913 | I31: 1472 | J31: 69.1576087 | K31: 30.70652174 | L31: 0.1358695652
A32: 搬送先の決め方 | B32: 救急隊が探した | C32: 1237 | D32: 40.42037187 | E32: 29.18350849 | F32: 17.62328213 | G32: 12.53031528 | H32: 0.2425222312 | I32: 1237 | J32: 99.11075182 | K32: 0.8892481811 | L32: 0
B33: 事前に決めていないが、施設職員が探した | C33: 281 | D33: 53.38078292 | E33: 17.43772242 | F33: 20.99644128 | G33: 8.185053381 | H33: 0 | I33: 281 | J33: 71.53024911 | K33: 28.46975089 | L33: 0
B34: 無回答 | C34: 12 | D34: 66.66666667 | E34: 33.33333333 | F34: 0 | G34: 0 | H34: 0 | I34: 12 | J34: 91.66666667 | K34: 8.333333333 | L34: 0
A35: 問９Q8 | B35: 誤嚥性肺炎 | C35: 600 | D35: 52.5 | E35: 22.83333333 | F35: 16.5 | G35: 7.833333333 | H35: 0.3333333333 | I35: 600 | J35: 83.66666667 | K35: 16.33333333 | L35: 0
A36: 搬送の原因となった | B36: その他感染症 | C36: 212 | D36: =IF($C36=0,0,D82/$C36*100) -> 53.77358491 | E36: 14.1509434 | F36: 20.75471698 | G36: 11.32075472 | H36: 0 | I36: 212 | J36: 73.58490566 | K36: 26.41509434 | L36: 0
A37: 症状・出来事 | B37: 持病の悪化（脳血管疾患） | C37: 252 | D37: 57.53968254 | E37: 19.84126984 | F37: 14.68253968 | G37: 7.142857143 | H37: 0.7936507937 | I37: 252 | J37: 83.33333333 | K37: 16.66666667 | L37: 0
B38: 持病の悪化（心疾患） | C38: 322 | D38: 47.51552795 | E38: 26.08695652 | F38: 16.45962733 | G38: 9.937888199 | H38: 0 | I38: 322 | J38: 84.47204969 | K38: 15.2173913 | L38: 0.3105590062
B39: 持病の悪化（それ以外） | C39: 492 | D39: 54.47154472 | E39: 18.49593496 | F39: 17.4796748 | G39: 8.943089431 | H39: 0.6097560976 | I39: 492 | J39: 77.43902439 | K39: 22.56097561 | L39: 0
B40: 脱水 | C40: 39 | D40: 64.1025641 | E40: 10.25641026 | F40: 23.07692308 | G40: 2.564102564 | H40: 0 | I40: 39 | J40: 74.35897436 | K40: 25.64102564 | L40: 0
B41: 骨折等のケガ | C41: 199 | D41: 49.24623116 | E41: 20.60301508 | F41: 20.60301508 | G41: 9.045226131 | H41: 0.5025125628 | I41: 199 | J41: 76.88442211 | K41: 23.11557789 | L41: 0
B42: 不慮の事故（誤飲・窒息） | C42: 69 | D42: 56.52173913 | E42: 15.94202899 | F42: 10.14492754 | G42: 17.39130435 | H42: 0 | I42: 69 | J42: 89.85507246 | K42: 10.14492754 | L42: 0
B43: 不慮の事故（溺水） | C43: 0 | D43: 0 | E43: 0 | F43: 0 | G43: 0 | H43: 0 | I43: 0 | J43: 0 | K43: 0 | L43: 0
B44: 不慮の事故（それ以外） | C44: 61 | D44: 39.3442623 | E44: 31.14754098 | F44: 19.67213115 | G44: 9.836065574 | H44: 0 | I44: 61 | J44: 83.60655738 | K44: 16.39344262 | L44: 0
B45: その他 | C45: 741 | D45: 48.17813765 | E45: 27.12550607 | F45: 15.24966262 | G45: 9.446693657 | H45: 0 | I45: 741 | J45: 84.75033738 | K45: 15.11470985 | L45: 0.1349527665
B46: 無回答 | C46: 15 | D46: =IF($C46=0,0,D92/$C46*100) -> 60 | E46: =IF($C46=0,0,E92/$C46*100) -> 20 | F46: =IF($C46=0,0,F92/$C46*100) -> 20 | G46: =IF($C46=0,0,G92/$C46*100) -> 0 | H46: =IF($C46=0,0,H92/$C46*100) -> 0 | I46: 15 | J46: =IF($I46=0,0,J92/$I46*100) -> 80 | K46: =IF($I46=0,0,K92/$I46*100) -> 20 | L46: =IF($I46=0,0,L92/$I46*100) -> 0
A50: 全 体 | C50: 3002 | D50: 1547 | E50: 671 | F50: 504 | G50: 272 | H50: 8 | I50: 3002 | J50: 2456 | K50: 544 | L50: 2
A52: 問９Q1 | B52: 70歳未満 | C52: 36 | D52: 18 | E52: 12 | F52: 4 | G52: 2 | H52: 0 | I52: 36 | J52: 26 | K52: 10 | L52: 0
A53: 年齢 | B53: 70～74歳 | C53: 56 | D53: 33 | E53: 7 | F53: 9 | G53: 7 | H53: 0 | I53: 56 | J53: 49 | K53: 7 | L53: 0
B54: 75～79歳 | C54: 148 | D54: 84 | E54: 32 | F54: 19 | G54: 13 | H54: 0 | I54: 148 | J54: 124 | K54: 24 | L54: 0
B55: 80～84歳 | C55: 264 | D55: 128 | E55: 56 | F55: 54 | G55: 26 | H55: 0 | I55: 264 | J55: 223 | K55: 40 | L55: 1
B56: 85～89歳 | C56: 461 | D56: 250 | E56: 93 | F56: 85 | G56: 32 | H56: 1 | I56: 461 | J56: 374 | K56: 86 | L56: 1
B57: 90～94歳 | C57: 456 | D57: 233 | E57: 90 | F57: 79 | G57: 52 | H57: 2 | I57: 456 | J57: 382 | K57: 74 | L57: 0
B58: 95～99歳 | C58: 261 | D58: 134 | E58: 64 | F58: 30 | G58: 31 | H58: 2 | I58: 261 | J58: 212 | K58: 49 | L58: 0
B59: 100歳以上 | C59: 57 | D59: 26 | E59: 16 | F59: 11 | G59: 4 | H59: 0 | I59: 57 | J59: 50 | K59: 7 | L59: 0
B60: エラー・無回答 | C60: 1263 | D60: 641 | E60: 301 | F60: 213 | G60: 105 | H60: 3 | I60: 1263 | J60: 1016 | K60: 247 | L60: 0
A61: 問９Q2 | B61: 要介護１ | C61: 28 | D61: 18 | E61: 5 | F61: 4 | G61: 1 | H61: 0 | I61: 28 | J61: 22 | K61: 6 | L61: 0
A62: 搬送時の要介護度 | B62: 要介護２ | C62: 57 | D62: 23 | E62: 16 | F62: 12 | G62: 6 | H62: 0 | I62: 57 | J62: 47 | K62: 10 | L62: 0
B63: 要介護３ | C63: 652 | D63: 333 | E63: 156 | F63: 105 | G63: 58 | H63: 0 | I63: 652 | J63: 543 | K63: 108 | L63: 1
B64: 要介護４ | C64: 1143 | D64: 600 | E64: 231 | F64: 203 | G64: 104 | H64: 5 | I64: 1143 | J64: 960 | K64: 183 | L64: 0
B65: 要介護５ | C65: 1100 | D65: 559 | E65: 257 | F65: 180 | G65: 103 | H65: 1 | I65: 1100 | J65: 868 | K65: 231 | L65: 1
B66: その他 | C66: 1 | D66: 0 | E66: 1 | F66: 0 | G66: 0 | H66: 0 | I66: 1 | J66: 1 | K66: 0 | L66: 0
B67: 不明 | C67: 0 | D67: 0 | E67: 0 | F67: 0 | G67: 0 | H67: 0 | I67: 0 | J67: 0 | K67: 0 | L67: 0
B68: 無回答 | C68: 21 | D68: 14 | E68: 5 | F68: 0 | G68: 0 | H68: 2 | I68: 21 | J68: 15 | K68: 6 | L68: 0
A69: 問９Q4 | B69: 看取りと認識されていた | C69: 339 | D69: 173 | E69: 85 | F69: 53 | G69: 28 | H69: 0 | I69: 339 | J69: 279 | K69: 60 | L69: 0
A70: 看取り対象としての | B70: 看取りと認識されていなかった | C70: 2631 | D70: 1364 | E70: 573 | F70: 447 | G70: 239 | H70: 8 | I70: 2631 | J70: 2145 | K70: 484 | L70: 2
A71: 認識 | B71: 無回答 | C71: 32 | D71: 10 | E71: 13 | F71: 4 | G71: 5 | H71: 0 | I71: 32 | J71: 32 | K71: 0 | L71: 0
A72: 問９Q5①② | B72: 平日日中 | C72: 1547 | D72: 1547 | E72: 0 | F72: 0 | G72: 0 | H72: 0 | I72: 1547 | J72: 1181 | K72: 364 | L72: 2
A73: 搬送された日時 | B73: 平日夜間深夜早朝 | C73: 671 | D73: 0 | E73: 671 | F73: 0 | G73: 0 | H73: 0 | I73: 671 | J73: 603 | K73: 68 | L73: 0
B74: 土日祝日日中 | C74: 504 | D74: 0 | E74: 0 | F74: 504 | G74: 0 | H74: 0 | I74: 504 | J74: 416 | K74: 88 | L74: 0
B75: 土日祝日夜間深夜早朝 | C75: 272 | D75: 0 | E75: 0 | F75: 0 | G75: 272 | H75: 0 | I75: 272 | J75: 249 | K75: 23 | L75: 0
B76: 無回答 | C76: 8 | D76: 0 | E76: 0 | F76: 0 | G76: 0 | H76: 8 | I76: 8 | J76: 7 | K76: 1 | L76: 0
A77: 問９Q7 | B77: 事前に決めていた（配置医師・協力医療機関等と予め相談していた） | C77: 1472 | D77: 889 | E77: 257 | F77: 227 | G77: 94 | H77: 5 | I77: 1472 | J77: 1018 | K77: 452 | L77: 2
A78: 搬送先の決め方 | B78: 救急隊が探した | C78: 1237 | D78: 500 | E78: 361 | F78: 218 | G78: 155 | H78: 3 | I78: 1237 | J78: 1226 | K78: 11 | L78: 0
B79: 事前に決めていないが、施設職員が探した | C79: 281 | D79: 150 | E79: 49 | F79: 59 | G79: 23 | H79: 0 | I79: 281 | J79: 201 | K79: 80 | L79: 0
B80: 無回答 | C80: 12 | D80: 8 | E80: 4 | F80: 0 | G80: 0 | H80: 0 | I80: 12 | J80: 11 | K80: 1 | L80: 0
A81: 問９Q8 | B81: 誤嚥性肺炎 | C81: 600 | D81: 315 | E81: 137 | F81: 99 | G81: 47 | H81: 2 | I81: 600 | J81: 502 | K81: 98 | L81: 0
A82: 搬送の原因となった | B82: その他感染症 | C82: 212 | D82: 114 | E82: 30 | F82: 44 | G82: 24 | H82: 0 | I82: 212 | J82: 156 | K82: 56 | L82: 0
A83: 症状・出来事 | B83: 持病の悪化（脳血管疾患） | C83: 252 | D83: 145 | E83: 50 | F83: 37 | G83: 18 | H83: 2 | I83: 252 | J83: 210 | K83: 42 | L83: 0
B84: 持病の悪化（心疾患） | C84: 322 | D84: 153 | E84: 84 | F84: 53 | G84: 32 | H84: 0 | I84: 322 | J84: 272 | K84: 49 | L84: 1
B85: 持病の悪化（それ以外） | C85: 492 | D85: 268 | E85: 91 | F85: 86 | G85: 44 | H85: 3 | I85: 492 | J85: 381 | K85: 111 | L85: 0
B86: 脱水 | C86: 39 | D86: 25 | E86: 4 | F86: 9 | G86: 1 | H86: 0 | I86: 39 | J86: 29 | K86: 10 | L86: 0
B87: 骨折等のケガ | C87: 199 | D87: 98 | E87: 41 | F87: 41 | G87: 18 | H87: 1 | I87: 199 | J87: 153 | K87: 46 | L87: 0
B88: 不慮の事故（誤飲・窒息） | C88: 69 | D88: 39 | E88: 11 | F88: 7 | G88: 12 | H88: 0 | I88: 69 | J88: 62 | K88: 7 | L88: 0
B89: 不慮の事故（溺水） | C89: 0 | D89: 0 | E89: 0 | F89: 0 | G89: 0 | H89: 0 | I89: 0 | J89: 0 | K89: 0 | L89: 0
B90: 不慮の事故（それ以外） | C90: 61 | D90: 24 | E90: 19 | F90: 12 | G90: 6 | H90: 0 | I90: 61 | J90: 51 | K90: 10 | L90: 0
B91: その他 | C91: 741 | D91: 357 | E91: 201 | F91: 113 | G91: 70 | H91: 0 | I91: 741 | J91: 628 | K91: 112 | L91: 1
B92: 無回答 | C92: 15 | D92: 9 | E92: 3 | F92: 3 | G92: 0 | H92: 0 | I92: 15 | J92: 12 | K92: 3 | L92: 0

Sheet 救急-(2)④
A1: =RIGHT(CELL("filename",A1),LEN(CELL("filename",A1))-FIND("]",CELL("filename",A1))) -> 救急-(2)④ | C1: 問９Q8 搬送の原因となった症状・出来事
C3: 全体 | D3: 誤嚥性肺炎 | E3: その他感染症 | F3: 持病の悪化（脳血管疾患） | G3: 持病の悪化（心疾患） | H3: 持病の悪化（それ以外） | I3: 脱水 | J3: 骨折等のケガ | K3: 不慮の事故（誤飲・窒息） | L3: 不慮の事故（溺水） | M3: 不慮の事故（それ以外） | N3: その他 | O3: 無回答
A4: 全 体 | C4: =C58 -> 3002 | D4: =D58 -> 600 | E4: =E58 -> 212 | F4: =F58 -> 252 | G4: 322 | H4: 492 | I4: 39 | J4: 199 | K4: 69 | L4: 0 | M4: 61 | N4: 741 | O4: 15
C5: =IF(SUM(D5:O5)>100,"－",SUM(D5:O5)) -> 100 | D5: =D4/$C4*100 -> 19.98667555 | E5: =E4/$C4*100 -> 7.061958694 | F5: =F4/$C4*100 -> 8.394403731 | G5: 10.72618254 | H5: 16.38907395 | I5: 1.299133911 | J5: 6.628914057 | K5: 2.298467688 | L5: 0 | M5: 2.031978681 | N5: 24.6835443 | O5: 0.4996668887
A6: 問９Q1 | B6: 70歳未満 | C6: =C60 -> 36 | D6: =IF($C6=0,0,D60/$C6*100) -> 25 | E6: 19.44444444 | F6: 0 | G6: 5.555555556 | H6: 25 | I6: 0 | J6: 5.555555556 | K6: 2.777777778 | L6: 0 | M6: 0 | N6: 16.66666667 | O6: 0
A7: 年齢 | B7: 70～74歳 | C7: =C61 -> 56 | D7: =IF($C7=0,0,D61/$C7*100) -> 21.42857143 | E7: 3.571428571 | F7: 5.357142857 | G7: 7.142857143 | H7: 25 | I7: 0 | J7: 1.785714286 | K7: 3.571428571 | L7: 0 | M7: 3.571428571 | N7: 28.57142857 | O7: 0
B8: 75～79歳 | C8: 148 | D8: =IF($C8=0,0,D62/$C8*100) -> 20.94594595 | E8: 8.108108108 | F8: 7.432432432 | G8: 8.108108108 | H8: 18.24324324 | I8: 2.027027027 | J8: 3.378378378 | K8: 3.378378378 | L8: 0 | M8: 2.702702703 | N8: 23.64864865 | O8: 2.027027027
B9: 80～84歳 | C9: 264 | D9: =IF($C9=0,0,D63/$C9*100) -> 19.31818182 | E9: 8.333333333 | F9: 10.60606061 | G9: 7.954545455 | H9: 18.18181818 | I9: 1.893939394 | J9: 4.924242424 | K9: 2.272727273 | L9: 0 | M9: 1.893939394 | N9: 24.24242424 | O9: 0.3787878788
B10: 85～89歳 | C10: 461 | D10: =IF($C10=0,0,D64/$C10*100) -> 19.52277657 | E10: 7.37527115 | F10: 7.809110629 | G10: 9.544468547 | H10: 19.52277657 | I10: 1.084598698 | J10: 6.94143167 | K10: 2.169197397 | L10: 0 | M10: 1.518438178 | N10: 24.29501085 | O10: 0.2169197397
B11: 90～94歳 | C11: 456 | D11: =IF($C11=0,0,D65/$C11*100) -> 19.51754386 | E11: 6.359649123 | F11: 9.649122807 | G11: 13.81578947 | H11: 13.37719298 | I11: 1.535087719 | J11: 8.771929825 | K11: 1.754385965 | L11: 0 | M11: 1.096491228 | N11: 23.90350877 | O11: 0.2192982456
B12: 95～99歳 | C12: 261 | D12: =IF($C12=0,0,D66/$C12*100) -> 17.62452107 | E12: 6.896551724 | F12: 6.513409962 | G12: 13.79310345 | H12: 16.47509579 | I12: 0.7662835249 | J12: 8.429118774 | K12: 1.915708812 | L12: 0 | M12: 1.915708812 | N12: 25.67049808 | O12: 0
B13: 100歳以上 | C13: 57 | D13: =IF($C13=0,0,D67/$C13*100) -> 19.29824561 | E13: 1.754385965 | F13: 3.50877193 | G13: 17.54385965 | H13: 15.78947368 | I13: 0 | J13: 15.78947368 | K13: 5.263157895 | L13: 0 | M13: 3.50877193 | N13: 17.54385965 | O13: 0
B14: エラー・無回答 | C14: 1263 | D14: =IF($C14=0,0,D68/$C14*100) -> 20.66508314 | E14: 6.888361045 | F14: 8.788598575 | G14: 10.29295329 | H14: 15.12272367 | I14: 1.346001584 | J14: 5.93824228 | K14: 2.296120348 | L14: 0 | M14: 2.454473476 | N14: 25.49485352 | O14: 0.7125890736
A15: 問９Q2 | B15: 要介護１ | C15: 28 | D15: =IF($C15=0,0,D69/$C15*100) -> 7.142857143 | E15: 7.142857143 | F15: 7.142857143 | G15: 17.85714286 | H15: 14.28571429 | I15: 0 | J15: 14.28571429 | K15: 3.571428571 | L15: 0 | M15: 0 | N15: 28.57142857 | O15: 0
A16: 搬送時の | B16: 要介護２ | C16: 57 | D16: =IF($C16=0,0,D70/$C16*100) -> 15.78947368 | E16: 3.50877193 | F16: 7.01754386 | G16: 21.05263158 | H16: 12.28070175 | I16: 0 | J16: 14.03508772 | K16: 3.50877193 | L16: 0 | M16: 0 | N16: 22.80701754 | O16: 0
A17: 要介護度 | B17: 要介護３ | C17: 652 | D17: =IF($C17=0,0,D71/$C17*100) -> 13.49693252 | E17: 4.447852761 | F17: 9.049079755 | G17: 10.73619632 | H17: 15.33742331 | I17: 0.9202453988 | J17: 14.41717791 | K17: 1.226993865 | L17: 0 | M17: 3.527607362 | N17: 26.68711656 | O17: 0.1533742331
B18: 要介護４ | C18: 1143 | D18: =IF($C18=0,0,D72/$C18*100) -> 18.19772528 | E18: 8.13648294 | F18: 8.486439195 | G18: 11.46106737 | H18: 17.23534558 | I18: 1.57480315 | J18: 5.161854768 | K18: 2.887139108 | L18: 0 | M18: 2.099737533 | N18: 24.23447069 | O18: 0.5249343832
B19: 要介護５ | C19: 1100 | D19: =IF($C19=0,0,D73/$C19*100) -> 26.27272727 | E19: 7.818181818 | F19: 7.909090909 | G19: 9.090909091 | H19: 16.27272727 | I19: 1.363636364 | J19: 3.090909091 | K19: 2.272727273 | L19: 0 | M19: 1.272727273 | N19: 23.90909091 | O19: 0.7272727273
B20: その他 | C20: 1 | D20: =IF($C20=0,0,D74/$C20*100) -> 100 | E20: 0 | F20: 0 | G20: 0 | H20: 0 | I20: 0 | J20: 0 | K20: 0 | L20: 0 | M20: 0 | N20: 0 | O20: 0
B21: 不明 | C21: 0 | D21: =IF($C21=0,0,D75/$C21*100) -> 0 | E21: 0 | F21: 0 | G21: 0 | H21: 0 | I21: 0 | J21: 0 | K21: 0 | L21: 0 | M21: 0 | N21: 0 | O21: 0
B22: 無回答 | C22: 21 | D22: =IF($C22=0,0,D76/$C22*100) -> 14.28571429 | E22: 0 | F22: 14.28571429 | G22: 19.04761905 | H22: 23.80952381 | I22: 0 | J22: 0 | K22: 0 | L22: 0 | M22: 0 | N22: 28.57142857 | O22: 0
A23: 問９Q3 | B23: Ⅰ | C23: 106 | D23: =IF($C23=0,0,D77/$C23*100) -> 14.1509434 | E23: 9.433962264 | F23: 7.547169811 | G23: 16.03773585 | H23: 22.64150943 | I23: 0 | J23: 3.773584906 | K23: 3.773584906 | L23: 0 | M23: 1.886792453 | N23: 19.81132075 | O23: 0.9433962264
A24: 認知症の程度 | B24: Ⅱａ・Ⅱｂ | C24: 571 | D24: =IF($C24=0,0,D78/$C24*100) -> 13.66024518 | E24: 8.056042032 | F24: 9.106830123 | G24: 14.01050788 | H24: 16.98774081 | I24: 0.8756567426 | J24: 7.880910683 | K24: 2.276707531 | L24: 0 | M24: 2.626970228 | N24: 24.16812609 | O24: 0.350262697
B25: Ⅲａ・Ⅲｂ | C25: 1262 | D25: =IF($C25=0,0,D79/$C25*100) -> 18.93819334 | E25: 6.893819334 | F25: 8.795562599 | G25: 9.746434231 | H25: 16.64025357 | I25: 1.584786054 | J25: 8.082408875 | K25: 1.822503962 | L25: 0 | M25: 1.584786054 | N25: 25.59429477 | O25: 0.3169572108
B26: Ⅳ | C26: 710 | D26: =IF($C26=0,0,D80/$C26*100) -> 26.90140845 | E26: 6.76056338 | F26: 7.464788732 | G26: 8.732394366 | H26: 15.63380282 | I26: 1.408450704 | J26: 4.225352113 | K26: 2.676056338 | L26: 0 | M26: 2.253521127 | N26: 23.23943662 | O26: 0.7042253521
B27: Ｍ | C27: 156 | D27: =IF($C27=0,0,D81/$C27*100) -> 26.92307692 | E27: 5.769230769 | F27: 9.615384615 | G27: 7.051282051 | H27: 10.8974359 | I27: 2.564102564 | J27: 8.333333333 | K27: 1.282051282 | L27: 0 | M27: 3.205128205 | N27: 23.71794872 | O27: 0.641025641
B28: その他 | C28: 26 | D28: =IF($C28=0,0,D82/$C28*100) -> 15.38461538 | E28: 3.846153846 | F28: 0 | G28: 26.92307692 | H28: 19.23076923 | I28: 0 | J28: 0 | K28: 11.53846154 | L28: 0 | M28: 0 | N28: 23.07692308 | O28: 0
B29: 不明 | C29: 101 | D29: =IF($C29=0,0,D83/$C29*100) -> 18.81188119 | E29: 5.940594059 | F29: 4.95049505 | G29: 9.900990099 | H29: 13.86138614 | I29: 0 | J29: 2.97029703 | K29: 1.98019802 | L29: 0 | M29: 1.98019802 | N29: 37.62376238 | O29: 1.98019802
B30: 無回答 | C30: 70 | D30: =IF($C30=0,0,D84/$C30*100) -> 17.14285714 | E30: 7.142857143 | F30: 11.42857143 | G30: 17.14285714 | H30: 20 | I30: 0 | J30: 2.857142857 | K30: 4.285714286 | L30: 0 | M30: 1.428571429 | N30: 18.57142857 | O30: 0
A31: 問９Q4 | B31: 看取りと認識されていた | C31: 339 | D31: =IF($C31=0,0,D85/$C31*100) -> 24.77876106 | E31: 5.604719764 | F31: 6.784660767 | G31: 8.554572271 | H31: 18.87905605 | I31: 1.474926254 | J31: 4.424778761 | K31: 3.539823009 | L31: 0 | M31: 1.179941003 | N31: 24.48377581 | O31: 0.2949852507
A32: 看取り対象とし | B32: 看取りと認識されていなかった | C32: 2631 | D32: =IF($C32=0,0,D86/$C32*100) -> 19.4222729 | E32: 7.259597111 | F32: 8.589889776 | G32: 10.94640821 | H32: 16.07753706 | I32: 1.292284303 | J32: 6.955530217 | K32: 2.128468263 | L32: 0 | M32: 2.128468263 | N32: 24.66742683 | O32: 0.5321170658
A33: ての認識 | B33: 無回答 | C33: 32 | D33: =IF($C33=0,0,D87/$C33*100) -> 15.625 | E33: 6.25 | F33: 9.375 | G33: 15.625 | H33: 15.625 | I33: 0 | J33: 3.125 | K33: 3.125 | L33: 0 | M33: 3.125 | N33: 28.125 | O33: 0
A34: 問９Q2Q3Q4より | B34: 要介護３以下 | C34: 737 | D34: =IF($C34=0,0,D88/$C34*100) -> 13.43283582 | E34: 4.47761194 | F34: 8.81953867 | G34: 11.8046133 | H34: 15.06105834 | I34: 0.8141112619 | J34: 14.38263229 | K34: 1.492537313 | L34: 0 | M34: 3.120759837 | N34: 26.45861601 | O34: 0.1356852103
A35: 状態像新区分 | B35: 要介護４、認知症Ⅲ以下 | C35: 825 | D35: =IF($C35=0,0,D89/$C35*100) -> 17.09090909 | E35: 8.606060606 | F35: 8.606060606 | G35: 11.39393939 | H35: 17.93939394 | I35: 1.212121212 | J35: 4.727272727 | K35: 3.151515152 | L35: 0 | M35: 1.939393939 | N35: 24.72727273 | O35: 0.6060606061
B36: 要介護４、認知症Ⅳ・Ｍ、看取りあり | C36: 33 | D36: =IF($C36=0,0,D90/$C36*100) -> 12.12121212 | E36: 6.060606061 | F36: 9.090909091 | G36: 9.090909091 | H36: 21.21212121 | I36: 3.03030303 | J36: 3.03030303 | K36: 6.060606061 | L36: 0 | M36: 0 | N36: 30.3030303 | O36: 0
B37: 要介護４、認知症Ⅳ・Ｍ、看取りなし | C37: 219 | D37: =IF($C37=0,0,D91/$C37*100) -> 22.83105023 | E37: 7.305936073 | F37: 7.762557078 | G37: 11.41552511 | H37: 14.61187215 | I37: 3.196347032 | J37: 7.305936073 | K37: 1.369863014 | L37: 0 | M37: 2.739726027 | N37: 21.00456621 | O37: 0.4566210046
B38: 要介護４、認知症Ⅳ・Ｍ、看取り有無不明 | C38: 2 | D38: =IF($C38=0,0,D92/$C38*100) -> 0 | E38: 0 | F38: 0 | G38: 50 | H38: 50 | I38: 0 | J38: 0 | K38: 0 | L38: 0 | M38: 0 | N38: 0 | O38: 0
B39: 要介護４、認知症その他・不明・無回答 | C39: 64 | D39: =IF($C39=0,0,D93/$C39*100) -> 20.3125 | E39: 6.25 | F39: 9.375 | G39: 12.5 | H39: 14.0625 | I39: 0 | J39: 4.6875 | K39: 3.125 | L39: 0 | M39: 3.125 | N39: 26.5625 | O39: 0
B40: 要介護５、認知症Ⅲ以下 | C40: 513 | D40: =IF($C40=0,0,D94/$C40*100) -> 21.6374269 | E40: 8.382066277 | F40: 8.576998051 | G40: 11.30604288 | H40: 18.51851852 | I40: 1.754385965 | J40: 3.703703704 | K40: 1.949317739 | L40: 0 | M40: 1.559454191 | N40: 22.22222222 | O40: 0.3898635478
B41: 要介護５、認知症Ⅳ・Ｍ、看取りあり | C41: 89 | D41: =IF($C41=0,0,D95/$C41*100) -> 31.46067416 | E41: 5.617977528 | F41: 6.741573034 | G41: 7.865168539 | H41: 20.2247191 | I41: 0 | J41: 3.370786517 | K41: 2.247191011 | L41: 0 | M41: 1.123595506 | N41: 21.34831461 | O41: 0
B42: 要介護５、認知症Ⅳ・Ｍ、看取りなし | C42: 422 | D42: =IF($C42=0,0,D96/$C42*100) -> 31.04265403 | E42: 7.582938389 | F42: 7.819905213 | G42: 6.398104265 | H42: 13.27014218 | I42: 1.421800948 | J42: 2.843601896 | K42: 2.132701422 | L42: 0 | M42: 1.184834123 | N42: 25.35545024 | O42: 0.9478672986
B43: 要介護５、認知症Ⅳ・Ｍ、看取り有無不明 | C43: 9 | D43: =IF($C43=0,0,D97/$C43*100) -> 44.44444444 | E43: 0 | F43: 22.22222222 | G43: 0 | H43: 22.22222222 | I43: 0 | J43: 0 | K43: 11.11111111 | L43: 0 | M43: 0 | N43: 0 | O43: 0
B44: 要介護５、認知症その他・不明・無回答 | C44: 67 | D44: =IF($C44=0,0,D98/$C44*100) -> 22.3880597 | E44: 8.955223881 | F44: 2.985074627 | G44: 11.94029851 | H44: 11.94029851 | I44: 0 | J44: 0 | K44: 4.47761194 | L44: 0 | M44: 0 | N44: 34.32835821 | O44: 2.985074627
B45: 要介護その他・不明・無回答 | C45: 22 | D45: =IF($C45=0,0,D99/$C45*100) -> 18.18181818 | E45: 0 | F45: 13.63636364 | G45: 18.18181818 | H45: 22.72727273 | I45: 0 | J45: 0 | K45: 0 | L45: 0 | M45: 0 | N45: 27.27272727 | O45: 0
A46: 問９Q5①② | B46: 平日日中 | C46: 1547 | D46: =IF($C46=0,0,D100/$C46*100) -> 20.36199095 | E46: 7.369101487 | F46: 9.372979961 | G46: 9.89010989 | H46: 17.32385262 | I46: 1.616031028 | J46: 6.334841629 | K46: 2.521008403 | L46: 0 | M46: 1.551389787 | N46: 23.07692308 | O46: 0.58177117
A47: 搬送された日時 | B47: 平日夜間深夜早朝 | C47: 671 | D47: =IF($C47=0,0,D101/$C47*100) -> 20.41728763 | E47: 4.470938897 | F47: 7.451564829 | G47: 12.51862891 | H47: 13.56184799 | I47: 0.5961251863 | J47: 6.110283159 | K47: 1.639344262 | L47: 0 | M47: 2.831594635 | N47: 29.95529061 | O47: 0.4470938897
B48: 土日祝日日中 | C48: 504 | D48: =IF($C48=0,0,D102/$C48*100) -> 19.64285714 | E48: 8.73015873 | F48: 7.341269841 | G48: 10.51587302 | H48: 17.06349206 | I48: 1.785714286 | J48: 8.134920635 | K48: 1.388888889 | L48: 0 | M48: 2.380952381 | N48: 22.42063492 | O48: 0.5952380952
B49: 土日祝日夜間深夜早朝 | C49: 272 | D49: =IF($C49=0,0,D103/$C49*100) -> 17.27941176 | E49: 8.823529412 | F49: 6.617647059 | G49: 11.76470588 | H49: 16.17647059 | I49: 0.3676470588 | J49: 6.617647059 | K49: 4.411764706 | L49: 0 | M49: 2.205882353 | N49: 25.73529412 | O49: 0
B50: 無回答 | C50: 8 | D50: =IF($C50=0,0,D104/$C50*100) -> 25 | E50: 0 | F50: 25 | G50: 0 | H50: 37.5 | I50: 0 | J50: 12.5 | K50: 0 | L50: 0 | M50: 0 | N50: 0 | O50: 0
A51: 問９Q7 | B51: 事前に決めていた（配置医師・協力医療機関等と予め相談していた） | C51: 1472 | D51: =IF($C51=0,0,D105/$C51*100) -> 20.3125 | E51: 8.288043478 | F51: 7.608695652 | G51: 10.80163043 | H51: 19.63315217 | I51: 1.426630435 | J51: 6.453804348 | K51: 1.426630435 | L51: 0 | M51: 1.29076087 | N51: 22.2826087 | O51: 0.4755434783
A52: 搬送先の決め方 | B52: 救急隊が探した | C52: 1237 | D52: =IF($C52=0,0,D106/$C52*100) -> 18.83589329 | E52: 5.335489086 | F52: 8.64995958 | G52: 11.15602264 | H52: 13.33872272 | I52: 1.212611156 | J52: 6.790622474 | K52: 3.637833468 | L52: 0 | M52: 2.748585287 | N52: 27.89005659 | O52: 0.4042037187
B53: 事前に決めていないが、施設職員が探した | C53: 281 | D53: =IF($C53=0,0,D107/$C53*100) -> 22.06405694 | E53: 8.540925267 | F53: 11.38790036 | G53: 8.896797153 | H53: 12.45551601 | I53: 1.067615658 | J53: 7.117437722 | K53: 0.7117437722 | L53: 0 | M53: 2.846975089 | N53: 24.19928826 | O53: 0.7117437722
B54: 無回答 | C54: 12 | D54: =IF($C54=0,0,D108/$C54*100) -> 50 | E54: 0 | F54: 8.333333333 | G54: 0 | H54: 25 | I54: 0 | J54: 0 | K54: 8.333333333 | L54: 0 | M54: 0 | N54: 0 | O54: 8.333333333
A58: 全 体 | C58: 3002 | D58: 600 | E58: 212 | F58: 252 | G58: 322 | H58: 492 | I58: 39 | J58: 199 | K58: 69 | L58: 0 | M58: 61 | N58: 741 | O58: 15
A60: 問９Q1 | B60: 70歳未満 | C60: 36 | D60: 9 | E60: 7 | F60: 0 | G60: 2 | H60: 9 | I60: 0 | J60: 2 | K60: 1 | L60: 0 | M60: 0 | N60: 6 | O60: 0
A61: 年齢 | B61: 70～74歳 | C61: 56 | D61: 12 | E61: 2 | F61: 3 | G61: 4 | H61: 14 | I61: 0 | J61: 1 | K61: 2 | L61: 0 | M61: 2 | N61: 16 | O61: 0
B62: 75～79歳 | C62: 148 | D62: 31 | E62: 12 | F62: 11 | G62: 12 | H62: 27 | I62: 3 | J62: 5 | K62: 5 | L62: 0 | M62: 4 | N62: 35 | O62: 3
B63: 80～84歳 | C63: 264 | D63: 51 | E63: 22 | F63: 28 | G63: 21 | H63: 48 | I63: 5 | J63: 13 | K63: 6 | L63: 0 | M63: 5 | N63: 64 | O63: 1
B64: 85～89歳 | C64: 461 | D64: 90 | E64: 34 | F64: 36 | G64: 44 | H64: 90 | I64: 5 | J64: 32 | K64: 10 | L64: 0 | M64: 7 | N64: 112 | O64: 1
B65: 90～94歳 | C65: 456 | D65: 89 | E65: 29 | F65: 44 | G65: 63 | H65: 61 | I65: 7 | J65: 40 | K65: 8 | L65: 0 | M65: 5 | N65: 109 | O65: 1
B66: 95～99歳 | C66: 261 | D66: 46 | E66: 18 | F66: 17 | G66: 36 | H66: 43 | I66: 2 | J66: 22 | K66: 5 | L66: 0 | M66: 5 | N66: 67 | O66: 0
B67: 100歳以上 | C67: 57 | D67: 11 | E67: 1 | F67: 2 | G67: 10 | H67: 9 | I67: 0 | J67: 9 | K67: 3 | L67: 0 | M67: 2 | N67: 10 | O67: 0
B68: エラー・無回答 | C68: 1263 | D68: 261 | E68: 87 | F68: 111 | G68: 130 | H68: 191 | I68: 17 | J68: 75 | K68: 29 | L68: 0 | M68: 31 | N68: 322 | O68: 9
A69: 問９Q2 | B69: 要介護１ | C69: 28 | D69: 2 | E69: 2 | F69: 2 | G69: 5 | H69: 4 | I69: 0 | J69: 4 | K69: 1 | L69: 0 | M69: 0 | N69: 8 | O69: 0
A70: 搬送時の | B70: 要介護２ | C70: 57 | D70: 9 | E70: 2 | F70: 4 | G70: 12 | H70: 7 | I70: 0 | J70: 8 | K70: 2 | L70: 0 | M70: 0 | N70: 13 | O70: 0
A71: 要介護度 | B71: 要介護３ | C71: 652 | D71: 88 | E71: 29 | F71: 59 | G71: 70 | H71: 100 | I71: 6 | J71: 94 | K71: 8 | L71: 0 | M71: 23 | N71: 174 | O71: 1
B72: 要介護４ | C72: 1143 | D72: 208 | E72: 93 | F72: 97 | G72: 131 | H72: 197 | I72: 18 | J72: 59 | K72: 33 | L72: 0 | M72: 24 | N72: 277 | O72: 6
B73: 要介護５ | C73: 1100 | D73: 289 | E73: 86 | F73: 87 | G73: 100 | H73: 179 | I73: 15 | J73: 34 | K73: 25 | L73: 0 | M73: 14 | N73: 263 | O73: 8
B74: その他 | C74: 1 | D74: 1 | E74: 0 | F74: 0 | G74: 0 | H74: 0 | I74: 0 | J74: 0 | K74: 0 | L74: 0 | M74: 0 | N74: 0 | O74: 0
B75: 不明 | C75: 0 | D75: 0 | E75: 0 | F75: 0 | G75: 0 | H75: 0 | I75: 0 | J75: 0 | K75: 0 | L75: 0 | M75: 0 | N75: 0 | O75: 0
B76: 無回答 | C76: 21 | D76: 3 | E76: 0 | F76: 3 | G76: 4 | H76: 5 | I76: 0 | J76: 0 | K76: 0 | L76: 0 | M76: 0 | N76: 6 | O76: 0
A77: 問９Q3 | B77: Ⅰ | C77: 106 | D77: 15 | E77: 10 | F77: 8 | G77: 17 | H77: 24 | I77: 0 | J77: 4 | K77: 4 | L77: 0 | M77: 2 | N77: 21 | O77: 1
A78: 認知症の程度 | B78: Ⅱａ・Ⅱｂ | C78: 571 | D78: 78 | E78: 46 | F78: 52 | G78: 80 | H78: 97 | I78: 5 | J78: 45 | K78: 13 | L78: 0 | M78: 15 | N78: 138 | O78: 2
B79: Ⅲａ・Ⅲｂ | C79: 1262 | D79: 239 | E79: 87 | F79: 111 | G79: 123 | H79: 210 | I79: 20 | J79: 102 | K79: 23 | L79: 0 | M79: 20 | N79: 323 | O79: 4
B80: Ⅳ | C80: 710 | D80: 191 | E80: 48 | F80: 53 | G80: 62 | H80: 111 | I80: 10 | J80: 30 | K80: 19 | L80: 0 | M80: 16 | N80: 165 | O80: 5
B81: Ｍ | C81: 156 | D81: 42 | E81: 9 | F81: 15 | G81: 11 | H81: 17 | I81: 4 | J81: 13 | K81: 2 | L81: 0 | M81: 5 | N81: 37 | O81: 1
B82: その他 | C82: 26 | D82: 4 | E82: 1 | F82: 0 | G82: 7 | H82: 5 | I82: 0 | J82: 0 | K82: 3 | L82: 0 | M82: 0 | N82: 6 | O82: 0
B83: 不明 | C83: 101 | D83: 19 | E83: 6 | F83: 5 | G83: 10 | H83: 14 | I83: 0 | J83: 3 | K83: 2 | L83: 0 | M83: 2 | N83: 38 | O83: 2
B84: 無回答 | C84: 70 | D84: 12 | E84: 5 | F84: 8 | G84: 12 | H84: 14 | I84: 0 | J84: 2 | K84: 3 | L84: 0 | M84: 1 | N84: 13 | O84: 0
A85: 問９Q4 | B85: 看取りと認識されていた | C85: 339 | D85: 84 | E85: 19 | F85: 23 | G85: 29 | H85: 64 | I85: 5 | J85: 15 | K85: 12 | L85: 0 | M85: 4 | N85: 83 | O85: 1
A86: 看取り対象とし | B86: 看取りと認識されていなかった | C86: 2631 | D86: 511 | E86: 191 | F86: 226 | G86: 288 | H86: 423 | I86: 34 | J86: 183 | K86: 56 | L86: 0 | M86: 56 | N86: 649 | O86: 14
A87: ての認識 | B87: 無回答 | C87: 32 | D87: 5 | E87: 2 | F87: 3 | G87: 5 | H87: 5 | I87: 0 | J87: 1 | K87: 1 | L87: 0 | M87: 1 | N87: 9 | O87: 0
A88: 問９Q2Q3Q4より | B88: 要介護３以下 | C88: 737 | D88: 99 | E88: 33 | F88: 65 | G88: 87 | H88: 111 | I88: 6 | J88: 106 | K88: 11 | L88: 0 | M88: 23 | N88: 195 | O88: 1
A89: 状態像新区分 | B89: 要介護４、認知症Ⅲ以下 | C89: 825 | D89: 141 | E89: 71 | F89: 71 | G89: 94 | H89: 148 | I89: 10 | J89: 39 | K89: 26 | L89: 0 | M89: 16 | N89: 204 | O89: 5
B90: 要介護４、認知症Ⅳ・Ｍ、看取りあり | C90: 33 | D90: 4 | E90: 2 | F90: 3 | G90: 3 | H90: 7 | I90: 1 | J90: 1 | K90: 2 | L90: 0 | M90: 0 | N90: 10 | O90: 0
B91: 要介護４、認知症Ⅳ・Ｍ、看取りなし | C91: 219 | D91: 50 | E91: 16 | F91: 17 | G91: 25 | H91: 32 | I91: 7 | J91: 16 | K91: 3 | L91: 0 | M91: 6 | N91: 46 | O91: 1
B92: 要介護４、認知症Ⅳ・Ｍ、看取り有無不明 | C92: 2 | D92: 0 | E92: 0 | F92: 0 | G92: 1 | H92: 1 | I92: 0 | J92: 0 | K92: 0 | L92: 0 | M92: 0 | N92: 0 | O92: 0
B93: 要介護４、認知症その他・不明・無回答 | C93: 64 | D93: 13 | E93: 4 | F93: 6 | G93: 8 | H93: 9 | I93: 0 | J93: 3 | K93: 2 | L93: 0 | M93: 2 | N93: 17 | O93: 0
B94: 要介護５、認知症Ⅲ以下 | C94: 513 | D94: 111 | E94: 43 | F94: 44 | G94: 58 | H94: 95 | I94: 9 | J94: 19 | K94: 10 | L94: 0 | M94: 8 | N94: 114 | O94: 2
B95: 要介護５、認知症Ⅳ・Ｍ、看取りあり | C95: 89 | D95: 28 | E95: 5 | F95: 6 | G95: 7 | H95: 18 | I95: 0 | J95: 3 | K95: 2 | L95: 0 | M95: 1 | N95: 19 | O95: 0
B96: 要介護５、認知症Ⅳ・Ｍ、看取りなし | C96: 422 | D96: 131 | E96: 32 | F96: 33 | G96: 27 | H96: 56 | I96: 6 | J96: 12 | K96: 9 | L96: 0 | M96: 5 | N96: 107 | O96: 4
B97: 要介護５、認知症Ⅳ・Ｍ、看取り有無不明 | C97: 9 | D97: 4 | E97: 0 | F97: 2 | G97: 0 | H97: 2 | I97: 0 | J97: 0 | K97: 1 | L97: 0 | M97: 0 | N97: 0 | O97: 0
B98: 要介護５、認知症その他・不明・無回答 | C98: 67 | D98: 15 | E98: 6 | F98: 2 | G98: 8 | H98: 8 | I98: 0 | J98: 0 | K98: 3 | L98: 0 | M98: 0 | N98: 23 | O98: 2
B99: 要介護その他・不明・無回答 | C99: 22 | D99: 4 | E99: 0 | F99: 3 | G99: 4 | H99: 5 | I99: 0 | J99: 0 | K99: 0 | L99: 0 | M99: 0 | N99: 6 | O99: 0
A100: 問９Q5①② | B100: 平日日中 | C100: 1547 | D100: 315 | E100: 114 | F100: 145 | G100: 153 | H100: 268 | I100: 25 | J100: 98 | K100: 39 | L100: 0 | M100: 24 | N100: 357 | O100: 9
A101: 搬送された日時 | B101: 平日夜間深夜早朝 | C101: 671 | D101: 137 | E101: 30 | F101: 50 | G101: 84 | H101: 91 | I101: 4 | J101: 41 | K101: 11 | L101: 0 | M101: 19 | N101: 201 | O101: 3
B102: 土日祝日日中 | C102: 504 | D102: 99 | E102: 44 | F102: 37 | G102: 53 | H102: 86 | I102: 9 | J102: 41 | K102: 7 | L102: 0 | M102: 12 | N102: 113 | O102: 3
B103: 土日祝日夜間深夜早朝 | C103: 272 | D103: 47 | E103: 24 | F103: 18 | G103: 32 | H103: 44 | I103: 1 | J103: 18 | K103: 12 | L103: 0 | M103: 6 | N103: 70 | O103: 0
B104: 無回答 | C104: 8 | D104: 2 | E104: 0 | F104: 2 | G104: 0 | H104: 3 | I104: 0 | J104: 1 | K104: 0 | L104: 0 | M104: 0 | N104: 0 | O104: 0
A105: 問９Q7 | B105: 事前に決めていた（配置医師・協力医療機関等と予め相談していた） | C105: 1472 | D105: 299 | E105: 122 | F105: 112 | G105: 159 | H105: 289 | I105: 21 | J105: 95 | K105: 21 | L105: 0 | M105: 19 | N105: 328 | O105: 7
A106: 搬送先の決め方 | B106: 救急隊が探した | C106: 1237 | D106: 233 | E106: 66 | F106: 107 | G106: 138 | H106: 165 | I106: 15 | J106: 84 | K106: 45 | L106: 0 | M106: 34 | N106: 345 | O106: 5
B107: 事前に決めていないが、施設職員が探した | C107: 281 | D107: 62 | E107: 24 | F107: 32 | G107: 25 | H107: 35 | I107: 3 | J107: 20 | K107: 2 | L107: 0 | M107: 8 | N107: 68 | O107: 2
B108: 無回答 | C108: 12 | D108: 6 | E108: 0 | F108: 1 | G108: 0 | H108: 3 | I108: 0 | J108: 0 | K108: 1 | L108: 0 | M108: 0 | N108: 0 | O108: 1

Sheet 救急-(2)⑤⑥⑦
A1: =RIGHT(CELL("filename",A1),LEN(CELL("filename",A1))-FIND("]",CELL("filename",A1))) -> 救急-(2)⑤⑥⑦ | D1: 問９Q10 搬送を行うまでに連絡した先（複数回答） | M1: 問９Q11 搬送の実施を判断した人 | V1: 問９Q13 搬送時の付き添い
D3: 全体 | E3: 配置医師 | F3: 協力医療機関 | G3: その他医師・医療機関 | H3: 看護職 | I3: 施設長 | J3: 家族 | K3: その他 | L3: 無回答 | M3: 全体 | N3: 配置医師 | O3: 協力医療機関 | P3: その他医師・医療機関 | Q3: 看護職 | R3: 施設長 | S3: 家族 | T3: その他 | U3: 無回答 | V3: 全体 | W3: 看護職が同乗し、診断がつくまで付き添い | X3: 看護職が同乗し、ご家族が到着後に引き継ぎ | Y3: 介護職が同乗し、診断がつくまで付き添い | Z3: 介護職が同乗し、ご家族が到着後に引き継ぎ | AA3: 同乗時点からご家族が対応 | AB3: その他 | AC3: 不明 | AD3: 無回答
A4: 全 体 | D4: =D21 -> 3002 | E4: 1461 | F4: 1086 | G4: 314 | H4: =H21 -> 2014 | I4: 1326 | J4: 2642 | K4: 328 | L4: 5 | M4: 3002 | N4: 832 | O4: 125 | P4: 50 | Q4: =Q21 -> 1394 | R4: 72 | S4: 133 | T4: 120 | U4: 276 | V4: 3002 | W4: 1493 | X4: 502 | Y4: 327 | Z4: =Z21 -> 312 | AA4: 141 | AB4: 184 | AC4: 2 | AD4: 41
D5: =IF(SUM(E5:L5)>100,"－",SUM(E5:L5)) -> － | E5: =E4/$D4*100 -> 48.66755496 | F5: 36.17588274 | G5: 10.45969354 | H5: =H4/$D4*100 -> 67.08860759 | I5: 44.17055296 | J5: 88.00799467 | K5: 10.9260493 | L5: 0.1665556296 | M5: =IF(SUM(N5:U5)>100,"－",SUM(N5:U5)) -> 100 | N5: =N4/$M4*100 -> 27.71485676 | O5: 4.16389074 | P5: 1.665556296 | Q5: =Q4/$M4*100 -> 46.43570953 | R5: 2.398401066 | S5: 4.430379747 | T5: 3.99733511 | U5: 9.193870753 | V5: =IF(SUM(W5:AD5)>100,"－",SUM(W5:AD5)) -> 100 | W5: =W4/$V4*100 -> 49.73351099 | X5: 16.72218521 | Y5: 10.89273817 | Z5: =Z4/$V4*100 -> 10.39307129 | AA5: 4.696868754 | AB5: 6.129247169 | AC5: 0.06662225183 | AD5: 1.365756163
A6: 問９Q8 | B6: 誤嚥性肺炎 | D6: =D23 -> 600 | E6: =IF($D6=0,0,E23/$D6*100) -> 50.33333333 | F6: 39.66666667 | G6: 8 | H6: 65 | I6: 43.83333333 | J6: 86.83333333 | K6: 11 | L6: 0.1666666667 | M6: =M23 -> 600 | N6: =IF($M6=0,0,N23/$M6*100) -> 25.83333333 | O6: 4 | P6: 1.5 | Q6: 48.5 | R6: 1.833333333 | S6: 4.833333333 | T6: 1.833333333 | U6: 11.66666667 | V6: =V23 -> 600 | W6: =IF($V6=0,0,W23/$V6*100) -> 49.83333333 | X6: 18 | Y6: 11 | Z6: 10 | AA6: 3.5 | AB6: 5.666666667 | AC6: 0 | AD6: 2
A7: 搬送の原因と | B7: その他感染症 | D7: 212 | E7: 58.49056604 | F7: 46.22641509 | G7: 11.32075472 | H7: 60.8490566 | I7: 41.98113208 | J7: 92.45283019 | K7: 4.245283019 | L7: 0 | M7: 212 | N7: 37.26415094 | O7: 4.245283019 | P7: 0.9433962264 | Q7: 39.1509434 | R7: 2.830188679 | S7: 4.245283019 | T7: 1.886792453 | U7: 9.433962264 | V7: 212 | W7: 51.88679245 | X7: 18.39622642 | Y7: 8.490566038 | Z7: 5.660377358 | AA7: 8.490566038 | AB7: 6.132075472 | AC7: 0 | AD7: 0.9433962264
A8: なった症状・出 | B8: 持病の悪化（脳血管疾患） | D8: 252 | E8: 54.76190476 | F8: 32.14285714 | G8: 14.68253968 | H8: 73.01587302 | I8: 50.3968254 | J8: 89.68253968 | K8: 11.9047619 | L8: 0.3968253968 | M8: 252 | N8: 33.73015873 | O8: 4.761904762 | P8: 0.7936507937 | Q8: 42.06349206 | R8: 2.777777778 | S8: 4.365079365 | T8: 4.365079365 | U8: 7.142857143 | V8: 252 | W8: 54.36507937 | X8: 15.47619048 | Y8: 5.952380952 | Z8: 12.6984127 | AA8: 3.968253968 | AB8: 7.142857143 | AC8: 0 | AD8: 0.3968253968
A9: 来事 | B9: 持病の悪化（心疾患） | D9: 322 | E9: 49.06832298 | F9: 38.19875776 | G9: 11.18012422 | H9: 68.63354037 | I9: 47.51552795 | J9: 87.88819876 | K9: 7.763975155 | L9: 0 | M9: 322 | N9: 27.95031056 | O9: 3.726708075 | P9: 1.242236025 | Q9: 45.65217391 | R9: 1.552795031 | S9: 4.968944099 | T9: 4.037267081 | U9: 10.86956522 | V9: 322 | W9: 51.24223602 | X9: 17.39130435 | Y9: 10.86956522 | Z9: 12.11180124 | AA9: 2.795031056 | AB9: 3.726708075 | AC9: 0 | AD9: 1.863354037
B10: 持病の悪化（それ以外） | D10: 492 | E10: 53.45528455 | F10: 39.83739837 | G10: 14.02439024 | H10: 63.21138211 | I10: 42.88617886 | J10: 86.17886179 | K10: 10.16260163 | L10: 0 | M10: 492 | N10: 32.31707317 | O10: 3.455284553 | P10: 1.62601626 | Q10: 40.44715447 | R10: 3.25203252 | S10: 5.284552846 | T10: 3.25203252 | U10: 10.36585366 | V10: 492 | W10: 50 | X10: 17.4796748 | Y10: 9.146341463 | Z10: 10.56910569 | AA10: 6.707317073 | AB10: 5.284552846 | AC10: 0.2032520325 | AD10: 0.6097560976
B11: 脱水 | D11: 39 | E11: 38.46153846 | F11: 38.46153846 | G11: 5.128205128 | H11: 74.35897436 | I11: 46.15384615 | J11: 92.30769231 | K11: 10.25641026 | L11: 0 | M11: 39 | N11: 17.94871795 | O11: 12.82051282 | P11: 0 | Q11: 48.71794872 | R11: 5.128205128 | S11: 12.82051282 | T11: 0 | U11: 2.564102564 | V11: 39 | W11: 51.28205128 | X11: 12.82051282 | Y11: 17.94871795 | Z11: 10.25641026 | AA11: 7.692307692 | AB11: 0 | AC11: 0 | AD11: 0
B12: 骨折等のケガ | D12: 199 | E12: 42.21105528 | F12: 32.66331658 | G12: 13.06532663 | H12: 75.37688442 | I12: 44.72361809 | J12: 93.96984925 | K12: 9.045226131 | L12: 0 | M12: 199 | N12: 21.6080402 | O12: 5.025125628 | P12: 3.51758794 | Q12: 53.26633166 | R12: 3.015075377 | S12: 2.010050251 | T12: 4.522613065 | U12: 7.035175879 | V12: 199 | W12: 40.20100503 | X12: 20.10050251 | Y12: 14.07035176 | Z12: 11.55778894 | AA12: 6.030150754 | AB12: 7.537688442 | AC12: 0 | AD12: 0.5025125628
B13: 不慮の事故（誤飲・窒息） | D13: 69 | E13: 39.13043478 | F13: 20.28985507 | G13: 10.14492754 | H13: 57.97101449 | I13: 59.42028986 | J13: 91.30434783 | K13: 11.5942029 | L13: 0 | M13: 69 | N13: 7.246376812 | O13: 0 | P13: 1.449275362 | Q13: 71.01449275 | R13: 5.797101449 | S13: 1.449275362 | T13: 8.695652174 | U13: 4.347826087 | V13: 69 | W13: 55.07246377 | X13: 10.14492754 | Y13: 10.14492754 | Z13: 15.94202899 | AA13: 0 | AB13: 7.246376812 | AC13: 0 | AD13: 1.449275362
B14: 不慮の事故（溺水） | D14: 0 | E14: 0 | F14: 0 | G14: 0 | H14: 0 | I14: 0 | J14: 0 | K14: 0 | L14: 0 | M14: 0 | N14: 0 | O14: 0 | P14: 0 | Q14: 0 | R14: 0 | S14: 0 | T14: 0 | U14: 0 | V14: 0 | W14: 0 | X14: 0 | Y14: 0 | Z14: 0 | AA14: 0 | AB14: 0 | AC14: 0 | AD14: 0
B15: 不慮の事故（それ以外） | D15: 61 | E15: 22.95081967 | F15: 27.86885246 | G15: 13.1147541 | H15: 73.7704918 | I15: 50.81967213 | J15: 73.7704918 | K15: 11.47540984 | L15: 0 | M15: 61 | N15: 11.47540984 | O15: 4.918032787 | P15: 3.278688525 | Q15: 54.09836066 | R15: 3.278688525 | S15: 4.918032787 | T15: 6.557377049 | U15: 11.47540984 | V15: 61 | W15: 37.70491803 | X15: 11.47540984 | Y15: 18.03278689 | Z15: 11.47540984 | AA15: 4.918032787 | AB15: 13.1147541 | AC15: 0 | AD15: 3.278688525
B16: その他 | D16: 741 | E16: 44.66936572 | F16: 31.4439946 | G16: 7.557354926 | H16: 68.42105263 | I16: 40.48582996 | J16: 87.71929825 | K16: 14.97975709 | L16: 0.2699055331 | M16: 741 | N16: 26.99055331 | O16: 4.318488529 | P16: 2.024291498 | Q16: 47.90823212 | R16: 1.754385965 | S16: 3.778677463 | T16: 6.20782726 | U16: 7.01754386 | V16: 741 | W16: 49.79757085 | X16: 14.84480432 | Y16: 12.82051282 | Z16: 9.71659919 | AA16: 4.318488529 | AB16: 6.882591093 | AC16: 0.1349527665 | AD16: 1.484480432
B17: 無回答 | D17: 15 | E17: 33.33333333 | F17: 40 | G17: 6.666666667 | H17: 53.33333333 | I17: 26.66666667 | J17: 73.33333333 | K17: 0 | L17: 6.666666667 | M17: 15 | N17: 13.33333333 | O17: 6.666666667 | P17: 0 | Q17: 40 | R17: 0 | S17: 6.666666667 | T17: 0 | U17: 33.33333333 | V17: 15 | W17: 40 | X17: 33.33333333 | Y17: 0 | Z17: 0 | AA17: 0 | AB17: 13.33333333 | AC17: 0 | AD17: 13.33333333
A21: 全 体 | D21: 3002 | E21: 1461 | F21: 1086 | G21: 314 | H21: 2014 | I21: 1326 | J21: 2642 | K21: 328 | L21: 5 | M21: 3002 | N21: 832 | O21: 125 | P21: 50 | Q21: 1394 | R21: 72 | S21: 133 | T21: 120 | U21: 276 | V21: 3002 | W21: 1493 | X21: 502 | Y21: 327 | Z21: 312 | AA21: 141 | AB21: 184 | AC21: 2 | AD21: 41
A23: 問９Q8 | B23: 誤嚥性肺炎 | D23: 600 | E23: 302 | F23: 238 | G23: 48 | H23: 390 | I23: 263 | J23: 521 | K23: 66 | L23: 1 | M23: 600 | N23: 155 | O23: 24 | P23: 9 | Q23: 291 | R23: 11 | S23: 29 | T23: 11 | U23: 70 | V23: 600 | W23: 299 | X23: 108 | Y23: 66 | Z23: 60 | AA23: 21 | AB23: 34 | AC23: 0 | AD23: 12
A24: 搬送の原因と | B24: その他感染症 | D24: 212 | E24: 124 | F24: 98 | G24: 24 | H24: 129 | I24: 89 | J24: 196 | K24: 9 | L24: 0 | M24: 212 | N24: 79 | O24: 9 | P24: 2 | Q24: 83 | R24: 6 | S24: 9 | T24: 4 | U24: 20 | V24: 212 | W24: 110 | X24: 39 | Y24: 18 | Z24: 12 | AA24: 18 | AB24: 13 | AC24: 0 | AD24: 2
